Workbook

Sheet Impressum
C1: Impressum
C9: PLANUNGSTOOL
C10: &
C11: TRAININGSTAGEBUCH
E14: Conception / réalisation
F16: Louis Heyer
F17: Bundesamt für Sport / Trainingswissenschaft
F18: louis.heyer@baspo.admin.ch
F19: 032 327 64 99 / 079 507 58 25

Sheet Anleitung
B1: Anleitung
B3: Anleitung
B5: Gewicht | D5: Immer vor den Frühstück, mind. 2x/Wo
M6: Foster's Skala
B7: Gefühl | D7: Wie fühle ich mich ? Wie geht es mir ? Allg. Antwort über das Tagesgefühl.
D8: Werte von [ -3 ] bis [ +3 ] | M8: "Wenn du an das Training zurück denkst, wie anstrengend ist das Training heute gewesen?"
B10: Schlaf (2x) | D10: Hier musst du deine Schlafqualität beurteilen und eine Note von 1 (katastrophal) bis 6 (super) eintragen. Du schreibst unter "Montag" die Qualität deinem Schlaf in der Nacht von Sonntag bis Montag. Die Schlafstunden sollst du auch eingeben.
S12: RPE
B13: Verletzung /Erkrankung | D13: Wenn du wegen einer Verletzung oder einer Erkrankungen nicht "normal" trainieren konntest, trage einen "x" ein | M13: Wie in Ruhe | S13: 0
M14: Sehr locker | S14: 1
M15: Locker | S15: 2
B16: Dauer | D16: Hier sollst du erst die Dauer deines Trainings/Wettkampfs in Minuten angeben. Warm-up und cool-down gehören zum Training | S16: 3
M17: Etwas hart | S17: 4
M18: Hart | S18: 5
B19: RPE | D19: RPE = Rate of Perceived Exertion | S19: 6
D20: Vorgehen Trainingsbeurteilung mittels Fosterskala | M20: Sehr hart | S20: 7
S21: 8
D22: Durchführung der Beurteilung möglichst 15-30 Min. nach jeder Trainingseinheit, nicht unmittelbar nacher (nicht Borg Skala !) | M22: Extrem hart | S22: 9
M23: Wie mein härtestes Training überhaupt | S23: 10
D25: Beschreibe Deine Anstrengung bzw. Dein Belastungsgefühl für die ganze
D26: Trainings- oder Wettkampfeinheit nach dem Motto:
D27: Wenn du an das Training zurück denkst, wie anstrengend ist dasTraining heute gewesen?
D30: Trage die entsprechende Zahl in Deinem Protokollblatt ein.
D32: Wenn du mehrere Trainings- oder Wettkampfeinheiten pro Tag absolvierst, mach für jede Einheite eine solche Bewertung und schreibe sie dann unter Training 1, Training 2, etc ein.
B37: Km | D37: Anzahl Km eingeben - achtung keine Kommas ! 7.5 schreiben und nicht 7,5 !
B39: J | D39: Wie zufrieden bist du mit dem Training (bezgl Trainingsqualität) ?
D40: 1 | E40: = | F40: nicht zufrieden
D41: 2 | E41: = | F41: eher nicht zufrieden
D42: 3 | E42: = | F42: neutral
D43: 4 | E43: = | F43: eher zufrieden
D44: 5 | E44: = | F44: zufrieden
D45: 6 | E45: = | F45: hammer !
B47: Regeneration | D47: Massnahmen eintragen (zB "Massage")
B49: Mentales | D49: Massnahmen eintragen (zB "Autogenes Training")

Sheet Jahresplanung
B2: Jahresplanung : | E2: Jahr | M2: Vorname Name | AG2: Beginn des Trainingsjahres : | AH2: 2014-11-03
D3: =AH2 -> 2014-11-03 | E3: =D3+7 -> 2014-11-10 | F3: =E3+7 -> 2014-11-17 | G3: 2014-11-24 | H3: 2014-12-01 | I3: 2014-12-08 | J3: 2014-12-15 | K3: 2014-12-22 | L3: 2014-12-29 | M3: 2015-01-05 | N3: 2015-01-12 | O3: 2015-01-19 | P3: 2015-01-26 | Q3: 2015-02-02 | R3: 2015-02-09 | S3: 2015-02-16 | T3: 2015-02-23 | U3: 2015-03-02 | V3: 2015-03-09 | W3: 2015-03-16 | X3: 2015-03-23 | Y3: 2015-03-30 | Z3: 2015-04-06 | AA3: 2015-04-13 | AB3: 2015-04-20 | AC3: 2015-04-27 | AD3: 2015-05-04 | AE3: 2015-05-11 | AF3: 2015-05-18 | AG3: 2015-05-25 | AH3: 2015-06-01 | AI3: 2015-06-08 | AJ3: 2015-06-15 | AK3: 2015-06-22 | AL3: 2015-06-29 | AM3: 2015-07-06 | AN3: 2015-07-13 | AO3: 2015-07-20 | AP3: 2015-07-27 | AQ3: 2015-08-03 | AR3: 2015-08-10 | AS3: 2015-08-17 | AT3: 2015-08-24 | AU3: 2015-08-31 | AV3: 2015-09-07 | AW3: 2015-09-14 | AX3: 2015-09-21 | AY3: 2015-09-28 | AZ3: 2015-10-05 | BA3: 2015-10-12 | BB3: 2015-10-19 | BC3: 2015-10-26
B5: Kalenderwoche | D5: =INT(MOD(INT((D3-2)/7)+0.6,52+5/28))+1 -> 45 | E5: =INT(MOD(INT((E3-2)/7)+0.6,52+5/28))+1 -> 46 | F5: 47 | G5: 48 | H5: 49 | I5: 50 | J5: 51 | K5: 52 | L5: 1 | M5: 2 | N5: 3 | O5: 4 | P5: 5 | Q5: 6 | R5: 7 | S5: 8 | T5: 9 | U5: 10 | V5: 11 | W5: 12 | X5: 13 | Y5: 14 | Z5: 15 | AA5: 16 | AB5: 17 | AC5: 18 | AD5: 19 | AE5: 20 | AF5: 21 | AG5: 22 | AH5: 23 | AI5: 24 | AJ5: 25 | AK5: 26 | AL5: 27 | AM5: 28 | AN5: 29 | AO5: 30 | AP5: 31 | AQ5: 32 | AR5: 33 | AS5: 34 | AT5: 35 | AU5: 36 | AV5: 37 | AW5: 38 | AX5: 39 | AY5: 40 | AZ5: 41 | BA5: 42 | BB5: 43 | BC5: 44
B6: Datum | D6: =D8+6 -> 2014-11-09 | E6: =E8+6 -> 2014-11-16 | F6: 2014-11-23 | G6: 2014-11-30 | H6: 2014-12-07 | I6: 2014-12-14 | J6: 2014-12-21 | K6: 2014-12-28 | L6: 2015-01-04 | M6: 2015-01-11 | N6: 2015-01-18 | O6: 2015-01-25 | P6: 2015-02-01 | Q6: 2015-02-08 | R6: 2015-02-15 | S6: 2015-02-22 | T6: 2015-03-01 | U6: 2015-03-08 | V6: 2015-03-15 | W6: 2015-03-22 | X6: 2015-03-29 | Y6: 2015-04-05 | Z6: 2015-04-12 | AA6: 2015-04-19 | AB6: 2015-04-26 | AC6: 2015-05-03 | AD6: 2015-05-10 | AE6: 2015-05-17 | AF6: 2015-05-24 | AG6: 2015-05-31 | AH6: 2015-06-07 | AI6: 2015-06-14 | AJ6: 2015-06-21 | AK6: 2015-06-28 | AL6: 2015-07-05 | AM6: 2015-07-12 | AN6: 2015-07-19 | AO6: 2015-07-26 | AP6: 2015-08-02 | AQ6: 2015-08-09 | AR6: 2015-08-16 | AS6: 2015-08-23 | AT6: 2015-08-30 | AU6: 2015-09-06 | AV6: 2015-09-13 | AW6: 2015-09-20 | AX6: 2015-09-27 | AY6: 2015-10-04 | AZ6: 2015-10-11 | BA6: 2015-10-18 | BB6: 2015-10-25 | BC6: 2015-11-01
D7: - | E7: - | F7: - | G7: - | H7: - | I7: - | J7: - | K7: - | L7: - | M7: - | N7: - | O7: - | P7: - | Q7: - | R7: - | S7: - | T7: - | U7: - | V7: - | W7: - | X7: - | Y7: - | Z7: - | AA7: - | AB7: - | AC7: - | AD7: - | AE7: - | AF7: - | AG7: - | AH7: - | AI7: - | AJ7: - | AK7: - | AL7: - | AM7: - | AN7: - | AO7: - | AP7: - | AQ7: - | AR7: - | AS7: - | AT7: - | AU7: - | AV7: - | AW7: - | AX7: - | AY7: - | AZ7: - | BA7: - | BB7: - | BC7: -
D8: =D3 -> 2014-11-03 | E8: =D8+7 -> 2014-11-10 | F8: =E8+7 -> 2014-11-17 | G8: 2014-11-24 | H8: 2014-12-01 | I8: 2014-12-08 | J8: 2014-12-15 | K8: 2014-12-22 | L8: 2014-12-29 | M8: 2015-01-05 | N8: 2015-01-12 | O8: 2015-01-19 | P8: 2015-01-26 | Q8: 2015-02-02 | R8: 2015-02-09 | S8: 2015-02-16 | T8: 2015-02-23 | U8: 2015-03-02 | V8: 2015-03-09 | W8: 2015-03-16 | X8: 2015-03-23 | Y8: 2015-03-30 | Z8: 2015-04-06 | AA8: 2015-04-13 | AB8: 2015-04-20 | AC8: 2015-04-27 | AD8: 2015-05-04 | AE8: 2015-05-11 | AF8: 2015-05-18 | AG8: 2015-05-25 | AH8: 2015-06-01 | AI8: 2015-06-08 | AJ8: 2015-06-15 | AK8: 2015-06-22 | AL8: 2015-06-29 | AM8: 2015-07-06 | AN8: 2015-07-13 | AO8: 2015-07-20 | AP8: 2015-07-27 | AQ8: 2015-08-03 | AR8: 2015-08-10 | AS8: 2015-08-17 | AT8: 2015-08-24 | AU8: 2015-08-31 | AV8: 2015-09-07 | AW8: 2015-09-14 | AX8: 2015-09-21 | AY8: 2015-09-28 | AZ8: 2015-10-05 | BA8: 2015-10-12 | BB8: 2015-10-19 | BC8: 2015-10-26
B9: Trainingsphase
B10: Trainingsbelastung [ in % ]
B11: Trainingsbelastung | I11: 22
B13: Trainingseinheiten
B14: Trainingsstunden
B16: Ferien
B17: Trainingslager
B18: Trainingseinschränkungen
B20: Arzt / Blut / Leistungstest
B22: Wettkämpfe | C22: code
C23: 1. Priorität
C24: 2. Priorität
C25: 3. Priorität
B26: Wettkampfziel
B28: Divers
D61: =IF(D22="",#N/A,1.5) ->  | AJ61: =IF(AJ22="",#N/A,1.5) -> 

Sheet Jahresplanung vs Wochenplanung
D1: Jahresplanung vs Wochenplanung
A2: =CONCATENATE("Planung"," ",Jahresplanung!M2) -> Planung Vorname Name | U2: =Jahresplanung!E2 -> Jahr

Sheet Vergleich Trainer-Athlet
D1: Vergleich Trainer-Athlet | E1: Vergleich Trainer-Athlet
H2: Overview Trainer | T2: =CONCATENATE("Overview"," ",Jahresplanung!M2) -> Overview Vorname Name
B3: =Jahresplanung!E2 -> Jahr | AK3: Gewünschte Analyse : | AN3: Von Trainingswoche : | AO3: 1 | AR3: bis Trainingswoche : | AS3: 52
B5: Semaine | C5: Semaine | H5: b1 | I5: b2 | J5: b3 | K5: b4 | L5: b5 | M5: b6 | N5: b7 | O5: b8 | P5: b9 | Q5: b10 | R5: b11 | T5: b20 | U5: b21 | V5: b22 | W5: b23 | X5: b24 | Y5: b25 | Z5: b26 | AA5: b27 | AB5: b28 | AC5: b29 | AD5: b30 | AE5: b31
B6: =CONCATENATE(">","=",AO3) -> >=1 | C6: =CONCATENATE("<","=",AS3) -> <=52 | H6: b1 | I6: b2 | J6: b3 | K6: b4 | L6: b5 | M6: b6 | N6: b7 | O6: b8 | P6: b9 | Q6: b10 | R6: b11 | T6: b20 | U6: b21 | V6: b22 | W6: b23 | X6: b24 | Y6: b25 | Z6: b26 | AA6: b27 | AB6: b28 | AC6: b29 | AD6: b30 | AE6: b31
B8: Trainings- woche | C8: Kalenderwoche | H8: ='45'!$AE31 -> Trainingstage | I8: ='45'!$AE33 -> Trainingseinheiten | J8: ='45'!$AE35 -> Trainingsstunden | K8: ='45'!$AE37 -> Training Load | L8: ='45'!$AE39 -> Monotonie | M8: ='45'!$AE41 -> Trainingsanstrengung | N8: ='45'!$AE43 -> Lauf Km | O8: ='45'!$AE45 -> J | P8: ='45'!$AE47 -> Swim Km | Q8: ='45'!$AE49 -> Mental Training | R8: ='45'!$AE51 -> Regeneration | T8: =H8 -> Trainingstage | U8: =I8 -> Trainingseinheiten | V8: Trainingsstunden | W8: Training Load | X8: Monotonie | Y8: Trainingsanstrengung | Z8: Lauf Km | AA8: J | AB8: Swim Km | AC8: Mental Training | AD8: Regeneration | AE8: Verletzung/Erkrankung | AM8: Trainer | AQ8: Athlet
AM10: Total | AN10: MW/Woche | AQ10: Total | AR10: MW/Woche
AK11: Trainingstagen | AM11: =H68 -> 0 | AN11: =AM11/$H$69 ->  | AQ11: =T68 -> 0 | AR11: =AQ11/$T$69 -> 
AK12: Trainingseinheiten | AM12: =I68 -> 0 | AN12: =AM12/$I$69 ->  | AQ12: =U68 -> 0 | AR12: =AQ12/$U$69 -> 
AK13: Trainingsstunden | AM13: =J68 -> 0 | AN13: =AM13/$J$69 ->  | AQ13: =V68 -> 0 | AR13: =AQ13/$V$69 -> 
AK14: Training Load | AM14: =K68 -> 0 | AN14: =AM14/$K$69 ->  | AQ14: =W68 -> 0 | AR14: =AQ14/$W$69 -> 
AK15: Monotonie | AM15: =L68 -> 0 | AN15: =AM15/$L$69 ->  | AQ15: =X68 -> 0 | AR15: =AQ15/$X$69 -> 
B16: 1 | C16: =Jahresplanung!AH2 -> 2014-11-03 | D16: - | E16: =C16+6 -> 2014-11-09 | F16: =Jahresplanung!$D$5 -> 45 | H16: =TRANSPOSE($C97:$BB107) ->  | AK16: Trainingsanstrengung | AM16: =M68 -> 0 | AN16: =AM16/$M$69 ->  | AQ16: =Y68 -> 0 | AR16: =AQ16/$Z$69 -> 
B17: 2 | C17: =C16+7 -> 2014-11-10 | D17: - | E17: =C17+6 -> 2014-11-16 | F17: =Jahresplanung!$E$5 -> 46 | AK17: =Z8 -> Lauf Km | AM17: =N68 -> 0 | AN17: =AM17/$N$69 ->  | AQ17: =Z68 -> 0 | AR17: =AQ17/$AA$69 -> 
B18: 3 | C18: =C17+7 -> 2014-11-17 | D18: - | E18: 2014-11-23 | F18: =Jahresplanung!$F$5 -> 47 | AK18: =AA8 -> J | AM18: =O68 -> 0 | AN18: =AM18/$O$69 ->  | AQ18: =AA68 -> 0 | AR18: =AQ18/$AB$69 -> 
B19: 4 | C19: 2014-11-24 | D19: - | E19: 2014-11-30 | F19: =Jahresplanung!$G$5 -> 48 | AK19: =AB8 -> Swim Km | AM19: =P68 -> 0 | AN19: =AM19/$P$69 ->  | AQ19: =AB68 -> 0 | AR19: =AQ19/$AC$69 -> 
B20: 5 | C20: 2014-12-01 | D20: - | E20: 2014-12-07 | F20: =Jahresplanung!$H$5 -> 49 | AK20: Mental Training | AM20: =Q68 -> 0 | AN20: =AM20/$Q$69 ->  | AQ20: =AC68 -> 0 | AR20: =AQ20/$AD$69 -> 
B21: 6 | C21: 2014-12-08 | D21: - | E21: 2014-12-14 | F21: =Jahresplanung!$I$5 -> 50 | AK21: Regeneration | AM21: =R68 -> 0 | AN21: =AM21/$R$69 ->  | AQ21: =AD68 -> 0 | AR21: =AQ21/$AE$69 -> 
B22: 7 | C22: 2014-12-15 | D22: - | E22: 2014-12-21 | F22: =Jahresplanung!$J$5 -> 51
B23: 8 | C23: 2014-12-22 | D23: - | E23: 2014-12-28 | F23: =Jahresplanung!$K$5 -> 52
B24: 9 | C24: 2014-12-29 | D24: - | E24: 2015-01-04 | F24: =Jahresplanung!$L$5 -> 1
B25: 10 | C25: 2015-01-05 | D25: - | E25: 2015-01-11 | F25: =Jahresplanung!$M$5 -> 2
B26: 11 | C26: 2015-01-12 | D26: - | E26: 2015-01-18 | F26: =Jahresplanung!$N$5 -> 3
B27: 12 | C27: 2015-01-19 | D27: - | E27: 2015-01-25 | F27: =Jahresplanung!$O$5 -> 4
B28: 13 | C28: 2015-01-26 | D28: - | E28: 2015-02-01 | F28: =Jahresplanung!$P$5 -> 5
B29: 14 | C29: 2015-02-02 | D29: - | E29: 2015-02-08 | F29: =Jahresplanung!$Q$5 -> 6
B30: 15 | C30: 2015-02-09 | D30: - | E30: 2015-02-15 | F30: =Jahresplanung!$R$5 -> 7
B31: 16 | C31: 2015-02-16 | D31: - | E31: 2015-02-22 | F31: =Jahresplanung!$S$5 -> 8
B32: 17 | C32: 2015-02-23 | D32: - | E32: 2015-03-01 | F32: =Jahresplanung!$T$5 -> 9
B33: 18 | C33: 2015-03-02 | D33: - | E33: 2015-03-08 | F33: =Jahresplanung!$U$5 -> 10
B34: 19 | C34: 2015-03-09 | D34: - | E34: 2015-03-15 | F34: =Jahresplanung!$V$5 -> 11
B35: 20 | C35: 2015-03-16 | D35: - | E35: 2015-03-22 | F35: =Jahresplanung!$W$5 -> 12
B36: 21 | C36: 2015-03-23 | D36: - | E36: 2015-03-29 | F36: =Jahresplanung!$X$5 -> 13
B37: 22 | C37: 2015-03-30 | D37: - | E37: 2015-04-05 | F37: =Jahresplanung!$Y$5 -> 14
B38: 23 | C38: 2015-04-06 | D38: - | E38: 2015-04-12 | F38: =Jahresplanung!$Z$5 -> 15
B39: 24 | C39: 2015-04-13 | D39: - | E39: 2015-04-19 | F39: =Jahresplanung!$AA$5 -> 16
B40: 25 | C40: 2015-04-20 | D40: - | E40: 2015-04-26 | F40: =Jahresplanung!$AB$5 -> 17
B41: 26 | C41: 2015-04-27 | D41: - | E41: 2015-05-03 | F41: =Jahresplanung!$AC$5 -> 18
B42: 27 | C42: 2015-05-04 | D42: - | E42: 2015-05-10 | F42: =Jahresplanung!$AD$5 -> 19
B43: 28 | C43: 2015-05-11 | D43: - | E43: 2015-05-17 | F43: =Jahresplanung!$AE$5 -> 20
B44: 29 | C44: 2015-05-18 | D44: - | E44: 2015-05-24 | F44: =Jahresplanung!$AF$5 -> 21
B45: 30 | C45: 2015-05-25 | D45: - | E45: 2015-05-31 | F45: =Jahresplanung!$AG$5 -> 22
B46: 31 | C46: 2015-06-01 | D46: - | E46: 2015-06-07 | F46: =Jahresplanung!$AH$5 -> 23
B47: 32 | C47: 2015-06-08 | D47: - | E47: 2015-06-14 | F47: =Jahresplanung!$AI$5 -> 24
B48: 33 | C48: 2015-06-15 | D48: - | E48: 2015-06-21 | F48: =Jahresplanung!$AJ$5 -> 25
B49: 34 | C49: 2015-06-22 | D49: - | E49: 2015-06-28 | F49: =Jahresplanung!$AK$5 -> 26
B50: 35 | C50: 2015-06-29 | D50: - | E50: 2015-07-05 | F50: =Jahresplanung!$AL$5 -> 27
B51: 36 | C51: 2015-07-06 | D51: - | E51: 2015-07-12 | F51: =Jahresplanung!$AM$5 -> 28
B52: 37 | C52: 2015-07-13 | D52: - | E52: 2015-07-19 | F52: =Jahresplanung!$AN$5 -> 29
B53: 38 | C53: 2015-07-20 | D53: - | E53: 2015-07-26 | F53: =Jahresplanung!$AO$5 -> 30
B54: 39 | C54: 2015-07-27 | D54: - | E54: 2015-08-02 | F54: =Jahresplanung!$AP$5 -> 31
B55: 40 | C55: 2015-08-03 | D55: - | E55: 2015-08-09 | F55: =Jahresplanung!$AQ$5 -> 32
B56: 41 | C56: 2015-08-10 | D56: - | E56: 2015-08-16 | F56: =Jahresplanung!$AR$5 -> 33
B57: 42 | C57: 2015-08-17 | D57: - | E57: 2015-08-23 | F57: =Jahresplanung!$AS$5 -> 34
B58: 43 | C58: 2015-08-24 | D58: - | E58: 2015-08-30 | F58: =Jahresplanung!$AT$5 -> 35
B59: 44 | C59: 2015-08-31 | D59: - | E59: 2015-09-06 | F59: =Jahresplanung!$AU$5 -> 36
B60: 45 | C60: 2015-09-07 | D60: - | E60: 2015-09-13 | F60: =Jahresplanung!$AV$5 -> 37
B61: 46 | C61: 2015-09-14 | D61: - | E61: 2015-09-20 | F61: =Jahresplanung!$AW$5 -> 38
B62: 47 | C62: 2015-09-21 | D62: - | E62: 2015-09-27 | F62: =Jahresplanung!$AX$5 -> 39
B63: 48 | C63: 2015-09-28 | D63: - | E63: 2015-10-04 | F63: =Jahresplanung!$AY$5 -> 40
B64: 49 | C64: 2015-10-05 | D64: - | E64: 2015-10-11 | F64: =Jahresplanung!$AZ$5 -> 41
B65: 50 | C65: 2015-10-12 | D65: - | E65: 2015-10-18 | F65: =Jahresplanung!$BA$5 -> 42
B66: 51 | C66: 2015-10-19 | D66: - | E66: 2015-10-25 | F66: =Jahresplanung!$BB$5 -> 43
B67: 52 | C67: 2015-10-26 | D67: - | E67: 2015-11-01 | F67: =Jahresplanung!$BC$5 -> 44
H68: =DSUM($B$5:H67,H6,$B$5:$C$6) -> 0 | I68: =DSUM($B$5:I67,I6,$B$5:$C$6) -> 0 | J68: =DSUM($B$5:J67,J6,$B$5:$C$6) -> 0 | K68: =DSUM($B$5:K67,K6,$B$5:$C$6) -> 0 | L68: =DSUM($B$5:L67,L6,$B$5:$C$6) -> 0 | M68: =DSUM($B$5:M67,M6,$B$5:$C$6) -> 0 | N68: =DSUM($B$5:N67,N6,$B$5:$C$6) -> 0 | O68: =DSUM($B$5:O67,O6,$B$5:$C$6) -> 0 | P68: =DSUM($B$5:P67,P6,$B$5:$C$6) -> 0 | Q68: =DSUM($B$5:Q67,Q6,$B$5:$C$6) -> 0 | R68: =DSUM($B$5:R67,R6,$B$5:$C$6) -> 0 | T68: =DSUM($B$5:T67,T6,$B$5:$C$6) -> 0 | U68: =DSUM($B$5:U67,U6,$B$5:$C$6) -> 0 | V68: =DSUM($B$5:V67,V6,$B$5:$C$6) -> 0 | W68: =DSUM($B$5:W67,W6,$B$5:$C$6) -> 0 | X68: =DSUM($B$5:X67,X6,$B$5:$C$6) -> 0 | Y68: =DSUM($B$5:Y67,Y6,$B$5:$C$6) -> 0 | Z68: =DSUM($B$5:Z67,Z6,$B$5:$C$6) -> 0 | AA68: =DSUM($B$5:AA67,AA6,$B$5:$C$6) -> 0 | AB68: =DSUM($B$5:AB67,AB6,$B$5:$C$6) -> 0 | AC68: =DSUM($B$5:AC67,AC6,$B$5:$C$6) -> 0 | AD68: =DSUM($B$5:AD67,AD6,$B$5:$C$6) -> 0 | AE68: =DSUM($B$5:AE67,AE6,$B$5:$C$6) -> 0
H69: =DCOUNT($B$5:H67,H6,$B$5:$C$6) -> 0 | I69: =DCOUNT($B$5:I67,I6,$B$5:$C$6) -> 0 | J69: =DCOUNT($B$5:J67,J6,$B$5:$C$6) -> 0 | K69: =DCOUNT($B$5:K67,K6,$B$5:$C$6) -> 0 | L69: =DCOUNT($B$5:L67,L6,$B$5:$C$6) -> 0 | M69: =DCOUNT($B$5:M67,M6,$B$5:$C$6) -> 0 | N69: =DCOUNT($B$5:N67,N6,$B$5:$C$6) -> 0 | O69: =DCOUNT($B$5:O67,O6,$B$5:$C$6) -> 0 | P69: =DCOUNT($B$5:P67,P6,$B$5:$C$6) -> 0 | Q69: =DCOUNT($B$5:Q67,Q6,$B$5:$C$6) -> 0 | R69: =DCOUNT($B$5:R67,R6,$B$5:$C$6) -> 0 | T69: =DCOUNT($B$5:T67,T6,$B$5:$C$6) -> 0 | U69: =DCOUNT($B$5:U67,U6,$B$5:$C$6) -> 0 | V69: =DCOUNT($B$5:V67,V6,$B$5:$C$6) -> 0 | W69: =DCOUNT($B$5:W67,W6,$B$5:$C$6) -> 0 | X69: =DCOUNT($B$5:X67,X6,$B$5:$C$6) -> 0 | Y69: =DCOUNT($B$5:Y67,Y6,$B$5:$C$6) -> 0 | Z69: =DCOUNT($B$5:Z67,Z6,$B$5:$C$6) -> 0 | AA69: =DCOUNT($B$5:AA67,AA6,$B$5:$C$6) -> 0 | AB69: =DCOUNT($B$5:AB67,AB6,$B$5:$C$6) -> 0 | AC69: =DCOUNT($B$5:AC67,AC6,$B$5:$C$6) -> 0 | AD69: =DCOUNT($B$5:AD67,AD6,$B$5:$C$6) -> 0 | AE69: =DCOUNT($B$5:AE67,AE6,$B$5:$C$6) -> 0
B96: Überblick | C96: =Jahresplanung!D5 -> 45 | D96: =Jahresplanung!E5 -> 46 | E96: =Jahresplanung!F5 -> 47 | F96: =Jahresplanung!G5 -> 48 | G96: =Jahresplanung!H5 -> 49 | H96: =Jahresplanung!I5 -> 50 | I96: =Jahresplanung!J5 -> 51 | J96: =Jahresplanung!K5 -> 52 | K96: =Jahresplanung!L5 -> 1 | L96: =Jahresplanung!M5 -> 2 | M96: =Jahresplanung!N5 -> 3 | N96: =Jahresplanung!O5 -> 4 | O96: =Jahresplanung!P5 -> 5 | P96: =Jahresplanung!Q5 -> 6 | Q96: =Jahresplanung!R5 -> 7 | R96: =Jahresplanung!S5 -> 8 | S96: =Jahresplanung!T5 -> 9 | T96: =Jahresplanung!U5 -> 10 | U96: =Jahresplanung!V5 -> 11 | V96: =Jahresplanung!W5 -> 12 | W96: =Jahresplanung!X5 -> 13 | X96: =Jahresplanung!Y5 -> 14 | Y96: =Jahresplanung!Z5 -> 15 | Z96: =Jahresplanung!AA5 -> 16 | AA96: =Jahresplanung!AB5 -> 17 | AB96: =Jahresplanung!AC5 -> 18 | AC96: =Jahresplanung!AD5 -> 19 | AD96: =Jahresplanung!AE5 -> 20 | AE96: =Jahresplanung!AF5 -> 21 | AF96: =Jahresplanung!AG5 -> 22 | AG96: =Jahresplanung!AH5 -> 23 | AH96: =Jahresplanung!AI5 -> 24 | AI96: =Jahresplanung!AJ5 -> 25 | AJ96: =Jahresplanung!AK5 -> 26 | AK96: =Jahresplanung!AL5 -> 27 | AL96: =Jahresplanung!AM5 -> 28 | AM96: =Jahresplanung!AN5 -> 29 | AN96: =Jahresplanung!AO5 -> 30 | AO96: =Jahresplanung!AP5 -> 31 | AP96: =Jahresplanung!AQ5 -> 32 | AQ96: =Jahresplanung!AR5 -> 33 | AR96: =Jahresplanung!AS5 -> 34 | AS96: =Jahresplanung!AT5 -> 35 | AT96: =Jahresplanung!AU5 -> 36 | AU96: =Jahresplanung!AV5 -> 37 | AV96: =Jahresplanung!AW5 -> 38 | AW96: =Jahresplanung!AX5 -> 39 | AX96: =Jahresplanung!AY5 -> 40 | AY96: =Jahresplanung!AZ5 -> 41 | AZ96: =Jahresplanung!BA5 -> 42 | BA96: =Jahresplanung!BB5 -> 43 | BB96: =Jahresplanung!BC5 -> 44
B97: Trainingstagen | C97: ='45'!$AG31 ->  | D97: ='46'!$AG31 ->  | E97: ='47'!$AG31 ->  | F97: ='48'!$AG31 ->  | G97: ='49'!$AG31 ->  | H97: ='50'!$AG31 ->  | I97: ='51'!$AG31 ->  | J97: ='52'!$AG31 ->  | K97: ='1'!$AG31 ->  | L97: ='2'!$AG31 ->  | M97: ='3'!$AG31 ->  | N97: ='4'!$AG31 ->  | O97: ='5'!$AG31 ->  | P97: ='6'!$AG31 ->  | Q97: ='7'!$AG31 ->  | R97: ='8'!$AG31 ->  | S97: ='9'!$AG31 ->  | T97: ='10'!$AG31 ->  | U97: ='11'!$AG31 ->  | V97: ='12'!$AG31 ->  | W97: ='13'!$AG31 ->  | X97: ='14'!$AG31 ->  | Y97: ='15'!$AG31 ->  | Z97: ='16'!$AG31 ->  | AA97: ='17'!$AG31 ->  | AB97: ='18'!$AG31 ->  | AC97: ='19'!$AG31 ->  | AD97: ='20'!$AG31 ->  | AE97: ='21'!$AG31 ->  | AF97: ='22'!$AG31 ->  | AG97: ='23'!$AG31 ->  | AH97: ='24'!$AG31 ->  | AI97: ='25'!$AG31 ->  | AJ97: ='26'!$AG31 ->  | AK97: ='27'!$AG31 ->  | AL97: ='28'!$AG31 ->  | AM97: ='29'!$AG31 ->  | AN97: ='30'!$AG31 ->  | AO97: ='31'!$AG31 ->  | AP97: ='32'!$AG31 ->  | AQ97: ='33'!$AG31 ->  | AR97: ='34'!$AG31 ->  | AS97: ='35'!$AG31 ->  | AT97: ='36'!$AG31 ->  | AU97: ='37'!$AG31 ->  | AV97: ='38'!$AG31 ->  | AW97: ='39'!$AG31 ->  | AX97: ='40'!$AG31 ->  | AY97: ='41'!$AG31 ->  | AZ97: ='42'!$AG31 ->  | BA97: ='43'!$AG31 ->  | BB97: ='44'!$AG31 -> 
B98: Trainingseinheiten | C98: ='45'!$AG33 ->  | D98: ='46'!$AG33 ->  | E98: ='47'!$AG33 ->  | F98: ='48'!$AG33 ->  | G98: ='49'!$AG33 ->  | H98: ='50'!$AG33 ->  | I98: ='51'!$AG33 ->  | J98: ='52'!$AG33 ->  | K98: ='1'!$AG33 ->  | L98: ='2'!$AG33 ->  | M98: ='3'!$AG33 ->  | N98: ='4'!$AG33 ->  | O98: ='5'!$AG33 ->  | P98: ='6'!$AG33 ->  | Q98: ='7'!$AG33 ->  | R98: ='8'!$AG33 ->  | S98: ='9'!$AG33 ->  | T98: ='10'!$AG33 ->  | U98: ='11'!$AG33 ->  | V98: ='12'!$AG33 ->  | W98: ='13'!$AG33 ->  | X98: ='14'!$AG33 ->  | Y98: ='15'!$AG33 ->  | Z98: ='16'!$AG33 ->  | AA98: ='17'!$AG33 ->  | AB98: ='18'!$AG33 ->  | AC98: ='19'!$AG33 ->  | AD98: ='20'!$AG33 ->  | AE98: ='21'!$AG33 ->  | AF98: ='22'!$AG33 ->  | AG98: ='23'!$AG33 ->  | AH98: ='24'!$AG33 ->  | AI98: ='25'!$AG33 ->  | AJ98: ='26'!$AG33 ->  | AK98: ='27'!$AG33 ->  | AL98: ='28'!$AG33 ->  | AM98: ='29'!$AG33 ->  | AN98: ='30'!$AG33 ->  | AO98: ='31'!$AG33 ->  | AP98: ='32'!$AG33 ->  | AQ98: ='33'!$AG33 ->  | AR98: ='34'!$AG33 ->  | AS98: ='35'!$AG33 ->  | AT98: ='36'!$AG33 ->  | AU98: ='37'!$AG33 ->  | AV98: ='38'!$AG33 ->  | AW98: ='39'!$AG33 ->  | AX98: ='40'!$AG33 ->  | AY98: ='41'!$AG33 ->  | AZ98: ='42'!$AG33 ->  | BA98: ='43'!$AG33 ->  | BB98: ='44'!$AG33 -> 
B99: Trainingsstunden | C99: ='45'!$AG35 ->  | D99: ='46'!$AG35 ->  | E99: ='47'!$AG35 ->  | F99: ='48'!$AG35 ->  | G99: ='49'!$AG35 ->  | H99: ='50'!$AG35 ->  | I99: ='51'!$AG35 ->  | J99: ='52'!$AG35 ->  | K99: ='1'!$AG35 ->  | L99: ='2'!$AG35 ->  | M99: ='3'!$AG35 ->  | N99: ='4'!$AG35 ->  | O99: ='5'!$AG35 ->  | P99: ='6'!$AG35 ->  | Q99: ='7'!$AG35 ->  | R99: ='8'!$AG35 ->  | S99: ='9'!$AG35 ->  | T99: ='10'!$AG35 ->  | U99: ='11'!$AG35 ->  | V99: ='12'!$AG35 ->  | W99: ='13'!$AG35 ->  | X99: ='14'!$AG35 ->  | Y99: ='15'!$AG35 ->  | Z99: ='16'!$AG35 ->  | AA99: ='17'!$AG35 ->  | AB99: ='18'!$AG35 ->  | AC99: ='19'!$AG35 ->  | AD99: ='20'!$AG35 ->  | AE99: ='21'!$AG35 ->  | AF99: ='22'!$AG35 ->  | AG99: ='23'!$AG35 ->  | AH99: ='24'!$AG35 ->  | AI99: ='25'!$AG35 ->  | AJ99: ='26'!$AG35 ->  | AK99: ='27'!$AG35 ->  | AL99: ='28'!$AG35 ->  | AM99: ='29'!$AG35 ->  | AN99: ='30'!$AG35 ->  | AO99: ='31'!$AG35 ->  | AP99: ='32'!$AG35 ->  | AQ99: ='33'!$AG35 ->  | AR99: ='34'!$AG35 ->  | AS99: ='35'!$AG35 ->  | AT99: ='36'!$AG35 ->  | AU99: ='37'!$AG35 ->  | AV99: ='38'!$AG35 ->  | AW99: ='39'!$AG35 ->  | AX99: ='40'!$AG35 ->  | AY99: ='41'!$AG35 ->  | AZ99: ='42'!$AG35 ->  | BA99: ='43'!$AG35 ->  | BB99: ='44'!$AG35 -> 
B100: Training Load | C100: ='45'!$AG37 ->  | D100: ='46'!$AG37 ->  | E100: ='47'!$AG37 ->  | F100: ='48'!$AG37 ->  | G100: ='49'!$AG37 ->  | H100: ='50'!$AG37 ->  | I100: ='51'!$AG37 ->  | J100: ='52'!$AG37 ->  | K100: ='1'!$AG37 ->  | L100: ='2'!$AG37 ->  | M100: ='3'!$AG37 ->  | N100: ='4'!$AG37 ->  | O100: ='5'!$AG37 ->  | P100: ='6'!$AG37 ->  | Q100: ='7'!$AG37 ->  | R100: ='8'!$AG37 ->  | S100: ='9'!$AG37 ->  | T100: ='10'!$AG37 ->  | U100: ='11'!$AG37 ->  | V100: ='12'!$AG37 ->  | W100: ='13'!$AG37 ->  | X100: ='14'!$AG37 ->  | Y100: ='15'!$AG37 ->  | Z100: ='16'!$AG37 ->  | AA100: ='17'!$AG37 ->  | AB100: ='18'!$AG37 ->  | AC100: ='19'!$AG37 ->  | AD100: ='20'!$AG37 ->  | AE100: ='21'!$AG37 ->  | AF100: ='22'!$AG37 ->  | AG100: ='23'!$AG37 ->  | AH100: ='24'!$AG37 ->  | AI100: ='25'!$AG37 ->  | AJ100: ='26'!$AG37 ->  | AK100: ='27'!$AG37 ->  | AL100: ='28'!$AG37 ->  | AM100: ='29'!$AG37 ->  | AN100: ='30'!$AG37 ->  | AO100: ='31'!$AG37 ->  | AP100: ='32'!$AG37 ->  | AQ100: ='33'!$AG37 ->  | AR100: ='34'!$AG37 ->  | AS100: ='35'!$AG37 ->  | AT100: ='36'!$AG37 ->  | AU100: ='37'!$AG37 ->  | AV100: ='38'!$AG37 ->  | AW100: ='39'!$AG37 ->  | AX100: ='40'!$AG37 ->  | AY100: ='41'!$AG37 ->  | AZ100: ='42'!$AG37 ->  | BA100: ='43'!$AG37 ->  | BB100: ='44'!$AG37 -> 
B101: Monotonie | C101: ='45'!$AG39 ->  | D101: ='46'!$AG39 ->  | E101: ='47'!$AG39 ->  | F101: ='48'!$AG39 ->  | G101: ='49'!$AG39 ->  | H101: ='50'!$AG39 ->  | I101: ='51'!$AG39 ->  | J101: ='52'!$AG39 ->  | K101: ='1'!$AG39 ->  | L101: ='2'!$AG39 ->  | M101: ='3'!$AG39 ->  | N101: ='4'!$AG39 ->  | O101: ='5'!$AG39 ->  | P101: ='6'!$AG39 ->  | Q101: ='7'!$AG39 ->  | R101: ='8'!$AG39 ->  | S101: ='9'!$AG39 ->  | T101: ='10'!$AG39 ->  | U101: ='11'!$AG39 ->  | V101: ='12'!$AG39 ->  | W101: ='13'!$AG39 ->  | X101: ='14'!$AG39 ->  | Y101: ='15'!$AG39 ->  | Z101: ='16'!$AG39 ->  | AA101: ='17'!$AG39 ->  | AB101: ='18'!$AG39 ->  | AC101: ='19'!$AG39 ->  | AD101: ='20'!$AG39 ->  | AE101: ='21'!$AG39 ->  | AF101: ='22'!$AG39 ->  | AG101: ='23'!$AG39 ->  | AH101: ='24'!$AG39 ->  | AI101: ='25'!$AG39 ->  | AJ101: ='26'!$AG39 ->  | AK101: ='27'!$AG39 ->  | AL101: ='28'!$AG39 ->  | AM101: ='29'!$AG39 ->  | AN101: ='30'!$AG39 ->  | AO101: ='31'!$AG39 ->  | AP101: ='32'!$AG39 ->  | AQ101: ='33'!$AG39 ->  | AR101: ='34'!$AG39 ->  | AS101: ='35'!$AG39 ->  | AT101: ='36'!$AG39 ->  | AU101: ='37'!$AG39 ->  | AV101: ='38'!$AG39 ->  | AW101: ='39'!$AG39 ->  | AX101: ='40'!$AG39 ->  | AY101: ='41'!$AG39 ->  | AZ101: ='42'!$AG39 ->  | BA101: ='43'!$AG39 ->  | BB101: ='44'!$AG39 -> 
B102: Trainingsanstrengung | C102: ='45'!$AG41 ->  | D102: ='46'!$AG41 ->  | E102: ='47'!$AG41 ->  | F102: ='48'!$AG41 ->  | G102: ='49'!$AG41 ->  | H102: ='50'!$AG41 ->  | I102: ='51'!$AG41 ->  | J102: ='52'!$AG41 ->  | K102: ='1'!$AG41 ->  | L102: ='2'!$AG41 ->  | M102: ='3'!$AG41 ->  | N102: ='4'!$AG41 ->  | O102: ='5'!$AG41 ->  | P102: ='6'!$AG41 ->  | Q102: ='7'!$AG41 ->  | R102: ='8'!$AG41 ->  | S102: ='9'!$AG41 ->  | T102: ='10'!$AG41 ->  | U102: ='11'!$AG41 ->  | V102: ='12'!$AG41 ->  | W102: ='13'!$AG41 ->  | X102: ='14'!$AG41 ->  | Y102: ='15'!$AG41 ->  | Z102: ='16'!$AG41 ->  | AA102: ='17'!$AG41 ->  | AB102: ='18'!$AG41 ->  | AC102: ='19'!$AG41 ->  | AD102: ='20'!$AG41 ->  | AE102: ='21'!$AG41 ->  | AF102: ='22'!$AG41 ->  | AG102: ='23'!$AG41 ->  | AH102: ='24'!$AG41 ->  | AI102: ='25'!$AG41 ->  | AJ102: ='26'!$AG41 ->  | AK102: ='27'!$AG41 ->  | AL102: ='28'!$AG41 ->  | AM102: ='29'!$AG41 ->  | AN102: ='30'!$AG41 ->  | AO102: ='31'!$AG41 ->  | AP102: ='32'!$AG41 ->  | AQ102: ='33'!$AG41 ->  | AR102: ='34'!$AG41 ->  | AS102: ='35'!$AG41 ->  | AT102: ='36'!$AG41 ->  | AU102: ='37'!$AG41 ->  | AV102: ='38'!$AG41 ->  | AW102: ='39'!$AG41 ->  | AX102: ='40'!$AG41 ->  | AY102: ='41'!$AG41 ->  | AZ102: ='42'!$AG41 ->  | BA102: ='43'!$AG41 ->  | BB102: ='44'!$AG41 -> 
B103: Swim Km | C103: ='45'!$AG43 ->  | D103: ='46'!$AG43 ->  | E103: ='47'!$AG43 ->  | F103: ='48'!$AG43 ->  | G103: ='49'!$AG43 ->  | H103: ='50'!$AG43 ->  | I103: ='51'!$AG43 ->  | J103: ='52'!$AG43 ->  | K103: ='1'!$AG43 ->  | L103: ='2'!$AG43 ->  | M103: ='3'!$AG43 ->  | N103: ='4'!$AG43 ->  | O103: ='5'!$AG43 ->  | P103: ='6'!$AG43 ->  | Q103: ='7'!$AG43 ->  | R103: ='8'!$AG43 ->  | S103: ='9'!$AG43 ->  | T103: ='10'!$AG43 ->  | U103: ='11'!$AG43 ->  | V103: ='12'!$AG43 ->  | W103: ='13'!$AG43 ->  | X103: ='14'!$AG43 ->  | Y103: ='15'!$AG43 ->  | Z103: ='16'!$AG43 ->  | AA103: ='17'!$AG43 ->  | AB103: ='18'!$AG43 ->  | AC103: ='19'!$AG43 ->  | AD103: ='20'!$AG43 ->  | AE103: ='21'!$AG43 ->  | AF103: ='22'!$AG43 ->  | AG103: ='23'!$AG43 ->  | AH103: ='24'!$AG43 ->  | AI103: ='25'!$AG43 ->  | AJ103: ='26'!$AG43 ->  | AK103: ='27'!$AG43 ->  | AL103: ='28'!$AG43 ->  | AM103: ='29'!$AG43 ->  | AN103: ='30'!$AG43 ->  | AO103: ='31'!$AG43 ->  | AP103: ='32'!$AG43 ->  | AQ103: ='33'!$AG43 ->  | AR103: ='34'!$AG43 ->  | AS103: ='35'!$AG43 ->  | AT103: ='36'!$AG43 ->  | AU103: ='37'!$AG43 ->  | AV103: ='38'!$AG43 ->  | AW103: ='39'!$AG43 ->  | AX103: ='40'!$AG43 ->  | AY103: ='41'!$AG43 ->  | AZ103: ='42'!$AG43 ->  | BA103: ='43'!$AG43 ->  | BB103: ='44'!$AG43 -> 
B104: Rad Km | C104: ='45'!$AG45 ->  | D104: ='46'!$AG45 ->  | E104: ='47'!$AG45 ->  | F104: ='48'!$AG45 ->  | G104: ='49'!$AG45 ->  | H104: ='50'!$AG45 ->  | I104: ='51'!$AG45 ->  | J104: ='52'!$AG45 ->  | K104: ='1'!$AG45 ->  | L104: ='2'!$AG45 ->  | M104: ='3'!$AG45 ->  | N104: ='4'!$AG45 ->  | O104: ='5'!$AG45 ->  | P104: ='6'!$AG45 ->  | Q104: ='7'!$AG45 ->  | R104: ='8'!$AG45 ->  | S104: ='9'!$AG45 ->  | T104: ='10'!$AG45 ->  | U104: ='11'!$AG45 ->  | V104: ='12'!$AG45 ->  | W104: ='13'!$AG45 ->  | X104: ='14'!$AG45 ->  | Y104: ='15'!$AG45 ->  | Z104: ='16'!$AG45 ->  | AA104: ='17'!$AG45 ->  | AB104: ='18'!$AG45 ->  | AC104: ='19'!$AG45 ->  | AD104: ='20'!$AG45 ->  | AE104: ='21'!$AG45 ->  | AF104: ='22'!$AG45 ->  | AG104: ='23'!$AG45 ->  | AH104: ='24'!$AG45 ->  | AI104: ='25'!$AG45 ->  | AJ104: ='26'!$AG45 ->  | AK104: ='27'!$AG45 ->  | AL104: ='28'!$AG45 ->  | AM104: ='29'!$AG45 ->  | AN104: ='30'!$AG45 ->  | AO104: ='31'!$AG45 ->  | AP104: ='32'!$AG45 ->  | AQ104: ='33'!$AG45 ->  | AR104: ='34'!$AG45 ->  | AS104: ='35'!$AG45 ->  | AT104: ='36'!$AG45 ->  | AU104: ='37'!$AG45 ->  | AV104: ='38'!$AG45 ->  | AW104: ='39'!$AG45 ->  | AX104: ='40'!$AG45 ->  | AY104: ='41'!$AG45 ->  | AZ104: ='42'!$AG45 ->  | BA104: ='43'!$AG45 ->  | BB104: ='44'!$AG45 -> 
B105: Lauf Km | C105: ='45'!$AG47 ->  | D105: ='46'!$AG47 ->  | E105: ='47'!$AG47 ->  | F105: ='48'!$AG47 ->  | G105: ='49'!$AG47 ->  | H105: ='50'!$AG47 ->  | I105: ='51'!$AG47 ->  | J105: ='52'!$AG47 ->  | K105: ='1'!$AG47 ->  | L105: ='2'!$AG47 ->  | M105: ='3'!$AG47 ->  | N105: ='4'!$AG47 ->  | O105: ='5'!$AG47 ->  | P105: ='6'!$AG47 ->  | Q105: ='7'!$AG47 ->  | R105: ='8'!$AG47 ->  | S105: ='9'!$AG47 ->  | T105: ='10'!$AG47 ->  | U105: ='11'!$AG47 ->  | V105: ='12'!$AG47 ->  | W105: ='13'!$AG47 ->  | X105: ='14'!$AG47 ->  | Y105: ='15'!$AG47 ->  | Z105: ='16'!$AG47 ->  | AA105: ='17'!$AG47 ->  | AB105: ='18'!$AG47 ->  | AC105: ='19'!$AG47 ->  | AD105: ='20'!$AG47 ->  | AE105: ='21'!$AG47 ->  | AF105: ='22'!$AG47 ->  | AG105: ='23'!$AG47 ->  | AH105: ='24'!$AG47 ->  | AI105: ='25'!$AG47 ->  | AJ105: ='26'!$AG47 ->  | AK105: ='27'!$AG47 ->  | AL105: ='28'!$AG47 ->  | AM105: ='29'!$AG47 ->  | AN105: ='30'!$AG47 ->  | AO105: ='31'!$AG47 ->  | AP105: ='32'!$AG47 ->  | AQ105: ='33'!$AG47 ->  | AR105: ='34'!$AG47 ->  | AS105: ='35'!$AG47 ->  | AT105: ='36'!$AG47 ->  | AU105: ='37'!$AG47 ->  | AV105: ='38'!$AG47 ->  | AW105: ='39'!$AG47 ->  | AX105: ='40'!$AG47 ->  | AY105: ='41'!$AG47 ->  | AZ105: ='42'!$AG47 ->  | BA105: ='43'!$AG47 ->  | BB105: ='44'!$AG47 -> 
B106: Mental Training | C106: ='45'!$AG49 ->  | D106: ='46'!$AG49 ->  | E106: ='47'!$AG49 ->  | F106: ='48'!$AG49 ->  | G106: ='49'!$AG49 ->  | H106: ='50'!$AG49 ->  | I106: ='51'!$AG49 ->  | J106: ='52'!$AG49 ->  | K106: ='1'!$AG49 ->  | L106: ='2'!$AG49 ->  | M106: ='3'!$AG49 ->  | N106: ='4'!$AG49 ->  | O106: ='5'!$AG49 ->  | P106: ='6'!$AG49 ->  | Q106: ='7'!$AG49 ->  | R106: ='8'!$AG49 ->  | S106: ='9'!$AG49 ->  | T106: ='10'!$AG49 ->  | U106: ='11'!$AG49 ->  | V106: ='12'!$AG49 ->  | W106: ='13'!$AG49 ->  | X106: ='14'!$AG49 ->  | Y106: ='15'!$AG49 ->  | Z106: ='16'!$AG49 ->  | AA106: ='17'!$AG49 ->  | AB106: ='18'!$AG49 ->  | AC106: ='19'!$AG49 ->  | AD106: ='20'!$AG49 ->  | AE106: ='21'!$AG49 ->  | AF106: ='22'!$AG49 ->  | AG106: ='23'!$AG49 ->  | AH106: ='24'!$AG49 ->  | AI106: ='25'!$AG49 ->  | AJ106: ='26'!$AG49 ->  | AK106: ='27'!$AG49 ->  | AL106: ='28'!$AG49 ->  | AM106: ='29'!$AG49 ->  | AN106: ='30'!$AG49 ->  | AO106: ='31'!$AG49 ->  | AP106: ='32'!$AG49 ->  | AQ106: ='33'!$AG49 ->  | AR106: ='34'!$AG49 ->  | AS106: ='35'!$AG49 ->  | AT106: ='36'!$AG49 ->  | AU106: ='37'!$AG49 ->  | AV106: ='38'!$AG49 ->  | AW106: ='39'!$AG49 ->  | AX106: ='40'!$AG49 ->  | AY106: ='41'!$AG49 ->  | AZ106: ='42'!$AG49 ->  | BA106: ='43'!$AG49 ->  | BB106: ='44'!$AG49 -> 
B107: Regenration | C107: ='45'!$AG51 ->  | D107: ='46'!$AG51 ->  | E107: ='47'!$AG51 ->  | F107: ='48'!$AG51 ->  | G107: ='49'!$AG51 ->  | H107: ='50'!$AG51 ->  | I107: ='51'!$AG51 ->  | J107: ='52'!$AG51 ->  | K107: ='1'!$AG51 ->  | L107: ='2'!$AG51 ->  | M107: ='3'!$AG51 ->  | N107: ='4'!$AG51 ->  | O107: ='5'!$AG51 ->  | P107: ='6'!$AG51 ->  | Q107: ='7'!$AG51 ->  | R107: ='8'!$AG51 ->  | S107: ='9'!$AG51 ->  | T107: ='10'!$AG51 ->  | U107: ='11'!$AG51 ->  | V107: ='12'!$AG51 ->  | W107: ='13'!$AG51 ->  | X107: ='14'!$AG51 ->  | Y107: ='15'!$AG51 ->  | Z107: ='16'!$AG51 ->  | AA107: ='17'!$AG51 ->  | AB107: ='18'!$AG51 ->  | AC107: ='19'!$AG51 ->  | AD107: ='20'!$AG51 ->  | AE107: ='21'!$AG51 ->  | AF107: ='22'!$AG51 ->  | AG107: ='23'!$AG51 ->  | AH107: ='24'!$AG51 ->  | AI107: ='25'!$AG51 ->  | AJ107: ='26'!$AG51 ->  | AK107: ='27'!$AG51 ->  | AL107: ='28'!$AG51 ->  | AM107: ='29'!$AG51 ->  | AN107: ='30'!$AG51 ->  | AO107: ='31'!$AG51 ->  | AP107: ='32'!$AG51 ->  | AQ107: ='33'!$AG51 ->  | AR107: ='34'!$AG51 ->  | AS107: ='35'!$AG51 ->  | AT107: ='36'!$AG51 ->  | AU107: ='37'!$AG51 ->  | AV107: ='38'!$AG51 ->  | AW107: ='39'!$AG51 ->  | AX107: ='40'!$AG51 ->  | AY107: ='41'!$AG51 ->  | AZ107: ='42'!$AG51 ->  | BA107: ='43'!$AG51 ->  | BB107: ='44'!$AG51 -> 
B110: Jahresplanung | C110: =Jahresplanung!D10/Jahresplanung!$D$10 ->  | D110: =Jahresplanung!E10/Jahresplanung!$D$10 ->  | E110: =Jahresplanung!F10/Jahresplanung!$D$10 ->  | F110: =Jahresplanung!G10/Jahresplanung!$D$10 ->  | G110: =Jahresplanung!H10/Jahresplanung!$D$10 ->  | H110: =Jahresplanung!I10/Jahresplanung!$D$10 ->  | I110: =Jahresplanung!J10/Jahresplanung!$D$10 ->  | J110: =Jahresplanung!K10/Jahresplanung!$D$10 ->  | K110: =Jahresplanung!L10/Jahresplanung!$D$10 ->  | L110: =Jahresplanung!M10/Jahresplanung!$D$10 ->  | M110: =Jahresplanung!N10/Jahresplanung!$D$10 ->  | N110: =Jahresplanung!O10/Jahresplanung!$D$10 ->  | O110: =Jahresplanung!P10/Jahresplanung!$D$10 ->  | P110: =Jahresplanung!Q10/Jahresplanung!$D$10 ->  | Q110: =Jahresplanung!R10/Jahresplanung!$D$10 ->  | R110: =Jahresplanung!S10/Jahresplanung!$D$10 ->  | S110: =Jahresplanung!T10/Jahresplanung!$D$10 ->  | T110: =Jahresplanung!U10/Jahresplanung!$D$10 ->  | U110: =Jahresplanung!V10/Jahresplanung!$D$10 ->  | V110: =Jahresplanung!W10/Jahresplanung!$D$10 ->  | W110: =Jahresplanung!X10/Jahresplanung!$D$10 ->  | X110: =Jahresplanung!Y10/Jahresplanung!$D$10 ->  | Y110: =Jahresplanung!Z10/Jahresplanung!$D$10 ->  | Z110: =Jahresplanung!AA10/Jahresplanung!$D$10 ->  | AA110: =Jahresplanung!AB10/Jahresplanung!$D$10 ->  | AB110: =Jahresplanung!AC10/Jahresplanung!$D$10 ->  | AC110: =Jahresplanung!AD10/Jahresplanung!$D$10 ->  | AD110: =Jahresplanung!AE10/Jahresplanung!$D$10 ->  | AE110: =Jahresplanung!AF10/Jahresplanung!$D$10 ->  | AF110: =Jahresplanung!AG10/Jahresplanung!$D$10 ->  | AG110: =Jahresplanung!AH10/Jahresplanung!$D$10 ->  | AH110: =Jahresplanung!AI10/Jahresplanung!$D$10 ->  | AI110: =Jahresplanung!AJ10/Jahresplanung!$D$10 ->  | AJ110: =Jahresplanung!AK10/Jahresplanung!$D$10 ->  | AK110: =Jahresplanung!AL10/Jahresplanung!$D$10 ->  | AL110: =Jahresplanung!AM10/Jahresplanung!$D$10 ->  | AM110: =Jahresplanung!AN10/Jahresplanung!$D$10 ->  | AN110: =Jahresplanung!AO10/Jahresplanung!$D$10 ->  | AO110: =Jahresplanung!AP10/Jahresplanung!$D$10 ->  | AP110: =Jahresplanung!AQ10/Jahresplanung!$D$10 ->  | AQ110: =Jahresplanung!AR10/Jahresplanung!$D$10 ->  | AR110: =Jahresplanung!AS10/Jahresplanung!$D$10 ->  | AS110: =Jahresplanung!AT10/Jahresplanung!$D$10 ->  | AT110: =Jahresplanung!AU10/Jahresplanung!$D$10 ->  | AU110: =Jahresplanung!AV10/Jahresplanung!$D$10 ->  | AV110: =Jahresplanung!AW10/Jahresplanung!$D$10 ->  | AW110: =Jahresplanung!AX10/Jahresplanung!$D$10 ->  | AX110: =Jahresplanung!AY10/Jahresplanung!$D$10 ->  | AY110: =Jahresplanung!AZ10/Jahresplanung!$D$10 ->  | AZ110: =Jahresplanung!BA10/Jahresplanung!$D$10 ->  | BA110: =Jahresplanung!BB10/Jahresplanung!$D$10 ->  | BB110: =Jahresplanung!BC10/Jahresplanung!$D$10 -> 
B111: Athlet normalisierung | C111: =C112/$C$112 ->  | D111: =D112/$C$112 -> 
B112: Athlet | C112: =TRANSPOSE(W16:W67) -> 0 | D112: 0 | E112: 0 | F112: 0 | G112: 0 | H112: 0 | I112: 0 | J112: 0 | K112: 0 | L112: 0 | M112: 0 | N112: 0 | O112: 0 | P112: 0 | Q112: 0 | R112: 0 | S112: 0 | T112: 0 | U112: 0 | V112: 0 | W112: 0 | X112: 0 | Y112: 0 | Z112: 0 | AA112: 0 | AB112: 0 | AC112: 0 | AD112: 0 | AE112: 0 | AF112: 0 | AG112: 0 | AH112: 0 | AI112: 0 | AJ112: 0 | AK112: 0 | AL112: 0 | AM112: 0 | AN112: 0 | AO112: 0 | AP112: 0 | AQ112: 0 | AR112: 0 | AS112: 0 | AT112: 0 | AU112: 0 | AV112: 0 | AW112: 0 | AX112: 0 | AY112: 0 | AZ112: 0 | BA112: 0 | BB112: 0
B113: Trainer | C113: =TRANSPOSE(K16:K67) -> 
B114: WP Trainer | C114: =C113/$C$113 ->  | D114: =D113/$C$113 ->  | AU114: =AU113/$C$113 -> 
T119: =U119 ->  | U119: =IF(V119=0,"",V119) -> 

Sheet Beanspruchungverteilung
D1: Beanspruchungverteilung
E3: =F47 -> Dauerlauf | I3: =I47 -> Bahn/Intervall | M3: =L47 -> Sprint/Koord/Tech | Q3: =O47 -> Kraft | U3: =R47 -> Alternativ | Y3: =U47 -> Divers | AD3: =D1 -> Beanspruchungverteilung | AM3: =CONCATENATE(Jahresplanung!M2," ",Jahresplanung!E2) -> Vorname Name Jahr
E5: Zone | H5: Total | I5: Zone | L5: Total | M5: Zone | P5: Total | Q5: Zone | T5: Total | U5: Zone | X5: Total | Y5: Zone | AB5: Total
E6: 1 | F6: 2 | G6: 3 | I6: 1 | J6: 2 | K6: 3 | M6: 1 | N6: 2 | O6: 3 | Q6: 1 | R6: 2 | S6: 3 | U6: 1 | V6: 2 | W6: 3 | Y6: 1 | Z6: 2 | AA6: 3
AE7: Gewünschte Analyse : | AK7: Von Trainingswoche : | AO7: 1 | AQ7: bis Trainingswoche : | AU7: 12
D8: Trainingseinheiten | E8: =F101 -> 0 | F8: =G101 -> 0 | G8: =H101 -> 0 | H8: =SUM(E8:G8) -> 0 | I8: =I101 -> 0 | J8: =J101 -> 0 | K8: =K101 -> 0 | L8: =SUM(I8:K8) -> 0 | M8: =L101 -> 0 | N8: =M101 -> 0 | O8: =N101 -> 0 | P8: =SUM(M8:O8) -> 0 | Q8: =O101 -> 0 | R8: =P101 -> 0 | S8: =Q101 -> 0 | T8: =SUM(Q8:S8) -> 0 | U8: =R101 -> 0 | V8: =S101 -> 0 | W8: =T101 -> 0 | X8: =SUM(U8:W8) -> 0 | Y8: =U101 -> 0 | Z8: =V101 -> 0 | AA8: =W101 -> 0 | AB8: =SUM(Y8:AA8) -> 0
D10: Trainingsstunden | E10: =AA101 -> 0 | F10: =AB101 -> 0 | G10: =AC101 -> 0 | H10: =SUM(E10:G10) -> 0 | I10: =AD101 -> 0 | J10: =AE101 -> 0 | K10: =AF101 -> 0 | L10: =SUM(I10:K10) -> 0 | M10: =AG101 -> 0 | N10: =AH101 -> 0 | O10: =AI101 -> 0 | P10: =SUM(M10:O10) -> 0 | Q10: =AJ101 -> 0 | R10: =AK101 -> 0 | S10: =AL101 -> 0 | T10: =SUM(Q10:S10) -> 0 | U10: =AM101 -> 0 | V10: =AN101 -> 0 | W10: =AO101 -> 0 | X10: =SUM(U10:W10) -> 0 | Y10: =AP101 -> 0 | Z10: =AQ101 -> 0 | AA10: =AR101 -> 0 | AB10: =SUM(Y10:AA10) -> 0
AO15: RPE | AR15: Zone | AT15: RPE
AO17: 1-4 | AR17: I | AT17: 1-3
AO18: 5-6 | AR18: II | AT18: 4-5
AO19: 7-10 | AR19: III | AT19: 6-10
AT21: x
C44: Intensitätverteilung | F44: Trainingseinheiten | AA44: Trainingsstunden
A45: Semaine | B45: Semaine | F45: b1 | G45: b2 | H45: b3 | I45: r1 | J45: r2 | K45: r3 | L45: c1 | M45: c2 | N45: c3 | O45: s1 | P45: s2 | Q45: s3 | R45: f1 | S45: f2 | T45: f3 | U45: d1 | V45: d2 | W45: d3 | AA45: b1 | AB45: b2 | AC45: b3 | AD45: r1 | AE45: r2 | AF45: r3 | AG45: c1 | AH45: c2 | AI45: c3 | AJ45: s1 | AK45: s2 | AL45: s3 | AM45: f1 | AN45: f2 | AO45: f3 | AP45: d1 | AQ45: d2 | AR45: d3 | AS45: Semaine | AT45: Semaine
A46: =CONCATENATE(">","=",AO7) -> >=1 | B46: =CONCATENATE("<","=",AU7) -> <=12 | F46: b1 | G46: b2 | H46: b3 | I46: r1 | J46: r2 | K46: r3 | L46: c1 | M46: c2 | N46: c3 | O46: s1 | P46: s2 | Q46: s3 | R46: f1 | S46: f2 | T46: f3 | U46: d1 | V46: d2 | W46: d3 | AA46: b1 | AB46: b2 | AC46: b3 | AD46: r1 | AE46: r2 | AF46: r3 | AG46: c1 | AH46: c2 | AI46: c3 | AJ46: s1 | AK46: s2 | AL46: s3 | AM46: f1 | AN46: f2 | AO46: f3 | AP46: d1 | AQ46: d2 | AR46: d3 | AS46: =CONCATENATE(">","=",AO7) -> >=1 | AT46: =CONCATENATE("<","=",AU7) -> <=12
F47: ='45'!L2 -> Dauerlauf | I47: ='45'!O2 -> Bahn/Intervall | L47: ='45'!R2 -> Sprint/Koord/Tech | O47: ='45'!U2 -> Kraft | R47: ='45'!X2 -> Alternativ | U47: ='45'!AA2 -> Divers | AA47: =F47 -> Dauerlauf | AD47: =I47 -> Bahn/Intervall | AG47: =L47 -> Sprint/Koord/Tech | AJ47: =O47 -> Kraft | AM47: =R47 -> Alternativ | AP47: =U47 -> Divers
A48: TW | B48: Kalenderwoche | F48: I | G48: II | H48: III | I48: I | J48: II | K48: III | L48: I | M48: II | N48: III | O48: I | P48: II | Q48: III | R48: I | S48: II | T48: III | U48: I | V48: II | W48: III | AA48: I | AB48: II | AC48: III | AD48: I | AE48: II | AF48: III | AG48: I | AH48: II | AI48: III | AJ48: I | AK48: II | AL48: III | AM48: I | AN48: II | AO48: III | AP48: I | AQ48: II | AR48: III | AS48: =A48 -> TW | AT48: =B48 -> Kalenderwoche
A49: 1 | B49: =Jahresplanung!AH2 -> 2014-11-03 | C49: - | D49: =B49+6 -> 2014-11-09 | E49: =Jahresplanung!$D$5 -> 45 | F49: ='45'!L$27 -> 0 | G49: ='45'!M$27 -> 0 | H49: ='45'!N$27 -> 0 | I49: ='45'!O$27 -> 0 | J49: ='45'!P$27 -> 0 | K49: ='45'!Q$27 -> 0 | L49: ='45'!R$27 -> 0 | M49: ='45'!S$27 -> 0 | N49: ='45'!T$27 -> 0 | O49: ='45'!U$27 -> 0 | P49: ='45'!V$27 -> 0 | Q49: ='45'!W$27 -> 0 | R49: ='45'!X$27 -> 0 | S49: ='45'!Y$27 -> 0 | T49: ='45'!Z$27 -> 0 | U49: ='45'!AA$27 -> 0 | V49: ='45'!AB$27 -> 0 | W49: ='45'!AC$27 -> 0 | AA49: ='45'!L$28 -> 0 | AB49: ='45'!M$28 -> 0 | AC49: ='45'!N$28 -> 0 | AD49: ='45'!O$28 -> 0 | AE49: ='45'!P$28 -> 0 | AF49: ='45'!Q$28 -> 0 | AG49: ='45'!R$28 -> 0 | AH49: ='45'!S$28 -> 0 | AI49: ='45'!T$28 -> 0 | AJ49: ='45'!U$28 -> 0 | AK49: ='45'!V$28 -> 0 | AL49: ='45'!W$28 -> 0 | AM49: ='45'!X$28 -> 0 | AN49: ='45'!Y$28 -> 0 | AO49: ='45'!Z$28 -> 0 | AP49: ='45'!AA$28 -> 0 | AQ49: ='45'!AB$28 -> 0 | AR49: ='45'!AC$28 -> 0 | AS49: 1 | AT49: 2014-11-03 | AU49: =C49 -> - | AV49: =D49 -> 2014-11-09 | AW49: =E49 -> 45
A50: 2 | B50: =B49+7 -> 2014-11-10 | C50: - | D50: =D49+7 -> 2014-11-16 | E50: =Jahresplanung!$E$5 -> 46 | F50: ='46'!L$27 -> 0 | G50: ='46'!M$27 -> 0 | H50: ='46'!N$27 -> 0 | I50: ='46'!O$27 -> 0 | J50: ='46'!P$27 -> 0 | K50: ='46'!Q$27 -> 0 | L50: ='46'!R$27 -> 0 | M50: ='46'!S$27 -> 0 | N50: ='46'!T$27 -> 0 | O50: ='46'!U$27 -> 0 | P50: ='46'!V$27 -> 0 | Q50: ='46'!W$27 -> 0 | R50: ='46'!X$27 -> 0 | S50: ='46'!Y$27 -> 0 | T50: ='46'!Z$27 -> 0 | U50: ='46'!AA$27 -> 0 | V50: ='46'!AB$27 -> 0 | W50: ='46'!AC$27 -> 0 | AA50: ='46'!L$28 -> 0 | AB50: ='46'!M$28 -> 0 | AC50: ='46'!N$28 -> 0 | AD50: ='46'!O$28 -> 0 | AE50: ='46'!P$28 -> 0 | AF50: ='46'!Q$28 -> 0 | AG50: ='46'!R$28 -> 0 | AH50: ='46'!S$28 -> 0 | AI50: ='46'!T$28 -> 0 | AJ50: ='46'!U$28 -> 0 | AK50: ='46'!V$28 -> 0 | AL50: ='46'!W$28 -> 0 | AM50: ='46'!X$28 -> 0 | AN50: ='46'!Y$28 -> 0 | AO50: ='46'!Z$28 -> 0 | AP50: ='46'!AA$28 -> 0 | AQ50: ='46'!AB$28 -> 0 | AR50: ='46'!AC$28 -> 0 | AS50: 2 | AT50: 2014-11-10 | AU50: - | AV50: 2014-11-16 | AW50: 46
A51: 3 | B51: =B50+7 -> 2014-11-17 | C51: - | D51: =D50+7 -> 2014-11-23 | E51: =Jahresplanung!$F$5 -> 47 | F51: ='47'!L$27 -> 0 | G51: ='47'!M$27 -> 0 | H51: ='47'!N$27 -> 0 | I51: ='47'!O$27 -> 0 | J51: ='47'!P$27 -> 0 | K51: ='47'!Q$27 -> 0 | L51: ='47'!R$27 -> 0 | M51: ='47'!S$27 -> 0 | N51: ='47'!T$27 -> 0 | O51: ='47'!U$27 -> 0 | P51: ='47'!V$27 -> 0 | Q51: ='47'!W$27 -> 0 | R51: ='47'!X$27 -> 0 | S51: ='47'!Y$27 -> 0 | T51: ='47'!Z$27 -> 0 | U51: ='47'!AA$27 -> 0 | V51: ='47'!AB$27 -> 0 | W51: ='47'!AC$27 -> 0 | AA51: ='47'!L$28 -> 0 | AB51: ='47'!M$28 -> 0 | AC51: ='47'!N$28 -> 0 | AD51: ='47'!O$28 -> 0 | AE51: ='47'!P$28 -> 0 | AF51: ='47'!Q$28 -> 0 | AG51: ='47'!R$28 -> 0 | AH51: ='47'!S$28 -> 0 | AI51: ='47'!T$28 -> 0 | AJ51: ='47'!U$28 -> 0 | AK51: ='47'!V$28 -> 0 | AL51: ='47'!W$28 -> 0 | AM51: ='47'!X$28 -> 0 | AN51: ='47'!Y$28 -> 0 | AO51: ='47'!Z$28 -> 0 | AP51: ='47'!AA$28 -> 0 | AQ51: ='47'!AB$28 -> 0 | AR51: ='47'!AC$28 -> 0 | AS51: 3 | AT51: 2014-11-17 | AU51: - | AV51: 2014-11-23 | AW51: 47
A52: 4 | B52: =B51+7 -> 2014-11-24 | C52: - | D52: =D51+7 -> 2014-11-30 | E52: =Jahresplanung!$G$5 -> 48 | F52: ='48'!L$27 -> 0 | G52: ='48'!M$27 -> 0 | H52: ='48'!N$27 -> 0 | I52: ='48'!O$27 -> 0 | J52: ='48'!P$27 -> 0 | K52: ='48'!Q$27 -> 0 | L52: ='48'!R$27 -> 0 | M52: ='48'!S$27 -> 0 | N52: ='48'!T$27 -> 0 | O52: ='48'!U$27 -> 0 | P52: ='48'!V$27 -> 0 | Q52: ='48'!W$27 -> 0 | R52: ='48'!X$27 -> 0 | S52: ='48'!Y$27 -> 0 | T52: ='48'!Z$27 -> 0 | U52: ='48'!AA$27 -> 0 | V52: ='48'!AB$27 -> 0 | W52: ='48'!AC$27 -> 0 | AA52: ='48'!L$28 -> 0 | AB52: ='48'!M$28 -> 0 | AC52: ='48'!N$28 -> 0 | AD52: ='48'!O$28 -> 0 | AE52: ='48'!P$28 -> 0 | AF52: ='48'!Q$28 -> 0 | AG52: ='48'!R$28 -> 0 | AH52: ='48'!S$28 -> 0 | AI52: ='48'!T$28 -> 0 | AJ52: ='48'!U$28 -> 0 | AK52: ='48'!V$28 -> 0 | AL52: ='48'!W$28 -> 0 | AM52: ='48'!X$28 -> 0 | AN52: ='48'!Y$28 -> 0 | AO52: ='48'!Z$28 -> 0 | AP52: ='48'!AA$28 -> 0 | AQ52: ='48'!AB$28 -> 0 | AR52: ='48'!AC$28 -> 0 | AS52: 4 | AT52: 2014-11-24 | AU52: - | AV52: 2014-11-30 | AW52: 48
A53: 5 | B53: =B52+7 -> 2014-12-01 | C53: - | D53: =D52+7 -> 2014-12-07 | E53: =Jahresplanung!$H$5 -> 49 | F53: ='49'!L$27 -> 0 | G53: ='49'!M$27 -> 0 | H53: ='49'!N$27 -> 0 | I53: ='49'!O$27 -> 0 | J53: ='49'!P$27 -> 0 | K53: ='49'!Q$27 -> 0 | L53: ='49'!R$27 -> 0 | M53: ='49'!S$27 -> 0 | N53: ='49'!T$27 -> 0 | O53: ='49'!U$27 -> 0 | P53: ='49'!V$27 -> 0 | Q53: ='49'!W$27 -> 0 | R53: ='49'!X$27 -> 0 | S53: ='49'!Y$27 -> 0 | T53: ='49'!Z$27 -> 0 | U53: ='49'!AA$27 -> 0 | V53: ='49'!AB$27 -> 0 | W53: ='49'!AC$27 -> 0 | AA53: ='49'!L$28 -> 0 | AB53: ='49'!M$28 -> 0 | AC53: ='49'!N$28 -> 0 | AD53: ='49'!O$28 -> 0 | AE53: ='49'!P$28 -> 0 | AF53: ='49'!Q$28 -> 0 | AG53: ='49'!R$28 -> 0 | AH53: ='49'!S$28 -> 0 | AI53: ='49'!T$28 -> 0 | AJ53: ='49'!U$28 -> 0 | AK53: ='49'!V$28 -> 0 | AL53: ='49'!W$28 -> 0 | AM53: ='49'!X$28 -> 0 | AN53: ='49'!Y$28 -> 0 | AO53: ='49'!Z$28 -> 0 | AP53: ='49'!AA$28 -> 0 | AQ53: ='49'!AB$28 -> 0 | AR53: ='49'!AC$28 -> 0 | AS53: 5 | AT53: 2014-12-01 | AU53: - | AV53: 2014-12-07 | AW53: 49
A54: 6 | B54: =B53+7 -> 2014-12-08 | C54: - | D54: =D53+7 -> 2014-12-14 | E54: =Jahresplanung!$I$5 -> 50 | F54: ='50'!L$27 -> 0 | G54: ='50'!M$27 -> 0 | H54: ='50'!N$27 -> 0 | I54: ='50'!O$27 -> 0 | J54: ='50'!P$27 -> 0 | K54: ='50'!Q$27 -> 0 | L54: ='50'!R$27 -> 0 | M54: ='50'!S$27 -> 0 | N54: ='50'!T$27 -> 0 | O54: ='50'!U$27 -> 0 | P54: ='50'!V$27 -> 0 | Q54: ='50'!W$27 -> 0 | R54: ='50'!X$27 -> 0 | S54: ='50'!Y$27 -> 0 | T54: ='50'!Z$27 -> 0 | U54: ='50'!AA$27 -> 0 | V54: ='50'!AB$27 -> 0 | W54: ='50'!AC$27 -> 0 | AA54: ='50'!L$28 -> 0 | AB54: ='50'!M$28 -> 0 | AC54: ='50'!N$28 -> 0 | AD54: ='50'!O$28 -> 0 | AE54: ='50'!P$28 -> 0 | AF54: ='50'!Q$28 -> 0 | AG54: ='50'!R$28 -> 0 | AH54: ='50'!S$28 -> 0 | AI54: ='50'!T$28 -> 0 | AJ54: ='50'!U$28 -> 0 | AK54: ='50'!V$28 -> 0 | AL54: ='50'!W$28 -> 0 | AM54: ='50'!X$28 -> 0 | AN54: ='50'!Y$28 -> 0 | AO54: ='50'!Z$28 -> 0 | AP54: ='50'!AA$28 -> 0 | AQ54: ='50'!AB$28 -> 0 | AR54: ='50'!AC$28 -> 0 | AS54: 6 | AT54: 2014-12-08 | AU54: - | AV54: 2014-12-14 | AW54: 50
A55: 7 | B55: 2014-12-15 | C55: - | D55: 2014-12-21 | E55: =Jahresplanung!$J$5 -> 51 | F55: ='51'!L$27 -> 0 | G55: ='51'!M$27 -> 0 | H55: ='51'!N$27 -> 0 | I55: ='51'!O$27 -> 0 | J55: ='51'!P$27 -> 0 | K55: ='51'!Q$27 -> 0 | L55: ='51'!R$27 -> 0 | M55: ='51'!S$27 -> 0 | N55: ='51'!T$27 -> 0 | O55: ='51'!U$27 -> 0 | P55: ='51'!V$27 -> 0 | Q55: ='51'!W$27 -> 0 | R55: ='51'!X$27 -> 0 | S55: ='51'!Y$27 -> 0 | T55: ='51'!Z$27 -> 0 | U55: ='51'!AA$27 -> 0 | V55: ='51'!AB$27 -> 0 | W55: ='51'!AC$27 -> 0 | AA55: ='51'!L$28 -> 0 | AB55: ='51'!M$28 -> 0 | AC55: ='51'!N$28 -> 0 | AD55: ='51'!O$28 -> 0 | AE55: ='51'!P$28 -> 0 | AF55: ='51'!Q$28 -> 0 | AG55: ='51'!R$28 -> 0 | AH55: ='51'!S$28 -> 0 | AI55: ='51'!T$28 -> 0 | AJ55: ='51'!U$28 -> 0 | AK55: ='51'!V$28 -> 0 | AL55: ='51'!W$28 -> 0 | AM55: ='51'!X$28 -> 0 | AN55: ='51'!Y$28 -> 0 | AO55: ='51'!Z$28 -> 0 | AP55: ='51'!AA$28 -> 0 | AQ55: ='51'!AB$28 -> 0 | AR55: ='51'!AC$28 -> 0 | AS55: 7 | AT55: 2014-12-15 | AU55: - | AV55: 2014-12-21 | AW55: 51
A56: 8 | B56: 2014-12-22 | C56: - | D56: 2014-12-28 | E56: =Jahresplanung!$K$5 -> 52 | F56: ='52'!L$27 -> 0 | G56: ='52'!M$27 -> 0 | H56: ='52'!N$27 -> 0 | I56: ='52'!O$27 -> 0 | J56: ='52'!P$27 -> 0 | K56: ='52'!Q$27 -> 0 | L56: ='52'!R$27 -> 0 | M56: ='52'!S$27 -> 0 | N56: ='52'!T$27 -> 0 | O56: ='52'!U$27 -> 0 | P56: ='52'!V$27 -> 0 | Q56: ='52'!W$27 -> 0 | R56: ='52'!X$27 -> 0 | S56: ='52'!Y$27 -> 0 | T56: ='52'!Z$27 -> 0 | U56: ='52'!AA$27 -> 0 | V56: ='52'!AB$27 -> 0 | W56: ='52'!AC$27 -> 0 | AA56: ='52'!L$28 -> 0 | AB56: ='52'!M$28 -> 0 | AC56: ='52'!N$28 -> 0 | AD56: ='52'!O$28 -> 0 | AE56: ='52'!P$28 -> 0 | AF56: ='52'!Q$28 -> 0 | AG56: ='52'!R$28 -> 0 | AH56: ='52'!S$28 -> 0 | AI56: ='52'!T$28 -> 0 | AJ56: ='52'!U$28 -> 0 | AK56: ='52'!V$28 -> 0 | AL56: ='52'!W$28 -> 0 | AM56: ='52'!X$28 -> 0 | AN56: ='52'!Y$28 -> 0 | AO56: ='52'!Z$28 -> 0 | AP56: ='52'!AA$28 -> 0 | AQ56: ='52'!AB$28 -> 0 | AR56: ='52'!AC$28 -> 0 | AS56: 8 | AT56: 2014-12-22 | AU56: - | AV56: 2014-12-28 | AW56: 52
A57: 9 | B57: 2014-12-29 | C57: - | D57: 2015-01-04 | E57: =Jahresplanung!$L$5 -> 1 | F57: ='1'!L$27 -> 0 | G57: ='1'!M$27 -> 0 | H57: ='1'!N$27 -> 0 | I57: ='1'!O$27 -> 0 | J57: ='1'!P$27 -> 0 | K57: ='1'!Q$27 -> 0 | L57: ='1'!R$27 -> 0 | M57: ='1'!S$27 -> 0 | N57: ='1'!T$27 -> 0 | O57: ='1'!U$27 -> 0 | P57: ='1'!V$27 -> 0 | Q57: ='1'!W$27 -> 0 | R57: ='1'!X$27 -> 0 | S57: ='1'!Y$27 -> 0 | T57: ='1'!Z$27 -> 0 | U57: ='1'!AA$27 -> 0 | V57: ='1'!AB$27 -> 0 | W57: ='1'!AC$27 -> 0 | AA57: ='1'!L$28 -> 0 | AB57: ='1'!M$28 -> 0 | AC57: ='1'!N$28 -> 0 | AD57: ='1'!O$28 -> 0 | AE57: ='1'!P$28 -> 0 | AF57: ='1'!Q$28 -> 0 | AG57: ='1'!R$28 -> 0 | AH57: ='1'!S$28 -> 0 | AI57: ='1'!T$28 -> 0 | AJ57: ='1'!U$28 -> 0 | AK57: ='1'!V$28 -> 0 | AL57: ='1'!W$28 -> 0 | AM57: ='1'!X$28 -> 0 | AN57: ='1'!Y$28 -> 0 | AO57: ='1'!Z$28 -> 0 | AP57: ='1'!AA$28 -> 0 | AQ57: ='1'!AB$28 -> 0 | AR57: ='1'!AC$28 -> 0 | AS57: 9 | AT57: 2014-12-29 | AU57: - | AV57: 2015-01-04 | AW57: 1
A58: 10 | B58: 2015-01-05 | C58: - | D58: 2015-01-11 | E58: =Jahresplanung!$M$5 -> 2 | F58: ='2'!L$27 -> 0 | G58: ='2'!M$27 -> 0 | H58: ='2'!N$27 -> 0 | I58: ='2'!O$27 -> 0 | J58: ='2'!P$27 -> 0 | K58: ='2'!Q$27 -> 0 | L58: ='2'!R$27 -> 0 | M58: ='2'!S$27 -> 0 | N58: ='2'!T$27 -> 0 | O58: ='2'!U$27 -> 0 | P58: ='2'!V$27 -> 0 | Q58: ='2'!W$27 -> 0 | R58: ='2'!X$27 -> 0 | S58: ='2'!Y$27 -> 0 | T58: ='2'!Z$27 -> 0 | U58: ='2'!AA$27 -> 0 | V58: ='2'!AB$27 -> 0 | W58: ='2'!AC$27 -> 0 | AA58: ='2'!L$28 -> 0 | AB58: ='2'!M$28 -> 0 | AC58: ='2'!N$28 -> 0 | AD58: ='2'!O$28 -> 0 | AE58: ='2'!P$28 -> 0 | AF58: ='2'!Q$28 -> 0 | AG58: ='2'!R$28 -> 0 | AH58: ='2'!S$28 -> 0 | AI58: ='2'!T$28 -> 0 | AJ58: ='2'!U$28 -> 0 | AK58: ='2'!V$28 -> 0 | AL58: ='2'!W$28 -> 0 | AM58: ='2'!X$28 -> 0 | AN58: ='2'!Y$28 -> 0 | AO58: ='2'!Z$28 -> 0 | AP58: ='2'!AA$28 -> 0 | AQ58: ='2'!AB$28 -> 0 | AR58: ='2'!AC$28 -> 0 | AS58: 10 | AT58: 2015-01-05 | AU58: - | AV58: 2015-01-11 | AW58: 2
A59: 11 | B59: 2015-01-12 | C59: - | D59: 2015-01-18 | E59: =Jahresplanung!$N$5 -> 3 | F59: ='3'!L$27 -> 0 | G59: ='3'!M$27 -> 0 | H59: ='3'!N$27 -> 0 | I59: ='3'!O$27 -> 0 | J59: ='3'!P$27 -> 0 | K59: ='3'!Q$27 -> 0 | L59: ='3'!R$27 -> 0 | M59: ='3'!S$27 -> 0 | N59: ='3'!T$27 -> 0 | O59: ='3'!U$27 -> 0 | P59: ='3'!V$27 -> 0 | Q59: ='3'!W$27 -> 0 | R59: ='3'!X$27 -> 0 | S59: ='3'!Y$27 -> 0 | T59: ='3'!Z$27 -> 0 | U59: ='3'!AA$27 -> 0 | V59: ='3'!AB$27 -> 0 | W59: ='3'!AC$27 -> 0 | AA59: ='3'!L$28 -> 0 | AB59: ='3'!M$28 -> 0 | AC59: ='3'!N$28 -> 0 | AD59: ='3'!O$28 -> 0 | AE59: ='3'!P$28 -> 0 | AF59: ='3'!Q$28 -> 0 | AG59: ='3'!R$28 -> 0 | AH59: ='3'!S$28 -> 0 | AI59: ='3'!T$28 -> 0 | AJ59: ='3'!U$28 -> 0 | AK59: ='3'!V$28 -> 0 | AL59: ='3'!W$28 -> 0 | AM59: ='3'!X$28 -> 0 | AN59: ='3'!Y$28 -> 0 | AO59: ='3'!Z$28 -> 0 | AP59: ='3'!AA$28 -> 0 | AQ59: ='3'!AB$28 -> 0 | AR59: ='3'!AC$28 -> 0 | AS59: 11 | AT59: 2015-01-12 | AU59: - | AV59: 2015-01-18 | AW59: 3
A60: 12 | B60: 2015-01-19 | C60: - | D60: 2015-01-25 | E60: =Jahresplanung!$O$5 -> 4 | F60: ='4'!L$27 -> 0 | G60: ='4'!M$27 -> 0 | H60: ='4'!N$27 -> 0 | I60: ='4'!O$27 -> 0 | J60: ='4'!P$27 -> 0 | K60: ='4'!Q$27 -> 0 | L60: ='4'!R$27 -> 0 | M60: ='4'!S$27 -> 0 | N60: ='4'!T$27 -> 0 | O60: ='4'!U$27 -> 0 | P60: ='4'!V$27 -> 0 | Q60: ='4'!W$27 -> 0 | R60: ='4'!X$27 -> 0 | S60: ='4'!Y$27 -> 0 | T60: ='4'!Z$27 -> 0 | U60: ='4'!AA$27 -> 0 | V60: ='4'!AB$27 -> 0 | W60: ='4'!AC$27 -> 0 | AA60: ='4'!L$28 -> 0 | AB60: ='4'!M$28 -> 0 | AC60: ='4'!N$28 -> 0 | AD60: ='4'!O$28 -> 0 | AE60: ='4'!P$28 -> 0 | AF60: ='4'!Q$28 -> 0 | AG60: ='4'!R$28 -> 0 | AH60: ='4'!S$28 -> 0 | AI60: ='4'!T$28 -> 0 | AJ60: ='4'!U$28 -> 0 | AK60: ='4'!V$28 -> 0 | AL60: ='4'!W$28 -> 0 | AM60: ='4'!X$28 -> 0 | AN60: ='4'!Y$28 -> 0 | AO60: ='4'!Z$28 -> 0 | AP60: ='4'!AA$28 -> 0 | AQ60: ='4'!AB$28 -> 0 | AR60: ='4'!AC$28 -> 0 | AS60: 12 | AT60: 2015-01-19 | AU60: - | AV60: 2015-01-25 | AW60: 4
A61: 13 | B61: 2015-01-26 | C61: - | D61: 2015-02-01 | E61: =Jahresplanung!$P$5 -> 5 | F61: ='5'!L$27 -> 0 | G61: ='5'!M$27 -> 0 | H61: ='5'!N$27 -> 0 | I61: ='5'!O$27 -> 0 | J61: ='5'!P$27 -> 0 | K61: ='5'!Q$27 -> 0 | L61: ='5'!R$27 -> 0 | M61: ='5'!S$27 -> 0 | N61: ='5'!T$27 -> 0 | O61: ='5'!U$27 -> 0 | P61: ='5'!V$27 -> 0 | Q61: ='5'!W$27 -> 0 | R61: ='5'!X$27 -> 0 | S61: ='5'!Y$27 -> 0 | T61: ='5'!Z$27 -> 0 | U61: ='5'!AA$27 -> 0 | V61: ='5'!AB$27 -> 0 | W61: ='5'!AC$27 -> 0 | AA61: ='5'!L$28 -> 0 | AB61: ='5'!M$28 -> 0 | AC61: ='5'!N$28 -> 0 | AD61: ='5'!O$28 -> 0 | AE61: ='5'!P$28 -> 0 | AF61: ='5'!Q$28 -> 0 | AG61: ='5'!R$28 -> 0 | AH61: ='5'!S$28 -> 0 | AI61: ='5'!T$28 -> 0 | AJ61: ='5'!U$28 -> 0 | AK61: ='5'!V$28 -> 0 | AL61: ='5'!W$28 -> 0 | AM61: ='5'!X$28 -> 0 | AN61: ='5'!Y$28 -> 0 | AO61: ='5'!Z$28 -> 0 | AP61: ='5'!AA$28 -> 0 | AQ61: ='5'!AB$28 -> 0 | AR61: ='5'!AC$28 -> 0 | AS61: 13 | AT61: 2015-01-26 | AU61: - | AV61: 2015-02-01 | AW61: 5
A62: 14 | B62: 2015-02-02 | C62: - | D62: 2015-02-08 | E62: =Jahresplanung!$Q$5 -> 6 | F62: ='6'!L$27 -> 0 | G62: ='6'!M$27 -> 0 | H62: ='6'!N$27 -> 0 | I62: ='6'!O$27 -> 0 | J62: ='6'!P$27 -> 0 | K62: ='6'!Q$27 -> 0 | L62: ='6'!R$27 -> 0 | M62: ='6'!S$27 -> 0 | N62: ='6'!T$27 -> 0 | O62: ='6'!U$27 -> 0 | P62: ='6'!V$27 -> 0 | Q62: ='6'!W$27 -> 0 | R62: ='6'!X$27 -> 0 | S62: ='6'!Y$27 -> 0 | T62: ='6'!Z$27 -> 0 | U62: ='6'!AA$27 -> 0 | V62: ='6'!AB$27 -> 0 | W62: ='6'!AC$27 -> 0 | AA62: ='6'!L$28 -> 0 | AB62: ='6'!M$28 -> 0 | AC62: ='6'!N$28 -> 0 | AD62: ='6'!O$28 -> 0 | AE62: ='6'!P$28 -> 0 | AF62: ='6'!Q$28 -> 0 | AG62: ='6'!R$28 -> 0 | AH62: ='6'!S$28 -> 0 | AI62: ='6'!T$28 -> 0 | AJ62: ='6'!U$28 -> 0 | AK62: ='6'!V$28 -> 0 | AL62: ='6'!W$28 -> 0 | AM62: ='6'!X$28 -> 0 | AN62: ='6'!Y$28 -> 0 | AO62: ='6'!Z$28 -> 0 | AP62: ='6'!AA$28 -> 0 | AQ62: ='6'!AB$28 -> 0 | AR62: ='6'!AC$28 -> 0 | AS62: 14 | AT62: 2015-02-02 | AU62: - | AV62: 2015-02-08 | AW62: 6
A63: 15 | B63: 2015-02-09 | C63: - | D63: 2015-02-15 | E63: =Jahresplanung!$R$5 -> 7 | F63: ='7'!L$27 -> 0 | G63: ='7'!M$27 -> 0 | H63: ='7'!N$27 -> 0 | I63: ='7'!O$27 -> 0 | J63: ='7'!P$27 -> 0 | K63: ='7'!Q$27 -> 0 | L63: ='7'!R$27 -> 0 | M63: ='7'!S$27 -> 0 | N63: ='7'!T$27 -> 0 | O63: ='7'!U$27 -> 0 | P63: ='7'!V$27 -> 0 | Q63: ='7'!W$27 -> 0 | R63: ='7'!X$27 -> 0 | S63: ='7'!Y$27 -> 0 | T63: ='7'!Z$27 -> 0 | U63: ='7'!AA$27 -> 0 | V63: ='7'!AB$27 -> 0 | W63: ='7'!AC$27 -> 0 | AA63: ='7'!L$28 -> 0 | AB63: ='7'!M$28 -> 0 | AC63: ='7'!N$28 -> 0 | AD63: ='7'!O$28 -> 0 | AE63: ='7'!P$28 -> 0 | AF63: ='7'!Q$28 -> 0 | AG63: ='7'!R$28 -> 0 | AH63: ='7'!S$28 -> 0 | AI63: ='7'!T$28 -> 0 | AJ63: ='7'!U$28 -> 0 | AK63: ='7'!V$28 -> 0 | AL63: ='7'!W$28 -> 0 | AM63: ='7'!X$28 -> 0 | AN63: ='7'!Y$28 -> 0 | AO63: ='7'!Z$28 -> 0 | AP63: ='7'!AA$28 -> 0 | AQ63: ='7'!AB$28 -> 0 | AR63: ='7'!AC$28 -> 0 | AS63: 15 | AT63: 2015-02-09 | AU63: - | AV63: 2015-02-15 | AW63: 7
A64: 16 | B64: 2015-02-16 | C64: - | D64: 2015-02-22 | E64: =Jahresplanung!$S$5 -> 8 | F64: ='8'!L$27 -> 0 | G64: ='8'!M$27 -> 0 | H64: ='8'!N$27 -> 0 | I64: ='8'!O$27 -> 0 | J64: ='8'!P$27 -> 0 | K64: ='8'!Q$27 -> 0 | L64: ='8'!R$27 -> 0 | M64: ='8'!S$27 -> 0 | N64: ='8'!T$27 -> 0 | O64: ='8'!U$27 -> 0 | P64: ='8'!V$27 -> 0 | Q64: ='8'!W$27 -> 0 | R64: ='8'!X$27 -> 0 | S64: ='8'!Y$27 -> 0 | T64: ='8'!Z$27 -> 0 | U64: ='8'!AA$27 -> 0 | V64: ='8'!AB$27 -> 0 | W64: ='8'!AC$27 -> 0 | AA64: ='8'!L$28 -> 0 | AB64: ='8'!M$28 -> 0 | AC64: ='8'!N$28 -> 0 | AD64: ='8'!O$28 -> 0 | AE64: ='8'!P$28 -> 0 | AF64: ='8'!Q$28 -> 0 | AG64: ='8'!R$28 -> 0 | AH64: ='8'!S$28 -> 0 | AI64: ='8'!T$28 -> 0 | AJ64: ='8'!U$28 -> 0 | AK64: ='8'!V$28 -> 0 | AL64: ='8'!W$28 -> 0 | AM64: ='8'!X$28 -> 0 | AN64: ='8'!Y$28 -> 0 | AO64: ='8'!Z$28 -> 0 | AP64: ='8'!AA$28 -> 0 | AQ64: ='8'!AB$28 -> 0 | AR64: ='8'!AC$28 -> 0 | AS64: 16 | AT64: 2015-02-16 | AU64: - | AV64: 2015-02-22 | AW64: 8
A65: 17 | B65: 2015-02-23 | C65: - | D65: 2015-03-01 | E65: =Jahresplanung!$T$5 -> 9 | F65: ='9'!L$27 -> 0 | G65: ='9'!M$27 -> 0 | H65: ='9'!N$27 -> 0 | I65: ='9'!O$27 -> 0 | J65: ='9'!P$27 -> 0 | K65: ='9'!Q$27 -> 0 | L65: ='9'!R$27 -> 0 | M65: ='9'!S$27 -> 0 | N65: ='9'!T$27 -> 0 | O65: ='9'!U$27 -> 0 | P65: ='9'!V$27 -> 0 | Q65: ='9'!W$27 -> 0 | R65: ='9'!X$27 -> 0 | S65: ='9'!Y$27 -> 0 | T65: ='9'!Z$27 -> 0 | U65: ='9'!AA$27 -> 0 | V65: ='9'!AB$27 -> 0 | W65: ='9'!AC$27 -> 0 | AA65: ='9'!L$28 -> 0 | AB65: ='9'!M$28 -> 0 | AC65: ='9'!N$28 -> 0 | AD65: ='9'!O$28 -> 0 | AE65: ='9'!P$28 -> 0 | AF65: ='9'!Q$28 -> 0 | AG65: ='9'!R$28 -> 0 | AH65: ='9'!S$28 -> 0 | AI65: ='9'!T$28 -> 0 | AJ65: ='9'!U$28 -> 0 | AK65: ='9'!V$28 -> 0 | AL65: ='9'!W$28 -> 0 | AM65: ='9'!X$28 -> 0 | AN65: ='9'!Y$28 -> 0 | AO65: ='9'!Z$28 -> 0 | AP65: ='9'!AA$28 -> 0 | AQ65: ='9'!AB$28 -> 0 | AR65: ='9'!AC$28 -> 0 | AS65: 17 | AT65: 2015-02-23 | AU65: - | AV65: 2015-03-01 | AW65: 9
A66: 18 | B66: 2015-03-02 | C66: - | D66: 2015-03-08 | E66: =Jahresplanung!$U$5 -> 10 | F66: ='10'!L$27 -> 0 | G66: ='10'!M$27 -> 0 | H66: ='10'!N$27 -> 0 | I66: ='10'!O$27 -> 0 | J66: ='10'!P$27 -> 0 | K66: ='10'!Q$27 -> 0 | L66: ='10'!R$27 -> 0 | M66: ='10'!S$27 -> 0 | N66: ='10'!T$27 -> 0 | O66: ='10'!U$27 -> 0 | P66: ='10'!V$27 -> 0 | Q66: ='10'!W$27 -> 0 | R66: ='10'!X$27 -> 0 | S66: ='10'!Y$27 -> 0 | T66: ='10'!Z$27 -> 0 | U66: ='10'!AA$27 -> 0 | V66: ='10'!AB$27 -> 0 | W66: ='10'!AC$27 -> 0 | AA66: ='10'!L$28 -> 0 | AB66: ='10'!M$28 -> 0 | AC66: ='10'!N$28 -> 0 | AD66: ='10'!O$28 -> 0 | AE66: ='10'!P$28 -> 0 | AF66: ='10'!Q$28 -> 0 | AG66: ='10'!R$28 -> 0 | AH66: ='10'!S$28 -> 0 | AI66: ='10'!T$28 -> 0 | AJ66: ='10'!U$28 -> 0 | AK66: ='10'!V$28 -> 0 | AL66: ='10'!W$28 -> 0 | AM66: ='10'!X$28 -> 0 | AN66: ='10'!Y$28 -> 0 | AO66: ='10'!Z$28 -> 0 | AP66: ='10'!AA$28 -> 0 | AQ66: ='10'!AB$28 -> 0 | AR66: ='10'!AC$28 -> 0 | AS66: 18 | AT66: 2015-03-02 | AU66: - | AV66: 2015-03-08 | AW66: 10
A67: 19 | B67: 2015-03-09 | C67: - | D67: 2015-03-15 | E67: =Jahresplanung!$V$5 -> 11 | F67: ='11'!L$27 -> 0 | G67: ='11'!M$27 -> 0 | H67: ='11'!N$27 -> 0 | I67: ='11'!O$27 -> 0 | J67: ='11'!P$27 -> 0 | K67: ='11'!Q$27 -> 0 | L67: ='11'!R$27 -> 0 | M67: ='11'!S$27 -> 0 | N67: ='11'!T$27 -> 0 | O67: ='11'!U$27 -> 0 | P67: ='11'!V$27 -> 0 | Q67: ='11'!W$27 -> 0 | R67: ='11'!X$27 -> 0 | S67: ='11'!Y$27 -> 0 | T67: ='11'!Z$27 -> 0 | U67: ='11'!AA$27 -> 0 | V67: ='11'!AB$27 -> 0 | W67: ='11'!AC$27 -> 0 | AA67: ='11'!L$28 -> 0 | AB67: ='11'!M$28 -> 0 | AC67: ='11'!N$28 -> 0 | AD67: ='11'!O$28 -> 0 | AE67: ='11'!P$28 -> 0 | AF67: ='11'!Q$28 -> 0 | AG67: ='11'!R$28 -> 0 | AH67: ='11'!S$28 -> 0 | AI67: ='11'!T$28 -> 0 | AJ67: ='11'!U$28 -> 0 | AK67: ='11'!V$28 -> 0 | AL67: ='11'!W$28 -> 0 | AM67: ='11'!X$28 -> 0 | AN67: ='11'!Y$28 -> 0 | AO67: ='11'!Z$28 -> 0 | AP67: ='11'!AA$28 -> 0 | AQ67: ='11'!AB$28 -> 0 | AR67: ='11'!AC$28 -> 0 | AS67: 19 | AT67: 2015-03-09 | AU67: - | AV67: 2015-03-15 | AW67: 11
A68: 20 | B68: 2015-03-16 | C68: - | D68: 2015-03-22 | E68: =Jahresplanung!$W$5 -> 12 | F68: ='12'!L$27 -> 0 | G68: ='12'!M$27 -> 0 | H68: ='12'!N$27 -> 0 | I68: ='12'!O$27 -> 0 | J68: ='12'!P$27 -> 0 | K68: ='12'!Q$27 -> 0 | L68: ='12'!R$27 -> 0 | M68: ='12'!S$27 -> 0 | N68: ='12'!T$27 -> 0 | O68: ='12'!U$27 -> 0 | P68: ='12'!V$27 -> 0 | Q68: ='12'!W$27 -> 0 | R68: ='12'!X$27 -> 0 | S68: ='12'!Y$27 -> 0 | T68: ='12'!Z$27 -> 0 | U68: ='12'!AA$27 -> 0 | V68: ='12'!AB$27 -> 0 | W68: ='12'!AC$27 -> 0 | AA68: ='12'!L$28 -> 0 | AB68: ='12'!M$28 -> 0 | AC68: ='12'!N$28 -> 0 | AD68: ='12'!O$28 -> 0 | AE68: ='12'!P$28 -> 0 | AF68: ='12'!Q$28 -> 0 | AG68: ='12'!R$28 -> 0 | AH68: ='12'!S$28 -> 0 | AI68: ='12'!T$28 -> 0 | AJ68: ='12'!U$28 -> 0 | AK68: ='12'!V$28 -> 0 | AL68: ='12'!W$28 -> 0 | AM68: ='12'!X$28 -> 0 | AN68: ='12'!Y$28 -> 0 | AO68: ='12'!Z$28 -> 0 | AP68: ='12'!AA$28 -> 0 | AQ68: ='12'!AB$28 -> 0 | AR68: ='12'!AC$28 -> 0 | AS68: 20 | AT68: 2015-03-16 | AU68: - | AV68: 2015-03-22 | AW68: 12
A69: 21 | B69: 2015-03-23 | C69: - | D69: 2015-03-29 | E69: =Jahresplanung!$X$5 -> 13 | F69: ='13'!L$27 -> 0 | G69: ='13'!M$27 -> 0 | H69: ='13'!N$27 -> 0 | I69: ='13'!O$27 -> 0 | J69: ='13'!P$27 -> 0 | K69: ='13'!Q$27 -> 0 | L69: ='13'!R$27 -> 0 | M69: ='13'!S$27 -> 0 | N69: ='13'!T$27 -> 0 | O69: ='13'!U$27 -> 0 | P69: ='13'!V$27 -> 0 | Q69: ='13'!W$27 -> 0 | R69: ='13'!X$27 -> 0 | S69: ='13'!Y$27 -> 0 | T69: ='13'!Z$27 -> 0 | U69: ='13'!AA$27 -> 0 | V69: ='13'!AB$27 -> 0 | W69: ='13'!AC$27 -> 0 | AA69: ='13'!L$28 -> 0 | AB69: ='13'!M$28 -> 0 | AC69: ='13'!N$28 -> 0 | AD69: ='13'!O$28 -> 0 | AE69: ='13'!P$28 -> 0 | AF69: ='13'!Q$28 -> 0 | AG69: ='13'!R$28 -> 0 | AH69: ='13'!S$28 -> 0 | AI69: ='13'!T$28 -> 0 | AJ69: ='13'!U$28 -> 0 | AK69: ='13'!V$28 -> 0 | AL69: ='13'!W$28 -> 0 | AM69: ='13'!X$28 -> 0 | AN69: ='13'!Y$28 -> 0 | AO69: ='13'!Z$28 -> 0 | AP69: ='13'!AA$28 -> 0 | AQ69: ='13'!AB$28 -> 0 | AR69: ='13'!AC$28 -> 0 | AS69: 21 | AT69: 2015-03-23 | AU69: - | AV69: 2015-03-29 | AW69: 13
A70: 22 | B70: 2015-03-30 | C70: - | D70: 2015-04-05 | E70: =Jahresplanung!$Y$5 -> 14 | F70: ='14'!L$27 -> 0 | G70: ='14'!M$27 -> 0 | H70: ='14'!N$27 -> 0 | I70: ='14'!O$27 -> 0 | J70: ='14'!P$27 -> 0 | K70: ='14'!Q$27 -> 0 | L70: ='14'!R$27 -> 0 | M70: ='14'!S$27 -> 0 | N70: ='14'!T$27 -> 0 | O70: ='14'!U$27 -> 0 | P70: ='14'!V$27 -> 0 | Q70: ='14'!W$27 -> 0 | R70: ='14'!X$27 -> 0 | S70: ='14'!Y$27 -> 0 | T70: ='14'!Z$27 -> 0 | U70: ='14'!AA$27 -> 0 | V70: ='14'!AB$27 -> 0 | W70: ='14'!AC$27 -> 0 | AA70: ='14'!L$28 -> 0 | AB70: ='14'!M$28 -> 0 | AC70: ='14'!N$28 -> 0 | AD70: ='14'!O$28 -> 0 | AE70: ='14'!P$28 -> 0 | AF70: ='14'!Q$28 -> 0 | AG70: ='14'!R$28 -> 0 | AH70: ='14'!S$28 -> 0 | AI70: ='14'!T$28 -> 0 | AJ70: ='14'!U$28 -> 0 | AK70: ='14'!V$28 -> 0 | AL70: ='14'!W$28 -> 0 | AM70: ='14'!X$28 -> 0 | AN70: ='14'!Y$28 -> 0 | AO70: ='14'!Z$28 -> 0 | AP70: ='14'!AA$28 -> 0 | AQ70: ='14'!AB$28 -> 0 | AR70: ='14'!AC$28 -> 0 | AS70: 22 | AT70: 2015-03-30 | AU70: - | AV70: 2015-04-05 | AW70: 14
A71: 23 | B71: 2015-04-06 | C71: - | D71: 2015-04-12 | E71: =Jahresplanung!$Z$5 -> 15 | F71: ='15'!L$27 -> 0 | G71: ='15'!M$27 -> 0 | H71: ='15'!N$27 -> 0 | I71: ='15'!O$27 -> 0 | J71: ='15'!P$27 -> 0 | K71: ='15'!Q$27 -> 0 | L71: ='15'!R$27 -> 0 | M71: ='15'!S$27 -> 0 | N71: ='15'!T$27 -> 0 | O71: ='15'!U$27 -> 0 | P71: ='15'!V$27 -> 0 | Q71: ='15'!W$27 -> 0 | R71: ='15'!X$27 -> 0 | S71: ='15'!Y$27 -> 0 | T71: ='15'!Z$27 -> 0 | U71: ='15'!AA$27 -> 0 | V71: ='15'!AB$27 -> 0 | W71: ='15'!AC$27 -> 0 | AA71: ='15'!L$28 -> 0 | AB71: ='15'!M$28 -> 0 | AC71: ='15'!N$28 -> 0 | AD71: ='15'!O$28 -> 0 | AE71: ='15'!P$28 -> 0 | AF71: ='15'!Q$28 -> 0 | AG71: ='15'!R$28 -> 0 | AH71: ='15'!S$28 -> 0 | AI71: ='15'!T$28 -> 0 | AJ71: ='15'!U$28 -> 0 | AK71: ='15'!V$28 -> 0 | AL71: ='15'!W$28 -> 0 | AM71: ='15'!X$28 -> 0 | AN71: ='15'!Y$28 -> 0 | AO71: ='15'!Z$28 -> 0 | AP71: ='15'!AA$28 -> 0 | AQ71: ='15'!AB$28 -> 0 | AR71: ='15'!AC$28 -> 0 | AS71: 23 | AT71: 2015-04-06 | AU71: - | AV71: 2015-04-12 | AW71: 15
A72: 24 | B72: 2015-04-13 | C72: - | D72: 2015-04-19 | E72: =Jahresplanung!$AA$5 -> 16 | F72: ='16'!L$27 -> 0 | G72: ='16'!M$27 -> 0 | H72: ='16'!N$27 -> 0 | I72: ='16'!O$27 -> 0 | J72: ='16'!P$27 -> 0 | K72: ='16'!Q$27 -> 0 | L72: ='16'!R$27 -> 0 | M72: ='16'!S$27 -> 0 | N72: ='16'!T$27 -> 0 | O72: ='16'!U$27 -> 0 | P72: ='16'!V$27 -> 0 | Q72: ='16'!W$27 -> 0 | R72: ='16'!X$27 -> 0 | S72: ='16'!Y$27 -> 0 | T72: ='16'!Z$27 -> 0 | U72: ='16'!AA$27 -> 0 | V72: ='16'!AB$27 -> 0 | W72: ='16'!AC$27 -> 0 | AA72: ='16'!L$28 -> 0 | AB72: ='16'!M$28 -> 0 | AC72: ='16'!N$28 -> 0 | AD72: ='16'!O$28 -> 0 | AE72: ='16'!P$28 -> 0 | AF72: ='16'!Q$28 -> 0 | AG72: ='16'!R$28 -> 0 | AH72: ='16'!S$28 -> 0 | AI72: ='16'!T$28 -> 0 | AJ72: ='16'!U$28 -> 0 | AK72: ='16'!V$28 -> 0 | AL72: ='16'!W$28 -> 0 | AM72: ='16'!X$28 -> 0 | AN72: ='16'!Y$28 -> 0 | AO72: ='16'!Z$28 -> 0 | AP72: ='16'!AA$28 -> 0 | AQ72: ='16'!AB$28 -> 0 | AR72: ='16'!AC$28 -> 0 | AS72: 24 | AT72: 2015-04-13 | AU72: - | AV72: 2015-04-19 | AW72: 16
A73: 25 | B73: 2015-04-20 | C73: - | D73: 2015-04-26 | E73: =Jahresplanung!$AB$5 -> 17 | F73: ='17'!L$27 -> 0 | G73: ='17'!M$27 -> 0 | H73: ='17'!N$27 -> 0 | I73: ='17'!O$27 -> 0 | J73: ='17'!P$27 -> 0 | K73: ='17'!Q$27 -> 0 | L73: ='17'!R$27 -> 0 | M73: ='17'!S$27 -> 0 | N73: ='17'!T$27 -> 0 | O73: ='17'!U$27 -> 0 | P73: ='17'!V$27 -> 0 | Q73: ='17'!W$27 -> 0 | R73: ='17'!X$27 -> 0 | S73: ='17'!Y$27 -> 0 | T73: ='17'!Z$27 -> 0 | U73: ='17'!AA$27 -> 0 | V73: ='17'!AB$27 -> 0 | W73: ='17'!AC$27 -> 0 | AA73: ='17'!L$28 -> 0 | AB73: ='17'!M$28 -> 0 | AC73: ='17'!N$28 -> 0 | AD73: ='17'!O$28 -> 0 | AE73: ='17'!P$28 -> 0 | AF73: ='17'!Q$28 -> 0 | AG73: ='17'!R$28 -> 0 | AH73: ='17'!S$28 -> 0 | AI73: ='17'!T$28 -> 0 | AJ73: ='17'!U$28 -> 0 | AK73: ='17'!V$28 -> 0 | AL73: ='17'!W$28 -> 0 | AM73: ='17'!X$28 -> 0 | AN73: ='17'!Y$28 -> 0 | AO73: ='17'!Z$28 -> 0 | AP73: ='17'!AA$28 -> 0 | AQ73: ='17'!AB$28 -> 0 | AR73: ='17'!AC$28 -> 0 | AS73: 25 | AT73: 2015-04-20 | AU73: - | AV73: 2015-04-26 | AW73: 17
A74: 26 | B74: 2015-04-27 | C74: - | D74: 2015-05-03 | E74: =Jahresplanung!$AC$5 -> 18 | F74: ='18'!L$27 -> 0 | G74: ='18'!M$27 -> 0 | H74: ='18'!N$27 -> 0 | I74: ='18'!O$27 -> 0 | J74: ='18'!P$27 -> 0 | K74: ='18'!Q$27 -> 0 | L74: ='18'!R$27 -> 0 | M74: ='18'!S$27 -> 0 | N74: ='18'!T$27 -> 0 | O74: ='18'!U$27 -> 0 | P74: ='18'!V$27 -> 0 | Q74: ='18'!W$27 -> 0 | R74: ='18'!X$27 -> 0 | S74: ='18'!Y$27 -> 0 | T74: ='18'!Z$27 -> 0 | U74: ='18'!AA$27 -> 0 | V74: ='18'!AB$27 -> 0 | W74: ='18'!AC$27 -> 0 | AA74: ='18'!L$28 -> 0 | AB74: ='18'!M$28 -> 0 | AC74: ='18'!N$28 -> 0 | AD74: ='18'!O$28 -> 0 | AE74: ='18'!P$28 -> 0 | AF74: ='18'!Q$28 -> 0 | AG74: ='18'!R$28 -> 0 | AH74: ='18'!S$28 -> 0 | AI74: ='18'!T$28 -> 0 | AJ74: ='18'!U$28 -> 0 | AK74: ='18'!V$28 -> 0 | AL74: ='18'!W$28 -> 0 | AM74: ='18'!X$28 -> 0 | AN74: ='18'!Y$28 -> 0 | AO74: ='18'!Z$28 -> 0 | AP74: ='18'!AA$28 -> 0 | AQ74: ='18'!AB$28 -> 0 | AR74: ='18'!AC$28 -> 0 | AS74: 26 | AT74: 2015-04-27 | AU74: - | AV74: 2015-05-03 | AW74: 18
A75: 27 | B75: 2015-05-04 | C75: - | D75: 2015-05-10 | E75: =Jahresplanung!$AD$5 -> 19 | F75: ='19'!L$27 -> 0 | G75: ='19'!M$27 -> 0 | H75: ='19'!N$27 -> 0 | I75: ='19'!O$27 -> 0 | J75: ='19'!P$27 -> 0 | K75: ='19'!Q$27 -> 0 | L75: ='19'!R$27 -> 0 | M75: ='19'!S$27 -> 0 | N75: ='19'!T$27 -> 0 | O75: ='19'!U$27 -> 0 | P75: ='19'!V$27 -> 0 | Q75: ='19'!W$27 -> 0 | R75: ='19'!X$27 -> 0 | S75: ='19'!Y$27 -> 0 | T75: ='19'!Z$27 -> 0 | U75: ='19'!AA$27 -> 0 | V75: ='19'!AB$27 -> 0 | W75: ='19'!AC$27 -> 0 | AA75: ='19'!L$28 -> 0 | AB75: ='19'!M$28 -> 0 | AC75: ='19'!N$28 -> 0 | AD75: ='19'!O$28 -> 0 | AE75: ='19'!P$28 -> 0 | AF75: ='19'!Q$28 -> 0 | AG75: ='19'!R$28 -> 0 | AH75: ='19'!S$28 -> 0 | AI75: ='19'!T$28 -> 0 | AJ75: ='19'!U$28 -> 0 | AK75: ='19'!V$28 -> 0 | AL75: ='19'!W$28 -> 0 | AM75: ='19'!X$28 -> 0 | AN75: ='19'!Y$28 -> 0 | AO75: ='19'!Z$28 -> 0 | AP75: ='19'!AA$28 -> 0 | AQ75: ='19'!AB$28 -> 0 | AR75: ='19'!AC$28 -> 0 | AS75: 27 | AT75: 2015-05-04 | AU75: - | AV75: 2015-05-10 | AW75: 19
A76: 28 | B76: 2015-05-11 | C76: - | D76: 2015-05-17 | E76: =Jahresplanung!$AE$5 -> 20 | F76: ='20'!L$27 -> 0 | G76: ='20'!M$27 -> 0 | H76: ='20'!N$27 -> 0 | I76: ='20'!O$27 -> 0 | J76: ='20'!P$27 -> 0 | K76: ='20'!Q$27 -> 0 | L76: ='20'!R$27 -> 0 | M76: ='20'!S$27 -> 0 | N76: ='20'!T$27 -> 0 | O76: ='20'!U$27 -> 0 | P76: ='20'!V$27 -> 0 | Q76: ='20'!W$27 -> 0 | R76: ='20'!X$27 -> 0 | S76: ='20'!Y$27 -> 0 | T76: ='20'!Z$27 -> 0 | U76: ='20'!AA$27 -> 0 | V76: ='20'!AB$27 -> 0 | W76: ='20'!AC$27 -> 0 | AA76: ='20'!L$28 -> 0 | AB76: ='20'!M$28 -> 0 | AC76: ='20'!N$28 -> 0 | AD76: ='20'!O$28 -> 0 | AE76: ='20'!P$28 -> 0 | AF76: ='20'!Q$28 -> 0 | AG76: ='20'!R$28 -> 0 | AH76: ='20'!S$28 -> 0 | AI76: ='20'!T$28 -> 0 | AJ76: ='20'!U$28 -> 0 | AK76: ='20'!V$28 -> 0 | AL76: ='20'!W$28 -> 0 | AM76: ='20'!X$28 -> 0 | AN76: ='20'!Y$28 -> 0 | AO76: ='20'!Z$28 -> 0 | AP76: ='20'!AA$28 -> 0 | AQ76: ='20'!AB$28 -> 0 | AR76: ='20'!AC$28 -> 0 | AS76: 28 | AT76: 2015-05-11 | AU76: - | AV76: 2015-05-17 | AW76: 20
A77: 29 | B77: 2015-05-18 | C77: - | D77: 2015-05-24 | E77: =Jahresplanung!$AF$5 -> 21 | F77: ='21'!L$27 -> 0 | G77: ='21'!M$27 -> 0 | H77: ='21'!N$27 -> 0 | I77: ='21'!O$27 -> 0 | J77: ='21'!P$27 -> 0 | K77: ='21'!Q$27 -> 0 | L77: ='21'!R$27 -> 0 | M77: ='21'!S$27 -> 0 | N77: ='21'!T$27 -> 0 | O77: ='21'!U$27 -> 0 | P77: ='21'!V$27 -> 0 | Q77: ='21'!W$27 -> 0 | R77: ='21'!X$27 -> 0 | S77: ='21'!Y$27 -> 0 | T77: ='21'!Z$27 -> 0 | U77: ='21'!AA$27 -> 0 | V77: ='21'!AB$27 -> 0 | W77: ='21'!AC$27 -> 0 | AA77: ='21'!L$28 -> 0 | AB77: ='21'!M$28 -> 0 | AC77: ='21'!N$28 -> 0 | AD77: ='21'!O$28 -> 0 | AE77: ='21'!P$28 -> 0 | AF77: ='21'!Q$28 -> 0 | AG77: ='21'!R$28 -> 0 | AH77: ='21'!S$28 -> 0 | AI77: ='21'!T$28 -> 0 | AJ77: ='21'!U$28 -> 0 | AK77: ='21'!V$28 -> 0 | AL77: ='21'!W$28 -> 0 | AM77: ='21'!X$28 -> 0 | AN77: ='21'!Y$28 -> 0 | AO77: ='21'!Z$28 -> 0 | AP77: ='21'!AA$28 -> 0 | AQ77: ='21'!AB$28 -> 0 | AR77: ='21'!AC$28 -> 0 | AS77: 29 | AT77: 2015-05-18 | AU77: - | AV77: 2015-05-24 | AW77: 21
A78: 30 | B78: 2015-05-25 | C78: - | D78: 2015-05-31 | E78: =Jahresplanung!$AG$5 -> 22 | F78: ='22'!L$27 -> 0 | G78: ='22'!M$27 -> 0 | H78: ='22'!N$27 -> 0 | I78: ='22'!O$27 -> 0 | J78: ='22'!P$27 -> 0 | K78: ='22'!Q$27 -> 0 | L78: ='22'!R$27 -> 0 | M78: ='22'!S$27 -> 0 | N78: ='22'!T$27 -> 0 | O78: ='22'!U$27 -> 0 | P78: ='22'!V$27 -> 0 | Q78: ='22'!W$27 -> 0 | R78: ='22'!X$27 -> 0 | S78: ='22'!Y$27 -> 0 | T78: ='22'!Z$27 -> 0 | U78: ='22'!AA$27 -> 0 | V78: ='22'!AB$27 -> 0 | W78: ='22'!AC$27 -> 0 | AA78: ='22'!L$28 -> 0 | AB78: ='22'!M$28 -> 0 | AC78: ='22'!N$28 -> 0 | AD78: ='22'!O$28 -> 0 | AE78: ='22'!P$28 -> 0 | AF78: ='22'!Q$28 -> 0 | AG78: ='22'!R$28 -> 0 | AH78: ='22'!S$28 -> 0 | AI78: ='22'!T$28 -> 0 | AJ78: ='22'!U$28 -> 0 | AK78: ='22'!V$28 -> 0 | AL78: ='22'!W$28 -> 0 | AM78: ='22'!X$28 -> 0 | AN78: ='22'!Y$28 -> 0 | AO78: ='22'!Z$28 -> 0 | AP78: ='22'!AA$28 -> 0 | AQ78: ='22'!AB$28 -> 0 | AR78: ='22'!AC$28 -> 0 | AS78: 30 | AT78: 2015-05-25 | AU78: - | AV78: 2015-05-31 | AW78: 22
A79: 31 | B79: 2015-06-01 | C79: - | D79: 2015-06-07 | E79: =Jahresplanung!$AH$5 -> 23 | F79: ='23'!L$27 -> 0 | G79: ='23'!M$27 -> 0 | H79: ='23'!N$27 -> 0 | I79: ='23'!O$27 -> 0 | J79: ='23'!P$27 -> 0 | K79: ='23'!Q$27 -> 0 | L79: ='23'!R$27 -> 0 | M79: ='23'!S$27 -> 0 | N79: ='23'!T$27 -> 0 | O79: ='23'!U$27 -> 0 | P79: ='23'!V$27 -> 0 | Q79: ='23'!W$27 -> 0 | R79: ='23'!X$27 -> 0 | S79: ='23'!Y$27 -> 0 | T79: ='23'!Z$27 -> 0 | U79: ='23'!AA$27 -> 0 | V79: ='23'!AB$27 -> 0 | W79: ='23'!AC$27 -> 0 | AA79: ='23'!L$28 -> 0 | AB79: ='23'!M$28 -> 0 | AC79: ='23'!N$28 -> 0 | AD79: ='23'!O$28 -> 0 | AE79: ='23'!P$28 -> 0 | AF79: ='23'!Q$28 -> 0 | AG79: ='23'!R$28 -> 0 | AH79: ='23'!S$28 -> 0 | AI79: ='23'!T$28 -> 0 | AJ79: ='23'!U$28 -> 0 | AK79: ='23'!V$28 -> 0 | AL79: ='23'!W$28 -> 0 | AM79: ='23'!X$28 -> 0 | AN79: ='23'!Y$28 -> 0 | AO79: ='23'!Z$28 -> 0 | AP79: ='23'!AA$28 -> 0 | AQ79: ='23'!AB$28 -> 0 | AR79: ='23'!AC$28 -> 0 | AS79: 31 | AT79: 2015-06-01 | AU79: - | AV79: 2015-06-07 | AW79: 23
A80: 32 | B80: 2015-06-08 | C80: - | D80: 2015-06-14 | E80: =Jahresplanung!$AI$5 -> 24 | F80: ='24'!L$27 -> 0 | G80: ='24'!M$27 -> 0 | H80: ='24'!N$27 -> 0 | I80: ='24'!O$27 -> 0 | J80: ='24'!P$27 -> 0 | K80: ='24'!Q$27 -> 0 | L80: ='24'!R$27 -> 0 | M80: ='24'!S$27 -> 0 | N80: ='24'!T$27 -> 0 | O80: ='24'!U$27 -> 0 | P80: ='24'!V$27 -> 0 | Q80: ='24'!W$27 -> 0 | R80: ='24'!X$27 -> 0 | S80: ='24'!Y$27 -> 0 | T80: ='24'!Z$27 -> 0 | U80: ='24'!AA$27 -> 0 | V80: ='24'!AB$27 -> 0 | W80: ='24'!AC$27 -> 0 | AA80: ='24'!L$28 -> 0 | AB80: ='24'!M$28 -> 0 | AC80: ='24'!N$28 -> 0 | AD80: ='24'!O$28 -> 0 | AE80: ='24'!P$28 -> 0 | AF80: ='24'!Q$28 -> 0 | AG80: ='24'!R$28 -> 0 | AH80: ='24'!S$28 -> 0 | AI80: ='24'!T$28 -> 0 | AJ80: ='24'!U$28 -> 0 | AK80: ='24'!V$28 -> 0 | AL80: ='24'!W$28 -> 0 | AM80: ='24'!X$28 -> 0 | AN80: ='24'!Y$28 -> 0 | AO80: ='24'!Z$28 -> 0 | AP80: ='24'!AA$28 -> 0 | AQ80: ='24'!AB$28 -> 0 | AR80: ='24'!AC$28 -> 0 | AS80: 32 | AT80: =B80 -> 2015-06-08 | AU80: =C80 -> - | AV80: =D80 -> 2015-06-14 | AW80: =E80 -> 24
A81: 33 | B81: 2015-06-15 | C81: - | D81: 2015-06-21 | E81: =Jahresplanung!$AJ$5 -> 25 | F81: ='25'!L$27 -> 0 | G81: ='25'!M$27 -> 0 | H81: ='25'!N$27 -> 0 | I81: ='25'!O$27 -> 0 | J81: ='25'!P$27 -> 0 | K81: ='25'!Q$27 -> 0 | L81: ='25'!R$27 -> 0 | M81: ='25'!S$27 -> 0 | N81: ='25'!T$27 -> 0 | O81: ='25'!U$27 -> 0 | P81: ='25'!V$27 -> 0 | Q81: ='25'!W$27 -> 0 | R81: ='25'!X$27 -> 0 | S81: ='25'!Y$27 -> 0 | T81: ='25'!Z$27 -> 0 | U81: ='25'!AA$27 -> 0 | V81: ='25'!AB$27 -> 0 | W81: ='25'!AC$27 -> 0 | AA81: ='25'!L$28 -> 0 | AB81: ='25'!M$28 -> 0 | AC81: ='25'!N$28 -> 0 | AD81: ='25'!O$28 -> 0 | AE81: ='25'!P$28 -> 0 | AF81: ='25'!Q$28 -> 0 | AG81: ='25'!R$28 -> 0 | AH81: ='25'!S$28 -> 0 | AI81: ='25'!T$28 -> 0 | AJ81: ='25'!U$28 -> 0 | AK81: ='25'!V$28 -> 0 | AL81: ='25'!W$28 -> 0 | AM81: ='25'!X$28 -> 0 | AN81: ='25'!Y$28 -> 0 | AO81: ='25'!Z$28 -> 0 | AP81: ='25'!AA$28 -> 0 | AQ81: ='25'!AB$28 -> 0 | AR81: ='25'!AC$28 -> 0 | AS81: 33 | AT81: 2015-06-15 | AU81: - | AV81: 2015-06-21 | AW81: 25
A82: 34 | B82: 2015-06-22 | C82: - | D82: 2015-06-28 | E82: =Jahresplanung!$AK$5 -> 26 | F82: ='26'!L$27 -> 0 | G82: ='26'!M$27 -> 0 | H82: ='26'!N$27 -> 0 | I82: ='26'!O$27 -> 0 | J82: ='26'!P$27 -> 0 | K82: ='26'!Q$27 -> 0 | L82: ='26'!R$27 -> 0 | M82: ='26'!S$27 -> 0 | N82: ='26'!T$27 -> 0 | O82: ='26'!U$27 -> 0 | P82: ='26'!V$27 -> 0 | Q82: ='26'!W$27 -> 0 | R82: ='26'!X$27 -> 0 | S82: ='26'!Y$27 -> 0 | T82: ='26'!Z$27 -> 0 | U82: ='26'!AA$27 -> 0 | V82: ='26'!AB$27 -> 0 | W82: ='26'!AC$27 -> 0 | AA82: ='26'!L$28 -> 0 | AB82: ='26'!M$28 -> 0 | AC82: ='26'!N$28 -> 0 | AD82: ='26'!O$28 -> 0 | AE82: ='26'!P$28 -> 0 | AF82: ='26'!Q$28 -> 0 | AG82: ='26'!R$28 -> 0 | AH82: ='26'!S$28 -> 0 | AI82: ='26'!T$28 -> 0 | AJ82: ='26'!U$28 -> 0 | AK82: ='26'!V$28 -> 0 | AL82: ='26'!W$28 -> 0 | AM82: ='26'!X$28 -> 0 | AN82: ='26'!Y$28 -> 0 | AO82: ='26'!Z$28 -> 0 | AP82: ='26'!AA$28 -> 0 | AQ82: ='26'!AB$28 -> 0 | AR82: ='26'!AC$28 -> 0 | AS82: 34 | AT82: 2015-06-22 | AU82: - | AV82: 2015-06-28 | AW82: 26
A83: 35 | B83: 2015-06-29 | C83: - | D83: 2015-07-05 | E83: =Jahresplanung!$AL$5 -> 27 | F83: ='27'!L$27 -> 0 | G83: ='27'!M$27 -> 0 | H83: ='27'!N$27 -> 0 | I83: ='27'!O$27 -> 0 | J83: ='27'!P$27 -> 0 | K83: ='27'!Q$27 -> 0 | L83: ='27'!R$27 -> 0 | M83: ='27'!S$27 -> 0 | N83: ='27'!T$27 -> 0 | O83: ='27'!U$27 -> 0 | P83: ='27'!V$27 -> 0 | Q83: ='27'!W$27 -> 0 | R83: ='27'!X$27 -> 0 | S83: ='27'!Y$27 -> 0 | T83: ='27'!Z$27 -> 0 | U83: ='27'!AA$27 -> 0 | V83: ='27'!AB$27 -> 0 | W83: ='27'!AC$27 -> 0 | AA83: ='27'!L$28 -> 0 | AB83: ='27'!M$28 -> 0 | AC83: ='27'!N$28 -> 0 | AD83: ='27'!O$28 -> 0 | AE83: ='27'!P$28 -> 0 | AF83: ='27'!Q$28 -> 0 | AG83: ='27'!R$28 -> 0 | AH83: ='27'!S$28 -> 0 | AI83: ='27'!T$28 -> 0 | AJ83: ='27'!U$28 -> 0 | AK83: ='27'!V$28 -> 0 | AL83: ='27'!W$28 -> 0 | AM83: ='27'!X$28 -> 0 | AN83: ='27'!Y$28 -> 0 | AO83: ='27'!Z$28 -> 0 | AP83: ='27'!AA$28 -> 0 | AQ83: ='27'!AB$28 -> 0 | AR83: ='27'!AC$28 -> 0 | AS83: 35 | AT83: 2015-06-29 | AU83: - | AV83: 2015-07-05 | AW83: 27
A84: 36 | B84: 2015-07-06 | C84: - | D84: 2015-07-12 | E84: =Jahresplanung!$AM$5 -> 28 | F84: ='28'!L$27 -> 0 | G84: ='28'!M$27 -> 0 | H84: ='28'!N$27 -> 0 | I84: ='28'!O$27 -> 0 | J84: ='28'!P$27 -> 0 | K84: ='28'!Q$27 -> 0 | L84: ='28'!R$27 -> 0 | M84: ='28'!S$27 -> 0 | N84: ='28'!T$27 -> 0 | O84: ='28'!U$27 -> 0 | P84: ='28'!V$27 -> 0 | Q84: ='28'!W$27 -> 0 | R84: ='28'!X$27 -> 0 | S84: ='28'!Y$27 -> 0 | T84: ='28'!Z$27 -> 0 | U84: ='28'!AA$27 -> 0 | V84: ='28'!AB$27 -> 0 | W84: ='28'!AC$27 -> 0 | AA84: ='28'!L$28 -> 0 | AB84: ='28'!M$28 -> 0 | AC84: ='28'!N$28 -> 0 | AD84: ='28'!O$28 -> 0 | AE84: ='28'!P$28 -> 0 | AF84: ='28'!Q$28 -> 0 | AG84: ='28'!R$28 -> 0 | AH84: ='28'!S$28 -> 0 | AI84: ='28'!T$28 -> 0 | AJ84: ='28'!U$28 -> 0 | AK84: ='28'!V$28 -> 0 | AL84: ='28'!W$28 -> 0 | AM84: ='28'!X$28 -> 0 | AN84: ='28'!Y$28 -> 0 | AO84: ='28'!Z$28 -> 0 | AP84: ='28'!AA$28 -> 0 | AQ84: ='28'!AB$28 -> 0 | AR84: ='28'!AC$28 -> 0 | AS84: 36 | AT84: 2015-07-06 | AU84: - | AV84: 2015-07-12 | AW84: 28
A85: 37 | B85: 2015-07-13 | C85: - | D85: 2015-07-19 | E85: =Jahresplanung!$AN$5 -> 29 | F85: ='29'!L$27 -> 0 | G85: ='29'!M$27 -> 0 | H85: ='29'!N$27 -> 0 | I85: ='29'!O$27 -> 0 | J85: ='29'!P$27 -> 0 | K85: ='29'!Q$27 -> 0 | L85: ='29'!R$27 -> 0 | M85: ='29'!S$27 -> 0 | N85: ='29'!T$27 -> 0 | O85: ='29'!U$27 -> 0 | P85: ='29'!V$27 -> 0 | Q85: ='29'!W$27 -> 0 | R85: ='29'!X$27 -> 0 | S85: ='29'!Y$27 -> 0 | T85: ='29'!Z$27 -> 0 | U85: ='29'!AA$27 -> 0 | V85: ='29'!AB$27 -> 0 | W85: ='29'!AC$27 -> 0 | AA85: ='29'!L$28 -> 0 | AB85: ='29'!M$28 -> 0 | AC85: ='29'!N$28 -> 0 | AD85: ='29'!O$28 -> 0 | AE85: ='29'!P$28 -> 0 | AF85: ='29'!Q$28 -> 0 | AG85: ='29'!R$28 -> 0 | AH85: ='29'!S$28 -> 0 | AI85: ='29'!T$28 -> 0 | AJ85: ='29'!U$28 -> 0 | AK85: ='29'!V$28 -> 0 | AL85: ='29'!W$28 -> 0 | AM85: ='29'!X$28 -> 0 | AN85: ='29'!Y$28 -> 0 | AO85: ='29'!Z$28 -> 0 | AP85: ='29'!AA$28 -> 0 | AQ85: ='29'!AB$28 -> 0 | AR85: ='29'!AC$28 -> 0 | AS85: 37 | AT85: 2015-07-13 | AU85: - | AV85: 2015-07-19 | AW85: 29
A86: 38 | B86: 2015-07-20 | C86: - | D86: 2015-07-26 | E86: =Jahresplanung!$AO$5 -> 30 | F86: ='30'!L$27 -> 0 | G86: ='30'!M$27 -> 0 | H86: ='30'!N$27 -> 0 | I86: ='30'!O$27 -> 0 | J86: ='30'!P$27 -> 0 | K86: ='30'!Q$27 -> 0 | L86: ='30'!R$27 -> 0 | M86: ='30'!S$27 -> 0 | N86: ='30'!T$27 -> 0 | O86: ='30'!U$27 -> 0 | P86: ='30'!V$27 -> 0 | Q86: ='30'!W$27 -> 0 | R86: ='30'!X$27 -> 0 | S86: ='30'!Y$27 -> 0 | T86: ='30'!Z$27 -> 0 | U86: ='30'!AA$27 -> 0 | V86: ='30'!AB$27 -> 0 | W86: ='30'!AC$27 -> 0 | AA86: ='30'!L$28 -> 0 | AB86: ='30'!M$28 -> 0 | AC86: ='30'!N$28 -> 0 | AD86: ='30'!O$28 -> 0 | AE86: ='30'!P$28 -> 0 | AF86: ='30'!Q$28 -> 0 | AG86: ='30'!R$28 -> 0 | AH86: ='30'!S$28 -> 0 | AI86: ='30'!T$28 -> 0 | AJ86: ='30'!U$28 -> 0 | AK86: ='30'!V$28 -> 0 | AL86: ='30'!W$28 -> 0 | AM86: ='30'!X$28 -> 0 | AN86: ='30'!Y$28 -> 0 | AO86: ='30'!Z$28 -> 0 | AP86: ='30'!AA$28 -> 0 | AQ86: ='30'!AB$28 -> 0 | AR86: ='30'!AC$28 -> 0 | AS86: 38 | AT86: 2015-07-20 | AU86: - | AV86: 2015-07-26 | AW86: 30
A87: 39 | B87: 2015-07-27 | C87: - | D87: 2015-08-02 | E87: =Jahresplanung!$AP$5 -> 31 | F87: ='31'!L$27 -> 0 | G87: ='31'!M$27 -> 0 | H87: ='31'!N$27 -> 0 | I87: ='31'!O$27 -> 0 | J87: ='31'!P$27 -> 0 | K87: ='31'!Q$27 -> 0 | L87: ='31'!R$27 -> 0 | M87: ='31'!S$27 -> 0 | N87: ='31'!T$27 -> 0 | O87: ='31'!U$27 -> 0 | P87: ='31'!V$27 -> 0 | Q87: ='31'!W$27 -> 0 | R87: ='31'!X$27 -> 0 | S87: ='31'!Y$27 -> 0 | T87: ='31'!Z$27 -> 0 | U87: ='31'!AA$27 -> 0 | V87: ='31'!AB$27 -> 0 | W87: ='31'!AC$27 -> 0 | AA87: ='31'!L$28 -> 0 | AB87: ='31'!M$28 -> 0 | AC87: ='31'!N$28 -> 0 | AD87: ='31'!O$28 -> 0 | AE87: ='31'!P$28 -> 0 | AF87: ='31'!Q$28 -> 0 | AG87: ='31'!R$28 -> 0 | AH87: ='31'!S$28 -> 0 | AI87: ='31'!T$28 -> 0 | AJ87: ='31'!U$28 -> 0 | AK87: ='31'!V$28 -> 0 | AL87: ='31'!W$28 -> 0 | AM87: ='31'!X$28 -> 0 | AN87: ='31'!Y$28 -> 0 | AO87: ='31'!Z$28 -> 0 | AP87: ='31'!AA$28 -> 0 | AQ87: ='31'!AB$28 -> 0 | AR87: ='31'!AC$28 -> 0 | AS87: 39 | AT87: 2015-07-27 | AU87: - | AV87: 2015-08-02 | AW87: 31
A88: 40 | B88: 2015-08-03 | C88: - | D88: 2015-08-09 | E88: =Jahresplanung!$AQ$5 -> 32 | F88: ='32'!L$27 -> 0 | G88: ='32'!M$27 -> 0 | H88: ='32'!N$27 -> 0 | I88: ='32'!O$27 -> 0 | J88: ='32'!P$27 -> 0 | K88: ='32'!Q$27 -> 0 | L88: ='32'!R$27 -> 0 | M88: ='32'!S$27 -> 0 | N88: ='32'!T$27 -> 0 | O88: ='32'!U$27 -> 0 | P88: ='32'!V$27 -> 0 | Q88: ='32'!W$27 -> 0 | R88: ='32'!X$27 -> 0 | S88: ='32'!Y$27 -> 0 | T88: ='32'!Z$27 -> 0 | U88: ='32'!AA$27 -> 0 | V88: ='32'!AB$27 -> 0 | W88: ='32'!AC$27 -> 0 | AA88: ='32'!L$28 -> 0 | AB88: ='32'!M$28 -> 0 | AC88: ='32'!N$28 -> 0 | AD88: ='32'!O$28 -> 0 | AE88: ='32'!P$28 -> 0 | AF88: ='32'!Q$28 -> 0 | AG88: ='32'!R$28 -> 0 | AH88: ='32'!S$28 -> 0 | AI88: ='32'!T$28 -> 0 | AJ88: ='32'!U$28 -> 0 | AK88: ='32'!V$28 -> 0 | AL88: ='32'!W$28 -> 0 | AM88: ='32'!X$28 -> 0 | AN88: ='32'!Y$28 -> 0 | AO88: ='32'!Z$28 -> 0 | AP88: ='32'!AA$28 -> 0 | AQ88: ='32'!AB$28 -> 0 | AR88: ='32'!AC$28 -> 0 | AS88: 40 | AT88: 2015-08-03 | AU88: - | AV88: 2015-08-09 | AW88: 32
A89: 41 | B89: 2015-08-10 | C89: - | D89: 2015-08-16 | E89: =Jahresplanung!$AR$5 -> 33 | F89: ='33'!L$27 -> 0 | G89: ='33'!M$27 -> 0 | H89: ='33'!N$27 -> 0 | I89: ='33'!O$27 -> 0 | J89: ='33'!P$27 -> 0 | K89: ='33'!Q$27 -> 0 | L89: ='33'!R$27 -> 0 | M89: ='33'!S$27 -> 0 | N89: ='33'!T$27 -> 0 | O89: ='33'!U$27 -> 0 | P89: ='33'!V$27 -> 0 | Q89: ='33'!W$27 -> 0 | R89: ='33'!X$27 -> 0 | S89: ='33'!Y$27 -> 0 | T89: ='33'!Z$27 -> 0 | U89: ='33'!AA$27 -> 0 | V89: ='33'!AB$27 -> 0 | W89: ='33'!AC$27 -> 0 | AA89: ='33'!L$28 -> 0 | AB89: ='33'!M$28 -> 0 | AC89: ='33'!N$28 -> 0 | AD89: ='33'!O$28 -> 0 | AE89: ='33'!P$28 -> 0 | AF89: ='33'!Q$28 -> 0 | AG89: ='33'!R$28 -> 0 | AH89: ='33'!S$28 -> 0 | AI89: ='33'!T$28 -> 0 | AJ89: ='33'!U$28 -> 0 | AK89: ='33'!V$28 -> 0 | AL89: ='33'!W$28 -> 0 | AM89: ='33'!X$28 -> 0 | AN89: ='33'!Y$28 -> 0 | AO89: ='33'!Z$28 -> 0 | AP89: ='33'!AA$28 -> 0 | AQ89: ='33'!AB$28 -> 0 | AR89: ='33'!AC$28 -> 0 | AS89: 41 | AT89: 2015-08-10 | AU89: - | AV89: 2015-08-16 | AW89: 33
A90: 42 | B90: 2015-08-17 | C90: - | D90: 2015-08-23 | E90: =Jahresplanung!$AS$5 -> 34 | F90: ='34'!L$27 -> 0 | G90: ='34'!M$27 -> 0 | H90: ='34'!N$27 -> 0 | I90: ='34'!O$27 -> 0 | J90: ='34'!P$27 -> 0 | K90: ='34'!Q$27 -> 0 | L90: ='34'!R$27 -> 0 | M90: ='34'!S$27 -> 0 | N90: ='34'!T$27 -> 0 | O90: ='34'!U$27 -> 0 | P90: ='34'!V$27 -> 0 | Q90: ='34'!W$27 -> 0 | R90: ='34'!X$27 -> 0 | S90: ='34'!Y$27 -> 0 | T90: ='34'!Z$27 -> 0 | U90: ='34'!AA$27 -> 0 | V90: ='34'!AB$27 -> 0 | W90: ='34'!AC$27 -> 0 | AA90: ='34'!L$28 -> 0 | AB90: ='34'!M$28 -> 0 | AC90: ='34'!N$28 -> 0 | AD90: ='34'!O$28 -> 0 | AE90: ='34'!P$28 -> 0 | AF90: ='34'!Q$28 -> 0 | AG90: ='34'!R$28 -> 0 | AH90: ='34'!S$28 -> 0 | AI90: ='34'!T$28 -> 0 | AJ90: ='34'!U$28 -> 0 | AK90: ='34'!V$28 -> 0 | AL90: ='34'!W$28 -> 0 | AM90: ='34'!X$28 -> 0 | AN90: ='34'!Y$28 -> 0 | AO90: ='34'!Z$28 -> 0 | AP90: ='34'!AA$28 -> 0 | AQ90: ='34'!AB$28 -> 0 | AR90: ='34'!AC$28 -> 0 | AS90: 42 | AT90: 2015-08-17 | AU90: - | AV90: 2015-08-23 | AW90: 34
A91: 43 | B91: 2015-08-24 | C91: - | D91: 2015-08-30 | E91: =Jahresplanung!$AT$5 -> 35 | F91: ='35'!L$27 -> 0 | G91: ='35'!M$27 -> 0 | H91: ='35'!N$27 -> 0 | I91: ='35'!O$27 -> 0 | J91: ='35'!P$27 -> 0 | K91: ='35'!Q$27 -> 0 | L91: ='35'!R$27 -> 0 | M91: ='35'!S$27 -> 0 | N91: ='35'!T$27 -> 0 | O91: ='35'!U$27 -> 0 | P91: ='35'!V$27 -> 0 | Q91: ='35'!W$27 -> 0 | R91: ='35'!X$27 -> 0 | S91: ='35'!Y$27 -> 0 | T91: ='35'!Z$27 -> 0 | U91: ='35'!AA$27 -> 0 | V91: ='35'!AB$27 -> 0 | W91: ='35'!AC$27 -> 0 | AA91: ='35'!L$28 -> 0 | AB91: ='35'!M$28 -> 0 | AC91: ='35'!N$28 -> 0 | AD91: ='35'!O$28 -> 0 | AE91: ='35'!P$28 -> 0 | AF91: ='35'!Q$28 -> 0 | AG91: ='35'!R$28 -> 0 | AH91: ='35'!S$28 -> 0 | AI91: ='35'!T$28 -> 0 | AJ91: ='35'!U$28 -> 0 | AK91: ='35'!V$28 -> 0 | AL91: ='35'!W$28 -> 0 | AM91: ='35'!X$28 -> 0 | AN91: ='35'!Y$28 -> 0 | AO91: ='35'!Z$28 -> 0 | AP91: ='35'!AA$28 -> 0 | AQ91: ='35'!AB$28 -> 0 | AR91: ='35'!AC$28 -> 0 | AS91: 43 | AT91: 2015-08-24 | AU91: - | AV91: 2015-08-30 | AW91: 35
A92: 44 | B92: 2015-08-31 | C92: - | D92: 2015-09-06 | E92: =Jahresplanung!$AU$5 -> 36 | F92: ='36'!L$27 -> 0 | G92: ='36'!M$27 -> 0 | H92: ='36'!N$27 -> 0 | I92: ='36'!O$27 -> 0 | J92: ='36'!P$27 -> 0 | K92: ='36'!Q$27 -> 0 | L92: ='36'!R$27 -> 0 | M92: ='36'!S$27 -> 0 | N92: ='36'!T$27 -> 0 | O92: ='36'!U$27 -> 0 | P92: ='36'!V$27 -> 0 | Q92: ='36'!W$27 -> 0 | R92: ='36'!X$27 -> 0 | S92: ='36'!Y$27 -> 0 | T92: ='36'!Z$27 -> 0 | U92: ='36'!AA$27 -> 0 | V92: ='36'!AB$27 -> 0 | W92: ='36'!AC$27 -> 0 | AA92: ='36'!L$28 -> 0 | AB92: ='36'!M$28 -> 0 | AC92: ='36'!N$28 -> 0 | AD92: ='36'!O$28 -> 0 | AE92: ='36'!P$28 -> 0 | AF92: ='36'!Q$28 -> 0 | AG92: ='36'!R$28 -> 0 | AH92: ='36'!S$28 -> 0 | AI92: ='36'!T$28 -> 0 | AJ92: ='36'!U$28 -> 0 | AK92: ='36'!V$28 -> 0 | AL92: ='36'!W$28 -> 0 | AM92: ='36'!X$28 -> 0 | AN92: ='36'!Y$28 -> 0 | AO92: ='36'!Z$28 -> 0 | AP92: ='36'!AA$28 -> 0 | AQ92: ='36'!AB$28 -> 0 | AR92: ='36'!AC$28 -> 0 | AS92: 44 | AT92: 2015-08-31 | AU92: - | AV92: 2015-09-06 | AW92: 36
A93: 45 | B93: 2015-09-07 | C93: - | D93: 2015-09-13 | E93: =Jahresplanung!$AV$5 -> 37 | F93: ='37'!L$27 -> 0 | G93: ='37'!M$27 -> 0 | H93: ='37'!N$27 -> 0 | I93: ='37'!O$27 -> 0 | J93: ='37'!P$27 -> 0 | K93: ='37'!Q$27 -> 0 | L93: ='37'!R$27 -> 0 | M93: ='37'!S$27 -> 0 | N93: ='37'!T$27 -> 0 | O93: ='37'!U$27 -> 0 | P93: ='37'!V$27 -> 0 | Q93: ='37'!W$27 -> 0 | R93: ='37'!X$27 -> 0 | S93: ='37'!Y$27 -> 0 | T93: ='37'!Z$27 -> 0 | U93: ='37'!AA$27 -> 0 | V93: ='37'!AB$27 -> 0 | W93: ='37'!AC$27 -> 0 | AA93: ='37'!L$28 -> 0 | AB93: ='37'!M$28 -> 0 | AC93: ='37'!N$28 -> 0 | AD93: ='37'!O$28 -> 0 | AE93: ='37'!P$28 -> 0 | AF93: ='37'!Q$28 -> 0 | AG93: ='37'!R$28 -> 0 | AH93: ='37'!S$28 -> 0 | AI93: ='37'!T$28 -> 0 | AJ93: ='37'!U$28 -> 0 | AK93: ='37'!V$28 -> 0 | AL93: ='37'!W$28 -> 0 | AM93: ='37'!X$28 -> 0 | AN93: ='37'!Y$28 -> 0 | AO93: ='37'!Z$28 -> 0 | AP93: ='37'!AA$28 -> 0 | AQ93: ='37'!AB$28 -> 0 | AR93: ='37'!AC$28 -> 0 | AS93: 45 | AT93: 2015-09-07 | AU93: - | AV93: 2015-09-13 | AW93: 37
A94: 46 | B94: 2015-09-14 | C94: - | D94: 2015-09-20 | E94: =Jahresplanung!$AW$5 -> 38 | F94: ='38'!L$27 -> 0 | G94: ='38'!M$27 -> 0 | H94: ='38'!N$27 -> 0 | I94: ='38'!O$27 -> 0 | J94: ='38'!P$27 -> 0 | K94: ='38'!Q$27 -> 0 | L94: ='38'!R$27 -> 0 | M94: ='38'!S$27 -> 0 | N94: ='38'!T$27 -> 0 | O94: ='38'!U$27 -> 0 | P94: ='38'!V$27 -> 0 | Q94: ='38'!W$27 -> 0 | R94: ='38'!X$27 -> 0 | S94: ='38'!Y$27 -> 0 | T94: ='38'!Z$27 -> 0 | U94: ='38'!AA$27 -> 0 | V94: ='38'!AB$27 -> 0 | W94: ='38'!AC$27 -> 0 | AA94: ='38'!L$28 -> 0 | AB94: ='38'!M$28 -> 0 | AC94: ='38'!N$28 -> 0 | AD94: ='38'!O$28 -> 0 | AE94: ='38'!P$28 -> 0 | AF94: ='38'!Q$28 -> 0 | AG94: ='38'!R$28 -> 0 | AH94: ='38'!S$28 -> 0 | AI94: ='38'!T$28 -> 0 | AJ94: ='38'!U$28 -> 0 | AK94: ='38'!V$28 -> 0 | AL94: ='38'!W$28 -> 0 | AM94: ='38'!X$28 -> 0 | AN94: ='38'!Y$28 -> 0 | AO94: ='38'!Z$28 -> 0 | AP94: ='38'!AA$28 -> 0 | AQ94: ='38'!AB$28 -> 0 | AR94: ='38'!AC$28 -> 0 | AS94: 46 | AT94: 2015-09-14 | AU94: - | AV94: 2015-09-20 | AW94: 38
A95: 47 | B95: 2015-09-21 | C95: - | D95: 2015-09-27 | E95: =Jahresplanung!$AX$5 -> 39 | F95: ='39'!L$27 -> 0 | G95: ='39'!M$27 -> 0 | H95: ='39'!N$27 -> 0 | I95: ='39'!O$27 -> 0 | J95: ='39'!P$27 -> 0 | K95: ='39'!Q$27 -> 0 | L95: ='39'!R$27 -> 0 | M95: ='39'!S$27 -> 0 | N95: ='39'!T$27 -> 0 | O95: ='39'!U$27 -> 0 | P95: ='39'!V$27 -> 0 | Q95: ='39'!W$27 -> 0 | R95: ='39'!X$27 -> 0 | S95: ='39'!Y$27 -> 0 | T95: ='39'!Z$27 -> 0 | U95: ='39'!AA$27 -> 0 | V95: ='39'!AB$27 -> 0 | W95: ='39'!AC$27 -> 0 | AA95: ='39'!L$28 -> 0 | AB95: ='39'!M$28 -> 0 | AC95: ='39'!N$28 -> 0 | AD95: ='39'!O$28 -> 0 | AE95: ='39'!P$28 -> 0 | AF95: ='39'!Q$28 -> 0 | AG95: ='39'!R$28 -> 0 | AH95: ='39'!S$28 -> 0 | AI95: ='39'!T$28 -> 0 | AJ95: ='39'!U$28 -> 0 | AK95: ='39'!V$28 -> 0 | AL95: ='39'!W$28 -> 0 | AM95: ='39'!X$28 -> 0 | AN95: ='39'!Y$28 -> 0 | AO95: ='39'!Z$28 -> 0 | AP95: ='39'!AA$28 -> 0 | AQ95: ='39'!AB$28 -> 0 | AR95: ='39'!AC$28 -> 0 | AS95: 47 | AT95: 2015-09-21 | AU95: - | AV95: 2015-09-27 | AW95: 39
A96: 48 | B96: 2015-09-28 | C96: - | D96: 2015-10-04 | E96: =Jahresplanung!$AY$5 -> 40 | F96: ='40'!L$27 -> 0 | G96: ='40'!M$27 -> 0 | H96: ='40'!N$27 -> 0 | I96: ='40'!O$27 -> 0 | J96: ='40'!P$27 -> 0 | K96: ='40'!Q$27 -> 0 | L96: ='40'!R$27 -> 0 | M96: ='40'!S$27 -> 0 | N96: ='40'!T$27 -> 0 | O96: ='40'!U$27 -> 0 | P96: ='40'!V$27 -> 0 | Q96: ='40'!W$27 -> 0 | R96: ='40'!X$27 -> 0 | S96: ='40'!Y$27 -> 0 | T96: ='40'!Z$27 -> 0 | U96: ='40'!AA$27 -> 0 | V96: ='40'!AB$27 -> 0 | W96: ='40'!AC$27 -> 0 | AA96: ='40'!L$28 -> 0 | AB96: ='40'!M$28 -> 0 | AC96: ='40'!N$28 -> 0 | AD96: ='40'!O$28 -> 0 | AE96: ='40'!P$28 -> 0 | AF96: ='40'!Q$28 -> 0 | AG96: ='40'!R$28 -> 0 | AH96: ='40'!S$28 -> 0 | AI96: ='40'!T$28 -> 0 | AJ96: ='40'!U$28 -> 0 | AK96: ='40'!V$28 -> 0 | AL96: ='40'!W$28 -> 0 | AM96: ='40'!X$28 -> 0 | AN96: ='40'!Y$28 -> 0 | AO96: ='40'!Z$28 -> 0 | AP96: ='40'!AA$28 -> 0 | AQ96: ='40'!AB$28 -> 0 | AR96: ='40'!AC$28 -> 0 | AS96: 48 | AT96: 2015-09-28 | AU96: - | AV96: 2015-10-04 | AW96: 40
A97: 49 | B97: 2015-10-05 | C97: - | D97: 2015-10-11 | E97: =Jahresplanung!$AZ$5 -> 41 | F97: ='41'!L$27 -> 0 | G97: ='41'!M$27 -> 0 | H97: ='41'!N$27 -> 0 | I97: ='41'!O$27 -> 0 | J97: ='41'!P$27 -> 0 | K97: ='41'!Q$27 -> 0 | L97: ='41'!R$27 -> 0 | M97: ='41'!S$27 -> 0 | N97: ='41'!T$27 -> 0 | O97: ='41'!U$27 -> 0 | P97: ='41'!V$27 -> 0 | Q97: ='41'!W$27 -> 0 | R97: ='41'!X$27 -> 0 | S97: ='41'!Y$27 -> 0 | T97: ='41'!Z$27 -> 0 | U97: ='41'!AA$27 -> 0 | V97: ='41'!AB$27 -> 0 | W97: ='41'!AC$27 -> 0 | AA97: ='41'!L$28 -> 0 | AB97: ='41'!M$28 -> 0 | AC97: ='41'!N$28 -> 0 | AD97: ='41'!O$28 -> 0 | AE97: ='41'!P$28 -> 0 | AF97: ='41'!Q$28 -> 0 | AG97: ='41'!R$28 -> 0 | AH97: ='41'!S$28 -> 0 | AI97: ='41'!T$28 -> 0 | AJ97: ='41'!U$28 -> 0 | AK97: ='41'!V$28 -> 0 | AL97: ='41'!W$28 -> 0 | AM97: ='41'!X$28 -> 0 | AN97: ='41'!Y$28 -> 0 | AO97: ='41'!Z$28 -> 0 | AP97: ='41'!AA$28 -> 0 | AQ97: ='41'!AB$28 -> 0 | AR97: ='41'!AC$28 -> 0 | AS97: 49 | AT97: 2015-10-05 | AU97: - | AV97: 2015-10-11 | AW97: 41
A98: 50 | B98: 2015-10-12 | C98: - | D98: 2015-10-18 | E98: =Jahresplanung!$BA$5 -> 42 | F98: ='42'!L$27 -> 0 | G98: ='42'!M$27 -> 0 | H98: ='42'!N$27 -> 0 | I98: ='42'!O$27 -> 0 | J98: ='42'!P$27 -> 0 | K98: ='42'!Q$27 -> 0 | L98: ='42'!R$27 -> 0 | M98: ='42'!S$27 -> 0 | N98: ='42'!T$27 -> 0 | O98: ='42'!U$27 -> 0 | P98: ='42'!V$27 -> 0 | Q98: ='42'!W$27 -> 0 | R98: ='42'!X$27 -> 0 | S98: ='42'!Y$27 -> 0 | T98: ='42'!Z$27 -> 0 | U98: ='42'!AA$27 -> 0 | V98: ='42'!AB$27 -> 0 | W98: ='42'!AC$27 -> 0 | AA98: ='42'!L$28 -> 0 | AB98: ='42'!M$28 -> 0 | AC98: ='42'!N$28 -> 0 | AD98: ='42'!O$28 -> 0 | AE98: ='42'!P$28 -> 0 | AF98: ='42'!Q$28 -> 0 | AG98: ='42'!R$28 -> 0 | AH98: ='42'!S$28 -> 0 | AI98: ='42'!T$28 -> 0 | AJ98: ='42'!U$28 -> 0 | AK98: ='42'!V$28 -> 0 | AL98: ='42'!W$28 -> 0 | AM98: ='42'!X$28 -> 0 | AN98: ='42'!Y$28 -> 0 | AO98: ='42'!Z$28 -> 0 | AP98: ='42'!AA$28 -> 0 | AQ98: ='42'!AB$28 -> 0 | AR98: ='42'!AC$28 -> 0 | AS98: 50 | AT98: 2015-10-12 | AU98: - | AV98: 2015-10-18 | AW98: 42
A99: 51 | B99: 2015-10-19 | C99: - | D99: 2015-10-25 | E99: =Jahresplanung!$BB$5 -> 43 | F99: ='43'!L$27 -> 0 | G99: ='43'!M$27 -> 0 | H99: ='43'!N$27 -> 0 | I99: ='43'!O$27 -> 0 | J99: ='43'!P$27 -> 0 | K99: ='43'!Q$27 -> 0 | L99: ='43'!R$27 -> 0 | M99: ='43'!S$27 -> 0 | N99: ='43'!T$27 -> 0 | O99: ='43'!U$27 -> 0 | P99: ='43'!V$27 -> 0 | Q99: ='43'!W$27 -> 0 | R99: ='43'!X$27 -> 0 | S99: ='43'!Y$27 -> 0 | T99: ='43'!Z$27 -> 0 | U99: ='43'!AA$27 -> 0 | V99: ='43'!AB$27 -> 0 | W99: ='43'!AC$27 -> 0 | AA99: ='43'!L$28 -> 0 | AB99: ='43'!M$28 -> 0 | AC99: ='43'!N$28 -> 0 | AD99: ='43'!O$28 -> 0 | AE99: ='43'!P$28 -> 0 | AF99: ='43'!Q$28 -> 0 | AG99: ='43'!R$28 -> 0 | AH99: ='43'!S$28 -> 0 | AI99: ='43'!T$28 -> 0 | AJ99: ='43'!U$28 -> 0 | AK99: ='43'!V$28 -> 0 | AL99: ='43'!W$28 -> 0 | AM99: ='43'!X$28 -> 0 | AN99: ='43'!Y$28 -> 0 | AO99: ='43'!Z$28 -> 0 | AP99: ='43'!AA$28 -> 0 | AQ99: ='43'!AB$28 -> 0 | AR99: ='43'!AC$28 -> 0 | AS99: 51 | AT99: 2015-10-19 | AU99: - | AV99: 2015-10-25 | AW99: 43
A100: 52 | B100: 2015-10-26 | C100: - | D100: 2015-11-01 | E100: =Jahresplanung!$BC$5 -> 44 | F100: ='44'!L$27 -> 0 | G100: ='44'!M$27 -> 0 | H100: ='44'!N$27 -> 0 | I100: ='44'!O$27 -> 0 | J100: ='44'!P$27 -> 0 | K100: ='44'!Q$27 -> 0 | L100: ='44'!R$27 -> 0 | M100: ='44'!S$27 -> 0 | N100: ='44'!T$27 -> 0 | O100: ='44'!U$27 -> 0 | P100: ='44'!V$27 -> 0 | Q100: ='44'!W$27 -> 0 | R100: ='44'!X$27 -> 0 | S100: ='44'!Y$27 -> 0 | T100: ='44'!Z$27 -> 0 | U100: ='44'!AA$27 -> 0 | V100: ='44'!AB$27 -> 0 | W100: ='44'!AC$27 -> 0 | AA100: ='44'!L$28 -> 0 | AB100: ='44'!M$28 -> 0 | AC100: ='44'!N$28 -> 0 | AD100: ='44'!O$28 -> 0 | AE100: ='44'!P$28 -> 0 | AF100: ='44'!Q$28 -> 0 | AG100: ='44'!R$28 -> 0 | AH100: ='44'!S$28 -> 0 | AI100: ='44'!T$28 -> 0 | AJ100: ='44'!U$28 -> 0 | AK100: ='44'!V$28 -> 0 | AL100: ='44'!W$28 -> 0 | AM100: ='44'!X$28 -> 0 | AN100: ='44'!Y$28 -> 0 | AO100: ='44'!Z$28 -> 0 | AP100: ='44'!AA$28 -> 0 | AQ100: ='44'!AB$28 -> 0 | AR100: ='44'!AC$28 -> 0 | AS100: 52 | AT100: 2015-10-26 | AU100: - | AV100: 2015-11-01 | AW100: 44
E101: Total Trainingseinheiten | F101: =DSUM($A$45:H100,F46,$A$45:$B$46) -> 0 | G101: =DSUM($A$45:I100,G46,$A$45:$B$46) -> 0 | H101: =DSUM($A$45:J100,H46,$A$45:$B$46) -> 0 | I101: =DSUM($A$45:K100,I46,$A$45:$B$46) -> 0 | J101: =DSUM($A$45:L100,J46,$A$45:$B$46) -> 0 | K101: =DSUM($A$45:M100,K46,$A$45:$B$46) -> 0 | L101: =DSUM($A$45:N100,L46,$A$45:$B$46) -> 0 | M101: =DSUM($A$45:O100,M46,$A$45:$B$46) -> 0 | N101: =DSUM($A$45:P100,N46,$A$45:$B$46) -> 0 | O101: =DSUM($A$45:Q100,O46,$A$45:$B$46) -> 0 | P101: =DSUM($A$45:R100,P46,$A$45:$B$46) -> 0 | Q101: =DSUM($A$45:S100,Q46,$A$45:$B$46) -> 0 | R101: =DSUM($A$45:T100,R46,$A$45:$B$46) -> 0 | S101: =DSUM($A$45:U100,S46,$A$45:$B$46) -> 0 | T101: =DSUM($A$45:V100,T46,$A$45:$B$46) -> 0 | U101: =DSUM($A$45:W100,U46,$A$45:$B$46) -> 0 | V101: =DSUM($A$45:X100,V46,$A$45:$B$46) -> 0 | W101: =DSUM($A$45:Z100,W46,$A$45:$B$46) -> 0 | Z101: Total Trainingsstunden | AA101: =DSUM($AA$45:AT100,AA46,$AS$45:$AT$46)/60 -> 0 | AB101: =DSUM($AA$45:AU100,AB46,$AS$45:$AT$46)/60 -> 0 | AC101: =DSUM($AA$45:AV100,AC46,$AS$45:$AT$46)/60 -> 0 | AD101: =DSUM($AA$45:AW100,AD46,$AS$45:$AT$46)/60 -> 0 | AE101: =DSUM($AA$45:AW100,AE46,$AS$45:$AT$46)/60 -> 0 | AF101: =DSUM($AA$45:AW100,AF46,$AS$45:$AT$46)/60 -> 0 | AG101: =DSUM($AA$45:AW100,AG46,$AS$45:$AT$46)/60 -> 0 | AH101: =DSUM($AA$45:AW100,AH46,$AS$45:$AT$46)/60 -> 0 | AI101: =DSUM($AA$45:AW100,AI46,$AS$45:$AT$46)/60 -> 0 | AJ101: =DSUM($AA$45:AW100,AJ46,$AS$45:$AT$46)/60 -> 0 | AK101: =DSUM($AA$45:AW100,AK46,$AS$45:$AT$46)/60 -> 0 | AL101: =DSUM($AA$45:AW100,AL46,$AS$45:$AT$46)/60 -> 0 | AM101: =DSUM($AA$45:AW100,AM46,$AS$45:$AT$46)/60 -> 0 | AN101: =DSUM($AA$45:AW100,AN46,$AS$45:$AT$46)/60 -> 0 | AO101: =DSUM($AA$45:AW100,AO46,$AS$45:$AT$46)/60 -> 0 | AP101: =DSUM($AA$45:AW100,AP46,$AS$45:$AT$46)/60 -> 0 | AQ101: =DSUM($AA$45:AW100,AQ46,$AS$45:$AT$46)/60 -> 0 | AR101: =DSUM($AA$45:AW100,AR46,$AS$45:$AT$46)/60 -> 0
E102: % des Sportartes | F102: =SUM(F101:H101)/(SUM($F$101:$W$101)) ->  | I102: =SUM(I101:K101)/(SUM($F$101:$W$101)) ->  | L102: =SUM(L101:N101)/(SUM($F$101:$W$101)) ->  | O102: =SUM(O101:Q101)/(SUM($F$101:$W$101)) ->  | R102: =SUM(R101:T101)/(SUM($F$101:$W$101)) ->  | U102: =SUM(U101:W101)/(SUM($F$101:$W$101)) ->  | Z102: % des Sportartes | AA102: =SUM(AA101:AC101)/(SUM($AA$101:$AR$101)) ->  | AD102: =SUM(AD101:AF101)/(SUM($AA$101:$AR$101)) ->  | AG102: =SUM(AG101:AI101)/(SUM($AA$101:$AR$101)) ->  | AJ102: =SUM(AJ101:AL101)/(SUM($AA$101:$AR$101)) ->  | AM102: =SUM(AM101:AO101)/(SUM($AA$101:$AR$101)) ->  | AP102: =SUM(AP101:AR101)/(SUM($AA$101:$AR$101)) -> 
E103: Intensitätsverteilung (Total) | F103: =SUM(F101,I101,L101,O101,R101,U101)/SUM($F$101:$W$101) ->  | G103: =SUM(G101,J101,M101,P101,S101,V101)/SUM($F$101:$W$101) ->  | H103: =SUM(H101,K101,N101,Q101,T101,W101)/SUM($F$101:$W$101) ->  | Z103: Intensitätsverteilung (Total) | AA103: =SUM(AA101,AD101,AG101,AJ101,AM101,AP101)/SUM($AA$101:$AR$101) ->  | AB103: =SUM(AB101,AE101,AH101,AK101,AN101,AQ101)/SUM($AA$101:$AR$101) ->  | AC103: =SUM(AC101,AF101,AI101,AL101,AO101,AR101)/SUM($AA$101:$AR$101) -> 
E104: Intensitätsverteilung (pro Sportart) | F104: =F101/SUM($F$101:$H$101) ->  | G104: =G101/SUM($F$101:$H$101) ->  | H104: =H101/SUM($F$101:$H$101) ->  | I104: =I101/SUM($I$101:$K$101) ->  | J104: =J101/SUM($I$101:$K$101) ->  | K104: =K101/SUM($I$101:$K$101) ->  | L104: =L101/SUM($L$101:$N$101) ->  | M104: =M101/SUM($L$101:$N$101) ->  | N104: =N101/SUM($L$101:$N$101) ->  | O104: =O101/SUM($O$101:$Q$101) ->  | P104: =P101/SUM($O$101:$Q$101) ->  | Q104: =Q101/SUM($O$101:$Q$101) ->  | R104: =R101/SUM($R$101:$T$101) ->  | S104: =S101/SUM($R$101:$T$101) ->  | T104: =T101/SUM($R$101:$T$101) ->  | U104: =U101/SUM($U$101:$W$101) ->  | V104: =V101/SUM($U$101:$W$101) ->  | W104: =W101/SUM($U$101:$W$101) ->  | Z104: Intensitätsverteilung | AA104: =AA101/SUM($AA$101:$AC$101) ->  | AB104: =AB101/SUM($AA$101:$AC$101) ->  | AC104: =AC101/SUM($AA$101:$AC$101) ->  | AD104: =AD101/SUM($AD$101:$AF$101) ->  | AE104: =AE101/SUM($AD$101:$AF$101) ->  | AF104: =AF101/SUM($AD$101:$AF$101) ->  | AG104: =AG101/SUM($AG$101:$AI$101) ->  | AH104: =AH101/SUM($AG$101:$AI$101) ->  | AI104: =AI101/SUM($AG$101:$AI$101) ->  | AJ104: =AJ101/SUM($AJ$101:$AL$101) ->  | AK104: =AK101/SUM($AJ$101:$AL$101) ->  | AL104: =AL101/SUM($AJ$101:$AL$101) ->  | AM104: =AM101/SUM($AM$101:$AO$101) ->  | AN104: =AN101/SUM($AM$101:$AO$101) ->  | AO104: =AO101/SUM($AM$101:$AO$101) ->  | AP104: =AP101/SUM($AP$101:$AR$101) ->  | AQ104: =AQ101/SUM($AP$101:$AR$101) ->  | AR104: =AR101/SUM($AP$101:$AR$101) -> 
E170: Total | F170: =F47 -> Dauerlauf | G170: =I47 -> Bahn/Intervall | H170: =L47 -> Sprint/Koord/Tech | I170: =O47 -> Kraft | J170: =R47 -> Alternativ | K170: =U47 -> Divers

Sheet Woche Druckversion
D1: Woche Druckversion | E1: Woche Druckversion | F1: Woche Druckversion
A2: Trainingsplan : | E2: =Jahresplanung!M2 -> Vorname Name | S2: Datum : | T2: 2014-12-08 | U2: - | V2: 2014-12-14
A4: Tag | C4: Gewicht | D4: Motiv. | E4: Schlaf | F4: Schlaf | G4: Verletzung/ Erkrankung | I4: Trainingsbeschreibung | L4: Dauer | M4: RPE | O4: Bemerkung | P4: Km | S4: Divers
C5: kg | D5: [ -2 + 2 ] | E5: 1-6 | F5: Std | G5: "x" wenn ja
A6: MO
A9: DI
A12: MI
A15: DO | S15: Foster's Skala | W15: RPE
S16: Wie in Ruhe | W16: 0
S17: Sehr locker | W17: 1
A18: FR | S18: Locker | W18: 2
W19: 3
S20: Etwas hart | W20: 4
A21: SA | S21: Hart | W21: 5
W22: 6
S23: Sehr hart | W23: 7
A24: SO | W24: 8
S25: Extrem hart | W25: 9
S26: Wie mein härtestes Training | W26: 10

Sheet 45
C1: Woche | D1: =INT(MOD(INT((F1-2)/7)+0.6,52+5/28))+1 -> 45 | E1: =D1+1000 -> 1045 | F1: =Jahresplanung!AH2 -> 2014-11-03 | G1: - | H1: =F1+6 -> 2014-11-09
B2: Tag | D2: Gewicht | E2: Erholt ? | F2: Schlaf | G2: Stress | I2: Trainingsbeschreibung | L2: Dauerlauf | O2: Bahn/Intervall | R2: Sprint/Koord/Tech | U2: Kraft | X2: Alternativ | AA2: Divers | AE2: Bemerkungen | AG2: Load/Tag | AI2: Lauf Km | AJ2: J | AK2: Swim Km | AL2: Mental Training | AM2: Regeneration
D3: kg | E3: [-3….+3] | F3: 1-6 | G3: 0, 1, 2, 3 | L3: Dauer | M3: RPE | N3: Load | O3: Dauer | P3: RPE | Q3: Load | R3: Dauer | S3: RPE | T3: Load | U3: Dauer | V3: RPE | W3: Load | X3: Dauer | Y3: RPE | Z3: Load | AA3: Dauer | AB3: RPE | AC3: Load
B4: Mo | N4: =L4*M4 -> 0 | Q4: =O4*P4 -> 0 | T4: =R4*S4 -> 0 | W4: =U4*V4 -> 0 | Z4: =X4*Y4 -> 0 | AC4: =AA4*AB4 -> 0 | AG4: =SUM(N4:N6,Q4:Q6,T4:T6,W4:W6,Z4:Z6,AC4:AC6) -> 0
N5: 0 | Q5: 0 | T5: 0 | W5: 0 | Z5: 0 | AC5: 0
N6: 0 | Q6: 0 | T6: 0 | W6: 0 | Z6: 0 | AC6: 0
B7: Di | N7: 0 | Q7: 0 | T7: 0 | W7: 0 | Z7: 0 | AC7: 0 | AG7: =SUM(N7:N9,Q7:Q9,T7:T9,W7:W9,Z7:Z9,AC7:AC9) -> 0
N8: 0 | Q8: 0 | T8: 0 | W8: 0 | Z8: 0 | AC8: 0
N9: 0 | Q9: 0 | T9: 0 | W9: 0 | Z9: 0 | AC9: 0
B10: Mi | N10: 0 | Q10: 0 | T10: 0 | W10: 0 | Z10: 0 | AC10: 0 | AG10: =SUM(N10:N12,Q10:Q12,T10:T12,W10:W12,Z10:Z12,AC10:AC12) -> 0
N11: 0 | Q11: 0 | T11: 0 | W11: 0 | Z11: 0 | AC11: 0
N12: 0 | Q12: 0 | T12: 0 | W12: 0 | Z12: 0 | AC12: 0
B13: Do | N13: 0 | Q13: 0 | T13: 0 | W13: 0 | Z13: 0 | AC13: 0 | AG13: =SUM(N13:N15,Q13:Q15,T13:T15,W13:W15,Z13:Z15,AC13:AC15) -> 0
N14: 0 | Q14: 0 | T14: 0 | W14: 0 | Z14: 0 | AC14: 0
N15: 0 | Q15: 0 | T15: 0 | W15: 0 | Z15: 0 | AC15: 0
B16: Fr | N16: 0 | Q16: 0 | T16: 0 | W16: 0 | Z16: 0 | AC16: 0 | AG16: =SUM(N16:N18,Q16:Q18,T16:T18,W16:W18,Z16:Z18,AC16:AC18) -> 0
N17: 0 | Q17: 0 | T17: 0 | W17: 0 | Z17: 0 | AC17: 0
N18: 0 | Q18: 0 | T18: 0 | W18: 0 | Z18: 0 | AC18: 0
B19: Sa | N19: 0 | Q19: 0 | T19: 0 | W19: 0 | Z19: 0 | AC19: 0 | AG19: =SUM(N19:N21,Q19:Q21,T19:T21,W19:W21,Z19:Z21,AC19:AC21) -> 0
N20: 0 | Q20: 0 | T20: 0 | W20: 0 | Z20: 0 | AC20: 0
N21: 0 | Q21: 0 | T21: 0 | W21: 0 | Z21: 0 | AC21: 0
B22: So | N22: 0 | Q22: 0 | T22: 0 | W22: 0 | Z22: 0 | AC22: 0 | AG22: =SUM(N22:N24,Q22:Q24,T22:T24,W22:W24,Z22:Z24,AC22:AC24) -> 0
N23: 0 | Q23: 0 | T23: 0 | W23: 0 | Z23: 0 | AC23: 0
N24: 0 | Q24: 0 | T24: 0 | W24: 0 | Z24: 0 | AC24: 0
J25: Total | L25: =SUM(L4:L24) -> 0 | N25: =SUM(N4:N24) -> 0 | O25: =SUM(O4:O24) -> 0 | Q25: =SUM(Q4:Q24) -> 0 | R25: =SUM(R4:R24) -> 0 | T25: =SUM(T4:T24) -> 0 | U25: =SUM(U4:U24) -> 0 | W25: =SUM(W4:W24) -> 0 | X25: =SUM(X4:X24) -> 0 | Z25: =SUM(Z4:Z24) -> 0 | AA25: =SUM(AA4:AA24) -> 0 | AC25: =SUM(AC4:AC24) -> 0 | AE25: TOTAL LOAD | AG25: =SUM(AG4:AG24) -> 0
B26: avg | D26: =IF(COUNTA(D4:D24)=0,"",AVERAGE(D4:D24)) ->  | E26: =IF(COUNTA(E4:E24)=0,"",AVERAGE(E4:E24)) ->  | F26: =IF(COUNTA(F4:F24)=0,"",AVERAGE(F4:F24)) ->  | G26: =IF(COUNTA(G4:G24)=0,"",AVERAGE(G4:G24)) ->  | J26: Zone | L26: 1 | M26: 2 | N26: 3 | O26: 1 | P26: 2 | Q26: 3 | R26: 1 | S26: 2 | T26: 3 | U26: 1 | V26: 2 | W26: 3 | X26: 1 | Y26: 2 | Z26: 3 | AA26: 1 | AB26: 2 | AC26: 3 | AE26: Mittelwert | AG26: =AVERAGE(AG4:AG24) -> 0
J27: Einheiten pro Zone (RPE) | L27: =IF(Beanspruchungverteilung!$AT$21="x",COUNTIF(M4:M24,"<3.5"),COUNTIF(M4:M24,"<4.5")) -> 0 | M27: =COUNT(M4:M24)-(L27+N27) -> 0 | N27: =IF(Beanspruchungverteilung!$AT$21="x",COUNTIF(M4:M24,">5.5"),COUNTIF(M4:M24,">6.5")) -> 0 | O27: =IF(Beanspruchungverteilung!$AT$21="x",COUNTIF(P4:P24,"<3.5"),COUNTIF(P4:P24,"<4.5")) -> 0 | P27: =COUNT(P4:P24)-(O27+Q27) -> 0 | Q27: =IF(Beanspruchungverteilung!$AT$21="x",COUNTIF(P4:P24,">5.5"),COUNTIF(P4:P24,">6.5")) -> 0 | R27: =IF(Beanspruchungverteilung!$AT$21="x",COUNTIF(S4:S24,"<3.5"),COUNTIF(S4:S24,"<4.5")) -> 0 | S27: =COUNT(S4:S24)-(R27+T27) -> 0 | T27: =IF(Beanspruchungverteilung!$AT$21="x",COUNTIF(S4:S24,">5.5"),COUNTIF(S4:S24,">6.5")) -> 0 | U27: =IF(Beanspruchungverteilung!$AT$21="x",COUNTIF(V4:V24,"<3.5"),COUNTIF(V4:V24,"<4.5")) -> 0 | V27: =COUNT(V4:V24)-(U27+W27) -> 0 | W27: =IF(Beanspruchungverteilung!$AT$21="x",COUNTIF(V4:V24,">5.5"),COUNTIF(V4:V24,">6.5")) -> 0 | X27: =IF(Beanspruchungverteilung!$AT$21="x",COUNTIF(Y4:Y24,"<3.5"),COUNTIF(Y4:Y24,"<4.5")) -> 0 | Y27: =COUNT(Y4:Y24)-(X27+Z27) -> 0 | Z27: =IF(Beanspruchungverteilung!$AT$21="x",COUNTIF(Y4:Y24,">5.5"),COUNTIF(Y4:Y24,">6.5")) -> 0 | AA27: =IF(Beanspruchungverteilung!$AT$21="x",COUNTIF(AB4:AB24,"<3.5"),COUNTIF(AB4:AB24,"<4.5")) -> 0 | AB27: =COUNT(AB4:AB24)-(AA27+AC27) -> 0 | AC27: =IF(Beanspruchungverteilung!$AT$21="x",COUNTIF(AB4:AB24,">5.5"),COUNTIF(AB4:AB24,">6.5")) -> 0 | AE27: Standardabweichung | AG27: =STDEVP(AG4:AG24) -> 0
B28: Foster's Skala | G28: RPE | J28: Zeit pro Zone (RPE) | L28: =IF(Beanspruchungverteilung!$AT$21="x",SUMIF(M4:M24,"<3.5",L4:L24),SUMIF(M4:M24,"<4.5",L4:L24)) -> 0 | M28: =IF(M27=0,0,SUM((L25)-(L28+N28))) -> 0 | N28: =IF(Beanspruchungverteilung!$AT$21="x",SUMIF(M4:M24,">5.5",L4:L24),SUMIF(M4:M24,">6.5",L4:L24)) -> 0 | O28: =IF(Beanspruchungverteilung!$AT$21="x",SUMIF(P4:P24,"<3.5",O4:O24),SUMIF(P4:P24,"<4.5",O4:O24)) -> 0 | P28: =IF(P27=0,0,SUM((O25)-(O28+Q28))) -> 0 | Q28: =IF(Beanspruchungverteilung!$AT$21="x",SUMIF(P4:P24,">5.5",O4:O24),SUMIF(P4:P24,">6.5",O4:O24)) -> 0 | R28: =IF(Beanspruchungverteilung!$AT$21="x",SUMIF(S4:S24,"<3.5",R4:R24),SUMIF(S4:S24,"<4.5",R4:R24)) -> 0 | S28: =IF(S27=0,0,SUM((R25)-(R28+T28))) -> 0 | T28: =IF(Beanspruchungverteilung!$AT$21="x",SUMIF(S4:S24,">5.5",R4:R24),SUMIF(S4:S24,">6.5",R4:R24)) -> 0 | U28: =IF(Beanspruchungverteilung!$AT$21="x",SUMIF(V4:V24,"<3.5",U4:U24),SUMIF(V4:V24,"<4.5",U4:U24)) -> 0 | V28: =IF(V27=0,0,SUM((U25)-(U28+W28))) -> 0 | W28: =IF(Beanspruchungverteilung!$AT$21="x",SUMIF(V4:V24,">5.5",U4:U24),SUMIF(V4:V24,">6.5",U4:U24)) -> 0 | X28: =IF(Beanspruchungverteilung!$AT$21="x",SUMIF(Y4:Y24,"<3.5",X4:X24),SUMIF(Y4:Y24,"<4.5",X4:X24)) -> 0 | Y28: =IF(Y27=0,0,SUM((X25)-(X28+Z28))) -> 0 | Z28: =IF(Beanspruchungverteilung!$AT$21="x",SUMIF(Y4:Y24,">5.5",X4:X24),SUMIF(Y4:Y24,">6.5",X4:X24)) -> 0 | AA28: =IF(Beanspruchungverteilung!$AT$21="x",SUMIF(AB4:AB24,"<3.5",AA4:AA24),SUMIF(AB4:AB24,"<4.5",AA4:AA24)) -> 0 | AB28: =IF(AB27=0,0,SUM((AA25)-(AA28+AC28))) -> 0 | AC28: =IF(Beanspruchungverteilung!$AT$21="x",SUMIF(AB4:AB24,">5.5",AA4:AA24),SUMIF(AB4:AB24,">6.5",AA4:AA24)) -> 0
B29: Wie in Ruhe | G29: 0
B30: Sehr locker | G30: 1
B31: Locker | G31: 2 | AE31: Trainingstage | AG31: =IF(SUM(AG4:AG24)=0,"",COUNTIF(AG4:AG24,">0")) -> 
G32: 3
B33: Etwas hart | G33: 4 | AE33: Trainingseinheiten | AG33: =IF(AG31="","",SUM(L27:AC27)) -> 
B34: Hart | G34: 5
G35: 6 | AE35: Trainingsstunden | AG35: =IF(AG31="","",SUM(L25,O25,U25,X25,R25,AA25)/60) -> 
B36: Sehr hart | G36: 7
G37: 8 | AE37: Training Load | AG37: =IF(AG31="","",SUM(AG25)) -> 
B38: Extrem hart | G38: 9
B39: Wie mein härtestes Training | G39: 10 | AE39: Monotonie | AG39: =IF(AG31="","",(AVERAGE(AG4:AG24))/AG27) -> 
AE41: Trainingsanstrengung | AG41: =IF(AG31="","",AG37*AG39) -> 
AE43: =AI2 -> Lauf Km | AG43: =IF(AG31="","",SUM(AI4:AI24)) -> 
AE45: =AJ2 -> J | AG45: =IF(AG31="","",SUM(AJ4:AJ24)) -> 
AE47: =AK2 -> Swim Km | AG47: =IF(AG31="","",SUM(AK4:AK24)) -> 
AE49: =AL2 -> Mental Training | AG49: =IF(AG31="","",COUNTA(AL4:AL24)) -> 
AE51: =AM2 -> Regeneration | AG51: =IF(AG31="","",COUNTA(AM4:AM24)) -> 
U155: =V155-1 -> 40 | V155: =IF(W155=1,52,W155-1) -> 41 | W155: =IF(X155=1,52,X155-1) -> 42 | X155: =IF(Y155=1,52,Y155-1) -> 43 | Y155: =IF(Z155=1,52,Z155-1) -> 44 | Z155: =D1 -> 45 | AA155: =IF(Z155=52,1,Z155+1) -> 46 | AB155: =IF(AA155=52,1,AA155+1) -> 47 | AC155: =AB155+1 -> 48 | AD155: =AC155+1 -> 49 | AE155: =AD155+1 -> 50 | AF155: =AE155+1 -> 51 | AG155: =AF155+1 -> 52

Sheet 46
C1: Woche | D1: =INT(MOD(INT((F1-2)/7)+0.6,52+5/28))+1 -> 46 | E1: =D1+1000 -> 1046 | F1: ='45'!F1+7 -> 2014-11-10 | G1: - | H1: =F1+6 -> 2014-11-16
B2: Tag | D2: ='45'!D2 -> Gewicht | E2: ='45'!E2 -> Erholt ? | F2: ='45'!F2 -> Schlaf | G2: ='45'!G2 -> Stress | I2: Trainigsbeschreibung | L2: ='45'!L2:N2 -> Dauerlauf | O2: ='45'!O2:Q2 -> Bahn/Intervall | R2: ='45'!R2:T2 -> Sprint/Koord/Tech | U2: ='45'!U2:W2 -> Kraft | X2: ='45'!X2:Z2 -> Alternativ | AA2: ='45'!AA2:AC2 -> Divers | AE2: Bemerkungen | AG2: Load/Tag | AI2: ='45'!AI2:AI3 -> Lauf Km | AJ2: ='45'!AJ2:AJ3 -> J | AK2: ='45'!AK2:AK3 -> Swim Km | AL2: ='45'!AL2:AL3 -> Mental Training | AM2: ='45'!AM2:AM3 -> Regeneration
D3: ='45'!D3 -> kg | E3: ='45'!E3 -> [-3….+3] | F3: ='45'!F3 -> 1-6 | G3: ='45'!G3 -> 0, 1, 2, 3 | L3: Dauer | M3: RPE | N3: Load | O3: Dauer | P3: RPE | Q3: Load | R3: Dauer | S3: RPE | T3: Load | U3: Dauer | V3: RPE | W3: Load | X3: Dauer | Y3: RPE | Z3: Load | AA3: Dauer | AB3: RPE | AC3: Load
B4: Mo | N4: =L4*M4 -> 0 | Q4: =O4*P4 -> 0 | T4: =R4*S4 -> 0 | W4: =U4*V4 -> 0 | Z4: =X4*Y4 -> 0 | AC4: =AA4*AB4 -> 0 | AG4: =SUM(N4:N6,Q4:Q6,T4:T6,W4:W6,Z4:Z6,AC4:AC6) -> 0
N5: 0 | Q5: 0 | T5: 0 | W5: 0 | Z5: 0 | AC5: 0
N6: 0 | Q6: 0 | T6: 0 | W6: 0 | Z6: 0 | AC6: 0
B7: Di | N7: 0 | Q7: 0 | T7: 0 | W7: 0 | Z7: 0 | AC7: 0 | AG7: =SUM(N7:N9,Q7:Q9,T7:T9,W7:W9,Z7:Z9,AC7:AC9) -> 0
N8: 0 | Q8: 0 | T8: 0 | W8: 0 | Z8: 0 | AC8: 0
N9: 0 | Q9: 0 | T9: 0 | W9: 0 | Z9: 0 | AC9: 0
B10: Mi | N10: 0 | Q10: 0 | T10: 0 | W10: 0 | Z10: 0 | AC10: 0 | AG10: =SUM(N10:N12,Q10:Q12,T10:T12,W10:W12,Z10:Z12,AC10:AC12) -> 0
N11: 0 | Q11: 0 | T11: 0 | W11: 0 | Z11: 0 | AC11: 0
N12: 0 | Q12: 0 | T12: 0 | W12: 0 | Z12: 0 | AC12: 0
B13: Do | N13: 0 | Q13: 0 | T13: 0 | W13: 0 | Z13: 0 | AC13: 0 | AG13: =SUM(N13:N15,Q13:Q15,T13:T15,W13:W15,Z13:Z15,AC13:AC15) -> 0
N14: 0 | Q14: 0 | T14: 0 | W14: 0 | Z14: 0 | AC14: 0
N15: 0 | Q15: 0 | T15: 0 | W15: 0 | Z15: 0 | AC15: 0
B16: Fr | N16: 0 | Q16: 0 | T16: 0 | W16: 0 | Z16: 0 | AC16: 0 | AG16: =SUM(N16:N18,Q16:Q18,T16:T18,W16:W18,Z16:Z18,AC16:AC18) -> 0
N17: 0 | Q17: 0 | T17: 0 | W17: 0 | Z17: 0 | AC17: 0
N18: 0 | Q18: 0 | T18: 0 | W18: 0 | Z18: 0 | AC18: 0
B19: Sa | N19: 0 | Q19: 0 | T19: 0 | W19: 0 | Z19: 0 | AC19: 0 | AG19: =SUM(N19:N21,Q19:Q21,T19:T21,W19:W21,Z19:Z21,AC19:AC21) -> 0
N20: 0 | Q20: 0 | T20: 0 | W20: 0 | Z20: 0 | AC20: 0
N21: 0 | Q21: 0 | T21: 0 | W21: 0 | Z21: 0 | AC21: 0
B22: So | N22: 0 | Q22: 0 | T22: 0 | W22: 0 | Z22: 0 | AC22: 0 | AG22: =SUM(N22:N24,Q22:Q24,T22:T24,W22:W24,Z22:Z24,AC22:AC24) -> 0
N23: 0 | Q23: 0 | T23: 0 | W23: 0 | Z23: 0 | AC23: 0
N24: 0 | Q24: 0 | T24: 0 | W24: 0 | Z24: 0 | AC24: 0
J25: Total | L25: =SUM(L4:L24) -> 0 | N25: =SUM(N4:N24) -> 0 | O25: =SUM(O4:O24) -> 0 | Q25: =SUM(Q4:Q24) -> 0 | R25: =SUM(R4:R24) -> 0 | T25: =SUM(T4:T24) -> 0 | U25: =SUM(U4:U24) -> 0 | W25: =SUM(W4:W24) -> 0 | X25: =SUM(X4:X24) -> 0 | Z25: =SUM(Z4:Z24) -> 0 | AA25: =SUM(AA4:AA24) -> 0 | AC25: =SUM(AC4:AC24) -> 0 | AE25: TOTAL LOAD | AG25: =SUM(AG4:AG24) -> 0
B26: avg | D26: =IF(COUNTA(D4:D24)=0,"",AVERAGE(D4:D24)) ->  | E26: =IF(COUNTA(E4:E24)=0,"",AVERAGE(E4:E24)) ->  | F26: =IF(COUNTA(F4:F24)=0,"",AVERAGE(F4:F24)) ->  | G26: =IF(COUNTA(G4:G24)=0,"",AVERAGE(G4:G24)) ->  | J26: Zone | L26: 1 | M26: 2 | N26: 3 | O26: 1 | P26: 2 | Q26: 3 | R26: 1 | S26: 2 | T26: 3 | U26: 1 | V26: 2 | W26: 3 | X26: 1 | Y26: 2 | Z26: 3 | AA26: 1 | AB26: 2 | AC26: 3 | AE26: Mittelwert | AG26: =AVERAGE(AG4:AG24) -> 0
J27: Einheiten pro Zone (RPE) | L27: =IF(Beanspruchungverteilung!$AT$21="x",COUNTIF(M4:M24,"<3.5"),COUNTIF(M4:M24,"<4.5")) -> 0 | M27: =COUNT(M4:M24)-(L27+N27) -> 0 | N27: =IF(Beanspruchungverteilung!$AT$21="x",COUNTIF(M4:M24,">5.5"),COUNTIF(M4:M24,">6.5")) -> 0 | O27: =IF(Beanspruchungverteilung!$AT$21="x",COUNTIF(P4:P24,"<3.5"),COUNTIF(P4:P24,"<4.5")) -> 0 | P27: =COUNT(P4:P24)-(O27+Q27) -> 0 | Q27: =IF(Beanspruchungverteilung!$AT$21="x",COUNTIF(P4:P24,">5.5"),COUNTIF(P4:P24,">6.5")) -> 0 | R27: =IF(Beanspruchungverteilung!$AT$21="x",COUNTIF(S4:S24,"<3.5"),COUNTIF(S4:S24,"<4.5")) -> 0 | S27: =COUNT(S4:S24)-(R27+T27) -> 0 | T27: =IF(Beanspruchungverteilung!$AT$21="x",COUNTIF(S4:S24,">5.5"),COUNTIF(S4:S24,">6.5")) -> 0 | U27: =IF(Beanspruchungverteilung!$AT$21="x",COUNTIF(V4:V24,"<3.5"),COUNTIF(V4:V24,"<4.5")) -> 0 | V27: =COUNT(V4:V24)-(U27+W27) -> 0 | W27: =IF(Beanspruchungverteilung!$AT$21="x",COUNTIF(V4:V24,">5.5"),COUNTIF(V4:V24,">6.5")) -> 0 | X27: =IF(Beanspruchungverteilung!$AT$21="x",COUNTIF(Y4:Y24,"<3.5"),COUNTIF(Y4:Y24,"<4.5")) -> 0 | Y27: =COUNT(Y4:Y24)-(X27+Z27) -> 0 | Z27: =IF(Beanspruchungverteilung!$AT$21="x",COUNTIF(Y4:Y24,">5.5"),COUNTIF(Y4:Y24,">6.5")) -> 0 | AA27: =IF(Beanspruchungverteilung!$AT$21="x",COUNTIF(AB4:AB24,"<3.5"),COUNTIF(AB4:AB24,"<4.5")) -> 0 | AB27: =COUNT(AB4:AB24)-(AA27+AC27) -> 0 | AC27: =IF(Beanspruchungverteilung!$AT$21="x",COUNTIF(AB4:AB24,">5.5"),COUNTIF(AB4:AB24,">6.5")) -> 0 | AE27: Standardabweichung | AG27: =STDEVP(AG4:AG24) -> 0
B28: Foster's Skala | G28: RPE | J28: Zeit pro Zone (RPE) | L28: =IF(Beanspruchungverteilung!$AT$21="x",SUMIF(M4:M24,"<3.5",L4:L24),SUMIF(M4:M24,"<4.5",L4:L24)) -> 0 | M28: =IF(M27=0,0,SUM((L25)-(L28+N28))) -> 0 | N28: =IF(Beanspruchungverteilung!$AT$21="x",SUMIF(M4:M24,">5.5",L4:L24),SUMIF(M4:M24,">6.5",L4:L24)) -> 0 | O28: =IF(Beanspruchungverteilung!$AT$21="x",SUMIF(P4:P24,"<3.5",O4:O24),SUMIF(P4:P24,"<4.5",O4:O24)) -> 0 | P28: =IF(P27=0,0,SUM((O25)-(O28+Q28))) -> 0 | Q28: =IF(Beanspruchungverteilung!$AT$21="x",SUMIF(P4:P24,">5.5",O4:O24),SUMIF(P4:P24,">6.5",O4:O24)) -> 0 | R28: =IF(Beanspruchungverteilung!$AT$21="x",SUMIF(S4:S24,"<3.5",R4:R24),SUMIF(S4:S24,"<4.5",R4:R24)) -> 0 | S28: =IF(S27=0,0,SUM((R25)-(R28+T28))) -> 0 | T28: =IF(Beanspruchungverteilung!$AT$21="x",SUMIF(S4:S24,">5.5",R4:R24),SUMIF(S4:S24,">6.5",R4:R24)) -> 0 | U28: =IF(Beanspruchungverteilung!$AT$21="x",SUMIF(V4:V24,"<3.5",U4:U24),SUMIF(V4:V24,"<4.5",U4:U24)) -> 0 | V28: =IF(V27=0,0,SUM((U25)-(U28+W28))) -> 0 | W28: =IF(Beanspruchungverteilung!$AT$21="x",SUMIF(V4:V24,">5.5",U4:U24),SUMIF(V4:V24,">6.5",U4:U24)) -> 0 | X28: =IF(Beanspruchungverteilung!$AT$21="x",SUMIF(Y4:Y24,"<3.5",X4:X24),SUMIF(Y4:Y24,"<4.5",X4:X24)) -> 0 | Y28: =IF(Y27=0,0,SUM((X25)-(X28+Z28))) -> 0 | Z28: =IF(Beanspruchungverteilung!$AT$21="x",SUMIF(Y4:Y24,">5.5",X4:X24),SUMIF(Y4:Y24,">6.5",X4:X24)) -> 0 | AA28: =IF(Beanspruchungverteilung!$AT$21="x",SUMIF(AB4:AB24,"<3.5",AA4:AA24),SUMIF(AB4:AB24,"<4.5",AA4:AA24)) -> 0 | AB28: =IF(AB27=0,0,SUM((AA25)-(AA28+AC28))) -> 0 | AC28: =IF(Beanspruchungverteilung!$AT$21="x",SUMIF(AB4:AB24,">5.5",AA4:AA24),SUMIF(AB4:AB24,">6.5",AA4:AA24)) -> 0
B29: Wie in Ruhe | G29: 0
B30: Sehr locker | G30: 1
B31: Locker | G31: 2 | AE31: Trainingstage | AG31: =IF(SUM(AG4:AG24)=0,"",COUNTIF(AG4:AG24,">0")) -> 
G32: 3
B33: Etwas hart | G33: 4 | AE33: Trainingseinheiten | AG33: =IF(AG31="","",SUM(L27:AC27)) -> 
B34: Hart | G34: 5
G35: 6 | AE35: Trainingsstunden | AG35: =IF(AG31="","",SUM(L25,O25,U25,X25,R25,AA25)/60) -> 
B36: Sehr hart | G36: 7
G37: 8 | AE37: Training Load | AG37: =IF(AG31="","",SUM(AG25)) -> 
B38: Extrem hart | G38: 9
B39: Wie mein härtestes Training | G39: 10 | AE39: Monotonie | AG39: =IF(AG31="","",(AVERAGE(AG4:AG24))/AG27) -> 
AE41: Trainingsanstrengung | AG41: =IF(AG31="","",AG37*AG39) -> 
AE43: =AI2 -> Lauf Km | AG43: =IF(AG31="","",SUM(AI4:AI24)) -> 
AE45: =AJ2 -> J | AG45: =IF(AG31="","",SUM(AJ4:AJ24)) -> 
AE47: =AK2 -> Swim Km | AG47: =IF(AG31="","",SUM(AK4:AK24)) -> 
AE49: =AL2 -> Mental Training | AG49: =IF(AG31="","",COUNTA(AL4:AL24)) -> 
AE51: =AM2 -> Regeneration | AG51: =IF(AG31="","",COUNTA(AM4:AM24)) -> 
U155: =V155-1 -> 41 | V155: =IF(W155=1,52,W155-1) -> 42 | W155: =IF(X155=1,52,X155-1) -> 43 | X155: =IF(Y155=1,52,Y155-1) -> 44 | Y155: =IF(Z155=1,52,Z155-1) -> 45 | Z155: =D1 -> 46 | AA155: =IF(Z155=52,1,Z155+1) -> 47 | AB155: =IF(AA155=52,1,AA155+1) -> 48 | AC155: =AB155+1 -> 49 | AD155: =AC155+1 -> 50 | AE155: =AD155+1 -> 51 | AF155: =AE155+1 -> 52 | AG155: =AF155+1 -> 53

Sheet 47
C1: Woche | D1: =INT(MOD(INT((F1-2)/7)+0.6,52+5/28))+1 -> 47 | E1: =D1+1000 -> 1047 | F1: ='46'!F1+7 -> 2014-11-17 | G1: - | H1: =F1+6 -> 2014-11-23
B2: Tag | D2: ='45'!D2 -> Gewicht | E2: ='45'!E2 -> Erholt ? | F2: ='45'!F2 -> Schlaf | G2: ='45'!G2 -> Stress | I2: Trainigsbeschreibung | L2: ='45'!L2:N2 -> Dauerlauf | O2: ='45'!O2:Q2 -> Bahn/Intervall | R2: ='45'!R2:T2 -> Sprint/Koord/Tech | U2: ='45'!U2:W2 -> Kraft | X2: ='45'!X2:Z2 -> Alternativ | AA2: ='45'!AA2:AC2 -> Divers | AE2: Bemerkungen | AG2: Load/Tag | AI2: ='45'!AI2:AI3 -> Lauf Km | AJ2: ='45'!AJ2:AJ3 -> J | AK2: ='45'!AK2:AK3 -> Swim Km | AL2: ='45'!AL2:AL3 -> Mental Training | AM2: ='45'!AM2:AM3 -> Regeneration
D3: ='45'!D3 -> kg | E3: ='45'!E3 -> [-3….+3] | F3: ='45'!F3 -> 1-6 | G3: ='45'!G3 -> 0, 1, 2, 3 | L3: Dauer | M3: RPE | N3: Load | O3: Dauer | P3: RPE | Q3: Load | R3: Dauer | S3: RPE | T3: Load | U3: Dauer | V3: RPE | W3: Load | X3: Dauer | Y3: RPE | Z3: Load | AA3: Dauer | AB3: RPE | AC3: Load
B4: Mo | N4: =L4*M4 -> 0 | Q4: =O4*P4 -> 0 | T4: =R4*S4 -> 0 | W4: =U4*V4 -> 0 | Z4: =X4*Y4 -> 0 | AC4: =AA4*AB4 -> 0 | AG4: =SUM(N4:N6,Q4:Q6,T4:T6,W4:W6,Z4:Z6,AC4:AC6) -> 0
N5: 0 | Q5: 0 | T5: 0 | W5: 0 | Z5: 0 | AC5: 0
N6: 0 | Q6: 0 | T6: 0 | W6: 0 | Z6: 0 | AC6: 0
B7: Di | N7: 0 | Q7: 0 | T7: 0 | W7: 0 | Z7: 0 | AC7: 0 | AG7: =SUM(N7:N9,Q7:Q9,T7:T9,W7:W9,Z7:Z9,AC7:AC9) -> 0
N8: 0 | Q8: 0 | T8: 0 | W8: 0 | Z8: 0 | AC8: 0
N9: 0 | Q9: 0 | T9: 0 | W9: 0 | Z9: 0 | AC9: 0
B10: Mi | N10: 0 | Q10: 0 | T10: 0 | W10: 0 | Z10: 0 | AC10: 0 | AG10: =SUM(N10:N12,Q10:Q12,T10:T12,W10:W12,Z10:Z12,AC10:AC12) -> 0
N11: 0 | Q11: 0 | T11: 0 | W11: 0 | Z11: 0 | AC11: 0
N12: 0 | Q12: 0 | T12: 0 | W12: 0 | Z12: 0 | AC12: 0
B13: Do | N13: 0 | Q13: 0 | T13: 0 | W13: 0 | Z13: 0 | AC13: 0 | AG13: =SUM(N13:N15,Q13:Q15,T13:T15,W13:W15,Z13:Z15,AC13:AC15) -> 0
N14: 0 | Q14: 0 | T14: 0 | W14: 0 | Z14: 0 | AC14: 0
N15: 0 | Q15: 0 | T15: 0 | W15: 0 | Z15: 0 | AC15: 0
B16: Fr | N16: 0 | Q16: 0 | T16: 0 | W16: 0 | Z16: 0 | AC16: 0 | AG16: =SUM(N16:N18,Q16:Q18,T16:T18,W16:W18,Z16:Z18,AC16:AC18) -> 0
N17: 0 | Q17: 0 | T17: 0 | W17: 0 | Z17: 0 | AC17: 0
N18: 0 | Q18: 0 | T18: 0 | W18: 0 | Z18: 0 | AC18: 0
B19: Sa | N19: 0 | Q19: 0 | T19: 0 | W19: 0 | Z19: 0 | AC19: 0 | AG19: =SUM(N19:N21,Q19:Q21,T19:T21,W19:W21,Z19:Z21,AC19:AC21) -> 0
N20: 0 | Q20: 0 | T20: 0 | W20: 0 | Z20: 0 | AC20: 0
N21: 0 | Q21: 0 | T21: 0 | W21: 0 | Z21: 0 | AC21: 0
B22: So | N22: 0 | Q22: 0 | T22: 0 | W22: 0 | Z22: 0 | AC22: 0 | AG22: =SUM(N22:N24,Q22:Q24,T22:T24,W22:W24,Z22:Z24,AC22:AC24) -> 0
N23: 0 | Q23: 0 | T23: 0 | W23: 0 | Z23: 0 | AC23: 0
N24: 0 | Q24: 0 | T24: 0 | W24: 0 | Z24: 0 | AC24: 0
J25: Total | L25: =SUM(L4:L24) -> 0 | N25: =SUM(N4:N24) -> 0 | O25: =SUM(O4:O24) -> 0 | Q25: =SUM(Q4:Q24) -> 0 | R25: =SUM(R4:R24) -> 0 | T25: =SUM(T4:T24) -> 0 | U25: =SUM(U4:U24) -> 0 | W25: =SUM(W4:W24) -> 0 | X25: =SUM(X4:X24) -> 0 | Z25: =SUM(Z4:Z24) -> 0 | AA25: =SUM(AA4:AA24) -> 0 | AC25: =SUM(AC4:AC24) -> 0 | AE25: TOTAL LOAD | AG25: =SUM(AG4:AG24) -> 0
B26: avg | D26: =IF(COUNTA(D4:D24)=0,"",AVERAGE(D4:D24)) ->  | E26: =IF(COUNTA(E4:E24)=0,"",AVERAGE(E4:E24)) ->  | F26: =IF(COUNTA(F4:F24)=0,"",AVERAGE(F4:F24)) ->  | G26: =IF(COUNTA(G4:G24)=0,"",AVERAGE(G4:G24)) ->  | J26: Zone | L26: 1 | M26: 2 | N26: 3 | O26: 1 | P26: 2 | Q26: 3 | R26: 1 | S26: 2 | T26: 3 | U26: 1 | V26: 2 | W26: 3 | X26: 1 | Y26: 2 | Z26: 3 | AA26: 1 | AB26: 2 | AC26: 3 | AE26: Mittelwert | AG26: =AVERAGE(AG4:AG24) -> 0
J27: Einheiten pro Zone (RPE) | L27: =IF(Beanspruchungverteilung!$AT$21="x",COUNTIF(M4:M24,"<3.5"),COUNTIF(M4:M24,"<4.5")) -> 0 | M27: =COUNT(M4:M24)-(L27+N27) -> 0 | N27: =IF(Beanspruchungverteilung!$AT$21="x",COUNTIF(M4:M24,">5.5"),COUNTIF(M4:M24,">6.5")) -> 0 | O27: =IF(Beanspruchungverteilung!$AT$21="x",COUNTIF(P4:P24,"<3.5"),COUNTIF(P4:P24,"<4.5")) -> 0 | P27: =COUNT(P4:P24)-(O27+Q27) -> 0 | Q27: =IF(Beanspruchungverteilung!$AT$21="x",COUNTIF(P4:P24,">5.5"),COUNTIF(P4:P24,">6.5")) -> 0 | R27: =IF(Beanspruchungverteilung!$AT$21="x",COUNTIF(S4:S24,"<3.5"),COUNTIF(S4:S24,"<4.5")) -> 0 | S27: =COUNT(S4:S24)-(R27+T27) -> 0 | T27: =IF(Beanspruchungverteilung!$AT$21="x",COUNTIF(S4:S24,">5.5"),COUNTIF(S4:S24,">6.5")) -> 0 | U27: =IF(Beanspruchungverteilung!$AT$21="x",COUNTIF(V4:V24,"<3.5"),COUNTIF(V4:V24,"<4.5")) -> 0 | V27: =COUNT(V4:V24)-(U27+W27) -> 0 | W27: =IF(Beanspruchungverteilung!$AT$21="x",COUNTIF(V4:V24,">5.5"),COUNTIF(V4:V24,">6.5")) -> 0 | X27: =IF(Beanspruchungverteilung!$AT$21="x",COUNTIF(Y4:Y24,"<3.5"),COUNTIF(Y4:Y24,"<4.5")) -> 0 | Y27: =COUNT(Y4:Y24)-(X27+Z27) -> 0 | Z27: =IF(Beanspruchungverteilung!$AT$21="x",COUNTIF(Y4:Y24,">5.5"),COUNTIF(Y4:Y24,">6.5")) -> 0 | AA27: =IF(Beanspruchungverteilung!$AT$21="x",COUNTIF(AB4:AB24,"<3.5"),COUNTIF(AB4:AB24,"<4.5")) -> 0 | AB27: =COUNT(AB4:AB24)-(AA27+AC27) -> 0 | AC27: =IF(Beanspruchungverteilung!$AT$21="x",COUNTIF(AB4:AB24,">5.5"),COUNTIF(AB4:AB24,">6.5")) -> 0 | AE27: Standardabweichung | AG27: =STDEVP(AG4:AG24) -> 0
B28: Foster's Skala | G28: RPE | J28: Zeit pro Zone (RPE) | L28: =IF(Beanspruchungverteilung!$AT$21="x",SUMIF(M4:M24,"<3.5",L4:L24),SUMIF(M4:M24,"<4.5",L4:L24)) -> 0 | M28: =IF(M27=0,0,SUM((L25)-(L28+N28))) -> 0 | N28: =IF(Beanspruchungverteilung!$AT$21="x",SUMIF(M4:M24,">5.5",L4:L24),SUMIF(M4:M24,">6.5",L4:L24)) -> 0 | O28: =IF(Beanspruchungverteilung!$AT$21="x",SUMIF(P4:P24,"<3.5",O4:O24),SUMIF(P4:P24,"<4.5",O4:O24)) -> 0 | P28: =IF(P27=0,0,SUM((O25)-(O28+Q28))) -> 0 | Q28: =IF(Beanspruchungverteilung!$AT$21="x",SUMIF(P4:P24,">5.5",O4:O24),SUMIF(P4:P24,">6.5",O4:O24)) -> 0 | R28: =IF(Beanspruchungverteilung!$AT$21="x",SUMIF(S4:S24,"<3.5",R4:R24),SUMIF(S4:S24,"<4.5",R4:R24)) -> 0 | S28: =IF(S27=0,0,SUM((R25)-(R28+T28))) -> 0 | T28: =IF(Beanspruchungverteilung!$AT$21="x",SUMIF(S4:S24,">5.5",R4:R24),SUMIF(S4:S24,">6.5",R4:R24)) -> 0 | U28: =IF(Beanspruchungverteilung!$AT$21="x",SUMIF(V4:V24,"<3.5",U4:U24),SUMIF(V4:V24,"<4.5",U4:U24)) -> 0 | V28: =IF(V27=0,0,SUM((U25)-(U28+W28))) -> 0 | W28: =IF(Beanspruchungverteilung!$AT$21="x",SUMIF(V4:V24,">5.5",U4:U24),SUMIF(V4:V24,">6.5",U4:U24)) -> 0 | X28: =IF(Beanspruchungverteilung!$AT$21="x",SUMIF(Y4:Y24,"<3.5",X4:X24),SUMIF(Y4:Y24,"<4.5",X4:X24)) -> 0 | Y28: =IF(Y27=0,0,SUM((X25)-(X28+Z28))) -> 0 | Z28: =IF(Beanspruchungverteilung!$AT$21="x",SUMIF(Y4:Y24,">5.5",X4:X24),SUMIF(Y4:Y24,">6.5",X4:X24)) -> 0 | AA28: =IF(Beanspruchungverteilung!$AT$21="x",SUMIF(AB4:AB24,"<3.5",AA4:AA24),SUMIF(AB4:AB24,"<4.5",AA4:AA24)) -> 0 | AB28: =IF(AB27=0,0,SUM((AA25)-(AA28+AC28))) -> 0 | AC28: =IF(Beanspruchungverteilung!$AT$21="x",SUMIF(AB4:AB24,">5.5",AA4:AA24),SUMIF(AB4:AB24,">6.5",AA4:AA24)) -> 0
B29: Wie in Ruhe | G29: 0
B30: Sehr locker | G30: 1
B31: Locker | G31: 2 | AE31: Trainingstage | AG31: =IF(SUM(AG4:AG24)=0,"",COUNTIF(AG4:AG24,">0")) -> 
G32: 3
B33: Etwas hart | G33: 4 | AE33: Trainingseinheiten | AG33: =IF(AG31="","",SUM(L27:AC27)) -> 
B34: Hart | G34: 5
G35: 6 | AE35: Trainingsstunden | AG35: =IF(AG31="","",SUM(L25,O25,U25,X25,R25,AA25)/60) -> 
B36: Sehr hart | G36: 7
G37: 8 | AE37: Training Load | AG37: =IF(AG31="","",SUM(AG25)) -> 
B38: Extrem hart | G38: 9
B39: Wie mein härtestes Training | G39: 10 | AE39: Monotonie | AG39: =IF(AG31="","",(AVERAGE(AG4:AG24))/AG27) -> 
AE41: Trainingsanstrengung | AG41: =IF(AG31="","",AG37*AG39) -> 
AE43: =AI2 -> Lauf Km | AG43: =IF(AG31="","",SUM(AI4:AI24)) -> 
AE45: =AJ2 -> J | AG45: =IF(AG31="","",SUM(AJ4:AJ24)) -> 
AE47: =AK2 -> Swim Km | AG47: =IF(AG31="","",SUM(AK4:AK24)) -> 
AE49: =AL2 -> Mental Training | AG49: =IF(AG31="","",COUNTA(AL4:AL24)) -> 
AE51: =AM2 -> Regeneration | AG51: =IF(AG31="","",COUNTA(AM4:AM24)) -> 
U155: =V155-1 -> 42 | V155: =W155-1 -> 43 | W155: =X155-1 -> 44 | X155: =Y155-1 -> 45 | Y155: =Z155-1 -> 46 | Z155: =D1 -> 47 | AA155: =Z155+1 -> 48 | AB155: =AA155+1 -> 49 | AC155: =AB155+1 -> 50 | AD155: =AC155+1 -> 51

Sheet 48
C1: Woche | D1: =INT(MOD(INT((F1-2)/7)+0.6,52+5/28))+1 -> 48 | E1: =D1+1000 -> 1048 | F1: ='47'!F1+7 -> 2014-11-24 | G1: - | H1: =F1+6 -> 2014-11-30
B2: Tag | D2: ='45'!D2 -> Gewicht | E2: ='45'!E2 -> Erholt ? | F2: ='45'!F2 -> Schlaf | G2: ='45'!G2 -> Stress | I2: Trainigsbeschreibung | L2: ='45'!L2:N2 -> Dauerlauf | O2: ='45'!O2:Q2 -> Bahn/Intervall | R2: ='45'!R2:T2 -> Sprint/Koord/Tech | U2: ='45'!U2:W2 -> Kraft | X2: ='45'!X2:Z2 -> Alternativ | AA2: ='45'!AA2:AC2 -> Divers | AE2: Bemerkungen | AG2: Load/Tag | AI2: ='45'!AI2:AI3 -> Lauf Km | AJ2: ='45'!AJ2:AJ3 -> J | AK2: ='45'!AK2:AK3 -> Swim Km | AL2: ='45'!AL2:AL3 -> Mental Training | AM2: ='45'!AM2:AM3 -> Regeneration
D3: ='45'!D3 -> kg | E3: ='45'!E3 -> [-3….+3] | F3: ='45'!F3 -> 1-6 | G3: ='45'!G3 -> 0, 1, 2, 3 | L3: Dauer | M3: RPE | N3: Load | O3: Dauer | P3: RPE | Q3: Load | R3: Dauer | S3: RPE | T3: Load | U3: Dauer | V3: RPE | W3: Load | X3: Dauer | Y3: RPE | Z3: Load | AA3: Dauer | AB3: RPE | AC3: Load
B4: Mo | N4: =L4*M4 -> 0 | Q4: =O4*P4 -> 0 | T4: =R4*S4 -> 0 | W4: =U4*V4 -> 0 | Z4: =X4*Y4 -> 0 | AC4: =AA4*AB4 -> 0 | AG4: =SUM(N4:N6,Q4:Q6,T4:T6,W4:W6,Z4:Z6,AC4:AC6) -> 0
N5: 0 | Q5: 0 | T5: 0 | W5: 0 | Z5: 0 | AC5: 0
N6: 0 | Q6: 0 | T6: 0 | W6: 0 | Z6: 0 | AC6: 0
B7: Di | N7: 0 | Q7: 0 | T7: 0 | W7: 0 | Z7: 0 | AC7: 0 | AG7: =SUM(N7:N9,Q7:Q9,T7:T9,W7:W9,Z7:Z9,AC7:AC9) -> 0
N8: 0 | Q8: 0 | T8: 0 | W8: 0 | Z8: 0 | AC8: 0
N9: 0 | Q9: 0 | T9: 0 | W9: 0 | Z9: 0 | AC9: 0
B10: Mi | N10: 0 | Q10: 0 | T10: 0 | W10: 0 | Z10: 0 | AC10: 0 | AG10: =SUM(N10:N12,Q10:Q12,T10:T12,W10:W12,Z10:Z12,AC10:AC12) -> 0
N11: 0 | Q11: 0 | T11: 0 | W11: 0 | Z11: 0 | AC11: 0
N12: 0 | Q12: 0 | T12: 0 | W12: 0 | Z12: 0 | AC12: 0
B13: Do | N13: 0 | Q13: 0 | T13: 0 | W13: 0 | Z13: 0 | AC13: 0 | AG13: =SUM(N13:N15,Q13:Q15,T13:T15,W13:W15,Z13:Z15,AC13:AC15) -> 0
N14: 0 | Q14: 0 | T14: 0 | W14: 0 | Z14: 0 | AC14: 0
N15: 0 | Q15: 0 | T15: 0 | W15: 0 | Z15: 0 | AC15: 0
B16: Fr | N16: 0 | Q16: 0 | T16: 0 | W16: 0 | Z16: 0 | AC16: 0 | AG16: =SUM(N16:N18,Q16:Q18,T16:T18,W16:W18,Z16:Z18,AC16:AC18) -> 0
N17: 0 | Q17: 0 | T17: 0 | W17: 0 | Z17: 0 | AC17: 0
N18: 0 | Q18: 0 | T18: 0 | W18: 0 | Z18: 0 | AC18: 0
B19: Sa | N19: 0 | Q19: 0 | T19: 0 | W19: 0 | Z19: 0 | AC19: 0 | AG19: =SUM(N19:N21,Q19:Q21,T19:T21,W19:W21,Z19:Z21,AC19:AC21) -> 0
N20: 0 | Q20: 0 | T20: 0 | W20: 0 | Z20: 0 | AC20: 0
N21: 0 | Q21: 0 | T21: 0 | W21: 0 | Z21: 0 | AC21: 0
B22: So | N22: 0 | Q22: 0 | T22: 0 | W22: 0 | Z22: 0 | AC22: 0 | AG22: =SUM(N22:N24,Q22:Q24,T22:T24,W22:W24,Z22:Z24,AC22:AC24) -> 0
N23: 0 | Q23: 0 | T23: 0 | W23: 0 | Z23: 0 | AC23: 0
N24: 0 | Q24: 0 | T24: 0 | W24: 0 | Z24: 0 | AC24: 0
J25: Total | L25: =SUM(L4:L24) -> 0 | N25: =SUM(N4:N24) -> 0 | O25: =SUM(O4:O24) -> 0 | Q25: =SUM(Q4:Q24) -> 0 | R25: =SUM(R4:R24) -> 0 | T25: =SUM(T4:T24) -> 0 | U25: =SUM(U4:U24) -> 0 | W25: =SUM(W4:W24) -> 0 | X25: =SUM(X4:X24) -> 0 | Z25: =SUM(Z4:Z24) -> 0 | AA25: =SUM(AA4:AA24) -> 0 | AC25: =SUM(AC4:AC24) -> 0 | AE25: TOTAL LOAD | AG25: =SUM(AG4:AG24) -> 0
B26: avg | D26: =IF(COUNTA(D4:D24)=0,"",AVERAGE(D4:D24)) ->  | E26: =IF(COUNTA(E4:E24)=0,"",AVERAGE(E4:E24)) ->  | F26: =IF(COUNTA(F4:F24)=0,"",AVERAGE(F4:F24)) ->  | G26: =IF(COUNTA(G4:G24)=0,"",AVERAGE(G4:G24)) ->  | J26: Zone | L26: 1 | M26: 2 | N26: 3 | O26: 1 | P26: 2 | Q26: 3 | R26: 1 | S26: 2 | T26: 3 | U26: 1 | V26: 2 | W26: 3 | X26: 1 | Y26: 2 | Z26: 3 | AA26: 1 | AB26: 2 | AC26: 3 | AE26: Mittelwert | AG26: =AVERAGE(AG4:AG24) -> 0
J27: Einheiten pro Zone (RPE) | L27: =IF(Beanspruchungverteilung!$AT$21="x",COUNTIF(M4:M24,"<3.5"),COUNTIF(M4:M24,"<4.5")) -> 0 | M27: =COUNT(M4:M24)-(L27+N27) -> 0 | N27: =IF(Beanspruchungverteilung!$AT$21="x",COUNTIF(M4:M24,">5.5"),COUNTIF(M4:M24,">6.5")) -> 0 | O27: =IF(Beanspruchungverteilung!$AT$21="x",COUNTIF(P4:P24,"<3.5"),COUNTIF(P4:P24,"<4.5")) -> 0 | P27: =COUNT(P4:P24)-(O27+Q27) -> 0 | Q27: =IF(Beanspruchungverteilung!$AT$21="x",COUNTIF(P4:P24,">5.5"),COUNTIF(P4:P24,">6.5")) -> 0 | R27: =IF(Beanspruchungverteilung!$AT$21="x",COUNTIF(S4:S24,"<3.5"),COUNTIF(S4:S24,"<4.5")) -> 0 | S27: =COUNT(S4:S24)-(R27+T27) -> 0 | T27: =IF(Beanspruchungverteilung!$AT$21="x",COUNTIF(S4:S24,">5.5"),COUNTIF(S4:S24,">6.5")) -> 0 | U27: =IF(Beanspruchungverteilung!$AT$21="x",COUNTIF(V4:V24,"<3.5"),COUNTIF(V4:V24,"<4.5")) -> 0 | V27: =COUNT(V4:V24)-(U27+W27) -> 0 | W27: =IF(Beanspruchungverteilung!$AT$21="x",COUNTIF(V4:V24,">5.5"),COUNTIF(V4:V24,">6.5")) -> 0 | X27: =IF(Beanspruchungverteilung!$AT$21="x",COUNTIF(Y4:Y24,"<3.5"),COUNTIF(Y4:Y24,"<4.5")) -> 0 | Y27: =COUNT(Y4:Y24)-(X27+Z27) -> 0 | Z27: =IF(Beanspruchungverteilung!$AT$21="x",COUNTIF(Y4:Y24,">5.5"),COUNTIF(Y4:Y24,">6.5")) -> 0 | AA27: =IF(Beanspruchungverteilung!$AT$21="x",COUNTIF(AB4:AB24,"<3.5"),COUNTIF(AB4:AB24,"<4.5")) -> 0 | AB27: =COUNT(AB4:AB24)-(AA27+AC27) -> 0 | AC27: =IF(Beanspruchungverteilung!$AT$21="x",COUNTIF(AB4:AB24,">5.5"),COUNTIF(AB4:AB24,">6.5")) -> 0 | AE27: Standardabweichung | AG27: =STDEVP(AG4:AG24) -> 0
B28: Foster's Skala | G28: RPE | J28: Zeit pro Zone (RPE) | L28: =IF(Beanspruchungverteilung!$AT$21="x",SUMIF(M4:M24,"<3.5",L4:L24),SUMIF(M4:M24,"<4.5",L4:L24)) -> 0 | M28: =IF(M27=0,0,SUM((L25)-(L28+N28))) -> 0 | N28: =IF(Beanspruchungverteilung!$AT$21="x",SUMIF(M4:M24,">5.5",L4:L24),SUMIF(M4:M24,">6.5",L4:L24)) -> 0 | O28: =IF(Beanspruchungverteilung!$AT$21="x",SUMIF(P4:P24,"<3.5",O4:O24),SUMIF(P4:P24,"<4.5",O4:O24)) -> 0 | P28: =IF(P27=0,0,SUM((O25)-(O28+Q28))) -> 0 | Q28: =IF(Beanspruchungverteilung!$AT$21="x",SUMIF(P4:P24,">5.5",O4:O24),SUMIF(P4:P24,">6.5",O4:O24)) -> 0 | R28: =IF(Beanspruchungverteilung!$AT$21="x",SUMIF(S4:S24,"<3.5",R4:R24),SUMIF(S4:S24,"<4.5",R4:R24)) -> 0 | S28: =IF(S27=0,0,SUM((R25)-(R28+T28))) -> 0 | T28: =IF(Beanspruchungverteilung!$AT$21="x",SUMIF(S4:S24,">5.5",R4:R24),SUMIF(S4:S24,">6.5",R4:R24)) -> 0 | U28: =IF(Beanspruchungverteilung!$AT$21="x",SUMIF(V4:V24,"<3.5",U4:U24),SUMIF(V4:V24,"<4.5",U4:U24)) -> 0 | V28: =IF(V27=0,0,SUM((U25)-(U28+W28))) -> 0 | W28: =IF(Beanspruchungverteilung!$AT$21="x",SUMIF(V4:V24,">5.5",U4:U24),SUMIF(V4:V24,">6.5",U4:U24)) -> 0 | X28: =IF(Beanspruchungverteilung!$AT$21="x",SUMIF(Y4:Y24,"<3.5",X4:X24),SUMIF(Y4:Y24,"<4.5",X4:X24)) -> 0 | Y28: =IF(Y27=0,0,SUM((X25)-(X28+Z28))) -> 0 | Z28: =IF(Beanspruchungverteilung!$AT$21="x",SUMIF(Y4:Y24,">5.5",X4:X24),SUMIF(Y4:Y24,">6.5",X4:X24)) -> 0 | AA28: =IF(Beanspruchungverteilung!$AT$21="x",SUMIF(AB4:AB24,"<3.5",AA4:AA24),SUMIF(AB4:AB24,"<4.5",AA4:AA24)) -> 0 | AB28: =IF(AB27=0,0,SUM((AA25)-(AA28+AC28))) -> 0 | AC28: =IF(Beanspruchungverteilung!$AT$21="x",SUMIF(AB4:AB24,">5.5",AA4:AA24),SUMIF(AB4:AB24,">6.5",AA4:AA24)) -> 0
B29: Wie in Ruhe | G29: 0
B30: Sehr locker | G30: 1
B31: Locker | G31: 2 | AE31: Trainingstage | AG31: =IF(SUM(AG4:AG24)=0,"",COUNTIF(AG4:AG24,">0")) -> 
G32: 3
B33: Etwas hart | G33: 4 | AE33: Trainingseinheiten | AG33: =IF(AG31="","",SUM(L27:AC27)) -> 
B34: Hart | G34: 5
G35: 6 | AE35: Trainingsstunden | AG35: =IF(AG31="","",SUM(L25,O25,U25,X25,R25,AA25)/60) -> 
B36: Sehr hart | G36: 7
G37: 8 | AE37: Training Load | AG37: =IF(AG31="","",SUM(AG25)) -> 
B38: Extrem hart | G38: 9
B39: Wie mein härtestes Training | G39: 10 | AE39: Monotonie | AG39: =IF(AG31="","",(AVERAGE(AG4:AG24))/AG27) -> 
AE41: Trainingsanstrengung | AG41: =IF(AG31="","",AG37*AG39) -> 
AE43: =AI2 -> Lauf Km | AG43: =IF(AG31="","",SUM(AI4:AI24)) -> 
AE45: =AJ2 -> J | AG45: =IF(AG31="","",SUM(AJ4:AJ24)) -> 
AE47: =AK2 -> Swim Km | AG47: =IF(AG31="","",SUM(AK4:AK24)) -> 
AE49: =AL2 -> Mental Training | AG49: =IF(AG31="","",COUNTA(AL4:AL24)) -> 
AE51: =AM2 -> Regeneration | AG51: =IF(AG31="","",COUNTA(AM4:AM24)) -> 
U155: =V155-1 -> 43 | V155: =W155-1 -> 44 | W155: =X155-1 -> 45 | X155: =Y155-1 -> 46 | Y155: =Z155-1 -> 47 | Z155: =D1 -> 48 | AA155: =Z155+1 -> 49 | AB155: =AA155+1 -> 50 | AC155: =G1 -> -

Sheet 49
C1: Woche | D1: =INT(MOD(INT((F1-2)/7)+0.6,52+5/28))+1 -> 49 | E1: =D1+1000 -> 1049 | F1: ='48'!F1+7 -> 2014-12-01 | G1: - | H1: =F1+6 -> 2014-12-07
B2: Tag | D2: ='45'!D2 -> Gewicht | E2: ='45'!E2 -> Erholt ? | F2: ='45'!F2 -> Schlaf | G2: ='45'!G2 -> Stress | I2: Trainigsbeschreibung | L2: ='45'!L2:N2 -> Dauerlauf | O2: ='45'!O2:Q2 -> Bahn/Intervall | R2: ='45'!R2:T2 -> Sprint/Koord/Tech | U2: ='45'!U2:W2 -> Kraft | X2: ='45'!X2:Z2 -> Alternativ | AA2: ='45'!AA2:AC2 -> Divers | AE2: Bemerkungen | AG2: Load/Tag | AI2: ='45'!AI2:AI3 -> Lauf Km | AJ2: ='45'!AJ2:AJ3 -> J | AK2: ='45'!AK2:AK3 -> Swim Km | AL2: ='45'!AL2:AL3 -> Mental Training | AM2: ='45'!AM2:AM3 -> Regeneration
D3: ='45'!D3 -> kg | E3: ='45'!E3 -> [-3….+3] | F3: ='45'!F3 -> 1-6 | G3: ='45'!G3 -> 0, 1, 2, 3 | L3: Dauer | M3: RPE | N3: Load | O3: Dauer | P3: RPE | Q3: Load | R3: Dauer | S3: RPE | T3: Load | U3: Dauer | V3: RPE | W3: Load | X3: Dauer | Y3: RPE | Z3: Load | AA3: Dauer | AB3: RPE | AC3: Load
B4: Mo | N4: =L4*M4 -> 0 | Q4: =O4*P4 -> 0 | T4: =R4*S4 -> 0 | W4: =U4*V4 -> 0 | Z4: =X4*Y4 -> 0 | AC4: =AA4*AB4 -> 0 | AG4: =SUM(N4:N6,Q4:Q6,T4:T6,W4:W6,Z4:Z6,AC4:AC6) -> 0
N5: 0 | Q5: 0 | T5: 0 | W5: 0 | Z5: 0 | AC5: 0
N6: 0 | Q6: 0 | T6: 0 | W6: 0 | Z6: 0 | AC6: 0
B7: Di | N7: 0 | Q7: 0 | T7: 0 | W7: 0 | Z7: 0 | AC7: 0 | AG7: =SUM(N7:N9,Q7:Q9,T7:T9,W7:W9,Z7:Z9,AC7:AC9) -> 0
N8: 0 | Q8: 0 | T8: 0 | W8: 0 | Z8: 0 | AC8: 0
N9: 0 | Q9: 0 | T9: 0 | W9: 0 | Z9: 0 | AC9: 0
B10: Mi | N10: 0 | Q10: 0 | T10: 0 | W10: 0 | Z10: 0 | AC10: 0 | AG10: =SUM(N10:N12,Q10:Q12,T10:T12,W10:W12,Z10:Z12,AC10:AC12) -> 0
N11: 0 | Q11: 0 | T11: 0 | W11: 0 | Z11: 0 | AC11: 0
N12: 0 | Q12: 0 | T12: 0 | W12: 0 | Z12: 0 | AC12: 0
B13: Do | N13: 0 | Q13: 0 | T13: 0 | W13: 0 | Z13: 0 | AC13: 0 | AG13: =SUM(N13:N15,Q13:Q15,T13:T15,W13:W15,Z13:Z15,AC13:AC15) -> 0
N14: 0 | Q14: 0 | T14: 0 | W14: 0 | Z14: 0 | AC14: 0
N15: 0 | Q15: 0 | T15: 0 | W15: 0 | Z15: 0 | AC15: 0
B16: Fr | N16: 0 | Q16: 0 | T16: 0 | W16: 0 | Z16: 0 | AC16: 0 | AG16: =SUM(N16:N18,Q16:Q18,T16:T18,W16:W18,Z16:Z18,AC16:AC18) -> 0
N17: 0 | Q17: 0 | T17: 0 | W17: 0 | Z17: 0 | AC17: 0
N18: 0 | Q18: 0 | T18: 0 | W18: 0 | Z18: 0 | AC18: 0
B19: Sa | N19: 0 | Q19: 0 | T19: 0 | W19: 0 | Z19: 0 | AC19: 0 | AG19: =SUM(N19:N21,Q19:Q21,T19:T21,W19:W21,Z19:Z21,AC19:AC21) -> 0
N20: 0 | Q20: 0 | T20: 0 | W20: 0 | Z20: 0 | AC20: 0
N21: 0 | Q21: 0 | T21: 0 | W21: 0 | Z21: 0 | AC21: 0
B22: So | N22: 0 | Q22: 0 | T22: 0 | W22: 0 | Z22: 0 | AC22: 0 | AG22: =SUM(N22:N24,Q22:Q24,T22:T24,W22:W24,Z22:Z24,AC22:AC24) -> 0
N23: 0 | Q23: 0 | T23: 0 | W23: 0 | Z23: 0 | AC23: 0
N24: 0 | Q24: 0 | T24: 0 | W24: 0 | Z24: 0 | AC24: 0
J25: Total | L25: =SUM(L4:L24) -> 0 | N25: =SUM(N4:N24) -> 0 | O25: =SUM(O4:O24) -> 0 | Q25: =SUM(Q4:Q24) -> 0 | R25: =SUM(R4:R24) -> 0 | T25: =SUM(T4:T24) -> 0 | U25: =SUM(U4:U24) -> 0 | W25: =SUM(W4:W24) -> 0 | X25: =SUM(X4:X24) -> 0 | Z25: =SUM(Z4:Z24) -> 0 | AA25: =SUM(AA4:AA24) -> 0 | AC25: =SUM(AC4:AC24) -> 0 | AE25: TOTAL LOAD | AG25: =SUM(AG4:AG24) -> 0
B26: avg | D26: =IF(COUNTA(D4:D24)=0,"",AVERAGE(D4:D24)) ->  | E26: =IF(COUNTA(E4:E24)=0,"",AVERAGE(E4:E24)) ->  | F26: =IF(COUNTA(F4:F24)=0,"",AVERAGE(F4:F24)) ->  | G26: =IF(COUNTA(G4:G24)=0,"",AVERAGE(G4:G24)) ->  | J26: Zone | L26: 1 | M26: 2 | N26: 3 | O26: 1 | P26: 2 | Q26: 3 | R26: 1 | S26: 2 | T26: 3 | U26: 1 | V26: 2 | W26: 3 | X26: 1 | Y26: 2 | Z26: 3 | AA26: 1 | AB26: 2 | AC26: 3 | AE26: Mittelwert | AG26: =AVERAGE(AG4:AG24) -> 0
J27: Einheiten pro Zone (RPE) | L27: =IF(Beanspruchungverteilung!$AT$21="x",COUNTIF(M4:M24,"<3.5"),COUNTIF(M4:M24,"<4.5")) -> 0 | M27: =COUNT(M4:M24)-(L27+N27) -> 0 | N27: =IF(Beanspruchungverteilung!$AT$21="x",COUNTIF(M4:M24,">5.5"),COUNTIF(M4:M24,">6.5")) -> 0 | O27: =IF(Beanspruchungverteilung!$AT$21="x",COUNTIF(P4:P24,"<3.5"),COUNTIF(P4:P24,"<4.5")) -> 0 | P27: =COUNT(P4:P24)-(O27+Q27) -> 0 | Q27: =IF(Beanspruchungverteilung!$AT$21="x",COUNTIF(P4:P24,">5.5"),COUNTIF(P4:P24,">6.5")) -> 0 | R27: =IF(Beanspruchungverteilung!$AT$21="x",COUNTIF(S4:S24,"<3.5"),COUNTIF(S4:S24,"<4.5")) -> 0 | S27: =COUNT(S4:S24)-(R27+T27) -> 0 | T27: =IF(Beanspruchungverteilung!$AT$21="x",COUNTIF(S4:S24,">5.5"),COUNTIF(S4:S24,">6.5")) -> 0 | U27: =IF(Beanspruchungverteilung!$AT$21="x",COUNTIF(V4:V24,"<3.5"),COUNTIF(V4:V24,"<4.5")) -> 0 | V27: =COUNT(V4:V24)-(U27+W27) -> 0 | W27: =IF(Beanspruchungverteilung!$AT$21="x",COUNTIF(V4:V24,">5.5"),COUNTIF(V4:V24,">6.5")) -> 0 | X27: =IF(Beanspruchungverteilung!$AT$21="x",COUNTIF(Y4:Y24,"<3.5"),COUNTIF(Y4:Y24,"<4.5")) -> 0 | Y27: =COUNT(Y4:Y24)-(X27+Z27) -> 0 | Z27: =IF(Beanspruchungverteilung!$AT$21="x",COUNTIF(Y4:Y24,">5.5"),COUNTIF(Y4:Y24,">6.5")) -> 0 | AA27: =IF(Beanspruchungverteilung!$AT$21="x",COUNTIF(AB4:AB24,"<3.5"),COUNTIF(AB4:AB24,"<4.5")) -> 0 | AB27: =COUNT(AB4:AB24)-(AA27+AC27) -> 0 | AC27: =IF(Beanspruchungverteilung!$AT$21="x",COUNTIF(AB4:AB24,">5.5"),COUNTIF(AB4:AB24,">6.5")) -> 0 | AE27: Standardabweichung | AG27: =STDEVP(AG4:AG24) -> 0
B28: Foster's Skala | G28: RPE | J28: Zeit pro Zone (RPE) | L28: =IF(Beanspruchungverteilung!$AT$21="x",SUMIF(M4:M24,"<3.5",L4:L24),SUMIF(M4:M24,"<4.5",L4:L24)) -> 0 | M28: =IF(M27=0,0,SUM((L25)-(L28+N28))) -> 0 | N28: =IF(Beanspruchungverteilung!$AT$21="x",SUMIF(M4:M24,">5.5",L4:L24),SUMIF(M4:M24,">6.5",L4:L24)) -> 0 | O28: =IF(Beanspruchungverteilung!$AT$21="x",SUMIF(P4:P24,"<3.5",O4:O24),SUMIF(P4:P24,"<4.5",O4:O24)) -> 0 | P28: =IF(P27=0,0,SUM((O25)-(O28+Q28))) -> 0 | Q28: =IF(Beanspruchungverteilung!$AT$21="x",SUMIF(P4:P24,">5.5",O4:O24),SUMIF(P4:P24,">6.5",O4:O24)) -> 0 | R28: =IF(Beanspruchungverteilung!$AT$21="x",SUMIF(S4:S24,"<3.5",R4:R24),SUMIF(S4:S24,"<4.5",R4:R24)) -> 0 | S28: =IF(S27=0,0,SUM((R25)-(R28+T28))) -> 0 | T28: =IF(Beanspruchungverteilung!$AT$21="x",SUMIF(S4:S24,">5.5",R4:R24),SUMIF(S4:S24,">6.5",R4:R24)) -> 0 | U28: =IF(Beanspruchungverteilung!$AT$21="x",SUMIF(V4:V24,"<3.5",U4:U24),SUMIF(V4:V24,"<4.5",U4:U24)) -> 0 | V28: =IF(V27=0,0,SUM((U25)-(U28+W28))) -> 0 | W28: =IF(Beanspruchungverteilung!$AT$21="x",SUMIF(V4:V24,">5.5",U4:U24),SUMIF(V4:V24,">6.5",U4:U24)) -> 0 | X28: =IF(Beanspruchungverteilung!$AT$21="x",SUMIF(Y4:Y24,"<3.5",X4:X24),SUMIF(Y4:Y24,"<4.5",X4:X24)) -> 0 | Y28: =IF(Y27=0,0,SUM((X25)-(X28+Z28))) -> 0 | Z28: =IF(Beanspruchungverteilung!$AT$21="x",SUMIF(Y4:Y24,">5.5",X4:X24),SUMIF(Y4:Y24,">6.5",X4:X24)) -> 0 | AA28: =IF(Beanspruchungverteilung!$AT$21="x",SUMIF(AB4:AB24,"<3.5",AA4:AA24),SUMIF(AB4:AB24,"<4.5",AA4:AA24)) -> 0 | AB28: =IF(AB27=0,0,SUM((AA25)-(AA28+AC28))) -> 0 | AC28: =IF(Beanspruchungverteilung!$AT$21="x",SUMIF(AB4:AB24,">5.5",AA4:AA24),SUMIF(AB4:AB24,">6.5",AA4:AA24)) -> 0
B29: Wie in Ruhe | G29: 0
B30: Sehr locker | G30: 1
B31: Locker | G31: 2 | AE31: Trainingstage | AG31: =IF(SUM(AG4:AG24)=0,"",COUNTIF(AG4:AG24,">0")) -> 
G32: 3
B33: Etwas hart | G33: 4 | AE33: Trainingseinheiten | AG33: =IF(AG31="","",SUM(L27:AC27)) -> 
B34: Hart | G34: 5
G35: 6 | AE35: Trainingsstunden | AG35: =IF(AG31="","",SUM(L25,O25,U25,X25,R25,AA25)/60) -> 
B36: Sehr hart | G36: 7
G37: 8 | AE37: Training Load | AG37: =IF(AG31="","",SUM(AG25)) -> 
B38: Extrem hart | G38: 9
B39: Wie mein härtestes Training | G39: 10 | AE39: Monotonie | AG39: =IF(AG31="","",(AVERAGE(AG4:AG24))/AG27) -> 
AE41: Trainingsanstrengung | AG41: =IF(AG31="","",AG37*AG39) -> 
AE43: =AI2 -> Lauf Km | AG43: =IF(AG31="","",SUM(AI4:AI24)) -> 
AE45: =AJ2 -> J | AG45: =IF(AG31="","",SUM(AJ4:AJ24)) -> 
AE47: =AK2 -> Swim Km | AG47: =IF(AG31="","",SUM(AK4:AK24)) -> 
AE49: =AL2 -> Mental Training | AG49: =IF(AG31="","",COUNTA(AL4:AL24)) -> 
AE51: =AM2 -> Regeneration | AG51: =IF(AG31="","",COUNTA(AM4:AM24)) -> 
U155: =V155-1 -> 44 | V155: =IF(W155=1,52,W155-1) -> 45 | W155: =IF(X155=1,52,X155-1) -> 46 | X155: =IF(Y155=1,52,Y155-1) -> 47 | Y155: =IF(Z155=1,52,Z155-1) -> 48 | Z155: =D1 -> 49 | AA155: =IF(Z155=52,1,Z155+1) -> 50 | AB155: =IF(AA155=52,1,AA155+1) -> 51 | AC155: =G1 -> -

Sheet 50
C1: Woche | D1: =INT(MOD(INT((F1-2)/7)+0.6,52+5/28))+1 -> 50 | E1: =D1+1000 -> 1050 | F1: ='49'!F1+7 -> 2014-12-08 | G1: - | H1: =F1+6 -> 2014-12-14
B2: Tag | D2: ='45'!D2 -> Gewicht | E2: ='45'!E2 -> Erholt ? | F2: ='45'!F2 -> Schlaf | G2: ='45'!G2 -> Stress | I2: Trainigsbeschreibung | L2: ='45'!L2:N2 -> Dauerlauf | O2: ='45'!O2:Q2 -> Bahn/Intervall | R2: ='45'!R2:T2 -> Sprint/Koord/Tech | U2: ='45'!U2:W2 -> Kraft | X2: ='45'!X2:Z2 -> Alternativ | AA2: ='45'!AA2:AC2 -> Divers | AE2: Bemerkungen | AG2: Load/Tag | AI2: ='45'!AI2:AI3 -> Lauf Km | AJ2: ='45'!AJ2:AJ3 -> J | AK2: ='45'!AK2:AK3 -> Swim Km | AL2: ='45'!AL2:AL3 -> Mental Training | AM2: ='45'!AM2:AM3 -> Regeneration
D3: ='45'!D3 -> kg | E3: ='45'!E3 -> [-3….+3] | F3: ='45'!F3 -> 1-6 | G3: ='45'!G3 -> 0, 1, 2, 3 | L3: Dauer | M3: RPE | N3: Load | O3: Dauer | P3: RPE | Q3: Load | R3: Dauer | S3: RPE | T3: Load | U3: Dauer | V3: RPE | W3: Load | X3: Dauer | Y3: RPE | Z3: Load | AA3: Dauer | AB3: RPE | AC3: Load
B4: Mo | N4: =L4*M4 -> 0 | Q4: =O4*P4 -> 0 | T4: =R4*S4 -> 0 | W4: =U4*V4 -> 0 | Z4: =X4*Y4 -> 0 | AC4: =AA4*AB4 -> 0 | AG4: =SUM(N4:N6,Q4:Q6,T4:T6,W4:W6,Z4:Z6,AC4:AC6) -> 0
N5: 0 | Q5: 0 | T5: 0 | W5: 0 | Z5: 0 | AC5: 0
N6: 0 | Q6: 0 | T6: 0 | W6: 0 | Z6: 0 | AC6: 0
B7: Di | N7: 0 | Q7: 0 | T7: 0 | W7: 0 | Z7: 0 | AC7: 0 | AG7: =SUM(N7:N9,Q7:Q9,T7:T9,W7:W9,Z7:Z9,AC7:AC9) -> 0
N8: 0 | Q8: 0 | T8: 0 | W8: 0 | Z8: 0 | AC8: 0
N9: 0 | Q9: 0 | T9: 0 | W9: 0 | Z9: 0 | AC9: 0
B10: Mi | I10: Blackroll / Beweglichkeit | N10: 0 | Q10: 0 | T10: 0 | W10: 0 | Z10: 0 | AC10: 0 | AG10: =SUM(N10:N12,Q10:Q12,T10:T12,W10:W12,Z10:Z12,AC10:AC12) -> 0
N11: 0 | Q11: 0 | T11: 0 | W11: 0 | Z11: 0 | AC11: 0
N12: 0 | Q12: 0 | T12: 0 | W12: 0 | Z12: 0 | AC12: 0
B13: Do | I13: 20' footing + 4x4' Velo | N13: 0 | Q13: 0 | T13: 0 | W13: 0 | Z13: 0 | AC13: 0 | AG13: =SUM(N13:N15,Q13:Q15,T13:T15,W13:W15,Z13:Z15,AC13:AC15) -> 0
N14: 0 | Q14: 0 | T14: 0 | W14: 0 | Z14: 0 | AC14: 0
I15: 150 tiefe Kniebeugen + Physio Übungen | N15: 0 | Q15: 0 | T15: 0 | W15: 0 | Z15: 0 | AC15: 0
B16: Fr | I16: 30' footing + Beweglichkeit | N16: 0 | Q16: 0 | T16: 0 | W16: 0 | Z16: 0 | AC16: 0 | AG16: =SUM(N16:N18,Q16:Q18,T16:T18,W16:W18,Z16:Z18,AC16:AC18) -> 0
I17: 200 tiefe Kniebeugen + Physio Übungen | N17: 0 | Q17: 0 | T17: 0 | W17: 0 | Z17: 0 | AC17: 0
N18: 0 | Q18: 0 | T18: 0 | W18: 0 | Z18: 0 | AC18: 0
B19: Sa | I19: 30' Footing + 4x4' Velo | N19: 0 | Q19: 0 | T19: 0 | W19: 0 | Z19: 0 | AC19: 0 | AG19: =SUM(N19:N21,Q19:Q21,T19:T21,W19:W21,Z19:Z21,AC19:AC21) -> 0
N20: 0 | Q20: 0 | T20: 0 | W20: 0 | Z20: 0 | AC20: 0
I21: x tiefe KB + Physio Übungen | N21: 0 | Q21: 0 | T21: 0 | W21: 0 | Z21: 0 | AC21: 0
B22: So | I22: 40' Footing + Beweglichkeit | N22: 0 | Q22: 0 | T22: 0 | W22: 0 | Z22: 0 | AC22: 0 | AG22: =SUM(N22:N24,Q22:Q24,T22:T24,W22:W24,Z22:Z24,AC22:AC24) -> 0
N23: 0 | Q23: 0 | T23: 0 | W23: 0 | Z23: 0 | AC23: 0
I24: x tiefe KB + Physio Übungen | N24: 0 | Q24: 0 | T24: 0 | W24: 0 | Z24: 0 | AC24: 0
J25: Total | L25: =SUM(L4:L24) -> 0 | N25: =SUM(N4:N24) -> 0 | O25: =SUM(O4:O24) -> 0 | Q25: =SUM(Q4:Q24) -> 0 | R25: =SUM(R4:R24) -> 0 | T25: =SUM(T4:T24) -> 0 | U25: =SUM(U4:U24) -> 0 | W25: =SUM(W4:W24) -> 0 | X25: =SUM(X4:X24) -> 0 | Z25: =SUM(Z4:Z24) -> 0 | AA25: =SUM(AA4:AA24) -> 0 | AC25: =SUM(AC4:AC24) -> 0 | AE25: TOTAL LOAD | AG25: =SUM(AG4:AG24) -> 0
B26: avg | D26: =IF(COUNTA(D4:D24)=0,"",AVERAGE(D4:D24)) ->  | E26: =IF(COUNTA(E4:E24)=0,"",AVERAGE(E4:E24)) ->  | F26: =IF(COUNTA(F4:F24)=0,"",AVERAGE(F4:F24)) ->  | G26: =IF(COUNTA(G4:G24)=0,"",AVERAGE(G4:G24)) ->  | J26: Zone | L26: 1 | M26: 2 | N26: 3 | O26: 1 | P26: 2 | Q26: 3 | R26: 1 | S26: 2 | T26: 3 | U26: 1 | V26: 2 | W26: 3 | X26: 1 | Y26: 2 | Z26: 3 | AA26: 1 | AB26: 2 | AC26: 3 | AE26: Mittelwert | AG26: =AVERAGE(AG4:AG24) -> 0
J27: Einheiten pro Zone (RPE) | L27: =IF(Beanspruchungverteilung!$AT$21="x",COUNTIF(M4:M24,"<3.5"),COUNTIF(M4:M24,"<4.5")) -> 0 | M27: =COUNT(M4:M24)-(L27+N27) -> 0 | N27: =IF(Beanspruchungverteilung!$AT$21="x",COUNTIF(M4:M24,">5.5"),COUNTIF(M4:M24,">6.5")) -> 0 | O27: =IF(Beanspruchungverteilung!$AT$21="x",COUNTIF(P4:P24,"<3.5"),COUNTIF(P4:P24,"<4.5")) -> 0 | P27: =COUNT(P4:P24)-(O27+Q27) -> 0 | Q27: =IF(Beanspruchungverteilung!$AT$21="x",COUNTIF(P4:P24,">5.5"),COUNTIF(P4:P24,">6.5")) -> 0 | R27: =IF(Beanspruchungverteilung!$AT$21="x",COUNTIF(S4:S24,"<3.5"),COUNTIF(S4:S24,"<4.5")) -> 0 | S27: =COUNT(S4:S24)-(R27+T27) -> 0 | T27: =IF(Beanspruchungverteilung!$AT$21="x",COUNTIF(S4:S24,">5.5"),COUNTIF(S4:S24,">6.5")) -> 0 | U27: =IF(Beanspruchungverteilung!$AT$21="x",COUNTIF(V4:V24,"<3.5"),COUNTIF(V4:V24,"<4.5")) -> 0 | V27: =COUNT(V4:V24)-(U27+W27) -> 0 | W27: =IF(Beanspruchungverteilung!$AT$21="x",COUNTIF(V4:V24,">5.5"),COUNTIF(V4:V24,">6.5")) -> 0 | X27: =IF(Beanspruchungverteilung!$AT$21="x",COUNTIF(Y4:Y24,"<3.5"),COUNTIF(Y4:Y24,"<4.5")) -> 0 | Y27: =COUNT(Y4:Y24)-(X27+Z27) -> 0 | Z27: =IF(Beanspruchungverteilung!$AT$21="x",COUNTIF(Y4:Y24,">5.5"),COUNTIF(Y4:Y24,">6.5")) -> 0 | AA27: =IF(Beanspruchungverteilung!$AT$21="x",COUNTIF(AB4:AB24,"<3.5"),COUNTIF(AB4:AB24,"<4.5")) -> 0 | AB27: =COUNT(AB4:AB24)-(AA27+AC27) -> 0 | AC27: =IF(Beanspruchungverteilung!$AT$21="x",COUNTIF(AB4:AB24,">5.5"),COUNTIF(AB4:AB24,">6.5")) -> 0 | AE27: Standardabweichung | AG27: =STDEVP(AG4:AG24) -> 0
B28: Foster's Skala | G28: RPE | J28: Zeit pro Zone (RPE) | L28: =IF(Beanspruchungverteilung!$AT$21="x",SUMIF(M4:M24,"<3.5",L4:L24),SUMIF(M4:M24,"<4.5",L4:L24)) -> 0 | M28: =IF(M27=0,0,SUM((L25)-(L28+N28))) -> 0 | N28: =IF(Beanspruchungverteilung!$AT$21="x",SUMIF(M4:M24,">5.5",L4:L24),SUMIF(M4:M24,">6.5",L4:L24)) -> 0 | O28: =IF(Beanspruchungverteilung!$AT$21="x",SUMIF(P4:P24,"<3.5",O4:O24),SUMIF(P4:P24,"<4.5",O4:O24)) -> 0 | P28: =IF(P27=0,0,SUM((O25)-(O28+Q28))) -> 0 | Q28: =IF(Beanspruchungverteilung!$AT$21="x",SUMIF(P4:P24,">5.5",O4:O24),SUMIF(P4:P24,">6.5",O4:O24)) -> 0 | R28: =IF(Beanspruchungverteilung!$AT$21="x",SUMIF(S4:S24,"<3.5",R4:R24),SUMIF(S4:S24,"<4.5",R4:R24)) -> 0 | S28: =IF(S27=0,0,SUM((R25)-(R28+T28))) -> 0 | T28: =IF(Beanspruchungverteilung!$AT$21="x",SUMIF(S4:S24,">5.5",R4:R24),SUMIF(S4:S24,">6.5",R4:R24)) -> 0 | U28: =IF(Beanspruchungverteilung!$AT$21="x",SUMIF(V4:V24,"<3.5",U4:U24),SUMIF(V4:V24,"<4.5",U4:U24)) -> 0 | V28: =IF(V27=0,0,SUM((U25)-(U28+W28))) -> 0 | W28: =IF(Beanspruchungverteilung!$AT$21="x",SUMIF(V4:V24,">5.5",U4:U24),SUMIF(V4:V24,">6.5",U4:U24)) -> 0 | X28: =IF(Beanspruchungverteilung!$AT$21="x",SUMIF(Y4:Y24,"<3.5",X4:X24),SUMIF(Y4:Y24,"<4.5",X4:X24)) -> 0 | Y28: =IF(Y27=0,0,SUM((X25)-(X28+Z28))) -> 0 | Z28: =IF(Beanspruchungverteilung!$AT$21="x",SUMIF(Y4:Y24,">5.5",X4:X24),SUMIF(Y4:Y24,">6.5",X4:X24)) -> 0 | AA28: =IF(Beanspruchungverteilung!$AT$21="x",SUMIF(AB4:AB24,"<3.5",AA4:AA24),SUMIF(AB4:AB24,"<4.5",AA4:AA24)) -> 0 | AB28: =IF(AB27=0,0,SUM((AA25)-(AA28+AC28))) -> 0 | AC28: =IF(Beanspruchungverteilung!$AT$21="x",SUMIF(AB4:AB24,">5.5",AA4:AA24),SUMIF(AB4:AB24,">6.5",AA4:AA24)) -> 0
B29: Wie in Ruhe | G29: 0
B30: Sehr locker | G30: 1
B31: Locker | G31: 2 | AE31: Trainingstage | AG31: =IF(SUM(AG4:AG24)=0,"",COUNTIF(AG4:AG24,">0")) -> 
G32: 3
B33: Etwas hart | G33: 4 | AE33: Trainingseinheiten | AG33: =IF(AG31="","",SUM(L27:AC27)) -> 
B34: Hart | G34: 5
G35: 6 | AE35: Trainingsstunden | AG35: =IF(AG31="","",SUM(L25,O25,U25,X25,R25,AA25)/60) -> 
B36: Sehr hart | G36: 7
G37: 8 | AE37: Training Load | AG37: =IF(AG31="","",SUM(AG25)) -> 
B38: Extrem hart | G38: 9
B39: Wie mein härtestes Training | G39: 10 | AE39: Monotonie | AG39: =IF(AG31="","",(AVERAGE(AG4:AG24))/AG27) -> 
AE41: Trainingsanstrengung | AG41: =IF(AG31="","",AG37*AG39) -> 
AE43: =AI2 -> Lauf Km | AG43: =IF(AG31="","",SUM(AI4:AI24)) -> 
AE45: =AJ2 -> J | AG45: =IF(AG31="","",SUM(AJ4:AJ24)) -> 
AE47: =AK2 -> Swim Km | AG47: =IF(AG31="","",SUM(AK4:AK24)) -> 
AE49: =AL2 -> Mental Training | AG49: =IF(AG31="","",COUNTA(AL4:AL24)) -> 
AE51: =AM2 -> Regeneration | AG51: =IF(AG31="","",COUNTA(AM4:AM24)) -> 
U155: =V155-1 -> 44 | V155: =IF(W155=1,52,W155-1) -> 45 | W155: =IF(X155=1,52,X155-1) -> 46 | X155: =IF(Y155=1,52,Y155-1) -> 47 | Y155: =IF(Z155=1,52,Z155-1) -> 48 | Z155: =IF(AA155=1,52,AA155-1) -> 49 | AA155: =D1 -> 50 | AB155: =IF(AA155=52,1,AA155+1) -> 51 | AC155: =IF(AB155=52,1,AB155+1) -> 52 | AD155: =IF(AC155=52,1,AC155+1) -> 1 | AE155: =AD155+1 -> 2

Sheet 51
C1: Woche | D1: =INT(MOD(INT((F1-2)/7)+0.6,52+5/28))+1 -> 51 | E1: =D1+1000 -> 1051 | F1: ='50'!F1+7 -> 2014-12-15 | G1: - | H1: =F1+6 -> 2014-12-21
B2: Tag | D2: ='45'!D2 -> Gewicht | E2: ='45'!E2 -> Erholt ? | F2: ='45'!F2 -> Schlaf | G2: ='45'!G2 -> Stress | I2: Trainigsbeschreibung | L2: ='45'!L2:N2 -> Dauerlauf | O2: ='45'!O2:Q2 -> Bahn/Intervall | R2: ='45'!R2:T2 -> Sprint/Koord/Tech | U2: ='45'!U2:W2 -> Kraft | X2: ='45'!X2:Z2 -> Alternativ | AA2: ='45'!AA2:AC2 -> Divers | AE2: Bemerkungen | AG2: Load/Tag | AI2: ='45'!AI2:AI3 -> Lauf Km | AJ2: ='45'!AJ2:AJ3 -> J | AK2: ='45'!AK2:AK3 -> Swim Km | AL2: ='45'!AL2:AL3 -> Mental Training | AM2: ='45'!AM2:AM3 -> Regeneration
D3: ='45'!D3 -> kg | E3: ='45'!E3 -> [-3….+3] | F3: ='45'!F3 -> 1-6 | G3: ='45'!G3 -> 0, 1, 2, 3 | L3: Dauer | M3: RPE | N3: Load | O3: Dauer | P3: RPE | Q3: Load | R3: Dauer | S3: RPE | T3: Load | U3: Dauer | V3: RPE | W3: Load | X3: Dauer | Y3: RPE | Z3: Load | AA3: Dauer | AB3: RPE | AC3: Load
B4: Mo | N4: =L4*M4 -> 0 | Q4: =O4*P4 -> 0 | T4: =R4*S4 -> 0 | W4: =U4*V4 -> 0 | Z4: =X4*Y4 -> 0 | AC4: =AA4*AB4 -> 0 | AG4: =SUM(N4:N6,Q4:Q6,T4:T6,W4:W6,Z4:Z6,AC4:AC6) -> 0
N5: 0 | Q5: 0 | T5: 0 | W5: 0 | Z5: 0 | AC5: 0
N6: 0 | Q6: 0 | T6: 0 | W6: 0 | Z6: 0 | AC6: 0
B7: Di | N7: 0 | Q7: 0 | T7: 0 | W7: 0 | Z7: 0 | AC7: 0 | AG7: =SUM(N7:N9,Q7:Q9,T7:T9,W7:W9,Z7:Z9,AC7:AC9) -> 0
N8: 0 | Q8: 0 | T8: 0 | W8: 0 | Z8: 0 | AC8: 0
N9: 0 | Q9: 0 | T9: 0 | W9: 0 | Z9: 0 | AC9: 0
B10: Mi | N10: 0 | Q10: 0 | T10: 0 | W10: 0 | Z10: 0 | AC10: 0 | AG10: =SUM(N10:N12,Q10:Q12,T10:T12,W10:W12,Z10:Z12,AC10:AC12) -> 0
N11: 0 | Q11: 0 | T11: 0 | W11: 0 | Z11: 0 | AC11: 0
N12: 0 | Q12: 0 | T12: 0 | W12: 0 | Z12: 0 | AC12: 0
B13: Do | N13: 0 | Q13: 0 | T13: 0 | W13: 0 | Z13: 0 | AC13: 0 | AG13: =SUM(N13:N15,Q13:Q15,T13:T15,W13:W15,Z13:Z15,AC13:AC15) -> 0
N14: 0 | Q14: 0 | T14: 0 | W14: 0 | Z14: 0 | AC14: 0
N15: 0 | Q15: 0 | T15: 0 | W15: 0 | Z15: 0 | AC15: 0
B16: Fr | N16: 0 | Q16: 0 | T16: 0 | W16: 0 | Z16: 0 | AC16: 0 | AG16: =SUM(N16:N18,Q16:Q18,T16:T18,W16:W18,Z16:Z18,AC16:AC18) -> 0
N17: 0 | Q17: 0 | T17: 0 | W17: 0 | Z17: 0 | AC17: 0
N18: 0 | Q18: 0 | T18: 0 | W18: 0 | Z18: 0 | AC18: 0
B19: Sa | N19: 0 | Q19: 0 | T19: 0 | W19: 0 | Z19: 0 | AC19: 0 | AG19: =SUM(N19:N21,Q19:Q21,T19:T21,W19:W21,Z19:Z21,AC19:AC21) -> 0
N20: 0 | Q20: 0 | T20: 0 | W20: 0 | Z20: 0 | AC20: 0
N21: 0 | Q21: 0 | T21: 0 | W21: 0 | Z21: 0 | AC21: 0
B22: So | N22: 0 | Q22: 0 | T22: 0 | W22: 0 | Z22: 0 | AC22: 0 | AG22: =SUM(N22:N24,Q22:Q24,T22:T24,W22:W24,Z22:Z24,AC22:AC24) -> 0
N23: 0 | Q23: 0 | T23: 0 | W23: 0 | Z23: 0 | AC23: 0
N24: 0 | Q24: 0 | T24: 0 | W24: 0 | Z24: 0 | AC24: 0
J25: Total | L25: =SUM(L4:L24) -> 0 | N25: =SUM(N4:N24) -> 0 | O25: =SUM(O4:O24) -> 0 | Q25: =SUM(Q4:Q24) -> 0 | R25: =SUM(R4:R24) -> 0 | T25: =SUM(T4:T24) -> 0 | U25: =SUM(U4:U24) -> 0 | W25: =SUM(W4:W24) -> 0 | X25: =SUM(X4:X24) -> 0 | Z25: =SUM(Z4:Z24) -> 0 | AA25: =SUM(AA4:AA24) -> 0 | AC25: =SUM(AC4:AC24) -> 0 | AE25: TOTAL LOAD | AG25: =SUM(AG4:AG24) -> 0
B26: avg | D26: =IF(COUNTA(D4:D24)=0,"",AVERAGE(D4:D24)) ->  | E26: =IF(COUNTA(E4:E24)=0,"",AVERAGE(E4:E24)) ->  | F26: =IF(COUNTA(F4:F24)=0,"",AVERAGE(F4:F24)) ->  | G26: =IF(COUNTA(G4:G24)=0,"",AVERAGE(G4:G24)) ->  | J26: Zone | L26: 1 | M26: 2 | N26: 3 | O26: 1 | P26: 2 | Q26: 3 | R26: 1 | S26: 2 | T26: 3 | U26: 1 | V26: 2 | W26: 3 | X26: 1 | Y26: 2 | Z26: 3 | AA26: 1 | AB26: 2 | AC26: 3 | AE26: Mittelwert | AG26: =AVERAGE(AG4:AG24) -> 0
J27: Einheiten pro Zone (RPE) | L27: =IF(Beanspruchungverteilung!$AT$21="x",COUNTIF(M4:M24,"<3.5"),COUNTIF(M4:M24,"<4.5")) -> 0 | M27: =COUNT(M4:M24)-(L27+N27) -> 0 | N27: =IF(Beanspruchungverteilung!$AT$21="x",COUNTIF(M4:M24,">5.5"),COUNTIF(M4:M24,">6.5")) -> 0 | O27: =IF(Beanspruchungverteilung!$AT$21="x",COUNTIF(P4:P24,"<3.5"),COUNTIF(P4:P24,"<4.5")) -> 0 | P27: =COUNT(P4:P24)-(O27+Q27) -> 0 | Q27: =IF(Beanspruchungverteilung!$AT$21="x",COUNTIF(P4:P24,">5.5"),COUNTIF(P4:P24,">6.5")) -> 0 | R27: =IF(Beanspruchungverteilung!$AT$21="x",COUNTIF(S4:S24,"<3.5"),COUNTIF(S4:S24,"<4.5")) -> 0 | S27: =COUNT(S4:S24)-(R27+T27) -> 0 | T27: =IF(Beanspruchungverteilung!$AT$21="x",COUNTIF(S4:S24,">5.5"),COUNTIF(S4:S24,">6.5")) -> 0 | U27: =IF(Beanspruchungverteilung!$AT$21="x",COUNTIF(V4:V24,"<3.5"),COUNTIF(V4:V24,"<4.5")) -> 0 | V27: =COUNT(V4:V24)-(U27+W27) -> 0 | W27: =IF(Beanspruchungverteilung!$AT$21="x",COUNTIF(V4:V24,">5.5"),COUNTIF(V4:V24,">6.5")) -> 0 | X27: =IF(Beanspruchungverteilung!$AT$21="x",COUNTIF(Y4:Y24,"<3.5"),COUNTIF(Y4:Y24,"<4.5")) -> 0 | Y27: =COUNT(Y4:Y24)-(X27+Z27) -> 0 | Z27: =IF(Beanspruchungverteilung!$AT$21="x",COUNTIF(Y4:Y24,">5.5"),COUNTIF(Y4:Y24,">6.5")) -> 0 | AA27: =IF(Beanspruchungverteilung!$AT$21="x",COUNTIF(AB4:AB24,"<3.5"),COUNTIF(AB4:AB24,"<4.5")) -> 0 | AB27: =COUNT(AB4:AB24)-(AA27+AC27) -> 0 | AC27: =IF(Beanspruchungverteilung!$AT$21="x",COUNTIF(AB4:AB24,">5.5"),COUNTIF(AB4:AB24,">6.5")) -> 0 | AE27: Standardabweichung | AG27: =STDEVP(AG4:AG24) -> 0
B28: Foster's Skala | G28: RPE | J28: Zeit pro Zone (RPE) | L28: =IF(Beanspruchungverteilung!$AT$21="x",SUMIF(M4:M24,"<3.5",L4:L24),SUMIF(M4:M24,"<4.5",L4:L24)) -> 0 | M28: =IF(M27=0,0,SUM((L25)-(L28+N28))) -> 0 | N28: =IF(Beanspruchungverteilung!$AT$21="x",SUMIF(M4:M24,">5.5",L4:L24),SUMIF(M4:M24,">6.5",L4:L24)) -> 0 | O28: =IF(Beanspruchungverteilung!$AT$21="x",SUMIF(P4:P24,"<3.5",O4:O24),SUMIF(P4:P24,"<4.5",O4:O24)) -> 0 | P28: =IF(P27=0,0,SUM((O25)-(O28+Q28))) -> 0 | Q28: =IF(Beanspruchungverteilung!$AT$21="x",SUMIF(P4:P24,">5.5",O4:O24),SUMIF(P4:P24,">6.5",O4:O24)) -> 0 | R28: =IF(Beanspruchungverteilung!$AT$21="x",SUMIF(S4:S24,"<3.5",R4:R24),SUMIF(S4:S24,"<4.5",R4:R24)) -> 0 | S28: =IF(S27=0,0,SUM((R25)-(R28+T28))) -> 0 | T28: =IF(Beanspruchungverteilung!$AT$21="x",SUMIF(S4:S24,">5.5",R4:R24),SUMIF(S4:S24,">6.5",R4:R24)) -> 0 | U28: =IF(Beanspruchungverteilung!$AT$21="x",SUMIF(V4:V24,"<3.5",U4:U24),SUMIF(V4:V24,"<4.5",U4:U24)) -> 0 | V28: =IF(V27=0,0,SUM((U25)-(U28+W28))) -> 0 | W28: =IF(Beanspruchungverteilung!$AT$21="x",SUMIF(V4:V24,">5.5",U4:U24),SUMIF(V4:V24,">6.5",U4:U24)) -> 0 | X28: =IF(Beanspruchungverteilung!$AT$21="x",SUMIF(Y4:Y24,"<3.5",X4:X24),SUMIF(Y4:Y24,"<4.5",X4:X24)) -> 0 | Y28: =IF(Y27=0,0,SUM((X25)-(X28+Z28))) -> 0 | Z28: =IF(Beanspruchungverteilung!$AT$21="x",SUMIF(Y4:Y24,">5.5",X4:X24),SUMIF(Y4:Y24,">6.5",X4:X24)) -> 0 | AA28: =IF(Beanspruchungverteilung!$AT$21="x",SUMIF(AB4:AB24,"<3.5",AA4:AA24),SUMIF(AB4:AB24,"<4.5",AA4:AA24)) -> 0 | AB28: =IF(AB27=0,0,SUM((AA25)-(AA28+AC28))) -> 0 | AC28: =IF(Beanspruchungverteilung!$AT$21="x",SUMIF(AB4:AB24,">5.5",AA4:AA24),SUMIF(AB4:AB24,">6.5",AA4:AA24)) -> 0
B29: Wie in Ruhe | G29: 0
B30: Sehr locker | G30: 1
B31: Locker | G31: 2 | AE31: Trainingstage | AG31: =IF(SUM(AG4:AG24)=0,"",COUNTIF(AG4:AG24,">0")) -> 
G32: 3
B33: Etwas hart | G33: 4 | AE33: Trainingseinheiten | AG33: =IF(AG31="","",SUM(L27:AC27)) -> 
B34: Hart | G34: 5
G35: 6 | AE35: Trainingsstunden | AG35: =IF(AG31="","",SUM(L25,O25,U25,X25,R25,AA25)/60) -> 
B36: Sehr hart | G36: 7
G37: 8 | AE37: Training Load | AG37: =IF(AG31="","",SUM(AG25)) -> 
B38: Extrem hart | G38: 9
B39: Wie mein härtestes Training | G39: 10 | AE39: Monotonie | AG39: =IF(AG31="","",(AVERAGE(AG4:AG24))/AG27) -> 
AE41: Trainingsanstrengung | AG41: =IF(AG31="","",AG37*AG39) -> 
AE43: =AI2 -> Lauf Km | AG43: =IF(AG31="","",SUM(AI4:AI24)) -> 
AE45: =AJ2 -> J | AG45: =IF(AG31="","",SUM(AJ4:AJ24)) -> 
AE47: =AK2 -> Swim Km | AG47: =IF(AG31="","",SUM(AK4:AK24)) -> 
AE49: =AL2 -> Mental Training | AG49: =IF(AG31="","",COUNTA(AL4:AL24)) -> 
AE51: =AM2 -> Regeneration | AG51: =IF(AG31="","",COUNTA(AM4:AM24)) -> 
Y155: =IF(Z155=1,52,Z155-1) -> 48 | Z155: =IF(AA155=1,52,AA155-1) -> 49 | AA155: =IF(AB155=1,52,AB155-1) -> 50 | AB155: =D1 -> 51 | AC155: =IF(AB155=52,1,AB155+1) -> 52 | AD155: =IF(AC155=52,1,AC155+1) -> 1

Sheet 52
C1: Woche | D1: =INT(MOD(INT((F1-2)/7)+0.6,52+5/28))+1 -> 52 | E1: =D1+1000 -> 1052 | F1: ='51'!F1+7 -> 2014-12-22 | G1: - | H1: =F1+6 -> 2014-12-28
B2: Tag | D2: ='45'!D2 -> Gewicht | E2: ='45'!E2 -> Erholt ? | F2: ='45'!F2 -> Schlaf | G2: ='45'!G2 -> Stress | I2: Trainigsbeschreibung | L2: ='45'!L2:N2 -> Dauerlauf | O2: ='45'!O2:Q2 -> Bahn/Intervall | R2: ='45'!R2:T2 -> Sprint/Koord/Tech | U2: ='45'!U2:W2 -> Kraft | X2: ='45'!X2:Z2 -> Alternativ | AA2: ='45'!AA2:AC2 -> Divers | AE2: Bemerkungen | AG2: Load/Tag | AI2: ='45'!AI2:AI3 -> Lauf Km | AJ2: ='45'!AJ2:AJ3 -> J | AK2: ='45'!AK2:AK3 -> Swim Km | AL2: ='45'!AL2:AL3 -> Mental Training | AM2: ='45'!AM2:AM3 -> Regeneration
D3: ='45'!D3 -> kg | E3: ='45'!E3 -> [-3….+3] | F3: ='45'!F3 -> 1-6 | G3: ='45'!G3 -> 0, 1, 2, 3 | L3: Dauer | M3: RPE | N3: Load | O3: Dauer | P3: RPE | Q3: Load | R3: Dauer | S3: RPE | T3: Load | U3: Dauer | V3: RPE | W3: Load | X3: Dauer | Y3: RPE | Z3: Load | AA3: Dauer | AB3: RPE | AC3: Load
B4: Mo | N4: =L4*M4 -> 0 | Q4: =O4*P4 -> 0 | T4: =R4*S4 -> 0 | W4: =U4*V4 -> 0 | Z4: =X4*Y4 -> 0 | AC4: =AA4*AB4 -> 0 | AG4: =SUM(N4:N6,Q4:Q6,T4:T6,W4:W6,Z4:Z6,AC4:AC6) -> 0
N5: 0 | Q5: 0 | T5: 0 | W5: 0 | Z5: 0 | AC5: 0
N6: 0 | Q6: 0 | T6: 0 | W6: 0 | Z6: 0 | AC6: 0
B7: Di | N7: 0 | Q7: 0 | T7: 0 | W7: 0 | Z7: 0 | AC7: 0 | AG7: =SUM(N7:N9,Q7:Q9,T7:T9,W7:W9,Z7:Z9,AC7:AC9) -> 0
N8: 0 | Q8: 0 | T8: 0 | W8: 0 | Z8: 0 | AC8: 0
N9: 0 | Q9: 0 | T9: 0 | W9: 0 | Z9: 0 | AC9: 0
B10: Mi | N10: 0 | Q10: 0 | T10: 0 | W10: 0 | Z10: 0 | AC10: 0 | AG10: =SUM(N10:N12,Q10:Q12,T10:T12,W10:W12,Z10:Z12,AC10:AC12) -> 0
N11: 0 | Q11: 0 | T11: 0 | W11: 0 | Z11: 0 | AC11: 0
N12: 0 | Q12: 0 | T12: 0 | W12: 0 | Z12: 0 | AC12: 0
B13: Do | N13: 0 | Q13: 0 | T13: 0 | W13: 0 | Z13: 0 | AC13: 0 | AG13: =SUM(N13:N15,Q13:Q15,T13:T15,W13:W15,Z13:Z15,AC13:AC15) -> 0
N14: 0 | Q14: 0 | T14: 0 | W14: 0 | Z14: 0 | AC14: 0
N15: 0 | Q15: 0 | T15: 0 | W15: 0 | Z15: 0 | AC15: 0
B16: Fr | N16: 0 | Q16: 0 | T16: 0 | W16: 0 | Z16: 0 | AC16: 0 | AG16: =SUM(N16:N18,Q16:Q18,T16:T18,W16:W18,Z16:Z18,AC16:AC18) -> 0
N17: 0 | Q17: 0 | T17: 0 | W17: 0 | Z17: 0 | AC17: 0
N18: 0 | Q18: 0 | T18: 0 | W18: 0 | Z18: 0 | AC18: 0
B19: Sa | N19: 0 | Q19: 0 | T19: 0 | W19: 0 | Z19: 0 | AC19: 0 | AG19: =SUM(N19:N21,Q19:Q21,T19:T21,W19:W21,Z19:Z21,AC19:AC21) -> 0
N20: 0 | Q20: 0 | T20: 0 | W20: 0 | Z20: 0 | AC20: 0
N21: 0 | Q21: 0 | T21: 0 | W21: 0 | Z21: 0 | AC21: 0
B22: So | N22: 0 | Q22: 0 | T22: 0 | W22: 0 | Z22: 0 | AC22: 0 | AG22: =SUM(N22:N24,Q22:Q24,T22:T24,W22:W24,Z22:Z24,AC22:AC24) -> 0
N23: 0 | Q23: 0 | T23: 0 | W23: 0 | Z23: 0 | AC23: 0
N24: 0 | Q24: 0 | T24: 0 | W24: 0 | Z24: 0 | AC24: 0
J25: Total | L25: =SUM(L4:L24) -> 0 | N25: =SUM(N4:N24) -> 0 | O25: =SUM(O4:O24) -> 0 | Q25: =SUM(Q4:Q24) -> 0 | R25: =SUM(R4:R24) -> 0 | T25: =SUM(T4:T24) -> 0 | U25: =SUM(U4:U24) -> 0 | W25: =SUM(W4:W24) -> 0 | X25: =SUM(X4:X24) -> 0 | Z25: =SUM(Z4:Z24) -> 0 | AA25: =SUM(AA4:AA24) -> 0 | AC25: =SUM(AC4:AC24) -> 0 | AE25: TOTAL LOAD | AG25: =SUM(AG4:AG24) -> 0
B26: avg | D26: =IF(COUNTA(D4:D24)=0,"",AVERAGE(D4:D24)) ->  | E26: =IF(COUNTA(E4:E24)=0,"",AVERAGE(E4:E24)) ->  | F26: =IF(COUNTA(F4:F24)=0,"",AVERAGE(F4:F24)) ->  | G26: =IF(COUNTA(G4:G24)=0,"",AVERAGE(G4:G24)) ->  | J26: Zone | L26: 1 | M26: 2 | N26: 3 | O26: 1 | P26: 2 | Q26: 3 | R26: 1 | S26: 2 | T26: 3 | U26: 1 | V26: 2 | W26: 3 | X26: 1 | Y26: 2 | Z26: 3 | AA26: 1 | AB26: 2 | AC26: 3 | AE26: Mittelwert | AG26: =AVERAGE(AG4:AG24) -> 0
J27: Einheiten pro Zone (RPE) | L27: =IF(Beanspruchungverteilung!$AT$21="x",COUNTIF(M4:M24,"<3.5"),COUNTIF(M4:M24,"<4.5")) -> 0 | M27: =COUNT(M4:M24)-(L27+N27) -> 0 | N27: =IF(Beanspruchungverteilung!$AT$21="x",COUNTIF(M4:M24,">5.5"),COUNTIF(M4:M24,">6.5")) -> 0 | O27: =IF(Beanspruchungverteilung!$AT$21="x",COUNTIF(P4:P24,"<3.5"),COUNTIF(P4:P24,"<4.5")) -> 0 | P27: =COUNT(P4:P24)-(O27+Q27) -> 0 | Q27: =IF(Beanspruchungverteilung!$AT$21="x",COUNTIF(P4:P24,">5.5"),COUNTIF(P4:P24,">6.5")) -> 0 | R27: =IF(Beanspruchungverteilung!$AT$21="x",COUNTIF(S4:S24,"<3.5"),COUNTIF(S4:S24,"<4.5")) -> 0 | S27: =COUNT(S4:S24)-(R27+T27) -> 0 | T27: =IF(Beanspruchungverteilung!$AT$21="x",COUNTIF(S4:S24,">5.5"),COUNTIF(S4:S24,">6.5")) -> 0 | U27: =IF(Beanspruchungverteilung!$AT$21="x",COUNTIF(V4:V24,"<3.5"),COUNTIF(V4:V24,"<4.5")) -> 0 | V27: =COUNT(V4:V24)-(U27+W27) -> 0 | W27: =IF(Beanspruchungverteilung!$AT$21="x",COUNTIF(V4:V24,">5.5"),COUNTIF(V4:V24,">6.5")) -> 0 | X27: =IF(Beanspruchungverteilung!$AT$21="x",COUNTIF(Y4:Y24,"<3.5"),COUNTIF(Y4:Y24,"<4.5")) -> 0 | Y27: =COUNT(Y4:Y24)-(X27+Z27) -> 0 | Z27: =IF(Beanspruchungverteilung!$AT$21="x",COUNTIF(Y4:Y24,">5.5"),COUNTIF(Y4:Y24,">6.5")) -> 0 | AA27: =IF(Beanspruchungverteilung!$AT$21="x",COUNTIF(AB4:AB24,"<3.5"),COUNTIF(AB4:AB24,"<4.5")) -> 0 | AB27: =COUNT(AB4:AB24)-(AA27+AC27) -> 0 | AC27: =IF(Beanspruchungverteilung!$AT$21="x",COUNTIF(AB4:AB24,">5.5"),COUNTIF(AB4:AB24,">6.5")) -> 0 | AE27: Standardabweichung | AG27: =STDEVP(AG4:AG24) -> 0
B28: Foster's Skala | G28: RPE | J28: Zeit pro Zone (RPE) | L28: =IF(Beanspruchungverteilung!$AT$21="x",SUMIF(M4:M24,"<3.5",L4:L24),SUMIF(M4:M24,"<4.5",L4:L24)) -> 0 | M28: =IF(M27=0,0,SUM((L25)-(L28+N28))) -> 0 | N28: =IF(Beanspruchungverteilung!$AT$21="x",SUMIF(M4:M24,">5.5",L4:L24),SUMIF(M4:M24,">6.5",L4:L24)) -> 0 | O28: =IF(Beanspruchungverteilung!$AT$21="x",SUMIF(P4:P24,"<3.5",O4:O24),SUMIF(P4:P24,"<4.5",O4:O24)) -> 0 | P28: =IF(P27=0,0,SUM((O25)-(O28+Q28))) -> 0 | Q28: =IF(Beanspruchungverteilung!$AT$21="x",SUMIF(P4:P24,">5.5",O4:O24),SUMIF(P4:P24,">6.5",O4:O24)) -> 0 | R28: =IF(Beanspruchungverteilung!$AT$21="x",SUMIF(S4:S24,"<3.5",R4:R24),SUMIF(S4:S24,"<4.5",R4:R24)) -> 0 | S28: =IF(S27=0,0,SUM((R25)-(R28+T28))) -> 0 | T28: =IF(Beanspruchungverteilung!$AT$21="x",SUMIF(S4:S24,">5.5",R4:R24),SUMIF(S4:S24,">6.5",R4:R24)) -> 0 | U28: =IF(Beanspruchungverteilung!$AT$21="x",SUMIF(V4:V24,"<3.5",U4:U24),SUMIF(V4:V24,"<4.5",U4:U24)) -> 0 | V28: =IF(V27=0,0,SUM((U25)-(U28+W28))) -> 0 | W28: =IF(Beanspruchungverteilung!$AT$21="x",SUMIF(V4:V24,">5.5",U4:U24),SUMIF(V4:V24,">6.5",U4:U24)) -> 0 | X28: =IF(Beanspruchungverteilung!$AT$21="x",SUMIF(Y4:Y24,"<3.5",X4:X24),SUMIF(Y4:Y24,"<4.5",X4:X24)) -> 0 | Y28: =IF(Y27=0,0,SUM((X25)-(X28+Z28))) -> 0 | Z28: =IF(Beanspruchungverteilung!$AT$21="x",SUMIF(Y4:Y24,">5.5",X4:X24),SUMIF(Y4:Y24,">6.5",X4:X24)) -> 0 | AA28: =IF(Beanspruchungverteilung!$AT$21="x",SUMIF(AB4:AB24,"<3.5",AA4:AA24),SUMIF(AB4:AB24,"<4.5",AA4:AA24)) -> 0 | AB28: =IF(AB27=0,0,SUM((AA25)-(AA28+AC28))) -> 0 | AC28: =IF(Beanspruchungverteilung!$AT$21="x",SUMIF(AB4:AB24,">5.5",AA4:AA24),SUMIF(AB4:AB24,">6.5",AA4:AA24)) -> 0
B29: Wie in Ruhe | G29: 0
B30: Sehr locker | G30: 1
B31: Locker | G31: 2 | AE31: Trainingstage | AG31: =IF(SUM(AG4:AG24)=0,"",COUNTIF(AG4:AG24,">0")) -> 
G32: 3
B33: Etwas hart | G33: 4 | AE33: Trainingseinheiten | AG33: =IF(AG31="","",SUM(L27:AC27)) -> 
B34: Hart | G34: 5
G35: 6 | AE35: Trainingsstunden | AG35: =IF(AG31="","",SUM(L25,O25,U25,X25,R25,AA25)/60) -> 
B36: Sehr hart | G36: 7
G37: 8 | AE37: Training Load | AG37: =IF(AG31="","",SUM(AG25)) -> 
B38: Extrem hart | G38: 9
B39: Wie mein härtestes Training | G39: 10 | AE39: Monotonie | AG39: =IF(AG31="","",(AVERAGE(AG4:AG24))/AG27) -> 
AE41: Trainingsanstrengung | AG41: =IF(AG31="","",AG37*AG39) -> 
AE43: =AI2 -> Lauf Km | AG43: =IF(AG31="","",SUM(AI4:AI24)) -> 
AE45: =AJ2 -> J | AG45: =IF(AG31="","",SUM(AJ4:AJ24)) -> 
AE47: =AK2 -> Swim Km | AG47: =IF(AG31="","",SUM(AK4:AK24)) -> 
AE49: =AL2 -> Mental Training | AG49: =IF(AG31="","",COUNTA(AL4:AL24)) -> 
AE51: =AM2 -> Regeneration | AG51: =IF(AG31="","",COUNTA(AM4:AM24)) -> 
Y155: =IF(Z155=1,52,Z155-1) -> 49 | Z155: =IF(AA155=1,52,AA155-1) -> 50 | AA155: =IF(AB155=1,52,AB155-1) -> 51 | AB155: =D1 -> 52 | AC155: =IF(AB155=52,1,AB155+1) -> 1 | AD155: =IF(AC155=52,1,AC155+1) -> 2

Sheet 1
C1: Woche | D1: =INT(MOD(INT((F1-2)/7)+0.6,52+5/28))+1 -> 1 | E1: =D1+1000 -> 1001 | F1: ='52'!F1+7 -> 2014-12-29 | G1: - | H1: =F1+6 -> 2015-01-04
B2: Tag | D2: ='45'!D2 -> Gewicht | E2: ='45'!E2 -> Erholt ? | F2: ='45'!F2 -> Schlaf | G2: ='45'!G2 -> Stress | I2: Trainigsbeschreibung | L2: ='45'!L2:N2 -> Dauerlauf | O2: ='45'!O2:Q2 -> Bahn/Intervall | R2: ='45'!R2:T2 -> Sprint/Koord/Tech | U2: ='45'!U2:W2 -> Kraft | X2: ='45'!X2:Z2 -> Alternativ | AA2: ='45'!AA2:AC2 -> Divers | AE2: Bemerkungen | AG2: Load/Tag | AI2: ='45'!AI2:AI3 -> Lauf Km | AJ2: ='45'!AJ2:AJ3 -> J | AK2: ='45'!AK2:AK3 -> Swim Km | AL2: ='45'!AL2:AL3 -> Mental Training | AM2: ='45'!AM2:AM3 -> Regeneration
D3: ='45'!D3 -> kg | E3: ='45'!E3 -> [-3….+3] | F3: ='45'!F3 -> 1-6 | G3: ='45'!G3 -> 0, 1, 2, 3 | L3: Dauer | M3: RPE | N3: Load | O3: Dauer | P3: RPE | Q3: Load | R3: Dauer | S3: RPE | T3: Load | U3: Dauer | V3: RPE | W3: Load | X3: Dauer | Y3: RPE | Z3: Load | AA3: Dauer | AB3: RPE | AC3: Load
B4: Mo | N4: =L4*M4 -> 0 | Q4: =O4*P4 -> 0 | T4: =R4*S4 -> 0 | W4: =U4*V4 -> 0 | Z4: =X4*Y4 -> 0 | AC4: =AA4*AB4 -> 0 | AG4: =SUM(N4:N6,Q4:Q6,T4:T6,W4:W6,Z4:Z6,AC4:AC6) -> 0
N5: 0 | Q5: 0 | T5: 0 | W5: 0 | Z5: 0 | AC5: 0
N6: 0 | Q6: 0 | T6: 0 | W6: 0 | Z6: 0 | AC6: 0
B7: Di | N7: 0 | Q7: 0 | T7: 0 | W7: 0 | Z7: 0 | AC7: 0 | AG7: =SUM(N7:N9,Q7:Q9,T7:T9,W7:W9,Z7:Z9,AC7:AC9) -> 0
N8: 0 | Q8: 0 | T8: 0 | W8: 0 | Z8: 0 | AC8: 0
N9: 0 | Q9: 0 | T9: 0 | W9: 0 | Z9: 0 | AC9: 0
B10: Mi | N10: 0 | Q10: 0 | T10: 0 | W10: 0 | Z10: 0 | AC10: 0 | AG10: =SUM(N10:N12,Q10:Q12,T10:T12,W10:W12,Z10:Z12,AC10:AC12) -> 0
N11: 0 | Q11: 0 | T11: 0 | W11: 0 | Z11: 0 | AC11: 0
N12: 0 | Q12: 0 | T12: 0 | W12: 0 | Z12: 0 | AC12: 0
B13: Do | N13: 0 | Q13: 0 | T13: 0 | W13: 0 | Z13: 0 | AC13: 0 | AG13: =SUM(N13:N15,Q13:Q15,T13:T15,W13:W15,Z13:Z15,AC13:AC15) -> 0
N14: 0 | Q14: 0 | T14: 0 | W14: 0 | Z14: 0 | AC14: 0
N15: 0 | Q15: 0 | T15: 0 | W15: 0 | Z15: 0 | AC15: 0
B16: Fr | N16: 0 | Q16: 0 | T16: 0 | W16: 0 | Z16: 0 | AC16: 0 | AG16: =SUM(N16:N18,Q16:Q18,T16:T18,W16:W18,Z16:Z18,AC16:AC18) -> 0
N17: 0 | Q17: 0 | T17: 0 | W17: 0 | Z17: 0 | AC17: 0
N18: 0 | Q18: 0 | T18: 0 | W18: 0 | Z18: 0 | AC18: 0
B19: Sa | N19: 0 | Q19: 0 | T19: 0 | W19: 0 | Z19: 0 | AC19: 0 | AG19: =SUM(N19:N21,Q19:Q21,T19:T21,W19:W21,Z19:Z21,AC19:AC21) -> 0
N20: 0 | Q20: 0 | T20: 0 | W20: 0 | Z20: 0 | AC20: 0
N21: 0 | Q21: 0 | T21: 0 | W21: 0 | Z21: 0 | AC21: 0
B22: So | N22: 0 | Q22: 0 | T22: 0 | W22: 0 | Z22: 0 | AC22: 0 | AG22: =SUM(N22:N24,Q22:Q24,T22:T24,W22:W24,Z22:Z24,AC22:AC24) -> 0
N23: 0 | Q23: 0 | T23: 0 | W23: 0 | Z23: 0 | AC23: 0
N24: 0 | Q24: 0 | T24: 0 | W24: 0 | Z24: 0 | AC24: 0
J25: Total | L25: =SUM(L4:L24) -> 0 | N25: =SUM(N4:N24) -> 0 | O25: =SUM(O4:O24) -> 0 | Q25: =SUM(Q4:Q24) -> 0 | R25: =SUM(R4:R24) -> 0 | T25: =SUM(T4:T24) -> 0 | U25: =SUM(U4:U24) -> 0 | W25: =SUM(W4:W24) -> 0 | X25: =SUM(X4:X24) -> 0 | Z25: =SUM(Z4:Z24) -> 0 | AA25: =SUM(AA4:AA24) -> 0 | AC25: =SUM(AC4:AC24) -> 0 | AE25: TOTAL LOAD | AG25: =SUM(AG4:AG24) -> 0
B26: avg | D26: =IF(COUNTA(D4:D24)=0,"",AVERAGE(D4:D24)) ->  | E26: =IF(COUNTA(E4:E24)=0,"",AVERAGE(E4:E24)) ->  | F26: =IF(COUNTA(F4:F24)=0,"",AVERAGE(F4:F24)) ->  | G26: =IF(COUNTA(G4:G24)=0,"",AVERAGE(G4:G24)) ->  | J26: Zone | L26: 1 | M26: 2 | N26: 3 | O26: 1 | P26: 2 | Q26: 3 | R26: 1 | S26: 2 | T26: 3 | U26: 1 | V26: 2 | W26: 3 | X26: 1 | Y26: 2 | Z26: 3 | AA26: 1 | AB26: 2 | AC26: 3 | AE26: Mittelwert | AG26: =AVERAGE(AG4:AG24) -> 0
J27: Einheiten pro Zone (RPE) | L27: =IF(Beanspruchungverteilung!$AT$21="x",COUNTIF(M4:M24,"<3.5"),COUNTIF(M4:M24,"<4.5")) -> 0 | M27: =COUNT(M4:M24)-(L27+N27) -> 0 | N27: =IF(Beanspruchungverteilung!$AT$21="x",COUNTIF(M4:M24,">5.5"),COUNTIF(M4:M24,">6.5")) -> 0 | O27: =IF(Beanspruchungverteilung!$AT$21="x",COUNTIF(P4:P24,"<3.5"),COUNTIF(P4:P24,"<4.5")) -> 0 | P27: =COUNT(P4:P24)-(O27+Q27) -> 0 | Q27: =IF(Beanspruchungverteilung!$AT$21="x",COUNTIF(P4:P24,">5.5"),COUNTIF(P4:P24,">6.5")) -> 0 | R27: =IF(Beanspruchungverteilung!$AT$21="x",COUNTIF(S4:S24,"<3.5"),COUNTIF(S4:S24,"<4.5")) -> 0 | S27: =COUNT(S4:S24)-(R27+T27) -> 0 | T27: =IF(Beanspruchungverteilung!$AT$21="x",COUNTIF(S4:S24,">5.5"),COUNTIF(S4:S24,">6.5")) -> 0 | U27: =IF(Beanspruchungverteilung!$AT$21="x",COUNTIF(V4:V24,"<3.5"),COUNTIF(V4:V24,"<4.5")) -> 0 | V27: =COUNT(V4:V24)-(U27+W27) -> 0 | W27: =IF(Beanspruchungverteilung!$AT$21="x",COUNTIF(V4:V24,">5.5"),COUNTIF(V4:V24,">6.5")) -> 0 | X27: =IF(Beanspruchungverteilung!$AT$21="x",COUNTIF(Y4:Y24,"<3.5"),COUNTIF(Y4:Y24,"<4.5")) -> 0 | Y27: =COUNT(Y4:Y24)-(X27+Z27) -> 0 | Z27: =IF(Beanspruchungverteilung!$AT$21="x",COUNTIF(Y4:Y24,">5.5"),COUNTIF(Y4:Y24,">6.5")) -> 0 | AA27: =IF(Beanspruchungverteilung!$AT$21="x",COUNTIF(AB4:AB24,"<3.5"),COUNTIF(AB4:AB24,"<4.5")) -> 0 | AB27: =COUNT(AB4:AB24)-(AA27+AC27) -> 0 | AC27: =IF(Beanspruchungverteilung!$AT$21="x",COUNTIF(AB4:AB24,">5.5"),COUNTIF(AB4:AB24,">6.5")) -> 0 | AE27: Standardabweichung | AG27: =STDEVP(AG4:AG24) -> 0
B28: Foster's Skala | G28: RPE | J28: Zeit pro Zone (RPE) | L28: =IF(Beanspruchungverteilung!$AT$21="x",SUMIF(M4:M24,"<3.5",L4:L24),SUMIF(M4:M24,"<4.5",L4:L24)) -> 0 | M28: =IF(M27=0,0,SUM((L25)-(L28+N28))) -> 0 | N28: =IF(Beanspruchungverteilung!$AT$21="x",SUMIF(M4:M24,">5.5",L4:L24),SUMIF(M4:M24,">6.5",L4:L24)) -> 0 | O28: =IF(Beanspruchungverteilung!$AT$21="x",SUMIF(P4:P24,"<3.5",O4:O24),SUMIF(P4:P24,"<4.5",O4:O24)) -> 0 | P28: =IF(P27=0,0,SUM((O25)-(O28+Q28))) -> 0 | Q28: =IF(Beanspruchungverteilung!$AT$21="x",SUMIF(P4:P24,">5.5",O4:O24),SUMIF(P4:P24,">6.5",O4:O24)) -> 0 | R28: =IF(Beanspruchungverteilung!$AT$21="x",SUMIF(S4:S24,"<3.5",R4:R24),SUMIF(S4:S24,"<4.5",R4:R24)) -> 0 | S28: =IF(S27=0,0,SUM((R25)-(R28+T28))) -> 0 | T28: =IF(Beanspruchungverteilung!$AT$21="x",SUMIF(S4:S24,">5.5",R4:R24),SUMIF(S4:S24,">6.5",R4:R24)) -> 0 | U28: =IF(Beanspruchungverteilung!$AT$21="x",SUMIF(V4:V24,"<3.5",U4:U24),SUMIF(V4:V24,"<4.5",U4:U24)) -> 0 | V28: =IF(V27=0,0,SUM((U25)-(U28+W28))) -> 0 | W28: =IF(Beanspruchungverteilung!$AT$21="x",SUMIF(V4:V24,">5.5",U4:U24),SUMIF(V4:V24,">6.5",U4:U24)) -> 0 | X28: =IF(Beanspruchungverteilung!$AT$21="x",SUMIF(Y4:Y24,"<3.5",X4:X24),SUMIF(Y4:Y24,"<4.5",X4:X24)) -> 0 | Y28: =IF(Y27=0,0,SUM((X25)-(X28+Z28))) -> 0 | Z28: =IF(Beanspruchungverteilung!$AT$21="x",SUMIF(Y4:Y24,">5.5",X4:X24),SUMIF(Y4:Y24,">6.5",X4:X24)) -> 0 | AA28: =IF(Beanspruchungverteilung!$AT$21="x",SUMIF(AB4:AB24,"<3.5",AA4:AA24),SUMIF(AB4:AB24,"<4.5",AA4:AA24)) -> 0 | AB28: =IF(AB27=0,0,SUM((AA25)-(AA28+AC28))) -> 0 | AC28: =IF(Beanspruchungverteilung!$AT$21="x",SUMIF(AB4:AB24,">5.5",AA4:AA24),SUMIF(AB4:AB24,">6.5",AA4:AA24)) -> 0
B29: Wie in Ruhe | G29: 0
B30: Sehr locker | G30: 1
B31: Locker | G31: 2 | AE31: Trainingstage | AG31: =IF(SUM(AG4:AG24)=0,"",COUNTIF(AG4:AG24,">0")) -> 
G32: 3
B33: Etwas hart | G33: 4 | AE33: Trainingseinheiten | AG33: =IF(AG31="","",SUM(L27:AC27)) -> 
B34: Hart | G34: 5
G35: 6 | AE35: Trainingsstunden | AG35: =IF(AG31="","",SUM(L25,O25,U25,X25,R25,AA25)/60) -> 
B36: Sehr hart | G36: 7
G37: 8 | AE37: Training Load | AG37: =IF(AG31="","",SUM(AG25)) -> 
B38: Extrem hart | G38: 9
B39: Wie mein härtestes Training | G39: 10 | AE39: Monotonie | AG39: =IF(AG31="","",(AVERAGE(AG4:AG24))/AG27) -> 
AE41: Trainingsanstrengung | AG41: =IF(AG31="","",AG37*AG39) -> 
AE43: =AI2 -> Lauf Km | AG43: =IF(AG31="","",SUM(AI4:AI24)) -> 
AE45: =AJ2 -> J | AG45: =IF(AG31="","",SUM(AJ4:AJ24)) -> 
AE47: =AK2 -> Swim Km | AG47: =IF(AG31="","",SUM(AK4:AK24)) -> 
AE49: =AL2 -> Mental Training | AG49: =IF(AG31="","",COUNTA(AL4:AL24)) -> 
AE51: =AM2 -> Regeneration | AG51: =IF(AG31="","",COUNTA(AM4:AM24)) -> 
Y155: =IF(Z155=1,52,Z155-1) -> 50 | Z155: =IF(AA155=1,52,AA155-1) -> 51 | AA155: =IF(AB155=1,52,AB155-1) -> 52 | AB155: =D1 -> 1 | AC155: =IF(AB155=52,1,AB155+1) -> 2 | AD155: =IF(AC155=52,1,AC155+1) -> 3

Sheet 2
C1: Woche | D1: =INT(MOD(INT((F1-2)/7)+0.6,52+5/28))+1 -> 2 | E1: =D1+1000 -> 1002 | F1: ='1'!F1+7 -> 2015-01-05 | G1: - | H1: =F1+6 -> 2015-01-11
B2: Tag | D2: ='45'!D2 -> Gewicht | E2: ='45'!E2 -> Erholt ? | F2: ='45'!F2 -> Schlaf | G2: ='45'!G2 -> Stress | I2: Trainigsbeschreibung | L2: ='45'!L2:N2 -> Dauerlauf | O2: ='45'!O2:Q2 -> Bahn/Intervall | R2: ='45'!R2:T2 -> Sprint/Koord/Tech | U2: ='45'!U2:W2 -> Kraft | X2: ='45'!X2:Z2 -> Alternativ | AA2: ='45'!AA2:AC2 -> Divers | AE2: Bemerkungen | AG2: Load/Tag | AI2: ='45'!AI2:AI3 -> Lauf Km | AJ2: ='45'!AJ2:AJ3 -> J | AK2: ='45'!AK2:AK3 -> Swim Km | AL2: ='45'!AL2:AL3 -> Mental Training | AM2: ='45'!AM2:AM3 -> Regeneration
D3: ='45'!D3 -> kg | E3: ='45'!E3 -> [-3….+3] | F3: ='45'!F3 -> 1-6 | G3: ='45'!G3 -> 0, 1, 2, 3 | L3: Dauer | M3: RPE | N3: Load | O3: Dauer | P3: RPE | Q3: Load | R3: Dauer | S3: RPE | T3: Load | U3: Dauer | V3: RPE | W3: Load | X3: Dauer | Y3: RPE | Z3: Load | AA3: Dauer | AB3: RPE | AC3: Load
B4: Mo | N4: =L4*M4 -> 0 | Q4: =O4*P4 -> 0 | T4: =R4*S4 -> 0 | W4: =U4*V4 -> 0 | Z4: =X4*Y4 -> 0 | AC4: =AA4*AB4 -> 0 | AG4: =SUM(N4:N6,Q4:Q6,T4:T6,W4:W6,Z4:Z6,AC4:AC6) -> 0
N5: 0 | Q5: 0 | T5: 0 | W5: 0 | Z5: 0 | AC5: 0
N6: 0 | Q6: 0 | T6: 0 | W6: 0 | Z6: 0 | AC6: 0
B7: Di | N7: 0 | Q7: 0 | T7: 0 | W7: 0 | Z7: 0 | AC7: 0 | AG7: =SUM(N7:N9,Q7:Q9,T7:T9,W7:W9,Z7:Z9,AC7:AC9) -> 0
N8: 0 | Q8: 0 | T8: 0 | W8: 0 | Z8: 0 | AC8: 0
N9: 0 | Q9: 0 | T9: 0 | W9: 0 | Z9: 0 | AC9: 0
B10: Mi | N10: 0 | Q10: 0 | T10: 0 | W10: 0 | Z10: 0 | AC10: 0 | AG10: =SUM(N10:N12,Q10:Q12,T10:T12,W10:W12,Z10:Z12,AC10:AC12) -> 0
N11: 0 | Q11: 0 | T11: 0 | W11: 0 | Z11: 0 | AC11: 0
N12: 0 | Q12: 0 | T12: 0 | W12: 0 | Z12: 0 | AC12: 0
B13: Do | N13: 0 | Q13: 0 | T13: 0 | W13: 0 | Z13: 0 | AC13: 0 | AG13: =SUM(N13:N15,Q13:Q15,T13:T15,W13:W15,Z13:Z15,AC13:AC15) -> 0
N14: 0 | Q14: 0 | T14: 0 | W14: 0 | Z14: 0 | AC14: 0
N15: 0 | Q15: 0 | T15: 0 | W15: 0 | Z15: 0 | AC15: 0
B16: Fr | N16: 0 | Q16: 0 | T16: 0 | W16: 0 | Z16: 0 | AC16: 0 | AG16: =SUM(N16:N18,Q16:Q18,T16:T18,W16:W18,Z16:Z18,AC16:AC18) -> 0
N17: 0 | Q17: 0 | T17: 0 | W17: 0 | Z17: 0 | AC17: 0
N18: 0 | Q18: 0 | T18: 0 | W18: 0 | Z18: 0 | AC18: 0
B19: Sa | N19: 0 | Q19: 0 | T19: 0 | W19: 0 | Z19: 0 | AC19: 0 | AG19: =SUM(N19:N21,Q19:Q21,T19:T21,W19:W21,Z19:Z21,AC19:AC21) -> 0
N20: 0 | Q20: 0 | T20: 0 | W20: 0 | Z20: 0 | AC20: 0
N21: 0 | Q21: 0 | T21: 0 | W21: 0 | Z21: 0 | AC21: 0
B22: So | N22: 0 | Q22: 0 | T22: 0 | W22: 0 | Z22: 0 | AC22: 0 | AG22: =SUM(N22:N24,Q22:Q24,T22:T24,W22:W24,Z22:Z24,AC22:AC24) -> 0
N23: 0 | Q23: 0 | T23: 0 | W23: 0 | Z23: 0 | AC23: 0
N24: 0 | Q24: 0 | T24: 0 | W24: 0 | Z24: 0 | AC24: 0
J25: Total | L25: =SUM(L4:L24) -> 0 | N25: =SUM(N4:N24) -> 0 | O25: =SUM(O4:O24) -> 0 | Q25: =SUM(Q4:Q24) -> 0 | R25: =SUM(R4:R24) -> 0 | T25: =SUM(T4:T24) -> 0 | U25: =SUM(U4:U24) -> 0 | W25: =SUM(W4:W24) -> 0 | X25: =SUM(X4:X24) -> 0 | Z25: =SUM(Z4:Z24) -> 0 | AA25: =SUM(AA4:AA24) -> 0 | AC25: =SUM(AC4:AC24) -> 0 | AE25: TOTAL LOAD | AG25: =SUM(AG4:AG24) -> 0
B26: avg | D26: =IF(COUNTA(D4:D24)=0,"",AVERAGE(D4:D24)) ->  | E26: =IF(COUNTA(E4:E24)=0,"",AVERAGE(E4:E24)) ->  | F26: =IF(COUNTA(F4:F24)=0,"",AVERAGE(F4:F24)) ->  | G26: =IF(COUNTA(G4:G24)=0,"",AVERAGE(G4:G24)) ->  | J26: Zone | L26: 1 | M26: 2 | N26: 3 | O26: 1 | P26: 2 | Q26: 3 | R26: 1 | S26: 2 | T26: 3 | U26: 1 | V26: 2 | W26: 3 | X26: 1 | Y26: 2 | Z26: 3 | AA26: 1 | AB26: 2 | AC26: 3 | AE26: Mittelwert | AG26: =AVERAGE(AG4:AG24) -> 0
J27: Einheiten pro Zone (RPE) | L27: =IF(Beanspruchungverteilung!$AT$21="x",COUNTIF(M4:M24,"<3.5"),COUNTIF(M4:M24,"<4.5")) -> 0 | M27: =COUNT(M4:M24)-(L27+N27) -> 0 | N27: =IF(Beanspruchungverteilung!$AT$21="x",COUNTIF(M4:M24,">5.5"),COUNTIF(M4:M24,">6.5")) -> 0 | O27: =IF(Beanspruchungverteilung!$AT$21="x",COUNTIF(P4:P24,"<3.5"),COUNTIF(P4:P24,"<4.5")) -> 0 | P27: =COUNT(P4:P24)-(O27+Q27) -> 0 | Q27: =IF(Beanspruchungverteilung!$AT$21="x",COUNTIF(P4:P24,">5.5"),COUNTIF(P4:P24,">6.5")) -> 0 | R27: =IF(Beanspruchungverteilung!$AT$21="x",COUNTIF(S4:S24,"<3.5"),COUNTIF(S4:S24,"<4.5")) -> 0 | S27: =COUNT(S4:S24)-(R27+T27) -> 0 | T27: =IF(Beanspruchungverteilung!$AT$21="x",COUNTIF(S4:S24,">5.5"),COUNTIF(S4:S24,">6.5")) -> 0 | U27: =IF(Beanspruchungverteilung!$AT$21="x",COUNTIF(V4:V24,"<3.5"),COUNTIF(V4:V24,"<4.5")) -> 0 | V27: =COUNT(V4:V24)-(U27+W27) -> 0 | W27: =IF(Beanspruchungverteilung!$AT$21="x",COUNTIF(V4:V24,">5.5"),COUNTIF(V4:V24,">6.5")) -> 0 | X27: =IF(Beanspruchungverteilung!$AT$21="x",COUNTIF(Y4:Y24,"<3.5"),COUNTIF(Y4:Y24,"<4.5")) -> 0 | Y27: =COUNT(Y4:Y24)-(X27+Z27) -> 0 | Z27: =IF(Beanspruchungverteilung!$AT$21="x",COUNTIF(Y4:Y24,">5.5"),COUNTIF(Y4:Y24,">6.5")) -> 0 | AA27: =IF(Beanspruchungverteilung!$AT$21="x",COUNTIF(AB4:AB24,"<3.5"),COUNTIF(AB4:AB24,"<4.5")) -> 0 | AB27: =COUNT(AB4:AB24)-(AA27+AC27) -> 0 | AC27: =IF(Beanspruchungverteilung!$AT$21="x",COUNTIF(AB4:AB24,">5.5"),COUNTIF(AB4:AB24,">6.5")) -> 0 | AE27: Standardabweichung | AG27: =STDEVP(AG4:AG24) -> 0
B28: Foster's Skala | G28: RPE | J28: Zeit pro Zone (RPE) | L28: =IF(Beanspruchungverteilung!$AT$21="x",SUMIF(M4:M24,"<3.5",L4:L24),SUMIF(M4:M24,"<4.5",L4:L24)) -> 0 | M28: =IF(M27=0,0,SUM((L25)-(L28+N28))) -> 0 | N28: =IF(Beanspruchungverteilung!$AT$21="x",SUMIF(M4:M24,">5.5",L4:L24),SUMIF(M4:M24,">6.5",L4:L24)) -> 0 | O28: =IF(Beanspruchungverteilung!$AT$21="x",SUMIF(P4:P24,"<3.5",O4:O24),SUMIF(P4:P24,"<4.5",O4:O24)) -> 0 | P28: =IF(P27=0,0,SUM((O25)-(O28+Q28))) -> 0 | Q28: =IF(Beanspruchungverteilung!$AT$21="x",SUMIF(P4:P24,">5.5",O4:O24),SUMIF(P4:P24,">6.5",O4:O24)) -> 0 | R28: =IF(Beanspruchungverteilung!$AT$21="x",SUMIF(S4:S24,"<3.5",R4:R24),SUMIF(S4:S24,"<4.5",R4:R24)) -> 0 | S28: =IF(S27=0,0,SUM((R25)-(R28+T28))) -> 0 | T28: =IF(Beanspruchungverteilung!$AT$21="x",SUMIF(S4:S24,">5.5",R4:R24),SUMIF(S4:S24,">6.5",R4:R24)) -> 0 | U28: =IF(Beanspruchungverteilung!$AT$21="x",SUMIF(V4:V24,"<3.5",U4:U24),SUMIF(V4:V24,"<4.5",U4:U24)) -> 0 | V28: =IF(V27=0,0,SUM((U25)-(U28+W28))) -> 0 | W28: =IF(Beanspruchungverteilung!$AT$21="x",SUMIF(V4:V24,">5.5",U4:U24),SUMIF(V4:V24,">6.5",U4:U24)) -> 0 | X28: =IF(Beanspruchungverteilung!$AT$21="x",SUMIF(Y4:Y24,"<3.5",X4:X24),SUMIF(Y4:Y24,"<4.5",X4:X24)) -> 0 | Y28: =IF(Y27=0,0,SUM((X25)-(X28+Z28))) -> 0 | Z28: =IF(Beanspruchungverteilung!$AT$21="x",SUMIF(Y4:Y24,">5.5",X4:X24),SUMIF(Y4:Y24,">6.5",X4:X24)) -> 0 | AA28: =IF(Beanspruchungverteilung!$AT$21="x",SUMIF(AB4:AB24,"<3.5",AA4:AA24),SUMIF(AB4:AB24,"<4.5",AA4:AA24)) -> 0 | AB28: =IF(AB27=0,0,SUM((AA25)-(AA28+AC28))) -> 0 | AC28: =IF(Beanspruchungverteilung!$AT$21="x",SUMIF(AB4:AB24,">5.5",AA4:AA24),SUMIF(AB4:AB24,">6.5",AA4:AA24)) -> 0
B29: Wie in Ruhe | G29: 0
B30: Sehr locker | G30: 1
B31: Locker | G31: 2 | AE31: Trainingstage | AG31: =IF(SUM(AG4:AG24)=0,"",COUNTIF(AG4:AG24,">0")) -> 
G32: 3
B33: Etwas hart | G33: 4 | AE33: Trainingseinheiten | AG33: =IF(AG31="","",SUM(L27:AC27)) -> 
B34: Hart | G34: 5
G35: 6 | AE35: Trainingsstunden | AG35: =IF(AG31="","",SUM(L25,O25,U25,X25,R25,AA25)/60) -> 
B36: Sehr hart | G36: 7
G37: 8 | AE37: Training Load | AG37: =IF(AG31="","",SUM(AG25)) -> 
B38: Extrem hart | G38: 9
B39: Wie mein härtestes Training | G39: 10 | AE39: Monotonie | AG39: =IF(AG31="","",(AVERAGE(AG4:AG24))/AG27) -> 
AE41: Trainingsanstrengung | AG41: =IF(AG31="","",AG37*AG39) -> 
AE43: =AI2 -> Lauf Km | AG43: =IF(AG31="","",SUM(AI4:AI24)) -> 
AE45: =AJ2 -> J | AG45: =IF(AG31="","",SUM(AJ4:AJ24)) -> 
AE47: =AK2 -> Swim Km | AG47: =IF(AG31="","",SUM(AK4:AK24)) -> 
AE49: =AL2 -> Mental Training | AG49: =IF(AG31="","",COUNTA(AL4:AL24)) -> 
AE51: =AM2 -> Regeneration | AG51: =IF(AG31="","",COUNTA(AM4:AM24)) -> 
Y155: =IF(Z155=1,52,Z155-1) -> 51 | Z155: =IF(AA155=1,52,AA155-1) -> 52 | AA155: =IF(AB155=1,52,AB155-1) -> 1 | AB155: =D1 -> 2 | AC155: =IF(AB155=52,1,AB155+1) -> 3 | AD155: =IF(AC155=52,1,AC155+1) -> 4

Sheet 3
C1: Woche | D1: =INT(MOD(INT((F1-2)/7)+0.6,52+5/28))+1 -> 3 | E1: =D1+1000 -> 1003 | F1: ='2'!F1+7 -> 2015-01-12 | G1: - | H1: =F1+6 -> 2015-01-18
B2: Tag | D2: ='45'!D2 -> Gewicht | E2: ='45'!E2 -> Erholt ? | F2: ='45'!F2 -> Schlaf | G2: ='45'!G2 -> Stress | I2: Trainigsbeschreibung | L2: ='45'!L2:N2 -> Dauerlauf | O2: ='45'!O2:Q2 -> Bahn/Intervall | R2: ='45'!R2:T2 -> Sprint/Koord/Tech | U2: ='45'!U2:W2 -> Kraft | X2: ='45'!X2:Z2 -> Alternativ | AA2: ='45'!AA2:AC2 -> Divers | AE2: Bemerkungen | AG2: Load/Tag | AI2: ='45'!AI2:AI3 -> Lauf Km | AJ2: ='45'!AJ2:AJ3 -> J | AK2: ='45'!AK2:AK3 -> Swim Km | AL2: ='45'!AL2:AL3 -> Mental Training | AM2: ='45'!AM2:AM3 -> Regeneration
D3: ='45'!D3 -> kg | E3: ='45'!E3 -> [-3….+3] | F3: ='45'!F3 -> 1-6 | G3: ='45'!G3 -> 0, 1, 2, 3 | L3: Dauer | M3: RPE | N3: Load | O3: Dauer | P3: RPE | Q3: Load | R3: Dauer | S3: RPE | T3: Load | U3: Dauer | V3: RPE | W3: Load | X3: Dauer | Y3: RPE | Z3: Load | AA3: Dauer | AB3: RPE | AC3: Load
B4: Mo | N4: =L4*M4 -> 0 | Q4: =O4*P4 -> 0 | T4: =R4*S4 -> 0 | W4: =U4*V4 -> 0 | Z4: =X4*Y4 -> 0 | AC4: =AA4*AB4 -> 0 | AG4: =SUM(N4:N6,Q4:Q6,T4:T6,W4:W6,Z4:Z6,AC4:AC6) -> 0
N5: 0 | Q5: 0 | T5: 0 | W5: 0 | Z5: 0 | AC5: 0
N6: 0 | Q6: 0 | T6: 0 | W6: 0 | Z6: 0 | AC6: 0
B7: Di | N7: 0 | Q7: 0 | T7: 0 | W7: 0 | Z7: 0 | AC7: 0 | AG7: =SUM(N7:N9,Q7:Q9,T7:T9,W7:W9,Z7:Z9,AC7:AC9) -> 0
N8: 0 | Q8: 0 | T8: 0 | W8: 0 | Z8: 0 | AC8: 0
N9: 0 | Q9: 0 | T9: 0 | W9: 0 | Z9: 0 | AC9: 0
B10: Mi | N10: 0 | Q10: 0 | T10: 0 | W10: 0 | Z10: 0 | AC10: 0 | AG10: =SUM(N10:N12,Q10:Q12,T10:T12,W10:W12,Z10:Z12,AC10:AC12) -> 0
N11: 0 | Q11: 0 | T11: 0 | W11: 0 | Z11: 0 | AC11: 0
N12: 0 | Q12: 0 | T12: 0 | W12: 0 | Z12: 0 | AC12: 0
B13: Do | N13: 0 | Q13: 0 | T13: 0 | W13: 0 | Z13: 0 | AC13: 0 | AG13: =SUM(N13:N15,Q13:Q15,T13:T15,W13:W15,Z13:Z15,AC13:AC15) -> 0
N14: 0 | Q14: 0 | T14: 0 | W14: 0 | Z14: 0 | AC14: 0
N15: 0 | Q15: 0 | T15: 0 | W15: 0 | Z15: 0 | AC15: 0
B16: Fr | N16: 0 | Q16: 0 | T16: 0 | W16: 0 | Z16: 0 | AC16: 0 | AG16: =SUM(N16:N18,Q16:Q18,T16:T18,W16:W18,Z16:Z18,AC16:AC18) -> 0
N17: 0 | Q17: 0 | T17: 0 | W17: 0 | Z17: 0 | AC17: 0
N18: 0 | Q18: 0 | T18: 0 | W18: 0 | Z18: 0 | AC18: 0
B19: Sa | N19: 0 | Q19: 0 | T19: 0 | W19: 0 | Z19: 0 | AC19: 0 | AG19: =SUM(N19:N21,Q19:Q21,T19:T21,W19:W21,Z19:Z21,AC19:AC21) -> 0
N20: 0 | Q20: 0 | T20: 0 | W20: 0 | Z20: 0 | AC20: 0
N21: 0 | Q21: 0 | T21: 0 | W21: 0 | Z21: 0 | AC21: 0
B22: So | N22: 0 | Q22: 0 | T22: 0 | W22: 0 | Z22: 0 | AC22: 0 | AG22: =SUM(N22:N24,Q22:Q24,T22:T24,W22:W24,Z22:Z24,AC22:AC24) -> 0
N23: 0 | Q23: 0 | T23: 0 | W23: 0 | Z23: 0 | AC23: 0
N24: 0 | Q24: 0 | T24: 0 | W24: 0 | Z24: 0 | AC24: 0
J25: Total | L25: =SUM(L4:L24) -> 0 | N25: =SUM(N4:N24) -> 0 | O25: =SUM(O4:O24) -> 0 | Q25: =SUM(Q4:Q24) -> 0 | R25: =SUM(R4:R24) -> 0 | T25: =SUM(T4:T24) -> 0 | U25: =SUM(U4:U24) -> 0 | W25: =SUM(W4:W24) -> 0 | X25: =SUM(X4:X24) -> 0 | Z25: =SUM(Z4:Z24) -> 0 | AA25: =SUM(AA4:AA24) -> 0 | AC25: =SUM(AC4:AC24) -> 0 | AE25: TOTAL LOAD | AG25: =SUM(AG4:AG24) -> 0
B26: avg | D26: =IF(COUNTA(D4:D24)=0,"",AVERAGE(D4:D24)) ->  | E26: =IF(COUNTA(E4:E24)=0,"",AVERAGE(E4:E24)) ->  | F26: =IF(COUNTA(F4:F24)=0,"",AVERAGE(F4:F24)) ->  | G26: =IF(COUNTA(G4:G24)=0,"",AVERAGE(G4:G24)) ->  | J26: Zone | L26: 1 | M26: 2 | N26: 3 | O26: 1 | P26: 2 | Q26: 3 | R26: 1 | S26: 2 | T26: 3 | U26: 1 | V26: 2 | W26: 3 | X26: 1 | Y26: 2 | Z26: 3 | AA26: 1 | AB26: 2 | AC26: 3 | AE26: Mittelwert | AG26: =AVERAGE(AG4:AG24) -> 0
J27: Einheiten pro Zone (RPE) | L27: =IF(Beanspruchungverteilung!$AT$21="x",COUNTIF(M4:M24,"<3.5"),COUNTIF(M4:M24,"<4.5")) -> 0 | M27: =COUNT(M4:M24)-(L27+N27) -> 0 | N27: =IF(Beanspruchungverteilung!$AT$21="x",COUNTIF(M4:M24,">5.5"),COUNTIF(M4:M24,">6.5")) -> 0 | O27: =IF(Beanspruchungverteilung!$AT$21="x",COUNTIF(P4:P24,"<3.5"),COUNTIF(P4:P24,"<4.5")) -> 0 | P27: =COUNT(P4:P24)-(O27+Q27) -> 0 | Q27: =IF(Beanspruchungverteilung!$AT$21="x",COUNTIF(P4:P24,">5.5"),COUNTIF(P4:P24,">6.5")) -> 0 | R27: =IF(Beanspruchungverteilung!$AT$21="x",COUNTIF(S4:S24,"<3.5"),COUNTIF(S4:S24,"<4.5")) -> 0 | S27: =COUNT(S4:S24)-(R27+T27) -> 0 | T27: =IF(Beanspruchungverteilung!$AT$21="x",COUNTIF(S4:S24,">5.5"),COUNTIF(S4:S24,">6.5")) -> 0 | U27: =IF(Beanspruchungverteilung!$AT$21="x",COUNTIF(V4:V24,"<3.5"),COUNTIF(V4:V24,"<4.5")) -> 0 | V27: =COUNT(V4:V24)-(U27+W27) -> 0 | W27: =IF(Beanspruchungverteilung!$AT$21="x",COUNTIF(V4:V24,">5.5"),COUNTIF(V4:V24,">6.5")) -> 0 | X27: =IF(Beanspruchungverteilung!$AT$21="x",COUNTIF(Y4:Y24,"<3.5"),COUNTIF(Y4:Y24,"<4.5")) -> 0 | Y27: =COUNT(Y4:Y24)-(X27+Z27) -> 0 | Z27: =IF(Beanspruchungverteilung!$AT$21="x",COUNTIF(Y4:Y24,">5.5"),COUNTIF(Y4:Y24,">6.5")) -> 0 | AA27: =IF(Beanspruchungverteilung!$AT$21="x",COUNTIF(AB4:AB24,"<3.5"),COUNTIF(AB4:AB24,"<4.5")) -> 0 | AB27: =COUNT(AB4:AB24)-(AA27+AC27) -> 0 | AC27: =IF(Beanspruchungverteilung!$AT$21="x",COUNTIF(AB4:AB24,">5.5"),COUNTIF(AB4:AB24,">6.5")) -> 0 | AE27: Standardabweichung | AG27: =STDEVP(AG4:AG24) -> 0
B28: Foster's Skala | G28: RPE | J28: Zeit pro Zone (RPE) | L28: =IF(Beanspruchungverteilung!$AT$21="x",SUMIF(M4:M24,"<3.5",L4:L24),SUMIF(M4:M24,"<4.5",L4:L24)) -> 0 | M28: =IF(M27=0,0,SUM((L25)-(L28+N28))) -> 0 | N28: =IF(Beanspruchungverteilung!$AT$21="x",SUMIF(M4:M24,">5.5",L4:L24),SUMIF(M4:M24,">6.5",L4:L24)) -> 0 | O28: =IF(Beanspruchungverteilung!$AT$21="x",SUMIF(P4:P24,"<3.5",O4:O24),SUMIF(P4:P24,"<4.5",O4:O24)) -> 0 | P28: =IF(P27=0,0,SUM((O25)-(O28+Q28))) -> 0 | Q28: =IF(Beanspruchungverteilung!$AT$21="x",SUMIF(P4:P24,">5.5",O4:O24),SUMIF(P4:P24,">6.5",O4:O24)) -> 0 | R28: =IF(Beanspruchungverteilung!$AT$21="x",SUMIF(S4:S24,"<3.5",R4:R24),SUMIF(S4:S24,"<4.5",R4:R24)) -> 0 | S28: =IF(S27=0,0,SUM((R25)-(R28+T28))) -> 0 | T28: =IF(Beanspruchungverteilung!$AT$21="x",SUMIF(S4:S24,">5.5",R4:R24),SUMIF(S4:S24,">6.5",R4:R24)) -> 0 | U28: =IF(Beanspruchungverteilung!$AT$21="x",SUMIF(V4:V24,"<3.5",U4:U24),SUMIF(V4:V24,"<4.5",U4:U24)) -> 0 | V28: =IF(V27=0,0,SUM((U25)-(U28+W28))) -> 0 | W28: =IF(Beanspruchungverteilung!$AT$21="x",SUMIF(V4:V24,">5.5",U4:U24),SUMIF(V4:V24,">6.5",U4:U24)) -> 0 | X28: =IF(Beanspruchungverteilung!$AT$21="x",SUMIF(Y4:Y24,"<3.5",X4:X24),SUMIF(Y4:Y24,"<4.5",X4:X24)) -> 0 | Y28: =IF(Y27=0,0,SUM((X25)-(X28+Z28))) -> 0 | Z28: =IF(Beanspruchungverteilung!$AT$21="x",SUMIF(Y4:Y24,">5.5",X4:X24),SUMIF(Y4:Y24,">6.5",X4:X24)) -> 0 | AA28: =IF(Beanspruchungverteilung!$AT$21="x",SUMIF(AB4:AB24,"<3.5",AA4:AA24),SUMIF(AB4:AB24,"<4.5",AA4:AA24)) -> 0 | AB28: =IF(AB27=0,0,SUM((AA25)-(AA28+AC28))) -> 0 | AC28: =IF(Beanspruchungverteilung!$AT$21="x",SUMIF(AB4:AB24,">5.5",AA4:AA24),SUMIF(AB4:AB24,">6.5",AA4:AA24)) -> 0
B29: Wie in Ruhe | G29: 0
B30: Sehr locker | G30: 1
B31: Locker | G31: 2 | AE31: Trainingstage | AG31: =IF(SUM(AG4:AG24)=0,"",COUNTIF(AG4:AG24,">0")) -> 
G32: 3
B33: Etwas hart | G33: 4 | AE33: Trainingseinheiten | AG33: =IF(AG31="","",SUM(L27:AC27)) -> 
B34: Hart | G34: 5
G35: 6 | AE35: Trainingsstunden | AG35: =IF(AG31="","",SUM(L25,O25,U25,X25,R25,AA25)/60) -> 
B36: Sehr hart | G36: 7
G37: 8 | AE37: Training Load | AG37: =IF(AG31="","",SUM(AG25)) -> 
B38: Extrem hart | G38: 9
B39: Wie mein härtestes Training | G39: 10 | AE39: Monotonie | AG39: =IF(AG31="","",(AVERAGE(AG4:AG24))/AG27) -> 
AE41: Trainingsanstrengung | AG41: =IF(AG31="","",AG37*AG39) -> 
AE43: =AI2 -> Lauf Km | AG43: =IF(AG31="","",SUM(AI4:AI24)) -> 
AE45: =AJ2 -> J | AG45: =IF(AG31="","",SUM(AJ4:AJ24)) -> 
AE47: =AK2 -> Swim Km | AG47: =IF(AG31="","",SUM(AK4:AK24)) -> 
AE49: =AL2 -> Mental Training | AG49: =IF(AG31="","",COUNTA(AL4:AL24)) -> 
AE51: =AM2 -> Regeneration | AG51: =IF(AG31="","",COUNTA(AM4:AM24)) -> 
Y155: =IF(Z155=1,52,Z155-1) -> 52 | Z155: =IF(AA155=1,52,AA155-1) -> 1 | AA155: =IF(AB155=1,52,AB155-1) -> 2 | AB155: =D1 -> 3 | AC155: =IF(AB155=52,1,AB155+1) -> 4 | AD155: =IF(AC155=52,1,AC155+1) -> 5

Sheet 4
C1: Woche | D1: =INT(MOD(INT((F1-2)/7)+0.6,52+5/28))+1 -> 4 | E1: =D1+1000 -> 1004 | F1: ='3'!F1+7 -> 2015-01-19 | G1: - | H1: =F1+6 -> 2015-01-25
B2: Tag | D2: ='45'!D2 -> Gewicht | E2: ='45'!E2 -> Erholt ? | F2: ='45'!F2 -> Schlaf | G2: ='45'!G2 -> Stress | I2: Trainigsbeschreibung | L2: ='45'!L2:N2 -> Dauerlauf | O2: ='45'!O2:Q2 -> Bahn/Intervall | R2: ='45'!R2:T2 -> Sprint/Koord/Tech | U2: ='45'!U2:W2 -> Kraft | X2: ='45'!X2:Z2 -> Alternativ | AA2: ='45'!AA2:AC2 -> Divers | AE2: Bemerkungen | AG2: Load/Tag | AI2: ='45'!AI2:AI3 -> Lauf Km | AJ2: ='45'!AJ2:AJ3 -> J | AK2: ='45'!AK2:AK3 -> Swim Km | AL2: ='45'!AL2:AL3 -> Mental Training | AM2: ='45'!AM2:AM3 -> Regeneration
D3: ='45'!D3 -> kg | E3: ='45'!E3 -> [-3….+3] | F3: ='45'!F3 -> 1-6 | G3: ='45'!G3 -> 0, 1, 2, 3 | L3: Dauer | M3: RPE | N3: Load | O3: Dauer | P3: RPE | Q3: Load | R3: Dauer | S3: RPE | T3: Load | U3: Dauer | V3: RPE | W3: Load | X3: Dauer | Y3: RPE | Z3: Load | AA3: Dauer | AB3: RPE | AC3: Load
B4: Mo | N4: =L4*M4 -> 0 | Q4: =O4*P4 -> 0 | T4: =R4*S4 -> 0 | W4: =U4*V4 -> 0 | Z4: =X4*Y4 -> 0 | AC4: =AA4*AB4 -> 0 | AG4: =SUM(N4:N6,Q4:Q6,T4:T6,W4:W6,Z4:Z6,AC4:AC6) -> 0
N5: 0 | Q5: 0 | T5: 0 | W5: 0 | Z5: 0 | AC5: 0
N6: 0 | Q6: 0 | T6: 0 | W6: 0 | Z6: 0 | AC6: 0
B7: Di | N7: 0 | Q7: 0 | T7: 0 | W7: 0 | Z7: 0 | AC7: 0 | AG7: =SUM(N7:N9,Q7:Q9,T7:T9,W7:W9,Z7:Z9,AC7:AC9) -> 0
N8: 0 | Q8: 0 | T8: 0 | W8: 0 | Z8: 0 | AC8: 0
N9: 0 | Q9: 0 | T9: 0 | W9: 0 | Z9: 0 | AC9: 0
B10: Mi | N10: 0 | Q10: 0 | T10: 0 | W10: 0 | Z10: 0 | AC10: 0 | AG10: =SUM(N10:N12,Q10:Q12,T10:T12,W10:W12,Z10:Z12,AC10:AC12) -> 0
N11: 0 | Q11: 0 | T11: 0 | W11: 0 | Z11: 0 | AC11: 0
N12: 0 | Q12: 0 | T12: 0 | W12: 0 | Z12: 0 | AC12: 0
B13: Do | N13: 0 | Q13: 0 | T13: 0 | W13: 0 | Z13: 0 | AC13: 0 | AG13: =SUM(N13:N15,Q13:Q15,T13:T15,W13:W15,Z13:Z15,AC13:AC15) -> 0
N14: 0 | Q14: 0 | T14: 0 | W14: 0 | Z14: 0 | AC14: 0
N15: 0 | Q15: 0 | T15: 0 | W15: 0 | Z15: 0 | AC15: 0
B16: Fr | N16: 0 | Q16: 0 | T16: 0 | W16: 0 | Z16: 0 | AC16: 0 | AG16: =SUM(N16:N18,Q16:Q18,T16:T18,W16:W18,Z16:Z18,AC16:AC18) -> 0
N17: 0 | Q17: 0 | T17: 0 | W17: 0 | Z17: 0 | AC17: 0
N18: 0 | Q18: 0 | T18: 0 | W18: 0 | Z18: 0 | AC18: 0
B19: Sa | N19: 0 | Q19: 0 | T19: 0 | W19: 0 | Z19: 0 | AC19: 0 | AG19: =SUM(N19:N21,Q19:Q21,T19:T21,W19:W21,Z19:Z21,AC19:AC21) -> 0
N20: 0 | Q20: 0 | T20: 0 | W20: 0 | Z20: 0 | AC20: 0
N21: 0 | Q21: 0 | T21: 0 | W21: 0 | Z21: 0 | AC21: 0
B22: So | N22: 0 | Q22: 0 | T22: 0 | W22: 0 | Z22: 0 | AC22: 0 | AG22: =SUM(N22:N24,Q22:Q24,T22:T24,W22:W24,Z22:Z24,AC22:AC24) -> 0
N23: 0 | Q23: 0 | T23: 0 | W23: 0 | Z23: 0 | AC23: 0
N24: 0 | Q24: 0 | T24: 0 | W24: 0 | Z24: 0 | AC24: 0
J25: Total | L25: =SUM(L4:L24) -> 0 | N25: =SUM(N4:N24) -> 0 | O25: =SUM(O4:O24) -> 0 | Q25: =SUM(Q4:Q24) -> 0 | R25: =SUM(R4:R24) -> 0 | T25: =SUM(T4:T24) -> 0 | U25: =SUM(U4:U24) -> 0 | W25: =SUM(W4:W24) -> 0 | X25: =SUM(X4:X24) -> 0 | Z25: =SUM(Z4:Z24) -> 0 | AA25: =SUM(AA4:AA24) -> 0 | AC25: =SUM(AC4:AC24) -> 0 | AE25: TOTAL LOAD | AG25: =SUM(AG4:AG24) -> 0
B26: avg | D26: =IF(COUNTA(D4:D24)=0,"",AVERAGE(D4:D24)) ->  | E26: =IF(COUNTA(E4:E24)=0,"",AVERAGE(E4:E24)) ->  | F26: =IF(COUNTA(F4:F24)=0,"",AVERAGE(F4:F24)) ->  | G26: =IF(COUNTA(G4:G24)=0,"",AVERAGE(G4:G24)) ->  | J26: Zone | L26: 1 | M26: 2 | N26: 3 | O26: 1 | P26: 2 | Q26: 3 | R26: 1 | S26: 2 | T26: 3 | U26: 1 | V26: 2 | W26: 3 | X26: 1 | Y26: 2 | Z26: 3 | AA26: 1 | AB26: 2 | AC26: 3 | AE26: Mittelwert | AG26: =AVERAGE(AG4:AG24) -> 0
J27: Einheiten pro Zone (RPE) | L27: =IF(Beanspruchungverteilung!$AT$21="x",COUNTIF(M4:M24,"<3.5"),COUNTIF(M4:M24,"<4.5")) -> 0 | M27: =COUNT(M4:M24)-(L27+N27) -> 0 | N27: =IF(Beanspruchungverteilung!$AT$21="x",COUNTIF(M4:M24,">5.5"),COUNTIF(M4:M24,">6.5")) -> 0 | O27: =IF(Beanspruchungverteilung!$AT$21="x",COUNTIF(P4:P24,"<3.5"),COUNTIF(P4:P24,"<4.5")) -> 0 | P27: =COUNT(P4:P24)-(O27+Q27) -> 0 | Q27: =IF(Beanspruchungverteilung!$AT$21="x",COUNTIF(P4:P24,">5.5"),COUNTIF(P4:P24,">6.5")) -> 0 | R27: =IF(Beanspruchungverteilung!$AT$21="x",COUNTIF(S4:S24,"<3.5"),COUNTIF(S4:S24,"<4.5")) -> 0 | S27: =COUNT(S4:S24)-(R27+T27) -> 0 | T27: =IF(Beanspruchungverteilung!$AT$21="x",COUNTIF(S4:S24,">5.5"),COUNTIF(S4:S24,">6.5")) -> 0 | U27: =IF(Beanspruchungverteilung!$AT$21="x",COUNTIF(V4:V24,"<3.5"),COUNTIF(V4:V24,"<4.5")) -> 0 | V27: =COUNT(V4:V24)-(U27+W27) -> 0 | W27: =IF(Beanspruchungverteilung!$AT$21="x",COUNTIF(V4:V24,">5.5"),COUNTIF(V4:V24,">6.5")) -> 0 | X27: =IF(Beanspruchungverteilung!$AT$21="x",COUNTIF(Y4:Y24,"<3.5"),COUNTIF(Y4:Y24,"<4.5")) -> 0 | Y27: =COUNT(Y4:Y24)-(X27+Z27) -> 0 | Z27: =IF(Beanspruchungverteilung!$AT$21="x",COUNTIF(Y4:Y24,">5.5"),COUNTIF(Y4:Y24,">6.5")) -> 0 | AA27: =IF(Beanspruchungverteilung!$AT$21="x",COUNTIF(AB4:AB24,"<3.5"),COUNTIF(AB4:AB24,"<4.5")) -> 0 | AB27: =COUNT(AB4:AB24)-(AA27+AC27) -> 0 | AC27: =IF(Beanspruchungverteilung!$AT$21="x",COUNTIF(AB4:AB24,">5.5"),COUNTIF(AB4:AB24,">6.5")) -> 0 | AE27: Standardabweichung | AG27: =STDEVP(AG4:AG24) -> 0
B28: Foster's Skala | G28: RPE | J28: Zeit pro Zone (RPE) | L28: =IF(Beanspruchungverteilung!$AT$21="x",SUMIF(M4:M24,"<3.5",L4:L24),SUMIF(M4:M24,"<4.5",L4:L24)) -> 0 | M28: =IF(M27=0,0,SUM((L25)-(L28+N28))) -> 0 | N28: =IF(Beanspruchungverteilung!$AT$21="x",SUMIF(M4:M24,">5.5",L4:L24),SUMIF(M4:M24,">6.5",L4:L24)) -> 0 | O28: =IF(Beanspruchungverteilung!$AT$21="x",SUMIF(P4:P24,"<3.5",O4:O24),SUMIF(P4:P24,"<4.5",O4:O24)) -> 0 | P28: =IF(P27=0,0,SUM((O25)-(O28+Q28))) -> 0 | Q28: =IF(Beanspruchungverteilung!$AT$21="x",SUMIF(P4:P24,">5.5",O4:O24),SUMIF(P4:P24,">6.5",O4:O24)) -> 0 | R28: =IF(Beanspruchungverteilung!$AT$21="x",SUMIF(S4:S24,"<3.5",R4:R24),SUMIF(S4:S24,"<4.5",R4:R24)) -> 0 | S28: =IF(S27=0,0,SUM((R25)-(R28+T28))) -> 0 | T28: =IF(Beanspruchungverteilung!$AT$21="x",SUMIF(S4:S24,">5.5",R4:R24),SUMIF(S4:S24,">6.5",R4:R24)) -> 0 | U28: =IF(Beanspruchungverteilung!$AT$21="x",SUMIF(V4:V24,"<3.5",U4:U24),SUMIF(V4:V24,"<4.5",U4:U24)) -> 0 | V28: =IF(V27=0,0,SUM((U25)-(U28+W28))) -> 0 | W28: =IF(Beanspruchungverteilung!$AT$21="x",SUMIF(V4:V24,">5.5",U4:U24),SUMIF(V4:V24,">6.5",U4:U24)) -> 0 | X28: =IF(Beanspruchungverteilung!$AT$21="x",SUMIF(Y4:Y24,"<3.5",X4:X24),SUMIF(Y4:Y24,"<4.5",X4:X24)) -> 0 | Y28: =IF(Y27=0,0,SUM((X25)-(X28+Z28))) -> 0 | Z28: =IF(Beanspruchungverteilung!$AT$21="x",SUMIF(Y4:Y24,">5.5",X4:X24),SUMIF(Y4:Y24,">6.5",X4:X24)) -> 0 | AA28: =IF(Beanspruchungverteilung!$AT$21="x",SUMIF(AB4:AB24,"<3.5",AA4:AA24),SUMIF(AB4:AB24,"<4.5",AA4:AA24)) -> 0 | AB28: =IF(AB27=0,0,SUM((AA25)-(AA28+AC28))) -> 0 | AC28: =IF(Beanspruchungverteilung!$AT$21="x",SUMIF(AB4:AB24,">5.5",AA4:AA24),SUMIF(AB4:AB24,">6.5",AA4:AA24)) -> 0
B29: Wie in Ruhe | G29: 0
B30: Sehr locker | G30: 1
B31: Locker | G31: 2 | AE31: Trainingstage | AG31: =IF(SUM(AG4:AG24)=0,"",COUNTIF(AG4:AG24,">0")) -> 
G32: 3
B33: Etwas hart | G33: 4 | AE33: Trainingseinheiten | AG33: =IF(AG31="","",SUM(L27:AC27)) -> 
B34: Hart | G34: 5
G35: 6 | AE35: Trainingsstunden | AG35: =IF(AG31="","",SUM(L25,O25,U25,X25,R25,AA25)/60) -> 
B36: Sehr hart | G36: 7
G37: 8 | AE37: Training Load | AG37: =IF(AG31="","",SUM(AG25)) -> 
B38: Extrem hart | G38: 9
B39: Wie mein härtestes Training | G39: 10 | AE39: Monotonie | AG39: =IF(AG31="","",(AVERAGE(AG4:AG24))/AG27) -> 
AE41: Trainingsanstrengung | AG41: =IF(AG31="","",AG37*AG39) -> 
AE43: =AI2 -> Lauf Km | AG43: =IF(AG31="","",SUM(AI4:AI24)) -> 
AE45: =AJ2 -> J | AG45: =IF(AG31="","",SUM(AJ4:AJ24)) -> 
AE47: =AK2 -> Swim Km | AG47: =IF(AG31="","",SUM(AK4:AK24)) -> 
AE49: =AL2 -> Mental Training | AG49: =IF(AG31="","",COUNTA(AL4:AL24)) -> 
AE51: =AM2 -> Regeneration | AG51: =IF(AG31="","",COUNTA(AM4:AM24)) -> 
Y155: =IF(Z155=1,52,Z155-1) -> 1 | Z155: =IF(AA155=1,52,AA155-1) -> 2 | AA155: =IF(AB155=1,52,AB155-1) -> 3 | AB155: =D1 -> 4 | AC155: =IF(AB155=52,1,AB155+1) -> 5 | AD155: =IF(AC155=52,1,AC155+1) -> 6

Sheet 5
C1: Woche | D1: =INT(MOD(INT((F1-2)/7)+0.6,52+5/28))+1 -> 5 | E1: =D1+1000 -> 1005 | F1: ='4'!F1+7 -> 2015-01-26 | G1: - | H1: =F1+6 -> 2015-02-01
B2: Tag | D2: ='45'!D2 -> Gewicht | E2: ='45'!E2 -> Erholt ? | F2: ='45'!F2 -> Schlaf | G2: ='45'!G2 -> Stress | I2: Trainigsbeschreibung | L2: ='45'!L2:N2 -> Dauerlauf | O2: ='45'!O2:Q2 -> Bahn/Intervall | R2: ='45'!R2:T2 -> Sprint/Koord/Tech | U2: ='45'!U2:W2 -> Kraft | X2: ='45'!X2:Z2 -> Alternativ | AA2: ='45'!AA2:AC2 -> Divers | AE2: Bemerkungen | AG2: Load/Tag | AI2: ='45'!AI2:AI3 -> Lauf Km | AJ2: ='45'!AJ2:AJ3 -> J | AK2: ='45'!AK2:AK3 -> Swim Km | AL2: ='45'!AL2:AL3 -> Mental Training | AM2: ='45'!AM2:AM3 -> Regeneration
D3: ='45'!D3 -> kg | E3: ='45'!E3 -> [-3….+3] | F3: ='45'!F3 -> 1-6 | G3: ='45'!G3 -> 0, 1, 2, 3 | L3: Dauer | M3: RPE | N3: Load | O3: Dauer | P3: RPE | Q3: Load | R3: Dauer | S3: RPE | T3: Load | U3: Dauer | V3: RPE | W3: Load | X3: Dauer | Y3: RPE | Z3: Load | AA3: Dauer | AB3: RPE | AC3: Load
B4: Mo | N4: =L4*M4 -> 0 | Q4: =O4*P4 -> 0 | T4: =R4*S4 -> 0 | W4: =U4*V4 -> 0 | Z4: =X4*Y4 -> 0 | AC4: =AA4*AB4 -> 0 | AG4: =SUM(N4:N6,Q4:Q6,T4:T6,W4:W6,Z4:Z6,AC4:AC6) -> 0
N5: 0 | Q5: 0 | T5: 0 | W5: 0 | Z5: 0 | AC5: 0
N6: 0 | Q6: 0 | T6: 0 | W6: 0 | Z6: 0 | AC6: 0
B7: Di | N7: 0 | Q7: 0 | T7: 0 | W7: 0 | Z7: 0 | AC7: 0 | AG7: =SUM(N7:N9,Q7:Q9,T7:T9,W7:W9,Z7:Z9,AC7:AC9) -> 0
N8: 0 | Q8: 0 | T8: 0 | W8: 0 | Z8: 0 | AC8: 0
N9: 0 | Q9: 0 | T9: 0 | W9: 0 | Z9: 0 | AC9: 0
B10: Mi | N10: 0 | Q10: 0 | T10: 0 | W10: 0 | Z10: 0 | AC10: 0 | AG10: =SUM(N10:N12,Q10:Q12,T10:T12,W10:W12,Z10:Z12,AC10:AC12) -> 0
N11: 0 | Q11: 0 | T11: 0 | W11: 0 | Z11: 0 | AC11: 0
N12: 0 | Q12: 0 | T12: 0 | W12: 0 | Z12: 0 | AC12: 0
B13: Do | N13: 0 | Q13: 0 | T13: 0 | W13: 0 | Z13: 0 | AC13: 0 | AG13: =SUM(N13:N15,Q13:Q15,T13:T15,W13:W15,Z13:Z15,AC13:AC15) -> 0
N14: 0 | Q14: 0 | T14: 0 | W14: 0 | Z14: 0 | AC14: 0
N15: 0 | Q15: 0 | T15: 0 | W15: 0 | Z15: 0 | AC15: 0
B16: Fr | N16: 0 | Q16: 0 | T16: 0 | W16: 0 | Z16: 0 | AC16: 0 | AG16: =SUM(N16:N18,Q16:Q18,T16:T18,W16:W18,Z16:Z18,AC16:AC18) -> 0
N17: 0 | Q17: 0 | T17: 0 | W17: 0 | Z17: 0 | AC17: 0
N18: 0 | Q18: 0 | T18: 0 | W18: 0 | Z18: 0 | AC18: 0
B19: Sa | N19: 0 | Q19: 0 | T19: 0 | W19: 0 | Z19: 0 | AC19: 0 | AG19: =SUM(N19:N21,Q19:Q21,T19:T21,W19:W21,Z19:Z21,AC19:AC21) -> 0
N20: 0 | Q20: 0 | T20: 0 | W20: 0 | Z20: 0 | AC20: 0
N21: 0 | Q21: 0 | T21: 0 | W21: 0 | Z21: 0 | AC21: 0
B22: So | N22: 0 | Q22: 0 | T22: 0 | W22: 0 | Z22: 0 | AC22: 0 | AG22: =SUM(N22:N24,Q22:Q24,T22:T24,W22:W24,Z22:Z24,AC22:AC24) -> 0
N23: 0 | Q23: 0 | T23: 0 | W23: 0 | Z23: 0 | AC23: 0
N24: 0 | Q24: 0 | T24: 0 | W24: 0 | Z24: 0 | AC24: 0
J25: Total | L25: =SUM(L4:L24) -> 0 | N25: =SUM(N4:N24) -> 0 | O25: =SUM(O4:O24) -> 0 | Q25: =SUM(Q4:Q24) -> 0 | R25: =SUM(R4:R24) -> 0 | T25: =SUM(T4:T24) -> 0 | U25: =SUM(U4:U24) -> 0 | W25: =SUM(W4:W24) -> 0 | X25: =SUM(X4:X24) -> 0 | Z25: =SUM(Z4:Z24) -> 0 | AA25: =SUM(AA4:AA24) -> 0 | AC25: =SUM(AC4:AC24) -> 0 | AE25: TOTAL LOAD | AG25: =SUM(AG4:AG24) -> 0
B26: avg | D26: =IF(COUNTA(D4:D24)=0,"",AVERAGE(D4:D24)) ->  | E26: =IF(COUNTA(E4:E24)=0,"",AVERAGE(E4:E24)) ->  | F26: =IF(COUNTA(F4:F24)=0,"",AVERAGE(F4:F24)) ->  | G26: =IF(COUNTA(G4:G24)=0,"",AVERAGE(G4:G24)) ->  | J26: Zone | L26: 1 | M26: 2 | N26: 3 | O26: 1 | P26: 2 | Q26: 3 | R26: 1 | S26: 2 | T26: 3 | U26: 1 | V26: 2 | W26: 3 | X26: 1 | Y26: 2 | Z26: 3 | AA26: 1 | AB26: 2 | AC26: 3 | AE26: Mittelwert | AG26: =AVERAGE(AG4:AG24) -> 0
J27: Einheiten pro Zone (RPE) | L27: =IF(Beanspruchungverteilung!$AT$21="x",COUNTIF(M4:M24,"<3.5"),COUNTIF(M4:M24,"<4.5")) -> 0 | M27: =COUNT(M4:M24)-(L27+N27) -> 0 | N27: =IF(Beanspruchungverteilung!$AT$21="x",COUNTIF(M4:M24,">5.5"),COUNTIF(M4:M24,">6.5")) -> 0 | O27: =IF(Beanspruchungverteilung!$AT$21="x",COUNTIF(P4:P24,"<3.5"),COUNTIF(P4:P24,"<4.5")) -> 0 | P27: =COUNT(P4:P24)-(O27+Q27) -> 0 | Q27: =IF(Beanspruchungverteilung!$AT$21="x",COUNTIF(P4:P24,">5.5"),COUNTIF(P4:P24,">6.5")) -> 0 | R27: =IF(Beanspruchungverteilung!$AT$21="x",COUNTIF(S4:S24,"<3.5"),COUNTIF(S4:S24,"<4.5")) -> 0 | S27: =COUNT(S4:S24)-(R27+T27) -> 0 | T27: =IF(Beanspruchungverteilung!$AT$21="x",COUNTIF(S4:S24,">5.5"),COUNTIF(S4:S24,">6.5")) -> 0 | U27: =IF(Beanspruchungverteilung!$AT$21="x",COUNTIF(V4:V24,"<3.5"),COUNTIF(V4:V24,"<4.5")) -> 0 | V27: =COUNT(V4:V24)-(U27+W27) -> 0 | W27: =IF(Beanspruchungverteilung!$AT$21="x",COUNTIF(V4:V24,">5.5"),COUNTIF(V4:V24,">6.5")) -> 0 | X27: =IF(Beanspruchungverteilung!$AT$21="x",COUNTIF(Y4:Y24,"<3.5"),COUNTIF(Y4:Y24,"<4.5")) -> 0 | Y27: =COUNT(Y4:Y24)-(X27+Z27) -> 0 | Z27: =IF(Beanspruchungverteilung!$AT$21="x",COUNTIF(Y4:Y24,">5.5"),COUNTIF(Y4:Y24,">6.5")) -> 0 | AA27: =IF(Beanspruchungverteilung!$AT$21="x",COUNTIF(AB4:AB24,"<3.5"),COUNTIF(AB4:AB24,"<4.5")) -> 0 | AB27: =COUNT(AB4:AB24)-(AA27+AC27) -> 0 | AC27: =IF(Beanspruchungverteilung!$AT$21="x",COUNTIF(AB4:AB24,">5.5"),COUNTIF(AB4:AB24,">6.5")) -> 0 | AE27: Standardabweichung | AG27: =STDEVP(AG4:AG24) -> 0
B28: Foster's Skala | G28: RPE | J28: Zeit pro Zone (RPE) | L28: =IF(Beanspruchungverteilung!$AT$21="x",SUMIF(M4:M24,"<3.5",L4:L24),SUMIF(M4:M24,"<4.5",L4:L24)) -> 0 | M28: =IF(M27=0,0,SUM((L25)-(L28+N28))) -> 0 | N28: =IF(Beanspruchungverteilung!$AT$21="x",SUMIF(M4:M24,">5.5",L4:L24),SUMIF(M4:M24,">6.5",L4:L24)) -> 0 | O28: =IF(Beanspruchungverteilung!$AT$21="x",SUMIF(P4:P24,"<3.5",O4:O24),SUMIF(P4:P24,"<4.5",O4:O24)) -> 0 | P28: =IF(P27=0,0,SUM((O25)-(O28+Q28))) -> 0 | Q28: =IF(Beanspruchungverteilung!$AT$21="x",SUMIF(P4:P24,">5.5",O4:O24),SUMIF(P4:P24,">6.5",O4:O24)) -> 0 | R28: =IF(Beanspruchungverteilung!$AT$21="x",SUMIF(S4:S24,"<3.5",R4:R24),SUMIF(S4:S24,"<4.5",R4:R24)) -> 0 | S28: =IF(S27=0,0,SUM((R25)-(R28+T28))) -> 0 | T28: =IF(Beanspruchungverteilung!$AT$21="x",SUMIF(S4:S24,">5.5",R4:R24),SUMIF(S4:S24,">6.5",R4:R24)) -> 0 | U28: =IF(Beanspruchungverteilung!$AT$21="x",SUMIF(V4:V24,"<3.5",U4:U24),SUMIF(V4:V24,"<4.5",U4:U24)) -> 0 | V28: =IF(V27=0,0,SUM((U25)-(U28+W28))) -> 0 | W28: =IF(Beanspruchungverteilung!$AT$21="x",SUMIF(V4:V24,">5.5",U4:U24),SUMIF(V4:V24,">6.5",U4:U24)) -> 0 | X28: =IF(Beanspruchungverteilung!$AT$21="x",SUMIF(Y4:Y24,"<3.5",X4:X24),SUMIF(Y4:Y24,"<4.5",X4:X24)) -> 0 | Y28: =IF(Y27=0,0,SUM((X25)-(X28+Z28))) -> 0 | Z28: =IF(Beanspruchungverteilung!$AT$21="x",SUMIF(Y4:Y24,">5.5",X4:X24),SUMIF(Y4:Y24,">6.5",X4:X24)) -> 0 | AA28: =IF(Beanspruchungverteilung!$AT$21="x",SUMIF(AB4:AB24,"<3.5",AA4:AA24),SUMIF(AB4:AB24,"<4.5",AA4:AA24)) -> 0 | AB28: =IF(AB27=0,0,SUM((AA25)-(AA28+AC28))) -> 0 | AC28: =IF(Beanspruchungverteilung!$AT$21="x",SUMIF(AB4:AB24,">5.5",AA4:AA24),SUMIF(AB4:AB24,">6.5",AA4:AA24)) -> 0
B29: Wie in Ruhe | G29: 0
B30: Sehr locker | G30: 1
B31: Locker | G31: 2 | AE31: Trainingstage | AG31: =IF(SUM(AG4:AG24)=0,"",COUNTIF(AG4:AG24,">0")) -> 
G32: 3
B33: Etwas hart | G33: 4 | AE33: Trainingseinheiten | AG33: =IF(AG31="","",SUM(L27:AC27)) -> 
B34: Hart | G34: 5
G35: 6 | AE35: Trainingsstunden | AG35: =IF(AG31="","",SUM(L25,O25,U25,X25,R25,AA25)/60) -> 
B36: Sehr hart | G36: 7
G37: 8 | AE37: Training Load | AG37: =IF(AG31="","",SUM(AG25)) -> 
B38: Extrem hart | G38: 9
B39: Wie mein härtestes Training | G39: 10 | AE39: Monotonie | AG39: =IF(AG31="","",(AVERAGE(AG4:AG24))/AG27) -> 
AE41: Trainingsanstrengung | AG41: =IF(AG31="","",AG37*AG39) -> 
AE43: =AI2 -> Lauf Km | AG43: =IF(AG31="","",SUM(AI4:AI24)) -> 
AE45: =AJ2 -> J | AG45: =IF(AG31="","",SUM(AJ4:AJ24)) -> 
AE47: =AK2 -> Swim Km | AG47: =IF(AG31="","",SUM(AK4:AK24)) -> 
AE49: =AL2 -> Mental Training | AG49: =IF(AG31="","",COUNTA(AL4:AL24)) -> 
AE51: =AM2 -> Regeneration | AG51: =IF(AG31="","",COUNTA(AM4:AM24)) -> 
Y155: =IF(Z155=1,52,Z155-1) -> 2 | Z155: =IF(AA155=1,52,AA155-1) -> 3 | AA155: =IF(AB155=1,52,AB155-1) -> 4 | AB155: =D1 -> 5 | AC155: =IF(AB155=52,1,AB155+1) -> 6 | AD155: =IF(AC155=52,1,AC155+1) -> 7

Sheet 6
C1: Woche | D1: =INT(MOD(INT((F1-2)/7)+0.6,52+5/28))+1 -> 6 | E1: =D1+1000 -> 1006 | F1: ='5'!F1+7 -> 2015-02-02 | G1: - | H1: =F1+6 -> 2015-02-08
B2: Tag | D2: ='45'!D2 -> Gewicht | E2: ='45'!E2 -> Erholt ? | F2: ='45'!F2 -> Schlaf | G2: ='45'!G2 -> Stress | I2: Trainigsbeschreibung | L2: ='45'!L2:N2 -> Dauerlauf | O2: ='45'!O2:Q2 -> Bahn/Intervall | R2: ='45'!R2:T2 -> Sprint/Koord/Tech | U2: ='45'!U2:W2 -> Kraft | X2: ='45'!X2:Z2 -> Alternativ | AA2: ='45'!AA2:AC2 -> Divers | AE2: Bemerkungen | AG2: Load/Tag | AI2: ='45'!AI2:AI3 -> Lauf Km | AJ2: ='45'!AJ2:AJ3 -> J | AK2: ='45'!AK2:AK3 -> Swim Km | AL2: ='45'!AL2:AL3 -> Mental Training | AM2: ='45'!AM2:AM3 -> Regeneration
D3: ='45'!D3 -> kg | E3: ='45'!E3 -> [-3….+3] | F3: ='45'!F3 -> 1-6 | G3: ='45'!G3 -> 0, 1, 2, 3 | L3: Dauer | M3: RPE | N3: Load | O3: Dauer | P3: RPE | Q3: Load | R3: Dauer | S3: RPE | T3: Load | U3: Dauer | V3: RPE | W3: Load | X3: Dauer | Y3: RPE | Z3: Load | AA3: Dauer | AB3: RPE | AC3: Load
B4: Mo | N4: =L4*M4 -> 0 | Q4: =O4*P4 -> 0 | T4: =R4*S4 -> 0 | W4: =U4*V4 -> 0 | Z4: =X4*Y4 -> 0 | AC4: =AA4*AB4 -> 0 | AG4: =SUM(N4:N6,Q4:Q6,T4:T6,W4:W6,Z4:Z6,AC4:AC6) -> 0
N5: 0 | Q5: 0 | T5: 0 | W5: 0 | Z5: 0 | AC5: 0
N6: 0 | Q6: 0 | T6: 0 | W6: 0 | Z6: 0 | AC6: 0
B7: Di | N7: 0 | Q7: 0 | T7: 0 | W7: 0 | Z7: 0 | AC7: 0 | AG7: =SUM(N7:N9,Q7:Q9,T7:T9,W7:W9,Z7:Z9,AC7:AC9) -> 0
N8: 0 | Q8: 0 | T8: 0 | W8: 0 | Z8: 0 | AC8: 0
N9: 0 | Q9: 0 | T9: 0 | W9: 0 | Z9: 0 | AC9: 0
B10: Mi | N10: 0 | Q10: 0 | T10: 0 | W10: 0 | Z10: 0 | AC10: 0 | AG10: =SUM(N10:N12,Q10:Q12,T10:T12,W10:W12,Z10:Z12,AC10:AC12) -> 0
N11: 0 | Q11: 0 | T11: 0 | W11: 0 | Z11: 0 | AC11: 0
N12: 0 | Q12: 0 | T12: 0 | W12: 0 | Z12: 0 | AC12: 0
B13: Do | N13: 0 | Q13: 0 | T13: 0 | W13: 0 | Z13: 0 | AC13: 0 | AG13: =SUM(N13:N15,Q13:Q15,T13:T15,W13:W15,Z13:Z15,AC13:AC15) -> 0
N14: 0 | Q14: 0 | T14: 0 | W14: 0 | Z14: 0 | AC14: 0
N15: 0 | Q15: 0 | T15: 0 | W15: 0 | Z15: 0 | AC15: 0
B16: Fr | N16: 0 | Q16: 0 | T16: 0 | W16: 0 | Z16: 0 | AC16: 0 | AG16: =SUM(N16:N18,Q16:Q18,T16:T18,W16:W18,Z16:Z18,AC16:AC18) -> 0
N17: 0 | Q17: 0 | T17: 0 | W17: 0 | Z17: 0 | AC17: 0
N18: 0 | Q18: 0 | T18: 0 | W18: 0 | Z18: 0 | AC18: 0
B19: Sa | N19: 0 | Q19: 0 | T19: 0 | W19: 0 | Z19: 0 | AC19: 0 | AG19: =SUM(N19:N21,Q19:Q21,T19:T21,W19:W21,Z19:Z21,AC19:AC21) -> 0
N20: 0 | Q20: 0 | T20: 0 | W20: 0 | Z20: 0 | AC20: 0
N21: 0 | Q21: 0 | T21: 0 | W21: 0 | Z21: 0 | AC21: 0
B22: So | N22: 0 | Q22: 0 | T22: 0 | W22: 0 | Z22: 0 | AC22: 0 | AG22: =SUM(N22:N24,Q22:Q24,T22:T24,W22:W24,Z22:Z24,AC22:AC24) -> 0
N23: 0 | Q23: 0 | T23: 0 | W23: 0 | Z23: 0 | AC23: 0
N24: 0 | Q24: 0 | T24: 0 | W24: 0 | Z24: 0 | AC24: 0
J25: Total | L25: =SUM(L4:L24) -> 0 | N25: =SUM(N4:N24) -> 0 | O25: =SUM(O4:O24) -> 0 | Q25: =SUM(Q4:Q24) -> 0 | R25: =SUM(R4:R24) -> 0 | T25: =SUM(T4:T24) -> 0 | U25: =SUM(U4:U24) -> 0 | W25: =SUM(W4:W24) -> 0 | X25: =SUM(X4:X24) -> 0 | Z25: =SUM(Z4:Z24) -> 0 | AA25: =SUM(AA4:AA24) -> 0 | AC25: =SUM(AC4:AC24) -> 0 | AE25: TOTAL LOAD | AG25: =SUM(AG4:AG24) -> 0
B26: avg | D26: =IF(COUNTA(D4:D24)=0,"",AVERAGE(D4:D24)) ->  | E26: =IF(COUNTA(E4:E24)=0,"",AVERAGE(E4:E24)) ->  | F26: =IF(COUNTA(F4:F24)=0,"",AVERAGE(F4:F24)) ->  | G26: =IF(COUNTA(G4:G24)=0,"",AVERAGE(G4:G24)) ->  | J26: Zone | L26: 1 | M26: 2 | N26: 3 | O26: 1 | P26: 2 | Q26: 3 | R26: 1 | S26: 2 | T26: 3 | U26: 1 | V26: 2 | W26: 3 | X26: 1 | Y26: 2 | Z26: 3 | AA26: 1 | AB26: 2 | AC26: 3 | AE26: Mittelwert | AG26: =AVERAGE(AG4:AG24) -> 0
J27: Einheiten pro Zone (RPE) | L27: =IF(Beanspruchungverteilung!$AT$21="x",COUNTIF(M4:M24,"<3.5"),COUNTIF(M4:M24,"<4.5")) -> 0 | M27: =COUNT(M4:M24)-(L27+N27) -> 0 | N27: =IF(Beanspruchungverteilung!$AT$21="x",COUNTIF(M4:M24,">5.5"),COUNTIF(M4:M24,">6.5")) -> 0 | O27: =IF(Beanspruchungverteilung!$AT$21="x",COUNTIF(P4:P24,"<3.5"),COUNTIF(P4:P24,"<4.5")) -> 0 | P27: =COUNT(P4:P24)-(O27+Q27) -> 0 | Q27: =IF(Beanspruchungverteilung!$AT$21="x",COUNTIF(P4:P24,">5.5"),COUNTIF(P4:P24,">6.5")) -> 0 | R27: =IF(Beanspruchungverteilung!$AT$21="x",COUNTIF(S4:S24,"<3.5"),COUNTIF(S4:S24,"<4.5")) -> 0 | S27: =COUNT(S4:S24)-(R27+T27) -> 0 | T27: =IF(Beanspruchungverteilung!$AT$21="x",COUNTIF(S4:S24,">5.5"),COUNTIF(S4:S24,">6.5")) -> 0 | U27: =IF(Beanspruchungverteilung!$AT$21="x",COUNTIF(V4:V24,"<3.5"),COUNTIF(V4:V24,"<4.5")) -> 0 | V27: =COUNT(V4:V24)-(U27+W27) -> 0 | W27: =IF(Beanspruchungverteilung!$AT$21="x",COUNTIF(V4:V24,">5.5"),COUNTIF(V4:V24,">6.5")) -> 0 | X27: =IF(Beanspruchungverteilung!$AT$21="x",COUNTIF(Y4:Y24,"<3.5"),COUNTIF(Y4:Y24,"<4.5")) -> 0 | Y27: =COUNT(Y4:Y24)-(X27+Z27) -> 0 | Z27: =IF(Beanspruchungverteilung!$AT$21="x",COUNTIF(Y4:Y24,">5.5"),COUNTIF(Y4:Y24,">6.5")) -> 0 | AA27: =IF(Beanspruchungverteilung!$AT$21="x",COUNTIF(AB4:AB24,"<3.5"),COUNTIF(AB4:AB24,"<4.5")) -> 0 | AB27: =COUNT(AB4:AB24)-(AA27+AC27) -> 0 | AC27: =IF(Beanspruchungverteilung!$AT$21="x",COUNTIF(AB4:AB24,">5.5"),COUNTIF(AB4:AB24,">6.5")) -> 0 | AE27: Standardabweichung | AG27: =STDEVP(AG4:AG24) -> 0
B28: Foster's Skala | G28: RPE | J28: Zeit pro Zone (RPE) | L28: =IF(Beanspruchungverteilung!$AT$21="x",SUMIF(M4:M24,"<3.5",L4:L24),SUMIF(M4:M24,"<4.5",L4:L24)) -> 0 | M28: =IF(M27=0,0,SUM((L25)-(L28+N28))) -> 0 | N28: =IF(Beanspruchungverteilung!$AT$21="x",SUMIF(M4:M24,">5.5",L4:L24),SUMIF(M4:M24,">6.5",L4:L24)) -> 0 | O28: =IF(Beanspruchungverteilung!$AT$21="x",SUMIF(P4:P24,"<3.5",O4:O24),SUMIF(P4:P24,"<4.5",O4:O24)) -> 0 | P28: =IF(P27=0,0,SUM((O25)-(O28+Q28))) -> 0 | Q28: =IF(Beanspruchungverteilung!$AT$21="x",SUMIF(P4:P24,">5.5",O4:O24),SUMIF(P4:P24,">6.5",O4:O24)) -> 0 | R28: =IF(Beanspruchungverteilung!$AT$21="x",SUMIF(S4:S24,"<3.5",R4:R24),SUMIF(S4:S24,"<4.5",R4:R24)) -> 0 | S28: =IF(S27=0,0,SUM((R25)-(R28+T28))) -> 0 | T28: =IF(Beanspruchungverteilung!$AT$21="x",SUMIF(S4:S24,">5.5",R4:R24),SUMIF(S4:S24,">6.5",R4:R24)) -> 0 | U28: =IF(Beanspruchungverteilung!$AT$21="x",SUMIF(V4:V24,"<3.5",U4:U24),SUMIF(V4:V24,"<4.5",U4:U24)) -> 0 | V28: =IF(V27=0,0,SUM((U25)-(U28+W28))) -> 0 | W28: =IF(Beanspruchungverteilung!$AT$21="x",SUMIF(V4:V24,">5.5",U4:U24),SUMIF(V4:V24,">6.5",U4:U24)) -> 0 | X28: =IF(Beanspruchungverteilung!$AT$21="x",SUMIF(Y4:Y24,"<3.5",X4:X24),SUMIF(Y4:Y24,"<4.5",X4:X24)) -> 0 | Y28: =IF(Y27=0,0,SUM((X25)-(X28+Z28))) -> 0 | Z28: =IF(Beanspruchungverteilung!$AT$21="x",SUMIF(Y4:Y24,">5.5",X4:X24),SUMIF(Y4:Y24,">6.5",X4:X24)) -> 0 | AA28: =IF(Beanspruchungverteilung!$AT$21="x",SUMIF(AB4:AB24,"<3.5",AA4:AA24),SUMIF(AB4:AB24,"<4.5",AA4:AA24)) -> 0 | AB28: =IF(AB27=0,0,SUM((AA25)-(AA28+AC28))) -> 0 | AC28: =IF(Beanspruchungverteilung!$AT$21="x",SUMIF(AB4:AB24,">5.5",AA4:AA24),SUMIF(AB4:AB24,">6.5",AA4:AA24)) -> 0
B29: Wie in Ruhe | G29: 0
B30: Sehr locker | G30: 1
B31: Locker | G31: 2 | AE31: Trainingstage | AG31: =IF(SUM(AG4:AG24)=0,"",COUNTIF(AG4:AG24,">0")) -> 
G32: 3
B33: Etwas hart | G33: 4 | AE33: Trainingseinheiten | AG33: =IF(AG31="","",SUM(L27:AC27)) -> 
B34: Hart | G34: 5
G35: 6 | AE35: Trainingsstunden | AG35: =IF(AG31="","",SUM(L25,O25,U25,X25,R25,AA25)/60) -> 
B36: Sehr hart | G36: 7
G37: 8 | AE37: Training Load | AG37: =IF(AG31="","",SUM(AG25)) -> 
B38: Extrem hart | G38: 9
B39: Wie mein härtestes Training | G39: 10 | AE39: Monotonie | AG39: =IF(AG31="","",(AVERAGE(AG4:AG24))/AG27) -> 
AE41: Trainingsanstrengung | AG41: =IF(AG31="","",AG37*AG39) -> 
AE43: =AI2 -> Lauf Km | AG43: =IF(AG31="","",SUM(AI4:AI24)) -> 
AE45: =AJ2 -> J | AG45: =IF(AG31="","",SUM(AJ4:AJ24)) -> 
AE47: =AK2 -> Swim Km | AG47: =IF(AG31="","",SUM(AK4:AK24)) -> 
AE49: =AL2 -> Mental Training | AG49: =IF(AG31="","",COUNTA(AL4:AL24)) -> 
AE51: =AM2 -> Regeneration | AG51: =IF(AG31="","",COUNTA(AM4:AM24)) -> 
Y155: =IF(Z155=1,52,Z155-1) -> 3 | Z155: =IF(AA155=1,52,AA155-1) -> 4 | AA155: =IF(AB155=1,52,AB155-1) -> 5 | AB155: =D1 -> 6 | AC155: =IF(AB155=52,1,AB155+1) -> 7 | AD155: =IF(AC155=52,1,AC155+1) -> 8

Sheet 7
C1: Woche | D1: =INT(MOD(INT((F1-2)/7)+0.6,52+5/28))+1 -> 7 | E1: =D1+1000 -> 1007 | F1: ='6'!F1+7 -> 2015-02-09 | G1: - | H1: =F1+6 -> 2015-02-15
B2: Tag | D2: ='45'!D2 -> Gewicht | E2: ='45'!E2 -> Erholt ? | F2: ='45'!F2 -> Schlaf | G2: ='45'!G2 -> Stress | I2: Trainigsbeschreibung | L2: ='45'!L2:N2 -> Dauerlauf | O2: ='45'!O2:Q2 -> Bahn/Intervall | R2: ='45'!R2:T2 -> Sprint/Koord/Tech | U2: ='45'!U2:W2 -> Kraft | X2: ='45'!X2:Z2 -> Alternativ | AA2: ='45'!AA2:AC2 -> Divers | AE2: Bemerkungen | AG2: Load/Tag | AI2: ='45'!AI2:AI3 -> Lauf Km | AJ2: ='45'!AJ2:AJ3 -> J | AK2: ='45'!AK2:AK3 -> Swim Km | AL2: ='45'!AL2:AL3 -> Mental Training | AM2: ='45'!AM2:AM3 -> Regeneration
D3: ='45'!D3 -> kg | E3: ='45'!E3 -> [-3….+3] | F3: ='45'!F3 -> 1-6 | G3: ='45'!G3 -> 0, 1, 2, 3 | L3: Dauer | M3: RPE | N3: Load | O3: Dauer | P3: RPE | Q3: Load | R3: Dauer | S3: RPE | T3: Load | U3: Dauer | V3: RPE | W3: Load | X3: Dauer | Y3: RPE | Z3: Load | AA3: Dauer | AB3: RPE | AC3: Load
B4: Mo | N4: =L4*M4 -> 0 | Q4: =O4*P4 -> 0 | T4: =R4*S4 -> 0 | W4: =U4*V4 -> 0 | Z4: =X4*Y4 -> 0 | AC4: =AA4*AB4 -> 0 | AG4: =SUM(N4:N6,Q4:Q6,T4:T6,W4:W6,Z4:Z6,AC4:AC6) -> 0
N5: 0 | Q5: 0 | T5: 0 | W5: 0 | Z5: 0 | AC5: 0
N6: 0 | Q6: 0 | T6: 0 | W6: 0 | Z6: 0 | AC6: 0
B7: Di | N7: 0 | Q7: 0 | T7: 0 | W7: 0 | Z7: 0 | AC7: 0 | AG7: =SUM(N7:N9,Q7:Q9,T7:T9,W7:W9,Z7:Z9,AC7:AC9) -> 0
N8: 0 | Q8: 0 | T8: 0 | W8: 0 | Z8: 0 | AC8: 0
N9: 0 | Q9: 0 | T9: 0 | W9: 0 | Z9: 0 | AC9: 0
B10: Mi | N10: 0 | Q10: 0 | T10: 0 | W10: 0 | Z10: 0 | AC10: 0 | AG10: =SUM(N10:N12,Q10:Q12,T10:T12,W10:W12,Z10:Z12,AC10:AC12) -> 0
N11: 0 | Q11: 0 | T11: 0 | W11: 0 | Z11: 0 | AC11: 0
N12: 0 | Q12: 0 | T12: 0 | W12: 0 | Z12: 0 | AC12: 0
B13: Do | N13: 0 | Q13: 0 | T13: 0 | W13: 0 | Z13: 0 | AC13: 0 | AG13: =SUM(N13:N15,Q13:Q15,T13:T15,W13:W15,Z13:Z15,AC13:AC15) -> 0
N14: 0 | Q14: 0 | T14: 0 | W14: 0 | Z14: 0 | AC14: 0
N15: 0 | Q15: 0 | T15: 0 | W15: 0 | Z15: 0 | AC15: 0
B16: Fr | N16: 0 | Q16: 0 | T16: 0 | W16: 0 | Z16: 0 | AC16: 0 | AG16: =SUM(N16:N18,Q16:Q18,T16:T18,W16:W18,Z16:Z18,AC16:AC18) -> 0
N17: 0 | Q17: 0 | T17: 0 | W17: 0 | Z17: 0 | AC17: 0
N18: 0 | Q18: 0 | T18: 0 | W18: 0 | Z18: 0 | AC18: 0
B19: Sa | N19: 0 | Q19: 0 | T19: 0 | W19: 0 | Z19: 0 | AC19: 0 | AG19: =SUM(N19:N21,Q19:Q21,T19:T21,W19:W21,Z19:Z21,AC19:AC21) -> 0
N20: 0 | Q20: 0 | T20: 0 | W20: 0 | Z20: 0 | AC20: 0
N21: 0 | Q21: 0 | T21: 0 | W21: 0 | Z21: 0 | AC21: 0
B22: So | N22: 0 | Q22: 0 | T22: 0 | W22: 0 | Z22: 0 | AC22: 0 | AG22: =SUM(N22:N24,Q22:Q24,T22:T24,W22:W24,Z22:Z24,AC22:AC24) -> 0
N23: 0 | Q23: 0 | T23: 0 | W23: 0 | Z23: 0 | AC23: 0
N24: 0 | Q24: 0 | T24: 0 | W24: 0 | Z24: 0 | AC24: 0
J25: Total | L25: =SUM(L4:L24) -> 0 | N25: =SUM(N4:N24) -> 0 | O25: =SUM(O4:O24) -> 0 | Q25: =SUM(Q4:Q24) -> 0 | R25: =SUM(R4:R24) -> 0 | T25: =SUM(T4:T24) -> 0 | U25: =SUM(U4:U24) -> 0 | W25: =SUM(W4:W24) -> 0 | X25: =SUM(X4:X24) -> 0 | Z25: =SUM(Z4:Z24) -> 0 | AA25: =SUM(AA4:AA24) -> 0 | AC25: =SUM(AC4:AC24) -> 0 | AE25: TOTAL LOAD | AG25: =SUM(AG4:AG24) -> 0
B26: avg | D26: =IF(COUNTA(D4:D24)=0,"",AVERAGE(D4:D24)) ->  | E26: =IF(COUNTA(E4:E24)=0,"",AVERAGE(E4:E24)) ->  | F26: =IF(COUNTA(F4:F24)=0,"",AVERAGE(F4:F24)) ->  | G26: =IF(COUNTA(G4:G24)=0,"",AVERAGE(G4:G24)) ->  | J26: Zone | L26: 1 | M26: 2 | N26: 3 | O26: 1 | P26: 2 | Q26: 3 | R26: 1 | S26: 2 | T26: 3 | U26: 1 | V26: 2 | W26: 3 | X26: 1 | Y26: 2 | Z26: 3 | AA26: 1 | AB26: 2 | AC26: 3 | AE26: Mittelwert | AG26: =AVERAGE(AG4:AG24) -> 0
J27: Einheiten pro Zone (RPE) | L27: =IF(Beanspruchungverteilung!$AT$21="x",COUNTIF(M4:M24,"<3.5"),COUNTIF(M4:M24,"<4.5")) -> 0 | M27: =COUNT(M4:M24)-(L27+N27) -> 0 | N27: =IF(Beanspruchungverteilung!$AT$21="x",COUNTIF(M4:M24,">5.5"),COUNTIF(M4:M24,">6.5")) -> 0 | O27: =IF(Beanspruchungverteilung!$AT$21="x",COUNTIF(P4:P24,"<3.5"),COUNTIF(P4:P24,"<4.5")) -> 0 | P27: =COUNT(P4:P24)-(O27+Q27) -> 0 | Q27: =IF(Beanspruchungverteilung!$AT$21="x",COUNTIF(P4:P24,">5.5"),COUNTIF(P4:P24,">6.5")) -> 0 | R27: =IF(Beanspruchungverteilung!$AT$21="x",COUNTIF(S4:S24,"<3.5"),COUNTIF(S4:S24,"<4.5")) -> 0 | S27: =COUNT(S4:S24)-(R27+T27) -> 0 | T27: =IF(Beanspruchungverteilung!$AT$21="x",COUNTIF(S4:S24,">5.5"),COUNTIF(S4:S24,">6.5")) -> 0 | U27: =IF(Beanspruchungverteilung!$AT$21="x",COUNTIF(V4:V24,"<3.5"),COUNTIF(V4:V24,"<4.5")) -> 0 | V27: =COUNT(V4:V24)-(U27+W27) -> 0 | W27: =IF(Beanspruchungverteilung!$AT$21="x",COUNTIF(V4:V24,">5.5"),COUNTIF(V4:V24,">6.5")) -> 0 | X27: =IF(Beanspruchungverteilung!$AT$21="x",COUNTIF(Y4:Y24,"<3.5"),COUNTIF(Y4:Y24,"<4.5")) -> 0 | Y27: =COUNT(Y4:Y24)-(X27+Z27) -> 0 | Z27: =IF(Beanspruchungverteilung!$AT$21="x",COUNTIF(Y4:Y24,">5.5"),COUNTIF(Y4:Y24,">6.5")) -> 0 | AA27: =IF(Beanspruchungverteilung!$AT$21="x",COUNTIF(AB4:AB24,"<3.5"),COUNTIF(AB4:AB24,"<4.5")) -> 0 | AB27: =COUNT(AB4:AB24)-(AA27+AC27) -> 0 | AC27: =IF(Beanspruchungverteilung!$AT$21="x",COUNTIF(AB4:AB24,">5.5"),COUNTIF(AB4:AB24,">6.5")) -> 0 | AE27: Standardabweichung | AG27: =STDEVP(AG4:AG24) -> 0
B28: Foster's Skala | G28: RPE | J28: Zeit pro Zone (RPE) | L28: =IF(Beanspruchungverteilung!$AT$21="x",SUMIF(M4:M24,"<3.5",L4:L24),SUMIF(M4:M24,"<4.5",L4:L24)) -> 0 | M28: =IF(M27=0,0,SUM((L25)-(L28+N28))) -> 0 | N28: =IF(Beanspruchungverteilung!$AT$21="x",SUMIF(M4:M24,">5.5",L4:L24),SUMIF(M4:M24,">6.5",L4:L24)) -> 0 | O28: =IF(Beanspruchungverteilung!$AT$21="x",SUMIF(P4:P24,"<3.5",O4:O24),SUMIF(P4:P24,"<4.5",O4:O24)) -> 0 | P28: =IF(P27=0,0,SUM((O25)-(O28+Q28))) -> 0 | Q28: =IF(Beanspruchungverteilung!$AT$21="x",SUMIF(P4:P24,">5.5",O4:O24),SUMIF(P4:P24,">6.5",O4:O24)) -> 0 | R28: =IF(Beanspruchungverteilung!$AT$21="x",SUMIF(S4:S24,"<3.5",R4:R24),SUMIF(S4:S24,"<4.5",R4:R24)) -> 0 | S28: =IF(S27=0,0,SUM((R25)-(R28+T28))) -> 0 | T28: =IF(Beanspruchungverteilung!$AT$21="x",SUMIF(S4:S24,">5.5",R4:R24),SUMIF(S4:S24,">6.5",R4:R24)) -> 0 | U28: =IF(Beanspruchungverteilung!$AT$21="x",SUMIF(V4:V24,"<3.5",U4:U24),SUMIF(V4:V24,"<4.5",U4:U24)) -> 0 | V28: =IF(V27=0,0,SUM((U25)-(U28+W28))) -> 0 | W28: =IF(Beanspruchungverteilung!$AT$21="x",SUMIF(V4:V24,">5.5",U4:U24),SUMIF(V4:V24,">6.5",U4:U24)) -> 0 | X28: =IF(Beanspruchungverteilung!$AT$21="x",SUMIF(Y4:Y24,"<3.5",X4:X24),SUMIF(Y4:Y24,"<4.5",X4:X24)) -> 0 | Y28: =IF(Y27=0,0,SUM((X25)-(X28+Z28))) -> 0 | Z28: =IF(Beanspruchungverteilung!$AT$21="x",SUMIF(Y4:Y24,">5.5",X4:X24),SUMIF(Y4:Y24,">6.5",X4:X24)) -> 0 | AA28: =IF(Beanspruchungverteilung!$AT$21="x",SUMIF(AB4:AB24,"<3.5",AA4:AA24),SUMIF(AB4:AB24,"<4.5",AA4:AA24)) -> 0 | AB28: =IF(AB27=0,0,SUM((AA25)-(AA28+AC28))) -> 0 | AC28: =IF(Beanspruchungverteilung!$AT$21="x",SUMIF(AB4:AB24,">5.5",AA4:AA24),SUMIF(AB4:AB24,">6.5",AA4:AA24)) -> 0
B29: Wie in Ruhe | G29: 0
B30: Sehr locker | G30: 1
B31: Locker | G31: 2 | AE31: Trainingstage | AG31: =IF(SUM(AG4:AG24)=0,"",COUNTIF(AG4:AG24,">0")) -> 
G32: 3
B33: Etwas hart | G33: 4 | AE33: Trainingseinheiten | AG33: =IF(AG31="","",SUM(L27:AC27)) -> 
B34: Hart | G34: 5
G35: 6 | AE35: Trainingsstunden | AG35: =IF(AG31="","",SUM(L25,O25,U25,X25,R25,AA25)/60) -> 
B36: Sehr hart | G36: 7
G37: 8 | AE37: Training Load | AG37: =IF(AG31="","",SUM(AG25)) -> 
B38: Extrem hart | G38: 9
B39: Wie mein härtestes Training | G39: 10 | AE39: Monotonie | AG39: =IF(AG31="","",(AVERAGE(AG4:AG24))/AG27) -> 
AE41: Trainingsanstrengung | AG41: =IF(AG31="","",AG37*AG39) -> 
AE43: =AI2 -> Lauf Km | AG43: =IF(AG31="","",SUM(AI4:AI24)) -> 
AE45: =AJ2 -> J | AG45: =IF(AG31="","",SUM(AJ4:AJ24)) -> 
AE47: =AK2 -> Swim Km | AG47: =IF(AG31="","",SUM(AK4:AK24)) -> 
AE49: =AL2 -> Mental Training | AG49: =IF(AG31="","",COUNTA(AL4:AL24)) -> 
AE51: =AM2 -> Regeneration | AG51: =IF(AG31="","",COUNTA(AM4:AM24)) -> 
Y155: =IF(Z155=1,52,Z155-1) -> 4 | Z155: =IF(AA155=1,52,AA155-1) -> 5 | AA155: =IF(AB155=1,52,AB155-1) -> 6 | AB155: =D1 -> 7 | AC155: =IF(AB155=52,1,AB155+1) -> 8 | AD155: =IF(AC155=52,1,AC155+1) -> 9

Sheet 8
C1: Woche | D1: =INT(MOD(INT((F1-2)/7)+0.6,52+5/28))+1 -> 8 | E1: =D1+1000 -> 1008 | F1: ='7'!F1+7 -> 2015-02-16 | G1: - | H1: =F1+6 -> 2015-02-22
B2: Tag | D2: ='45'!D2 -> Gewicht | E2: ='45'!E2 -> Erholt ? | F2: ='45'!F2 -> Schlaf | G2: ='45'!G2 -> Stress | I2: Trainigsbeschreibung | L2: ='45'!L2:N2 -> Dauerlauf | O2: ='45'!O2:Q2 -> Bahn/Intervall | R2: ='45'!R2:T2 -> Sprint/Koord/Tech | U2: ='45'!U2:W2 -> Kraft | X2: ='45'!X2:Z2 -> Alternativ | AA2: ='45'!AA2:AC2 -> Divers | AE2: Bemerkungen | AG2: Load/Tag | AI2: ='45'!AI2:AI3 -> Lauf Km | AJ2: ='45'!AJ2:AJ3 -> J | AK2: ='45'!AK2:AK3 -> Swim Km | AL2: ='45'!AL2:AL3 -> Mental Training | AM2: ='45'!AM2:AM3 -> Regeneration
D3: ='45'!D3 -> kg | E3: ='45'!E3 -> [-3….+3] | F3: ='45'!F3 -> 1-6 | G3: ='45'!G3 -> 0, 1, 2, 3 | L3: Dauer | M3: RPE | N3: Load | O3: Dauer | P3: RPE | Q3: Load | R3: Dauer | S3: RPE | T3: Load | U3: Dauer | V3: RPE | W3: Load | X3: Dauer | Y3: RPE | Z3: Load | AA3: Dauer | AB3: RPE | AC3: Load
B4: Mo | N4: =L4*M4 -> 0 | Q4: =O4*P4 -> 0 | T4: =R4*S4 -> 0 | W4: =U4*V4 -> 0 | Z4: =X4*Y4 -> 0 | AC4: =AA4*AB4 -> 0 | AG4: =SUM(N4:N6,Q4:Q6,T4:T6,W4:W6,Z4:Z6,AC4:AC6) -> 0
N5: 0 | Q5: 0 | T5: 0 | W5: 0 | Z5: 0 | AC5: 0
N6: 0 | Q6: 0 | T6: 0 | W6: 0 | Z6: 0 | AC6: 0
B7: Di | N7: 0 | Q7: 0 | T7: 0 | W7: 0 | Z7: 0 | AC7: 0 | AG7: =SUM(N7:N9,Q7:Q9,T7:T9,W7:W9,Z7:Z9,AC7:AC9) -> 0
N8: 0 | Q8: 0 | T8: 0 | W8: 0 | Z8: 0 | AC8: 0
N9: 0 | Q9: 0 | T9: 0 | W9: 0 | Z9: 0 | AC9: 0
B10: Mi | N10: 0 | Q10: 0 | T10: 0 | W10: 0 | Z10: 0 | AC10: 0 | AG10: =SUM(N10:N12,Q10:Q12,T10:T12,W10:W12,Z10:Z12,AC10:AC12) -> 0
N11: 0 | Q11: 0 | T11: 0 | W11: 0 | Z11: 0 | AC11: 0
N12: 0 | Q12: 0 | T12: 0 | W12: 0 | Z12: 0 | AC12: 0
B13: Do | N13: 0 | Q13: 0 | T13: 0 | W13: 0 | Z13: 0 | AC13: 0 | AG13: =SUM(N13:N15,Q13:Q15,T13:T15,W13:W15,Z13:Z15,AC13:AC15) -> 0
N14: 0 | Q14: 0 | T14: 0 | W14: 0 | Z14: 0 | AC14: 0
N15: 0 | Q15: 0 | T15: 0 | W15: 0 | Z15: 0 | AC15: 0
B16: Fr | N16: 0 | Q16: 0 | T16: 0 | W16: 0 | Z16: 0 | AC16: 0 | AG16: =SUM(N16:N18,Q16:Q18,T16:T18,W16:W18,Z16:Z18,AC16:AC18) -> 0
N17: 0 | Q17: 0 | T17: 0 | W17: 0 | Z17: 0 | AC17: 0
N18: 0 | Q18: 0 | T18: 0 | W18: 0 | Z18: 0 | AC18: 0
B19: Sa | N19: 0 | Q19: 0 | T19: 0 | W19: 0 | Z19: 0 | AC19: 0 | AG19: =SUM(N19:N21,Q19:Q21,T19:T21,W19:W21,Z19:Z21,AC19:AC21) -> 0
N20: 0 | Q20: 0 | T20: 0 | W20: 0 | Z20: 0 | AC20: 0
N21: 0 | Q21: 0 | T21: 0 | W21: 0 | Z21: 0 | AC21: 0
B22: So | N22: 0 | Q22: 0 | T22: 0 | W22: 0 | Z22: 0 | AC22: 0 | AG22: =SUM(N22:N24,Q22:Q24,T22:T24,W22:W24,Z22:Z24,AC22:AC24) -> 0
N23: 0 | Q23: 0 | T23: 0 | W23: 0 | Z23: 0 | AC23: 0
N24: 0 | Q24: 0 | T24: 0 | W24: 0 | Z24: 0 | AC24: 0
J25: Total | L25: =SUM(L4:L24) -> 0 | N25: =SUM(N4:N24) -> 0 | O25: =SUM(O4:O24) -> 0 | Q25: =SUM(Q4:Q24) -> 0 | R25: =SUM(R4:R24) -> 0 | T25: =SUM(T4:T24) -> 0 | U25: =SUM(U4:U24) -> 0 | W25: =SUM(W4:W24) -> 0 | X25: =SUM(X4:X24) -> 0 | Z25: =SUM(Z4:Z24) -> 0 | AA25: =SUM(AA4:AA24) -> 0 | AC25: =SUM(AC4:AC24) -> 0 | AE25: TOTAL LOAD | AG25: =SUM(AG4:AG24) -> 0
B26: avg | D26: =IF(COUNTA(D4:D24)=0,"",AVERAGE(D4:D24)) ->  | E26: =IF(COUNTA(E4:E24)=0,"",AVERAGE(E4:E24)) ->  | F26: =IF(COUNTA(F4:F24)=0,"",AVERAGE(F4:F24)) ->  | G26: =IF(COUNTA(G4:G24)=0,"",AVERAGE(G4:G24)) ->  | J26: Zone | L26: 1 | M26: 2 | N26: 3 | O26: 1 | P26: 2 | Q26: 3 | R26: 1 | S26: 2 | T26: 3 | U26: 1 | V26: 2 | W26: 3 | X26: 1 | Y26: 2 | Z26: 3 | AA26: 1 | AB26: 2 | AC26: 3 | AE26: Mittelwert | AG26: =AVERAGE(AG4:AG24) -> 0
J27: Einheiten pro Zone (RPE) | L27: =IF(Beanspruchungverteilung!$AT$21="x",COUNTIF(M4:M24,"<3.5"),COUNTIF(M4:M24,"<4.5")) -> 0 | M27: =COUNT(M4:M24)-(L27+N27) -> 0 | N27: =IF(Beanspruchungverteilung!$AT$21="x",COUNTIF(M4:M24,">5.5"),COUNTIF(M4:M24,">6.5")) -> 0 | O27: =IF(Beanspruchungverteilung!$AT$21="x",COUNTIF(P4:P24,"<3.5"),COUNTIF(P4:P24,"<4.5")) -> 0 | P27: =COUNT(P4:P24)-(O27+Q27) -> 0 | Q27: =IF(Beanspruchungverteilung!$AT$21="x",COUNTIF(P4:P24,">5.5"),COUNTIF(P4:P24,">6.5")) -> 0 | R27: =IF(Beanspruchungverteilung!$AT$21="x",COUNTIF(S4:S24,"<3.5"),COUNTIF(S4:S24,"<4.5")) -> 0 | S27: =COUNT(S4:S24)-(R27+T27) -> 0 | T27: =IF(Beanspruchungverteilung!$AT$21="x",COUNTIF(S4:S24,">5.5"),COUNTIF(S4:S24,">6.5")) -> 0 | U27: =IF(Beanspruchungverteilung!$AT$21="x",COUNTIF(V4:V24,"<3.5"),COUNTIF(V4:V24,"<4.5")) -> 0 | V27: =COUNT(V4:V24)-(U27+W27) -> 0 | W27: =IF(Beanspruchungverteilung!$AT$21="x",COUNTIF(V4:V24,">5.5"),COUNTIF(V4:V24,">6.5")) -> 0 | X27: =IF(Beanspruchungverteilung!$AT$21="x",COUNTIF(Y4:Y24,"<3.5"),COUNTIF(Y4:Y24,"<4.5")) -> 0 | Y27: =COUNT(Y4:Y24)-(X27+Z27) -> 0 | Z27: =IF(Beanspruchungverteilung!$AT$21="x",COUNTIF(Y4:Y24,">5.5"),COUNTIF(Y4:Y24,">6.5")) -> 0 | AA27: =IF(Beanspruchungverteilung!$AT$21="x",COUNTIF(AB4:AB24,"<3.5"),COUNTIF(AB4:AB24,"<4.5")) -> 0 | AB27: =COUNT(AB4:AB24)-(AA27+AC27) -> 0 | AC27: =IF(Beanspruchungverteilung!$AT$21="x",COUNTIF(AB4:AB24,">5.5"),COUNTIF(AB4:AB24,">6.5")) -> 0 | AE27: Standardabweichung | AG27: =STDEVP(AG4:AG24) -> 0
B28: Foster's Skala | G28: RPE | J28: Zeit pro Zone (RPE) | L28: =IF(Beanspruchungverteilung!$AT$21="x",SUMIF(M4:M24,"<3.5",L4:L24),SUMIF(M4:M24,"<4.5",L4:L24)) -> 0 | M28: =IF(M27=0,0,SUM((L25)-(L28+N28))) -> 0 | N28: =IF(Beanspruchungverteilung!$AT$21="x",SUMIF(M4:M24,">5.5",L4:L24),SUMIF(M4:M24,">6.5",L4:L24)) -> 0 | O28: =IF(Beanspruchungverteilung!$AT$21="x",SUMIF(P4:P24,"<3.5",O4:O24),SUMIF(P4:P24,"<4.5",O4:O24)) -> 0 | P28: =IF(P27=0,0,SUM((O25)-(O28+Q28))) -> 0 | Q28: =IF(Beanspruchungverteilung!$AT$21="x",SUMIF(P4:P24,">5.5",O4:O24),SUMIF(P4:P24,">6.5",O4:O24)) -> 0 | R28: =IF(Beanspruchungverteilung!$AT$21="x",SUMIF(S4:S24,"<3.5",R4:R24),SUMIF(S4:S24,"<4.5",R4:R24)) -> 0 | S28: =IF(S27=0,0,SUM((R25)-(R28+T28))) -> 0 | T28: =IF(Beanspruchungverteilung!$AT$21="x",SUMIF(S4:S24,">5.5",R4:R24),SUMIF(S4:S24,">6.5",R4:R24)) -> 0 | U28: =IF(Beanspruchungverteilung!$AT$21="x",SUMIF(V4:V24,"<3.5",U4:U24),SUMIF(V4:V24,"<4.5",U4:U24)) -> 0 | V28: =IF(V27=0,0,SUM((U25)-(U28+W28))) -> 0 | W28: =IF(Beanspruchungverteilung!$AT$21="x",SUMIF(V4:V24,">5.5",U4:U24),SUMIF(V4:V24,">6.5",U4:U24)) -> 0 | X28: =IF(Beanspruchungverteilung!$AT$21="x",SUMIF(Y4:Y24,"<3.5",X4:X24),SUMIF(Y4:Y24,"<4.5",X4:X24)) -> 0 | Y28: =IF(Y27=0,0,SUM((X25)-(X28+Z28))) -> 0 | Z28: =IF(Beanspruchungverteilung!$AT$21="x",SUMIF(Y4:Y24,">5.5",X4:X24),SUMIF(Y4:Y24,">6.5",X4:X24)) -> 0 | AA28: =IF(Beanspruchungverteilung!$AT$21="x",SUMIF(AB4:AB24,"<3.5",AA4:AA24),SUMIF(AB4:AB24,"<4.5",AA4:AA24)) -> 0 | AB28: =IF(AB27=0,0,SUM((AA25)-(AA28+AC28))) -> 0 | AC28: =IF(Beanspruchungverteilung!$AT$21="x",SUMIF(AB4:AB24,">5.5",AA4:AA24),SUMIF(AB4:AB24,">6.5",AA4:AA24)) -> 0
B29: Wie in Ruhe | G29: 0
B30: Sehr locker | G30: 1
B31: Locker | G31: 2 | AE31: Trainingstage | AG31: =IF(SUM(AG4:AG24)=0,"",COUNTIF(AG4:AG24,">0")) -> 
G32: 3
B33: Etwas hart | G33: 4 | AE33: Trainingseinheiten | AG33: =IF(AG31="","",SUM(L27:AC27)) -> 
B34: Hart | G34: 5
G35: 6 | AE35: Trainingsstunden | AG35: =IF(AG31="","",SUM(L25,O25,U25,X25,R25,AA25)/60) -> 
B36: Sehr hart | G36: 7
G37: 8 | AE37: Training Load | AG37: =IF(AG31="","",SUM(AG25)) -> 
B38: Extrem hart | G38: 9
B39: Wie mein härtestes Training | G39: 10 | AE39: Monotonie | AG39: =IF(AG31="","",(AVERAGE(AG4:AG24))/AG27) -> 
AE41: Trainingsanstrengung | AG41: =IF(AG31="","",AG37*AG39) -> 
AE43: =AI2 -> Lauf Km | AG43: =IF(AG31="","",SUM(AI4:AI24)) -> 
AE45: =AJ2 -> J | AG45: =IF(AG31="","",SUM(AJ4:AJ24)) -> 
AE47: =AK2 -> Swim Km | AG47: =IF(AG31="","",SUM(AK4:AK24)) -> 
AE49: =AL2 -> Mental Training | AG49: =IF(AG31="","",COUNTA(AL4:AL24)) -> 
AE51: =AM2 -> Regeneration | AG51: =IF(AG31="","",COUNTA(AM4:AM24)) -> 
Y155: =IF(Z155=1,52,Z155-1) -> 5 | Z155: =IF(AA155=1,52,AA155-1) -> 6 | AA155: =IF(AB155=1,52,AB155-1) -> 7 | AB155: =D1 -> 8 | AC155: =IF(AB155=52,1,AB155+1) -> 9 | AD155: =IF(AC155=52,1,AC155+1) -> 10

Sheet 9
C1: Woche | D1: =INT(MOD(INT((F1-2)/7)+0.6,52+5/28))+1 -> 9 | E1: =D1+1000 -> 1009 | F1: ='8'!F1+7 -> 2015-02-23 | G1: - | H1: =F1+6 -> 2015-03-01
B2: Tag | D2: ='45'!D2 -> Gewicht | E2: ='45'!E2 -> Erholt ? | F2: ='45'!F2 -> Schlaf | G2: ='45'!G2 -> Stress | I2: Trainigsbeschreibung | L2: ='45'!L2:N2 -> Dauerlauf | O2: ='45'!O2:Q2 -> Bahn/Intervall | R2: ='45'!R2:T2 -> Sprint/Koord/Tech | U2: ='45'!U2:W2 -> Kraft | X2: ='45'!X2:Z2 -> Alternativ | AA2: ='45'!AA2:AC2 -> Divers | AE2: Bemerkungen | AG2: Load/Tag | AI2: ='45'!AI2:AI3 -> Lauf Km | AJ2: ='45'!AJ2:AJ3 -> J | AK2: ='45'!AK2:AK3 -> Swim Km | AL2: ='45'!AL2:AL3 -> Mental Training | AM2: ='45'!AM2:AM3 -> Regeneration
D3: ='45'!D3 -> kg | E3: ='45'!E3 -> [-3….+3] | F3: ='45'!F3 -> 1-6 | G3: ='45'!G3 -> 0, 1, 2, 3 | L3: Dauer | M3: RPE | N3: Load | O3: Dauer | P3: RPE | Q3: Load | R3: Dauer | S3: RPE | T3: Load | U3: Dauer | V3: RPE | W3: Load | X3: Dauer | Y3: RPE | Z3: Load | AA3: Dauer | AB3: RPE | AC3: Load
B4: Mo | N4: =L4*M4 -> 0 | Q4: =O4*P4 -> 0 | T4: =R4*S4 -> 0 | W4: =U4*V4 -> 0 | Z4: =X4*Y4 -> 0 | AC4: =AA4*AB4 -> 0 | AG4: =SUM(N4:N6,Q4:Q6,T4:T6,W4:W6,Z4:Z6,AC4:AC6) -> 0
N5: 0 | Q5: 0 | T5: 0 | W5: 0 | Z5: 0 | AC5: 0
N6: 0 | Q6: 0 | T6: 0 | W6: 0 | Z6: 0 | AC6: 0
B7: Di | N7: 0 | Q7: 0 | T7: 0 | W7: 0 | Z7: 0 | AC7: 0 | AG7: =SUM(N7:N9,Q7:Q9,T7:T9,W7:W9,Z7:Z9,AC7:AC9) -> 0
N8: 0 | Q8: 0 | T8: 0 | W8: 0 | Z8: 0 | AC8: 0
N9: 0 | Q9: 0 | T9: 0 | W9: 0 | Z9: 0 | AC9: 0
B10: Mi | N10: 0 | Q10: 0 | T10: 0 | W10: 0 | Z10: 0 | AC10: 0 | AG10: =SUM(N10:N12,Q10:Q12,T10:T12,W10:W12,Z10:Z12,AC10:AC12) -> 0
N11: 0 | Q11: 0 | T11: 0 | W11: 0 | Z11: 0 | AC11: 0
N12: 0 | Q12: 0 | T12: 0 | W12: 0 | Z12: 0 | AC12: 0
B13: Do | N13: 0 | Q13: 0 | T13: 0 | W13: 0 | Z13: 0 | AC13: 0 | AG13: =SUM(N13:N15,Q13:Q15,T13:T15,W13:W15,Z13:Z15,AC13:AC15) -> 0
N14: 0 | Q14: 0 | T14: 0 | W14: 0 | Z14: 0 | AC14: 0
N15: 0 | Q15: 0 | T15: 0 | W15: 0 | Z15: 0 | AC15: 0
B16: Fr | N16: 0 | Q16: 0 | T16: 0 | W16: 0 | Z16: 0 | AC16: 0 | AG16: =SUM(N16:N18,Q16:Q18,T16:T18,W16:W18,Z16:Z18,AC16:AC18) -> 0
N17: 0 | Q17: 0 | T17: 0 | W17: 0 | Z17: 0 | AC17: 0
N18: 0 | Q18: 0 | T18: 0 | W18: 0 | Z18: 0 | AC18: 0
B19: Sa | N19: 0 | Q19: 0 | T19: 0 | W19: 0 | Z19: 0 | AC19: 0 | AG19: =SUM(N19:N21,Q19:Q21,T19:T21,W19:W21,Z19:Z21,AC19:AC21) -> 0
N20: 0 | Q20: 0 | T20: 0 | W20: 0 | Z20: 0 | AC20: 0
N21: 0 | Q21: 0 | T21: 0 | W21: 0 | Z21: 0 | AC21: 0
B22: So | N22: 0 | Q22: 0 | T22: 0 | W22: 0 | Z22: 0 | AC22: 0 | AG22: =SUM(N22:N24,Q22:Q24,T22:T24,W22:W24,Z22:Z24,AC22:AC24) -> 0
N23: 0 | Q23: 0 | T23: 0 | W23: 0 | Z23: 0 | AC23: 0
N24: 0 | Q24: 0 | T24: 0 | W24: 0 | Z24: 0 | AC24: 0
J25: Total | L25: =SUM(L4:L24) -> 0 | N25: =SUM(N4:N24) -> 0 | O25: =SUM(O4:O24) -> 0 | Q25: =SUM(Q4:Q24) -> 0 | R25: =SUM(R4:R24) -> 0 | T25: =SUM(T4:T24) -> 0 | U25: =SUM(U4:U24) -> 0 | W25: =SUM(W4:W24) -> 0 | X25: =SUM(X4:X24) -> 0 | Z25: =SUM(Z4:Z24) -> 0 | AA25: =SUM(AA4:AA24) -> 0 | AC25: =SUM(AC4:AC24) -> 0 | AE25: TOTAL LOAD | AG25: =SUM(AG4:AG24) -> 0
B26: avg | D26: =IF(COUNTA(D4:D24)=0,"",AVERAGE(D4:D24)) ->  | E26: =IF(COUNTA(E4:E24)=0,"",AVERAGE(E4:E24)) ->  | F26: =IF(COUNTA(F4:F24)=0,"",AVERAGE(F4:F24)) ->  | G26: =IF(COUNTA(G4:G24)=0,"",AVERAGE(G4:G24)) ->  | J26: Zone | L26: 1 | M26: 2 | N26: 3 | O26: 1 | P26: 2 | Q26: 3 | R26: 1 | S26: 2 | T26: 3 | U26: 1 | V26: 2 | W26: 3 | X26: 1 | Y26: 2 | Z26: 3 | AA26: 1 | AB26: 2 | AC26: 3 | AE26: Mittelwert | AG26: =AVERAGE(AG4:AG24) -> 0
J27: Einheiten pro Zone (RPE) | L27: =IF(Beanspruchungverteilung!$AT$21="x",COUNTIF(M4:M24,"<3.5"),COUNTIF(M4:M24,"<4.5")) -> 0 | M27: =COUNT(M4:M24)-(L27+N27) -> 0 | N27: =IF(Beanspruchungverteilung!$AT$21="x",COUNTIF(M4:M24,">5.5"),COUNTIF(M4:M24,">6.5")) -> 0 | O27: =IF(Beanspruchungverteilung!$AT$21="x",COUNTIF(P4:P24,"<3.5"),COUNTIF(P4:P24,"<4.5")) -> 0 | P27: =COUNT(P4:P24)-(O27+Q27) -> 0 | Q27: =IF(Beanspruchungverteilung!$AT$21="x",COUNTIF(P4:P24,">5.5"),COUNTIF(P4:P24,">6.5")) -> 0 | R27: =IF(Beanspruchungverteilung!$AT$21="x",COUNTIF(S4:S24,"<3.5"),COUNTIF(S4:S24,"<4.5")) -> 0 | S27: =COUNT(S4:S24)-(R27+T27) -> 0 | T27: =IF(Beanspruchungverteilung!$AT$21="x",COUNTIF(S4:S24,">5.5"),COUNTIF(S4:S24,">6.5")) -> 0 | U27: =IF(Beanspruchungverteilung!$AT$21="x",COUNTIF(V4:V24,"<3.5"),COUNTIF(V4:V24,"<4.5")) -> 0 | V27: =COUNT(V4:V24)-(U27+W27) -> 0 | W27: =IF(Beanspruchungverteilung!$AT$21="x",COUNTIF(V4:V24,">5.5"),COUNTIF(V4:V24,">6.5")) -> 0 | X27: =IF(Beanspruchungverteilung!$AT$21="x",COUNTIF(Y4:Y24,"<3.5"),COUNTIF(Y4:Y24,"<4.5")) -> 0 | Y27: =COUNT(Y4:Y24)-(X27+Z27) -> 0 | Z27: =IF(Beanspruchungverteilung!$AT$21="x",COUNTIF(Y4:Y24,">5.5"),COUNTIF(Y4:Y24,">6.5")) -> 0 | AA27: =IF(Beanspruchungverteilung!$AT$21="x",COUNTIF(AB4:AB24,"<3.5"),COUNTIF(AB4:AB24,"<4.5")) -> 0 | AB27: =COUNT(AB4:AB24)-(AA27+AC27) -> 0 | AC27: =IF(Beanspruchungverteilung!$AT$21="x",COUNTIF(AB4:AB24,">5.5"),COUNTIF(AB4:AB24,">6.5")) -> 0 | AE27: Standardabweichung | AG27: =STDEVP(AG4:AG24) -> 0
B28: Foster's Skala | G28: RPE | J28: Zeit pro Zone (RPE) | L28: =IF(Beanspruchungverteilung!$AT$21="x",SUMIF(M4:M24,"<3.5",L4:L24),SUMIF(M4:M24,"<4.5",L4:L24)) -> 0 | M28: =IF(M27=0,0,SUM((L25)-(L28+N28))) -> 0 | N28: =IF(Beanspruchungverteilung!$AT$21="x",SUMIF(M4:M24,">5.5",L4:L24),SUMIF(M4:M24,">6.5",L4:L24)) -> 0 | O28: =IF(Beanspruchungverteilung!$AT$21="x",SUMIF(P4:P24,"<3.5",O4:O24),SUMIF(P4:P24,"<4.5",O4:O24)) -> 0 | P28: =IF(P27=0,0,SUM((O25)-(O28+Q28))) -> 0 | Q28: =IF(Beanspruchungverteilung!$AT$21="x",SUMIF(P4:P24,">5.5",O4:O24),SUMIF(P4:P24,">6.5",O4:O24)) -> 0 | R28: =IF(Beanspruchungverteilung!$AT$21="x",SUMIF(S4:S24,"<3.5",R4:R24),SUMIF(S4:S24,"<4.5",R4:R24)) -> 0 | S28: =IF(S27=0,0,SUM((R25)-(R28+T28))) -> 0 | T28: =IF(Beanspruchungverteilung!$AT$21="x",SUMIF(S4:S24,">5.5",R4:R24),SUMIF(S4:S24,">6.5",R4:R24)) -> 0 | U28: =IF(Beanspruchungverteilung!$AT$21="x",SUMIF(V4:V24,"<3.5",U4:U24),SUMIF(V4:V24,"<4.5",U4:U24)) -> 0 | V28: =IF(V27=0,0,SUM((U25)-(U28+W28))) -> 0 | W28: =IF(Beanspruchungverteilung!$AT$21="x",SUMIF(V4:V24,">5.5",U4:U24),SUMIF(V4:V24,">6.5",U4:U24)) -> 0 | X28: =IF(Beanspruchungverteilung!$AT$21="x",SUMIF(Y4:Y24,"<3.5",X4:X24),SUMIF(Y4:Y24,"<4.5",X4:X24)) -> 0 | Y28: =IF(Y27=0,0,SUM((X25)-(X28+Z28))) -> 0 | Z28: =IF(Beanspruchungverteilung!$AT$21="x",SUMIF(Y4:Y24,">5.5",X4:X24),SUMIF(Y4:Y24,">6.5",X4:X24)) -> 0 | AA28: =IF(Beanspruchungverteilung!$AT$21="x",SUMIF(AB4:AB24,"<3.5",AA4:AA24),SUMIF(AB4:AB24,"<4.5",AA4:AA24)) -> 0 | AB28: =IF(AB27=0,0,SUM((AA25)-(AA28+AC28))) -> 0 | AC28: =IF(Beanspruchungverteilung!$AT$21="x",SUMIF(AB4:AB24,">5.5",AA4:AA24),SUMIF(AB4:AB24,">6.5",AA4:AA24)) -> 0
B29: Wie in Ruhe | G29: 0
B30: Sehr locker | G30: 1
B31: Locker | G31: 2 | AE31: Trainingstage | AG31: =IF(SUM(AG4:AG24)=0,"",COUNTIF(AG4:AG24,">0")) -> 
G32: 3
B33: Etwas hart | G33: 4 | AE33: Trainingseinheiten | AG33: =IF(AG31="","",SUM(L27:AC27)) -> 
B34: Hart | G34: 5
G35: 6 | AE35: Trainingsstunden | AG35: =IF(AG31="","",SUM(L25,O25,U25,X25,R25,AA25)/60) -> 
B36: Sehr hart | G36: 7
G37: 8 | AE37: Training Load | AG37: =IF(AG31="","",SUM(AG25)) -> 
B38: Extrem hart | G38: 9
B39: Wie mein härtestes Training | G39: 10 | AE39: Monotonie | AG39: =IF(AG31="","",(AVERAGE(AG4:AG24))/AG27) -> 
AE41: Trainingsanstrengung | AG41: =IF(AG31="","",AG37*AG39) -> 
AE43: =AI2 -> Lauf Km | AG43: =IF(AG31="","",SUM(AI4:AI24)) -> 
AE45: =AJ2 -> J | AG45: =IF(AG31="","",SUM(AJ4:AJ24)) -> 
AE47: =AK2 -> Swim Km | AG47: =IF(AG31="","",SUM(AK4:AK24)) -> 
AE49: =AL2 -> Mental Training | AG49: =IF(AG31="","",COUNTA(AL4:AL24)) -> 
AE51: =AM2 -> Regeneration | AG51: =IF(AG31="","",COUNTA(AM4:AM24)) -> 
Y155: =IF(Z155=1,52,Z155-1) -> 6 | Z155: =IF(AA155=1,52,AA155-1) -> 7 | AA155: =IF(AB155=1,52,AB155-1) -> 8 | AB155: =D1 -> 9 | AC155: =IF(AB155=52,1,AB155+1) -> 10 | AD155: =IF(AC155=52,1,AC155+1) -> 11

Sheet 10
C1: Woche | D1: =INT(MOD(INT((F1-2)/7)+0.6,52+5/28))+1 -> 10 | E1: =D1+1000 -> 1010 | F1: ='9'!F1+7 -> 2015-03-02 | G1: - | H1: =F1+6 -> 2015-03-08
B2: Tag | D2: ='45'!D2 -> Gewicht | E2: ='45'!E2 -> Erholt ? | F2: ='45'!F2 -> Schlaf | G2: ='45'!G2 -> Stress | I2: Trainigsbeschreibung | L2: ='45'!L2:N2 -> Dauerlauf | O2: ='45'!O2:Q2 -> Bahn/Intervall | R2: ='45'!R2:T2 -> Sprint/Koord/Tech | U2: ='45'!U2:W2 -> Kraft | X2: ='45'!X2:Z2 -> Alternativ | AA2: ='45'!AA2:AC2 -> Divers | AE2: Bemerkungen | AG2: Load/Tag | AI2: ='45'!AI2:AI3 -> Lauf Km | AJ2: ='45'!AJ2:AJ3 -> J | AK2: ='45'!AK2:AK3 -> Swim Km | AL2: ='45'!AL2:AL3 -> Mental Training | AM2: ='45'!AM2:AM3 -> Regeneration
D3: ='45'!D3 -> kg | E3: ='45'!E3 -> [-3….+3] | F3: ='45'!F3 -> 1-6 | G3: ='45'!G3 -> 0, 1, 2, 3 | L3: Dauer | M3: RPE | N3: Load | O3: Dauer | P3: RPE | Q3: Load | R3: Dauer | S3: RPE | T3: Load | U3: Dauer | V3: RPE | W3: Load | X3: Dauer | Y3: RPE | Z3: Load | AA3: Dauer | AB3: RPE | AC3: Load
B4: Mo | N4: =L4*M4 -> 0 | Q4: =O4*P4 -> 0 | T4: =R4*S4 -> 0 | W4: =U4*V4 -> 0 | Z4: =X4*Y4 -> 0 | AC4: =AA4*AB4 -> 0 | AG4: =SUM(N4:N6,Q4:Q6,T4:T6,W4:W6,Z4:Z6,AC4:AC6) -> 0
N5: 0 | Q5: 0 | T5: 0 | W5: 0 | Z5: 0 | AC5: 0
N6: 0 | Q6: 0 | T6: 0 | W6: 0 | Z6: 0 | AC6: 0
B7: Di | N7: 0 | Q7: 0 | T7: 0 | W7: 0 | Z7: 0 | AC7: 0 | AG7: =SUM(N7:N9,Q7:Q9,T7:T9,W7:W9,Z7:Z9,AC7:AC9) -> 0
N8: 0 | Q8: 0 | T8: 0 | W8: 0 | Z8: 0 | AC8: 0
N9: 0 | Q9: 0 | T9: 0 | W9: 0 | Z9: 0 | AC9: 0
B10: Mi | N10: 0 | Q10: 0 | T10: 0 | W10: 0 | Z10: 0 | AC10: 0 | AG10: =SUM(N10:N12,Q10:Q12,T10:T12,W10:W12,Z10:Z12,AC10:AC12) -> 0
N11: 0 | Q11: 0 | T11: 0 | W11: 0 | Z11: 0 | AC11: 0
N12: 0 | Q12: 0 | T12: 0 | W12: 0 | Z12: 0 | AC12: 0
B13: Do | N13: 0 | Q13: 0 | T13: 0 | W13: 0 | Z13: 0 | AC13: 0 | AG13: =SUM(N13:N15,Q13:Q15,T13:T15,W13:W15,Z13:Z15,AC13:AC15) -> 0
N14: 0 | Q14: 0 | T14: 0 | W14: 0 | Z14: 0 | AC14: 0
N15: 0 | Q15: 0 | T15: 0 | W15: 0 | Z15: 0 | AC15: 0
B16: Fr | N16: 0 | Q16: 0 | T16: 0 | W16: 0 | Z16: 0 | AC16: 0 | AG16: =SUM(N16:N18,Q16:Q18,T16:T18,W16:W18,Z16:Z18,AC16:AC18) -> 0
N17: 0 | Q17: 0 | T17: 0 | W17: 0 | Z17: 0 | AC17: 0
N18: 0 | Q18: 0 | T18: 0 | W18: 0 | Z18: 0 | AC18: 0
B19: Sa | N19: 0 | Q19: 0 | T19: 0 | W19: 0 | Z19: 0 | AC19: 0 | AG19: =SUM(N19:N21,Q19:Q21,T19:T21,W19:W21,Z19:Z21,AC19:AC21) -> 0
N20: 0 | Q20: 0 | T20: 0 | W20: 0 | Z20: 0 | AC20: 0
N21: 0 | Q21: 0 | T21: 0 | W21: 0 | Z21: 0 | AC21: 0
B22: So | N22: 0 | Q22: 0 | T22: 0 | W22: 0 | Z22: 0 | AC22: 0 | AG22: =SUM(N22:N24,Q22:Q24,T22:T24,W22:W24,Z22:Z24,AC22:AC24) -> 0
N23: 0 | Q23: 0 | T23: 0 | W23: 0 | Z23: 0 | AC23: 0
N24: 0 | Q24: 0 | T24: 0 | W24: 0 | Z24: 0 | AC24: 0
J25: Total | L25: =SUM(L4:L24) -> 0 | N25: =SUM(N4:N24) -> 0 | O25: =SUM(O4:O24) -> 0 | Q25: =SUM(Q4:Q24) -> 0 | R25: =SUM(R4:R24) -> 0 | T25: =SUM(T4:T24) -> 0 | U25: =SUM(U4:U24) -> 0 | W25: =SUM(W4:W24) -> 0 | X25: =SUM(X4:X24) -> 0 | Z25: =SUM(Z4:Z24) -> 0 | AA25: =SUM(AA4:AA24) -> 0 | AC25: =SUM(AC4:AC24) -> 0 | AE25: TOTAL LOAD | AG25: =SUM(AG4:AG24) -> 0
B26: avg | D26: =IF(COUNTA(D4:D24)=0,"",AVERAGE(D4:D24)) ->  | E26: =IF(COUNTA(E4:E24)=0,"",AVERAGE(E4:E24)) ->  | F26: =IF(COUNTA(F4:F24)=0,"",AVERAGE(F4:F24)) ->  | G26: =IF(COUNTA(G4:G24)=0,"",AVERAGE(G4:G24)) ->  | J26: Zone | L26: 1 | M26: 2 | N26: 3 | O26: 1 | P26: 2 | Q26: 3 | R26: 1 | S26: 2 | T26: 3 | U26: 1 | V26: 2 | W26: 3 | X26: 1 | Y26: 2 | Z26: 3 | AA26: 1 | AB26: 2 | AC26: 3 | AE26: Mittelwert | AG26: =AVERAGE(AG4:AG24) -> 0
J27: Einheiten pro Zone (RPE) | L27: =IF(Beanspruchungverteilung!$AT$21="x",COUNTIF(M4:M24,"<3.5"),COUNTIF(M4:M24,"<4.5")) -> 0 | M27: =COUNT(M4:M24)-(L27+N27) -> 0 | N27: =IF(Beanspruchungverteilung!$AT$21="x",COUNTIF(M4:M24,">5.5"),COUNTIF(M4:M24,">6.5")) -> 0 | O27: =IF(Beanspruchungverteilung!$AT$21="x",COUNTIF(P4:P24,"<3.5"),COUNTIF(P4:P24,"<4.5")) -> 0 | P27: =COUNT(P4:P24)-(O27+Q27) -> 0 | Q27: =IF(Beanspruchungverteilung!$AT$21="x",COUNTIF(P4:P24,">5.5"),COUNTIF(P4:P24,">6.5")) -> 0 | R27: =IF(Beanspruchungverteilung!$AT$21="x",COUNTIF(S4:S24,"<3.5"),COUNTIF(S4:S24,"<4.5")) -> 0 | S27: =COUNT(S4:S24)-(R27+T27) -> 0 | T27: =IF(Beanspruchungverteilung!$AT$21="x",COUNTIF(S4:S24,">5.5"),COUNTIF(S4:S24,">6.5")) -> 0 | U27: =IF(Beanspruchungverteilung!$AT$21="x",COUNTIF(V4:V24,"<3.5"),COUNTIF(V4:V24,"<4.5")) -> 0 | V27: =COUNT(V4:V24)-(U27+W27) -> 0 | W27: =IF(Beanspruchungverteilung!$AT$21="x",COUNTIF(V4:V24,">5.5"),COUNTIF(V4:V24,">6.5")) -> 0 | X27: =IF(Beanspruchungverteilung!$AT$21="x",COUNTIF(Y4:Y24,"<3.5"),COUNTIF(Y4:Y24,"<4.5")) -> 0 | Y27: =COUNT(Y4:Y24)-(X27+Z27) -> 0 | Z27: =IF(Beanspruchungverteilung!$AT$21="x",COUNTIF(Y4:Y24,">5.5"),COUNTIF(Y4:Y24,">6.5")) -> 0 | AA27: =IF(Beanspruchungverteilung!$AT$21="x",COUNTIF(AB4:AB24,"<3.5"),COUNTIF(AB4:AB24,"<4.5")) -> 0 | AB27: =COUNT(AB4:AB24)-(AA27+AC27) -> 0 | AC27: =IF(Beanspruchungverteilung!$AT$21="x",COUNTIF(AB4:AB24,">5.5"),COUNTIF(AB4:AB24,">6.5")) -> 0 | AE27: Standardabweichung | AG27: =STDEVP(AG4:AG24) -> 0
B28: Foster's Skala | G28: RPE | J28: Zeit pro Zone (RPE) | L28: =IF(Beanspruchungverteilung!$AT$21="x",SUMIF(M4:M24,"<3.5",L4:L24),SUMIF(M4:M24,"<4.5",L4:L24)) -> 0 | M28: =IF(M27=0,0,SUM((L25)-(L28+N28))) -> 0 | N28: =IF(Beanspruchungverteilung!$AT$21="x",SUMIF(M4:M24,">5.5",L4:L24),SUMIF(M4:M24,">6.5",L4:L24)) -> 0 | O28: =IF(Beanspruchungverteilung!$AT$21="x",SUMIF(P4:P24,"<3.5",O4:O24),SUMIF(P4:P24,"<4.5",O4:O24)) -> 0 | P28: =IF(P27=0,0,SUM((O25)-(O28+Q28))) -> 0 | Q28: =IF(Beanspruchungverteilung!$AT$21="x",SUMIF(P4:P24,">5.5",O4:O24),SUMIF(P4:P24,">6.5",O4:O24)) -> 0 | R28: =IF(Beanspruchungverteilung!$AT$21="x",SUMIF(S4:S24,"<3.5",R4:R24),SUMIF(S4:S24,"<4.5",R4:R24)) -> 0 | S28: =IF(S27=0,0,SUM((R25)-(R28+T28))) -> 0 | T28: =IF(Beanspruchungverteilung!$AT$21="x",SUMIF(S4:S24,">5.5",R4:R24),SUMIF(S4:S24,">6.5",R4:R24)) -> 0 | U28: =IF(Beanspruchungverteilung!$AT$21="x",SUMIF(V4:V24,"<3.5",U4:U24),SUMIF(V4:V24,"<4.5",U4:U24)) -> 0 | V28: =IF(V27=0,0,SUM((U25)-(U28+W28))) -> 0 | W28: =IF(Beanspruchungverteilung!$AT$21="x",SUMIF(V4:V24,">5.5",U4:U24),SUMIF(V4:V24,">6.5",U4:U24)) -> 0 | X28: =IF(Beanspruchungverteilung!$AT$21="x",SUMIF(Y4:Y24,"<3.5",X4:X24),SUMIF(Y4:Y24,"<4.5",X4:X24)) -> 0 | Y28: =IF(Y27=0,0,SUM((X25)-(X28+Z28))) -> 0 | Z28: =IF(Beanspruchungverteilung!$AT$21="x",SUMIF(Y4:Y24,">5.5",X4:X24),SUMIF(Y4:Y24,">6.5",X4:X24)) -> 0 | AA28: =IF(Beanspruchungverteilung!$AT$21="x",SUMIF(AB4:AB24,"<3.5",AA4:AA24),SUMIF(AB4:AB24,"<4.5",AA4:AA24)) -> 0 | AB28: =IF(AB27=0,0,SUM((AA25)-(AA28+AC28))) -> 0 | AC28: =IF(Beanspruchungverteilung!$AT$21="x",SUMIF(AB4:AB24,">5.5",AA4:AA24),SUMIF(AB4:AB24,">6.5",AA4:AA24)) -> 0
B29: Wie in Ruhe | G29: 0
B30: Sehr locker | G30: 1
B31: Locker | G31: 2 | AE31: Trainingstage | AG31: =IF(SUM(AG4:AG24)=0,"",COUNTIF(AG4:AG24,">0")) -> 
G32: 3
B33: Etwas hart | G33: 4 | AE33: Trainingseinheiten | AG33: =IF(AG31="","",SUM(L27:AC27)) -> 
B34: Hart | G34: 5
G35: 6 | AE35: Trainingsstunden | AG35: =IF(AG31="","",SUM(L25,O25,U25,X25,R25,AA25)/60) -> 
B36: Sehr hart | G36: 7
G37: 8 | AE37: Training Load | AG37: =IF(AG31="","",SUM(AG25)) -> 
B38: Extrem hart | G38: 9
B39: Wie mein härtestes Training | G39: 10 | AE39: Monotonie | AG39: =IF(AG31="","",(AVERAGE(AG4:AG24))/AG27) -> 
AE41: Trainingsanstrengung | AG41: =IF(AG31="","",AG37*AG39) -> 
AE43: =AI2 -> Lauf Km | AG43: =IF(AG31="","",SUM(AI4:AI24)) -> 
AE45: =AJ2 -> J | AG45: =IF(AG31="","",SUM(AJ4:AJ24)) -> 
AE47: =AK2 -> Swim Km | AG47: =IF(AG31="","",SUM(AK4:AK24)) -> 
AE49: =AL2 -> Mental Training | AG49: =IF(AG31="","",COUNTA(AL4:AL24)) -> 
AE51: =AM2 -> Regeneration | AG51: =IF(AG31="","",COUNTA(AM4:AM24)) -> 
Y155: =IF(Z155=1,52,Z155-1) -> 7 | Z155: =IF(AA155=1,52,AA155-1) -> 8 | AA155: =IF(AB155=1,52,AB155-1) -> 9 | AB155: =D1 -> 10 | AC155: =IF(AB155=52,1,AB155+1) -> 11 | AD155: =IF(AC155=52,1,AC155+1) -> 12

Sheet 11
C1: Woche | D1: =INT(MOD(INT((F1-2)/7)+0.6,52+5/28))+1 -> 11 | E1: =D1+1000 -> 1011 | F1: ='10'!F1+7 -> 2015-03-09 | G1: - | H1: =F1+6 -> 2015-03-15
B2: Tag | D2: ='45'!D2 -> Gewicht | E2: ='45'!E2 -> Erholt ? | F2: ='45'!F2 -> Schlaf | G2: ='45'!G2 -> Stress | I2: Trainigsbeschreibung | L2: ='45'!L2:N2 -> Dauerlauf | O2: ='45'!O2:Q2 -> Bahn/Intervall | R2: ='45'!R2:T2 -> Sprint/Koord/Tech | U2: ='45'!U2:W2 -> Kraft | X2: ='45'!X2:Z2 -> Alternativ | AA2: ='45'!AA2:AC2 -> Divers | AE2: Bemerkungen | AG2: Load/Tag | AI2: ='45'!AI2:AI3 -> Lauf Km | AJ2: ='45'!AJ2:AJ3 -> J | AK2: ='45'!AK2:AK3 -> Swim Km | AL2: ='45'!AL2:AL3 -> Mental Training | AM2: ='45'!AM2:AM3 -> Regeneration
D3: ='45'!D3 -> kg | E3: ='45'!E3 -> [-3….+3] | F3: ='45'!F3 -> 1-6 | G3: ='45'!G3 -> 0, 1, 2, 3 | L3: Dauer | M3: RPE | N3: Load | O3: Dauer | P3: RPE | Q3: Load | R3: Dauer | S3: RPE | T3: Load | U3: Dauer | V3: RPE | W3: Load | X3: Dauer | Y3: RPE | Z3: Load | AA3: Dauer | AB3: RPE | AC3: Load
B4: Mo | N4: =L4*M4 -> 0 | Q4: =O4*P4 -> 0 | T4: =R4*S4 -> 0 | W4: =U4*V4 -> 0 | Z4: =X4*Y4 -> 0 | AC4: =AA4*AB4 -> 0 | AG4: =SUM(N4:N6,Q4:Q6,T4:T6,W4:W6,Z4:Z6,AC4:AC6) -> 0
N5: 0 | Q5: 0 | T5: 0 | W5: 0 | Z5: 0 | AC5: 0
N6: 0 | Q6: 0 | T6: 0 | W6: 0 | Z6: 0 | AC6: 0
B7: Di | N7: 0 | Q7: 0 | T7: 0 | W7: 0 | Z7: 0 | AC7: 0 | AG7: =SUM(N7:N9,Q7:Q9,T7:T9,W7:W9,Z7:Z9,AC7:AC9) -> 0
N8: 0 | Q8: 0 | T8: 0 | W8: 0 | Z8: 0 | AC8: 0
N9: 0 | Q9: 0 | T9: 0 | W9: 0 | Z9: 0 | AC9: 0
B10: Mi | N10: 0 | Q10: 0 | T10: 0 | W10: 0 | Z10: 0 | AC10: 0 | AG10: =SUM(N10:N12,Q10:Q12,T10:T12,W10:W12,Z10:Z12,AC10:AC12) -> 0
N11: 0 | Q11: 0 | T11: 0 | W11: 0 | Z11: 0 | AC11: 0
N12: 0 | Q12: 0 | T12: 0 | W12: 0 | Z12: 0 | AC12: 0
B13: Do | N13: 0 | Q13: 0 | T13: 0 | W13: 0 | Z13: 0 | AC13: 0 | AG13: =SUM(N13:N15,Q13:Q15,T13:T15,W13:W15,Z13:Z15,AC13:AC15) -> 0
N14: 0 | Q14: 0 | T14: 0 | W14: 0 | Z14: 0 | AC14: 0
N15: 0 | Q15: 0 | T15: 0 | W15: 0 | Z15: 0 | AC15: 0
B16: Fr | N16: 0 | Q16: 0 | T16: 0 | W16: 0 | Z16: 0 | AC16: 0 | AG16: =SUM(N16:N18,Q16:Q18,T16:T18,W16:W18,Z16:Z18,AC16:AC18) -> 0
N17: 0 | Q17: 0 | T17: 0 | W17: 0 | Z17: 0 | AC17: 0
N18: 0 | Q18: 0 | T18: 0 | W18: 0 | Z18: 0 | AC18: 0
B19: Sa | N19: 0 | Q19: 0 | T19: 0 | W19: 0 | Z19: 0 | AC19: 0 | AG19: =SUM(N19:N21,Q19:Q21,T19:T21,W19:W21,Z19:Z21,AC19:AC21) -> 0
N20: 0 | Q20: 0 | T20: 0 | W20: 0 | Z20: 0 | AC20: 0
N21: 0 | Q21: 0 | T21: 0 | W21: 0 | Z21: 0 | AC21: 0
B22: So | N22: 0 | Q22: 0 | T22: 0 | W22: 0 | Z22: 0 | AC22: 0 | AG22: =SUM(N22:N24,Q22:Q24,T22:T24,W22:W24,Z22:Z24,AC22:AC24) -> 0
N23: 0 | Q23: 0 | T23: 0 | W23: 0 | Z23: 0 | AC23: 0
N24: 0 | Q24: 0 | T24: 0 | W24: 0 | Z24: 0 | AC24: 0
J25: Total | L25: =SUM(L4:L24) -> 0 | N25: =SUM(N4:N24) -> 0 | O25: =SUM(O4:O24) -> 0 | Q25: =SUM(Q4:Q24) -> 0 | R25: =SUM(R4:R24) -> 0 | T25: =SUM(T4:T24) -> 0 | U25: =SUM(U4:U24) -> 0 | W25: =SUM(W4:W24) -> 0 | X25: =SUM(X4:X24) -> 0 | Z25: =SUM(Z4:Z24) -> 0 | AA25: =SUM(AA4:AA24) -> 0 | AC25: =SUM(AC4:AC24) -> 0 | AE25: TOTAL LOAD | AG25: =SUM(AG4:AG24) -> 0
B26: avg | D26: =IF(COUNTA(D4:D24)=0,"",AVERAGE(D4:D24)) ->  | E26: =IF(COUNTA(E4:E24)=0,"",AVERAGE(E4:E24)) ->  | F26: =IF(COUNTA(F4:F24)=0,"",AVERAGE(F4:F24)) ->  | G26: =IF(COUNTA(G4:G24)=0,"",AVERAGE(G4:G24)) ->  | J26: Zone | L26: 1 | M26: 2 | N26: 3 | O26: 1 | P26: 2 | Q26: 3 | R26: 1 | S26: 2 | T26: 3 | U26: 1 | V26: 2 | W26: 3 | X26: 1 | Y26: 2 | Z26: 3 | AA26: 1 | AB26: 2 | AC26: 3 | AE26: Mittelwert | AG26: =AVERAGE(AG4:AG24) -> 0
J27: Einheiten pro Zone (RPE) | L27: =IF(Beanspruchungverteilung!$AT$21="x",COUNTIF(M4:M24,"<3.5"),COUNTIF(M4:M24,"<4.5")) -> 0 | M27: =COUNT(M4:M24)-(L27+N27) -> 0 | N27: =IF(Beanspruchungverteilung!$AT$21="x",COUNTIF(M4:M24,">5.5"),COUNTIF(M4:M24,">6.5")) -> 0 | O27: =IF(Beanspruchungverteilung!$AT$21="x",COUNTIF(P4:P24,"<3.5"),COUNTIF(P4:P24,"<4.5")) -> 0 | P27: =COUNT(P4:P24)-(O27+Q27) -> 0 | Q27: =IF(Beanspruchungverteilung!$AT$21="x",COUNTIF(P4:P24,">5.5"),COUNTIF(P4:P24,">6.5")) -> 0 | R27: =IF(Beanspruchungverteilung!$AT$21="x",COUNTIF(S4:S24,"<3.5"),COUNTIF(S4:S24,"<4.5")) -> 0 | S27: =COUNT(S4:S24)-(R27+T27) -> 0 | T27: =IF(Beanspruchungverteilung!$AT$21="x",COUNTIF(S4:S24,">5.5"),COUNTIF(S4:S24,">6.5")) -> 0 | U27: =IF(Beanspruchungverteilung!$AT$21="x",COUNTIF(V4:V24,"<3.5"),COUNTIF(V4:V24,"<4.5")) -> 0 | V27: =COUNT(V4:V24)-(U27+W27) -> 0 | W27: =IF(Beanspruchungverteilung!$AT$21="x",COUNTIF(V4:V24,">5.5"),COUNTIF(V4:V24,">6.5")) -> 0 | X27: =IF(Beanspruchungverteilung!$AT$21="x",COUNTIF(Y4:Y24,"<3.5"),COUNTIF(Y4:Y24,"<4.5")) -> 0 | Y27: =COUNT(Y4:Y24)-(X27+Z27) -> 0 | Z27: =IF(Beanspruchungverteilung!$AT$21="x",COUNTIF(Y4:Y24,">5.5"),COUNTIF(Y4:Y24,">6.5")) -> 0 | AA27: =IF(Beanspruchungverteilung!$AT$21="x",COUNTIF(AB4:AB24,"<3.5"),COUNTIF(AB4:AB24,"<4.5")) -> 0 | AB27: =COUNT(AB4:AB24)-(AA27+AC27) -> 0 | AC27: =IF(Beanspruchungverteilung!$AT$21="x",COUNTIF(AB4:AB24,">5.5"),COUNTIF(AB4:AB24,">6.5")) -> 0 | AE27: Standardabweichung | AG27: =STDEVP(AG4:AG24) -> 0
B28: Foster's Skala | G28: RPE | J28: Zeit pro Zone (RPE) | L28: =IF(Beanspruchungverteilung!$AT$21="x",SUMIF(M4:M24,"<3.5",L4:L24),SUMIF(M4:M24,"<4.5",L4:L24)) -> 0 | M28: =IF(M27=0,0,SUM((L25)-(L28+N28))) -> 0 | N28: =IF(Beanspruchungverteilung!$AT$21="x",SUMIF(M4:M24,">5.5",L4:L24),SUMIF(M4:M24,">6.5",L4:L24)) -> 0 | O28: =IF(Beanspruchungverteilung!$AT$21="x",SUMIF(P4:P24,"<3.5",O4:O24),SUMIF(P4:P24,"<4.5",O4:O24)) -> 0 | P28: =IF(P27=0,0,SUM((O25)-(O28+Q28))) -> 0 | Q28: =IF(Beanspruchungverteilung!$AT$21="x",SUMIF(P4:P24,">5.5",O4:O24),SUMIF(P4:P24,">6.5",O4:O24)) -> 0 | R28: =IF(Beanspruchungverteilung!$AT$21="x",SUMIF(S4:S24,"<3.5",R4:R24),SUMIF(S4:S24,"<4.5",R4:R24)) -> 0 | S28: =IF(S27=0,0,SUM((R25)-(R28+T28))) -> 0 | T28: =IF(Beanspruchungverteilung!$AT$21="x",SUMIF(S4:S24,">5.5",R4:R24),SUMIF(S4:S24,">6.5",R4:R24)) -> 0 | U28: =IF(Beanspruchungverteilung!$AT$21="x",SUMIF(V4:V24,"<3.5",U4:U24),SUMIF(V4:V24,"<4.5",U4:U24)) -> 0 | V28: =IF(V27=0,0,SUM((U25)-(U28+W28))) -> 0 | W28: =IF(Beanspruchungverteilung!$AT$21="x",SUMIF(V4:V24,">5.5",U4:U24),SUMIF(V4:V24,">6.5",U4:U24)) -> 0 | X28: =IF(Beanspruchungverteilung!$AT$21="x",SUMIF(Y4:Y24,"<3.5",X4:X24),SUMIF(Y4:Y24,"<4.5",X4:X24)) -> 0 | Y28: =IF(Y27=0,0,SUM((X25)-(X28+Z28))) -> 0 | Z28: =IF(Beanspruchungverteilung!$AT$21="x",SUMIF(Y4:Y24,">5.5",X4:X24),SUMIF(Y4:Y24,">6.5",X4:X24)) -> 0 | AA28: =IF(Beanspruchungverteilung!$AT$21="x",SUMIF(AB4:AB24,"<3.5",AA4:AA24),SUMIF(AB4:AB24,"<4.5",AA4:AA24)) -> 0 | AB28: =IF(AB27=0,0,SUM((AA25)-(AA28+AC28))) -> 0 | AC28: =IF(Beanspruchungverteilung!$AT$21="x",SUMIF(AB4:AB24,">5.5",AA4:AA24),SUMIF(AB4:AB24,">6.5",AA4:AA24)) -> 0
B29: Wie in Ruhe | G29: 0
B30: Sehr locker | G30: 1
B31: Locker | G31: 2 | AE31: Trainingstage | AG31: =IF(SUM(AG4:AG24)=0,"",COUNTIF(AG4:AG24,">0")) -> 
G32: 3
B33: Etwas hart | G33: 4 | AE33: Trainingseinheiten | AG33: =IF(AG31="","",SUM(L27:AC27)) -> 
B34: Hart | G34: 5
G35: 6 | AE35: Trainingsstunden | AG35: =IF(AG31="","",SUM(L25,O25,U25,X25,R25,AA25)/60) -> 
B36: Sehr hart | G36: 7
G37: 8 | AE37: Training Load | AG37: =IF(AG31="","",SUM(AG25)) -> 
B38: Extrem hart | G38: 9
B39: Wie mein härtestes Training | G39: 10 | AE39: Monotonie | AG39: =IF(AG31="","",(AVERAGE(AG4:AG24))/AG27) -> 
AE41: Trainingsanstrengung | AG41: =IF(AG31="","",AG37*AG39) -> 
AE43: =AI2 -> Lauf Km | AG43: =IF(AG31="","",SUM(AI4:AI24)) -> 
AE45: =AJ2 -> J | AG45: =IF(AG31="","",SUM(AJ4:AJ24)) -> 
AE47: =AK2 -> Swim Km | AG47: =IF(AG31="","",SUM(AK4:AK24)) -> 
AE49: =AL2 -> Mental Training | AG49: =IF(AG31="","",COUNTA(AL4:AL24)) -> 
AE51: =AM2 -> Regeneration | AG51: =IF(AG31="","",COUNTA(AM4:AM24)) -> 
Y155: =IF(Z155=1,52,Z155-1) -> 8 | Z155: =IF(AA155=1,52,AA155-1) -> 9 | AA155: =IF(AB155=1,52,AB155-1) -> 10 | AB155: =D1 -> 11 | AC155: =IF(AB155=52,1,AB155+1) -> 12 | AD155: =IF(AC155=52,1,AC155+1) -> 13

Sheet 12
C1: Woche | D1: =INT(MOD(INT((F1-2)/7)+0.6,52+5/28))+1 -> 12 | E1: =D1+1000 -> 1012 | F1: ='11'!F1+7 -> 2015-03-16 | G1: - | H1: =F1+6 -> 2015-03-22
B2: Tag | D2: ='45'!D2 -> Gewicht | E2: ='45'!E2 -> Erholt ? | F2: ='45'!F2 -> Schlaf | G2: ='45'!G2 -> Stress | I2: Trainigsbeschreibung | L2: ='45'!L2:N2 -> Dauerlauf | O2: ='45'!O2:Q2 -> Bahn/Intervall | R2: ='45'!R2:T2 -> Sprint/Koord/Tech | U2: ='45'!U2:W2 -> Kraft | X2: ='45'!X2:Z2 -> Alternativ | AA2: ='45'!AA2:AC2 -> Divers | AE2: Bemerkungen | AG2: Load/Tag | AI2: ='45'!AI2:AI3 -> Lauf Km | AJ2: ='45'!AJ2:AJ3 -> J | AK2: ='45'!AK2:AK3 -> Swim Km | AL2: ='45'!AL2:AL3 -> Mental Training | AM2: ='45'!AM2:AM3 -> Regeneration
D3: ='45'!D3 -> kg | E3: ='45'!E3 -> [-3….+3] | F3: ='45'!F3 -> 1-6 | G3: ='45'!G3 -> 0, 1, 2, 3 | L3: Dauer | M3: RPE | N3: Load | O3: Dauer | P3: RPE | Q3: Load | R3: Dauer | S3: RPE | T3: Load | U3: Dauer | V3: RPE | W3: Load | X3: Dauer | Y3: RPE | Z3: Load | AA3: Dauer | AB3: RPE | AC3: Load
B4: Mo | N4: =L4*M4 -> 0 | Q4: =O4*P4 -> 0 | T4: =R4*S4 -> 0 | W4: =U4*V4 -> 0 | Z4: =X4*Y4 -> 0 | AC4: =AA4*AB4 -> 0 | AG4: =SUM(N4:N6,Q4:Q6,T4:T6,W4:W6,Z4:Z6,AC4:AC6) -> 0
N5: 0 | Q5: 0 | T5: 0 | W5: 0 | Z5: 0 | AC5: 0
N6: 0 | Q6: 0 | T6: 0 | W6: 0 | Z6: 0 | AC6: 0
B7: Di | N7: 0 | Q7: 0 | T7: 0 | W7: 0 | Z7: 0 | AC7: 0 | AG7: =SUM(N7:N9,Q7:Q9,T7:T9,W7:W9,Z7:Z9,AC7:AC9) -> 0
N8: 0 | Q8: 0 | T8: 0 | W8: 0 | Z8: 0 | AC8: 0
N9: 0 | Q9: 0 | T9: 0 | W9: 0 | Z9: 0 | AC9: 0
B10: Mi | N10: 0 | Q10: 0 | T10: 0 | W10: 0 | Z10: 0 | AC10: 0 | AG10: =SUM(N10:N12,Q10:Q12,T10:T12,W10:W12,Z10:Z12,AC10:AC12) -> 0
N11: 0 | Q11: 0 | T11: 0 | W11: 0 | Z11: 0 | AC11: 0
N12: 0 | Q12: 0 | T12: 0 | W12: 0 | Z12: 0 | AC12: 0
B13: Do | N13: 0 | Q13: 0 | T13: 0 | W13: 0 | Z13: 0 | AC13: 0 | AG13: =SUM(N13:N15,Q13:Q15,T13:T15,W13:W15,Z13:Z15,AC13:AC15) -> 0
N14: 0 | Q14: 0 | T14: 0 | W14: 0 | Z14: 0 | AC14: 0
N15: 0 | Q15: 0 | T15: 0 | W15: 0 | Z15: 0 | AC15: 0
B16: Fr | N16: 0 | Q16: 0 | T16: 0 | W16: 0 | Z16: 0 | AC16: 0 | AG16: =SUM(N16:N18,Q16:Q18,T16:T18,W16:W18,Z16:Z18,AC16:AC18) -> 0
N17: 0 | Q17: 0 | T17: 0 | W17: 0 | Z17: 0 | AC17: 0
N18: 0 | Q18: 0 | T18: 0 | W18: 0 | Z18: 0 | AC18: 0
B19: Sa | N19: 0 | Q19: 0 | T19: 0 | W19: 0 | Z19: 0 | AC19: 0 | AG19: =SUM(N19:N21,Q19:Q21,T19:T21,W19:W21,Z19:Z21,AC19:AC21) -> 0
N20: 0 | Q20: 0 | T20: 0 | W20: 0 | Z20: 0 | AC20: 0
N21: 0 | Q21: 0 | T21: 0 | W21: 0 | Z21: 0 | AC21: 0
B22: So | N22: 0 | Q22: 0 | T22: 0 | W22: 0 | Z22: 0 | AC22: 0 | AG22: =SUM(N22:N24,Q22:Q24,T22:T24,W22:W24,Z22:Z24,AC22:AC24) -> 0
N23: 0 | Q23: 0 | T23: 0 | W23: 0 | Z23: 0 | AC23: 0
N24: 0 | Q24: 0 | T24: 0 | W24: 0 | Z24: 0 | AC24: 0
J25: Total | L25: =SUM(L4:L24) -> 0 | N25: =SUM(N4:N24) -> 0 | O25: =SUM(O4:O24) -> 0 | Q25: =SUM(Q4:Q24) -> 0 | R25: =SUM(R4:R24) -> 0 | T25: =SUM(T4:T24) -> 0 | U25: =SUM(U4:U24) -> 0 | W25: =SUM(W4:W24) -> 0 | X25: =SUM(X4:X24) -> 0 | Z25: =SUM(Z4:Z24) -> 0 | AA25: =SUM(AA4:AA24) -> 0 | AC25: =SUM(AC4:AC24) -> 0 | AE25: TOTAL LOAD | AG25: =SUM(AG4:AG24) -> 0
B26: avg | D26: =IF(COUNTA(D4:D24)=0,"",AVERAGE(D4:D24)) ->  | E26: =IF(COUNTA(E4:E24)=0,"",AVERAGE(E4:E24)) ->  | F26: =IF(COUNTA(F4:F24)=0,"",AVERAGE(F4:F24)) ->  | G26: =IF(COUNTA(G4:G24)=0,"",AVERAGE(G4:G24)) ->  | J26: Zone | L26: 1 | M26: 2 | N26: 3 | O26: 1 | P26: 2 | Q26: 3 | R26: 1 | S26: 2 | T26: 3 | U26: 1 | V26: 2 | W26: 3 | X26: 1 | Y26: 2 | Z26: 3 | AA26: 1 | AB26: 2 | AC26: 3 | AE26: Mittelwert | AG26: =AVERAGE(AG4:AG24) -> 0
J27: Einheiten pro Zone (RPE) | L27: =IF(Beanspruchungverteilung!$AT$21="x",COUNTIF(M4:M24,"<3.5"),COUNTIF(M4:M24,"<4.5")) -> 0 | M27: =COUNT(M4:M24)-(L27+N27) -> 0 | N27: =IF(Beanspruchungverteilung!$AT$21="x",COUNTIF(M4:M24,">5.5"),COUNTIF(M4:M24,">6.5")) -> 0 | O27: =IF(Beanspruchungverteilung!$AT$21="x",COUNTIF(P4:P24,"<3.5"),COUNTIF(P4:P24,"<4.5")) -> 0 | P27: =COUNT(P4:P24)-(O27+Q27) -> 0 | Q27: =IF(Beanspruchungverteilung!$AT$21="x",COUNTIF(P4:P24,">5.5"),COUNTIF(P4:P24,">6.5")) -> 0 | R27: =IF(Beanspruchungverteilung!$AT$21="x",COUNTIF(S4:S24,"<3.5"),COUNTIF(S4:S24,"<4.5")) -> 0 | S27: =COUNT(S4:S24)-(R27+T27) -> 0 | T27: =IF(Beanspruchungverteilung!$AT$21="x",COUNTIF(S4:S24,">5.5"),COUNTIF(S4:S24,">6.5")) -> 0 | U27: =IF(Beanspruchungverteilung!$AT$21="x",COUNTIF(V4:V24,"<3.5"),COUNTIF(V4:V24,"<4.5")) -> 0 | V27: =COUNT(V4:V24)-(U27+W27) -> 0 | W27: =IF(Beanspruchungverteilung!$AT$21="x",COUNTIF(V4:V24,">5.5"),COUNTIF(V4:V24,">6.5")) -> 0 | X27: =IF(Beanspruchungverteilung!$AT$21="x",COUNTIF(Y4:Y24,"<3.5"),COUNTIF(Y4:Y24,"<4.5")) -> 0 | Y27: =COUNT(Y4:Y24)-(X27+Z27) -> 0 | Z27: =IF(Beanspruchungverteilung!$AT$21="x",COUNTIF(Y4:Y24,">5.5"),COUNTIF(Y4:Y24,">6.5")) -> 0 | AA27: =IF(Beanspruchungverteilung!$AT$21="x",COUNTIF(AB4:AB24,"<3.5"),COUNTIF(AB4:AB24,"<4.5")) -> 0 | AB27: =COUNT(AB4:AB24)-(AA27+AC27) -> 0 | AC27: =IF(Beanspruchungverteilung!$AT$21="x",COUNTIF(AB4:AB24,">5.5"),COUNTIF(AB4:AB24,">6.5")) -> 0 | AE27: Standardabweichung | AG27: =STDEVP(AG4:AG24) -> 0
B28: Foster's Skala | G28: RPE | J28: Zeit pro Zone (RPE) | L28: =IF(Beanspruchungverteilung!$AT$21="x",SUMIF(M4:M24,"<3.5",L4:L24),SUMIF(M4:M24,"<4.5",L4:L24)) -> 0 | M28: =IF(M27=0,0,SUM((L25)-(L28+N28))) -> 0 | N28: =IF(Beanspruchungverteilung!$AT$21="x",SUMIF(M4:M24,">5.5",L4:L24),SUMIF(M4:M24,">6.5",L4:L24)) -> 0 | O28: =IF(Beanspruchungverteilung!$AT$21="x",SUMIF(P4:P24,"<3.5",O4:O24),SUMIF(P4:P24,"<4.5",O4:O24)) -> 0 | P28: =IF(P27=0,0,SUM((O25)-(O28+Q28))) -> 0 | Q28: =IF(Beanspruchungverteilung!$AT$21="x",SUMIF(P4:P24,">5.5",O4:O24),SUMIF(P4:P24,">6.5",O4:O24)) -> 0 | R28: =IF(Beanspruchungverteilung!$AT$21="x",SUMIF(S4:S24,"<3.5",R4:R24),SUMIF(S4:S24,"<4.5",R4:R24)) -> 0 | S28: =IF(S27=0,0,SUM((R25)-(R28+T28))) -> 0 | T28: =IF(Beanspruchungverteilung!$AT$21="x",SUMIF(S4:S24,">5.5",R4:R24),SUMIF(S4:S24,">6.5",R4:R24)) -> 0 | U28: =IF(Beanspruchungverteilung!$AT$21="x",SUMIF(V4:V24,"<3.5",U4:U24),SUMIF(V4:V24,"<4.5",U4:U24)) -> 0 | V28: =IF(V27=0,0,SUM((U25)-(U28+W28))) -> 0 | W28: =IF(Beanspruchungverteilung!$AT$21="x",SUMIF(V4:V24,">5.5",U4:U24),SUMIF(V4:V24,">6.5",U4:U24)) -> 0 | X28: =IF(Beanspruchungverteilung!$AT$21="x",SUMIF(Y4:Y24,"<3.5",X4:X24),SUMIF(Y4:Y24,"<4.5",X4:X24)) -> 0 | Y28: =IF(Y27=0,0,SUM((X25)-(X28+Z28))) -> 0 | Z28: =IF(Beanspruchungverteilung!$AT$21="x",SUMIF(Y4:Y24,">5.5",X4:X24),SUMIF(Y4:Y24,">6.5",X4:X24)) -> 0 | AA28: =IF(Beanspruchungverteilung!$AT$21="x",SUMIF(AB4:AB24,"<3.5",AA4:AA24),SUMIF(AB4:AB24,"<4.5",AA4:AA24)) -> 0 | AB28: =IF(AB27=0,0,SUM((AA25)-(AA28+AC28))) -> 0 | AC28: =IF(Beanspruchungverteilung!$AT$21="x",SUMIF(AB4:AB24,">5.5",AA4:AA24),SUMIF(AB4:AB24,">6.5",AA4:AA24)) -> 0
B29: Wie in Ruhe | G29: 0
B30: Sehr locker | G30: 1
B31: Locker | G31: 2 | AE31: Trainingstage | AG31: =IF(SUM(AG4:AG24)=0,"",COUNTIF(AG4:AG24,">0")) -> 
G32: 3
B33: Etwas hart | G33: 4 | AE33: Trainingseinheiten | AG33: =IF(AG31="","",SUM(L27:AC27)) -> 
B34: Hart | G34: 5
G35: 6 | AE35: Trainingsstunden | AG35: =IF(AG31="","",SUM(L25,O25,U25,X25,R25,AA25)/60) -> 
B36: Sehr hart | G36: 7
G37: 8 | AE37: Training Load | AG37: =IF(AG31="","",SUM(AG25)) -> 
B38: Extrem hart | G38: 9
B39: Wie mein härtestes Training | G39: 10 | AE39: Monotonie | AG39: =IF(AG31="","",(AVERAGE(AG4:AG24))/AG27) -> 
AE41: Trainingsanstrengung | AG41: =IF(AG31="","",AG37*AG39) -> 
AE43: =AI2 -> Lauf Km | AG43: =IF(AG31="","",SUM(AI4:AI24)) -> 
AE45: =AJ2 -> J | AG45: =IF(AG31="","",SUM(AJ4:AJ24)) -> 
AE47: =AK2 -> Swim Km | AG47: =IF(AG31="","",SUM(AK4:AK24)) -> 
AE49: =AL2 -> Mental Training | AG49: =IF(AG31="","",COUNTA(AL4:AL24)) -> 
AE51: =AM2 -> Regeneration | AG51: =IF(AG31="","",COUNTA(AM4:AM24)) -> 
Y155: =IF(Z155=1,52,Z155-1) -> 9 | Z155: =IF(AA155=1,52,AA155-1) -> 10 | AA155: =IF(AB155=1,52,AB155-1) -> 11 | AB155: =D1 -> 12 | AC155: =IF(AB155=52,1,AB155+1) -> 13 | AD155: =IF(AC155=52,1,AC155+1) -> 14

Sheet 13
C1: Woche | D1: =INT(MOD(INT((F1-2)/7)+0.6,52+5/28))+1 -> 13 | E1: =D1+1000 -> 1013 | F1: ='12'!F1+7 -> 2015-03-23 | G1: - | H1: =F1+6 -> 2015-03-29
B2: Tag | D2: ='45'!D2 -> Gewicht | E2: ='45'!E2 -> Erholt ? | F2: ='45'!F2 -> Schlaf | G2: ='45'!G2 -> Stress | I2: Trainigsbeschreibung | L2: ='45'!L2:N2 -> Dauerlauf | O2: ='45'!O2:Q2 -> Bahn/Intervall | R2: ='45'!R2:T2 -> Sprint/Koord/Tech | U2: ='45'!U2:W2 -> Kraft | X2: ='45'!X2:Z2 -> Alternativ | AA2: ='45'!AA2:AC2 -> Divers | AE2: Bemerkungen | AG2: Load/Tag | AI2: ='45'!AI2:AI3 -> Lauf Km | AJ2: ='45'!AJ2:AJ3 -> J | AK2: ='45'!AK2:AK3 -> Swim Km | AL2: ='45'!AL2:AL3 -> Mental Training | AM2: ='45'!AM2:AM3 -> Regeneration
D3: ='45'!D3 -> kg | E3: ='45'!E3 -> [-3….+3] | F3: ='45'!F3 -> 1-6 | G3: ='45'!G3 -> 0, 1, 2, 3 | L3: Dauer | M3: RPE | N3: Load | O3: Dauer | P3: RPE | Q3: Load | R3: Dauer | S3: RPE | T3: Load | U3: Dauer | V3: RPE | W3: Load | X3: Dauer | Y3: RPE | Z3: Load | AA3: Dauer | AB3: RPE | AC3: Load
B4: Mo | N4: =L4*M4 -> 0 | Q4: =O4*P4 -> 0 | T4: =R4*S4 -> 0 | W4: =U4*V4 -> 0 | Z4: =X4*Y4 -> 0 | AC4: =AA4*AB4 -> 0 | AG4: =SUM(N4:N6,Q4:Q6,T4:T6,W4:W6,Z4:Z6,AC4:AC6) -> 0
N5: 0 | Q5: 0 | T5: 0 | W5: 0 | Z5: 0 | AC5: 0
N6: 0 | Q6: 0 | T6: 0 | W6: 0 | Z6: 0 | AC6: 0
B7: Di | N7: 0 | Q7: 0 | T7: 0 | W7: 0 | Z7: 0 | AC7: 0 | AG7: =SUM(N7:N9,Q7:Q9,T7:T9,W7:W9,Z7:Z9,AC7:AC9) -> 0
N8: 0 | Q8: 0 | T8: 0 | W8: 0 | Z8: 0 | AC8: 0
N9: 0 | Q9: 0 | T9: 0 | W9: 0 | Z9: 0 | AC9: 0
B10: Mi | N10: 0 | Q10: 0 | T10: 0 | W10: 0 | Z10: 0 | AC10: 0 | AG10: =SUM(N10:N12,Q10:Q12,T10:T12,W10:W12,Z10:Z12,AC10:AC12) -> 0
N11: 0 | Q11: 0 | T11: 0 | W11: 0 | Z11: 0 | AC11: 0
N12: 0 | Q12: 0 | T12: 0 | W12: 0 | Z12: 0 | AC12: 0
B13: Do | N13: 0 | Q13: 0 | T13: 0 | W13: 0 | Z13: 0 | AC13: 0 | AG13: =SUM(N13:N15,Q13:Q15,T13:T15,W13:W15,Z13:Z15,AC13:AC15) -> 0
N14: 0 | Q14: 0 | T14: 0 | W14: 0 | Z14: 0 | AC14: 0
N15: 0 | Q15: 0 | T15: 0 | W15: 0 | Z15: 0 | AC15: 0
B16: Fr | N16: 0 | Q16: 0 | T16: 0 | W16: 0 | Z16: 0 | AC16: 0 | AG16: =SUM(N16:N18,Q16:Q18,T16:T18,W16:W18,Z16:Z18,AC16:AC18) -> 0
N17: 0 | Q17: 0 | T17: 0 | W17: 0 | Z17: 0 | AC17: 0
N18: 0 | Q18: 0 | T18: 0 | W18: 0 | Z18: 0 | AC18: 0
B19: Sa | N19: 0 | Q19: 0 | T19: 0 | W19: 0 | Z19: 0 | AC19: 0 | AG19: =SUM(N19:N21,Q19:Q21,T19:T21,W19:W21,Z19:Z21,AC19:AC21) -> 0
N20: 0 | Q20: 0 | T20: 0 | W20: 0 | Z20: 0 | AC20: 0
N21: 0 | Q21: 0 | T21: 0 | W21: 0 | Z21: 0 | AC21: 0
B22: So | N22: 0 | Q22: 0 | T22: 0 | W22: 0 | Z22: 0 | AC22: 0 | AG22: =SUM(N22:N24,Q22:Q24,T22:T24,W22:W24,Z22:Z24,AC22:AC24) -> 0
N23: 0 | Q23: 0 | T23: 0 | W23: 0 | Z23: 0 | AC23: 0
N24: 0 | Q24: 0 | T24: 0 | W24: 0 | Z24: 0 | AC24: 0
J25: Total | L25: =SUM(L4:L24) -> 0 | N25: =SUM(N4:N24) -> 0 | O25: =SUM(O4:O24) -> 0 | Q25: =SUM(Q4:Q24) -> 0 | R25: =SUM(R4:R24) -> 0 | T25: =SUM(T4:T24) -> 0 | U25: =SUM(U4:U24) -> 0 | W25: =SUM(W4:W24) -> 0 | X25: =SUM(X4:X24) -> 0 | Z25: =SUM(Z4:Z24) -> 0 | AA25: =SUM(AA4:AA24) -> 0 | AC25: =SUM(AC4:AC24) -> 0 | AE25: TOTAL LOAD | AG25: =SUM(AG4:AG24) -> 0
B26: avg | D26: =IF(COUNTA(D4:D24)=0,"",AVERAGE(D4:D24)) ->  | E26: =IF(COUNTA(E4:E24)=0,"",AVERAGE(E4:E24)) ->  | F26: =IF(COUNTA(F4:F24)=0,"",AVERAGE(F4:F24)) ->  | G26: =IF(COUNTA(G4:G24)=0,"",AVERAGE(G4:G24)) ->  | J26: Zone | L26: 1 | M26: 2 | N26: 3 | O26: 1 | P26: 2 | Q26: 3 | R26: 1 | S26: 2 | T26: 3 | U26: 1 | V26: 2 | W26: 3 | X26: 1 | Y26: 2 | Z26: 3 | AA26: 1 | AB26: 2 | AC26: 3 | AE26: Mittelwert | AG26: =AVERAGE(AG4:AG24) -> 0
J27: Einheiten pro Zone (RPE) | L27: =IF(Beanspruchungverteilung!$AT$21="x",COUNTIF(M4:M24,"<3.5"),COUNTIF(M4:M24,"<4.5")) -> 0 | M27: =COUNT(M4:M24)-(L27+N27) -> 0 | N27: =IF(Beanspruchungverteilung!$AT$21="x",COUNTIF(M4:M24,">5.5"),COUNTIF(M4:M24,">6.5")) -> 0 | O27: =IF(Beanspruchungverteilung!$AT$21="x",COUNTIF(P4:P24,"<3.5"),COUNTIF(P4:P24,"<4.5")) -> 0 | P27: =COUNT(P4:P24)-(O27+Q27) -> 0 | Q27: =IF(Beanspruchungverteilung!$AT$21="x",COUNTIF(P4:P24,">5.5"),COUNTIF(P4:P24,">6.5")) -> 0 | R27: =IF(Beanspruchungverteilung!$AT$21="x",COUNTIF(S4:S24,"<3.5"),COUNTIF(S4:S24,"<4.5")) -> 0 | S27: =COUNT(S4:S24)-(R27+T27) -> 0 | T27: =IF(Beanspruchungverteilung!$AT$21="x",COUNTIF(S4:S24,">5.5"),COUNTIF(S4:S24,">6.5")) -> 0 | U27: =IF(Beanspruchungverteilung!$AT$21="x",COUNTIF(V4:V24,"<3.5"),COUNTIF(V4:V24,"<4.5")) -> 0 | V27: =COUNT(V4:V24)-(U27+W27) -> 0 | W27: =IF(Beanspruchungverteilung!$AT$21="x",COUNTIF(V4:V24,">5.5"),COUNTIF(V4:V24,">6.5")) -> 0 | X27: =IF(Beanspruchungverteilung!$AT$21="x",COUNTIF(Y4:Y24,"<3.5"),COUNTIF(Y4:Y24,"<4.5")) -> 0 | Y27: =COUNT(Y4:Y24)-(X27+Z27) -> 0 | Z27: =IF(Beanspruchungverteilung!$AT$21="x",COUNTIF(Y4:Y24,">5.5"),COUNTIF(Y4:Y24,">6.5")) -> 0 | AA27: =IF(Beanspruchungverteilung!$AT$21="x",COUNTIF(AB4:AB24,"<3.5"),COUNTIF(AB4:AB24,"<4.5")) -> 0 | AB27: =COUNT(AB4:AB24)-(AA27+AC27) -> 0 | AC27: =IF(Beanspruchungverteilung!$AT$21="x",COUNTIF(AB4:AB24,">5.5"),COUNTIF(AB4:AB24,">6.5")) -> 0 | AE27: Standardabweichung | AG27: =STDEVP(AG4:AG24) -> 0
B28: Foster's Skala | G28: RPE | J28: Zeit pro Zone (RPE) | L28: =IF(Beanspruchungverteilung!$AT$21="x",SUMIF(M4:M24,"<3.5",L4:L24),SUMIF(M4:M24,"<4.5",L4:L24)) -> 0 | M28: =IF(M27=0,0,SUM((L25)-(L28+N28))) -> 0 | N28: =IF(Beanspruchungverteilung!$AT$21="x",SUMIF(M4:M24,">5.5",L4:L24),SUMIF(M4:M24,">6.5",L4:L24)) -> 0 | O28: =IF(Beanspruchungverteilung!$AT$21="x",SUMIF(P4:P24,"<3.5",O4:O24),SUMIF(P4:P24,"<4.5",O4:O24)) -> 0 | P28: =IF(P27=0,0,SUM((O25)-(O28+Q28))) -> 0 | Q28: =IF(Beanspruchungverteilung!$AT$21="x",SUMIF(P4:P24,">5.5",O4:O24),SUMIF(P4:P24,">6.5",O4:O24)) -> 0 | R28: =IF(Beanspruchungverteilung!$AT$21="x",SUMIF(S4:S24,"<3.5",R4:R24),SUMIF(S4:S24,"<4.5",R4:R24)) -> 0 | S28: =IF(S27=0,0,SUM((R25)-(R28+T28))) -> 0 | T28: =IF(Beanspruchungverteilung!$AT$21="x",SUMIF(S4:S24,">5.5",R4:R24),SUMIF(S4:S24,">6.5",R4:R24)) -> 0 | U28: =IF(Beanspruchungverteilung!$AT$21="x",SUMIF(V4:V24,"<3.5",U4:U24),SUMIF(V4:V24,"<4.5",U4:U24)) -> 0 | V28: =IF(V27=0,0,SUM((U25)-(U28+W28))) -> 0 | W28: =IF(Beanspruchungverteilung!$AT$21="x",SUMIF(V4:V24,">5.5",U4:U24),SUMIF(V4:V24,">6.5",U4:U24)) -> 0 | X28: =IF(Beanspruchungverteilung!$AT$21="x",SUMIF(Y4:Y24,"<3.5",X4:X24),SUMIF(Y4:Y24,"<4.5",X4:X24)) -> 0 | Y28: =IF(Y27=0,0,SUM((X25)-(X28+Z28))) -> 0 | Z28: =IF(Beanspruchungverteilung!$AT$21="x",SUMIF(Y4:Y24,">5.5",X4:X24),SUMIF(Y4:Y24,">6.5",X4:X24)) -> 0 | AA28: =IF(Beanspruchungverteilung!$AT$21="x",SUMIF(AB4:AB24,"<3.5",AA4:AA24),SUMIF(AB4:AB24,"<4.5",AA4:AA24)) -> 0 | AB28: =IF(AB27=0,0,SUM((AA25)-(AA28+AC28))) -> 0 | AC28: =IF(Beanspruchungverteilung!$AT$21="x",SUMIF(AB4:AB24,">5.5",AA4:AA24),SUMIF(AB4:AB24,">6.5",AA4:AA24)) -> 0
B29: Wie in Ruhe | G29: 0
B30: Sehr locker | G30: 1
B31: Locker | G31: 2 | AE31: Trainingstage | AG31: =IF(SUM(AG4:AG24)=0,"",COUNTIF(AG4:AG24,">0")) -> 
G32: 3
B33: Etwas hart | G33: 4 | AE33: Trainingseinheiten | AG33: =IF(AG31="","",SUM(L27:AC27)) -> 
B34: Hart | G34: 5
G35: 6 | AE35: Trainingsstunden | AG35: =IF(AG31="","",SUM(L25,O25,U25,X25,R25,AA25)/60) -> 
B36: Sehr hart | G36: 7
G37: 8 | AE37: Training Load | AG37: =IF(AG31="","",SUM(AG25)) -> 
B38: Extrem hart | G38: 9
B39: Wie mein härtestes Training | G39: 10 | AE39: Monotonie | AG39: =IF(AG31="","",(AVERAGE(AG4:AG24))/AG27) -> 
AE41: Trainingsanstrengung | AG41: =IF(AG31="","",AG37*AG39) -> 
AE43: =AI2 -> Lauf Km | AG43: =IF(AG31="","",SUM(AI4:AI24)) -> 
AE45: =AJ2 -> J | AG45: =IF(AG31="","",SUM(AJ4:AJ24)) -> 
AE47: =AK2 -> Swim Km | AG47: =IF(AG31="","",SUM(AK4:AK24)) -> 
AE49: =AL2 -> Mental Training | AG49: =IF(AG31="","",COUNTA(AL4:AL24)) -> 
AE51: =AM2 -> Regeneration | AG51: =IF(AG31="","",COUNTA(AM4:AM24)) -> 
Y155: =IF(Z155=1,52,Z155-1) -> 10 | Z155: =IF(AA155=1,52,AA155-1) -> 11 | AA155: =IF(AB155=1,52,AB155-1) -> 12 | AB155: =D1 -> 13 | AC155: =IF(AB155=52,1,AB155+1) -> 14 | AD155: =IF(AC155=52,1,AC155+1) -> 15

Sheet 14
C1: Woche | D1: =INT(MOD(INT((F1-2)/7)+0.6,52+5/28))+1 -> 14 | E1: =D1+1000 -> 1014 | F1: ='13'!F1+7 -> 2015-03-30 | G1: - | H1: =F1+6 -> 2015-04-05
B2: Tag | D2: ='45'!D2 -> Gewicht | E2: ='45'!E2 -> Erholt ? | F2: ='45'!F2 -> Schlaf | G2: ='45'!G2 -> Stress | I2: Trainigsbeschreibung | L2: ='45'!L2:N2 -> Dauerlauf | O2: ='45'!O2:Q2 -> Bahn/Intervall | R2: ='45'!R2:T2 -> Sprint/Koord/Tech | U2: ='45'!U2:W2 -> Kraft | X2: ='45'!X2:Z2 -> Alternativ | AA2: ='45'!AA2:AC2 -> Divers | AE2: Bemerkungen | AG2: Load/Tag | AI2: ='45'!AI2:AI3 -> Lauf Km | AJ2: ='45'!AJ2:AJ3 -> J | AK2: ='45'!AK2:AK3 -> Swim Km | AL2: ='45'!AL2:AL3 -> Mental Training | AM2: ='45'!AM2:AM3 -> Regeneration
D3: ='45'!D3 -> kg | E3: ='45'!E3 -> [-3….+3] | F3: ='45'!F3 -> 1-6 | G3: ='45'!G3 -> 0, 1, 2, 3 | L3: Dauer | M3: RPE | N3: Load | O3: Dauer | P3: RPE | Q3: Load | R3: Dauer | S3: RPE | T3: Load | U3: Dauer | V3: RPE | W3: Load | X3: Dauer | Y3: RPE | Z3: Load | AA3: Dauer | AB3: RPE | AC3: Load
B4: Mo | N4: =L4*M4 -> 0 | Q4: =O4*P4 -> 0 | T4: =R4*S4 -> 0 | W4: =U4*V4 -> 0 | Z4: =X4*Y4 -> 0 | AC4: =AA4*AB4 -> 0 | AG4: =SUM(N4:N6,Q4:Q6,T4:T6,W4:W6,Z4:Z6,AC4:AC6) -> 0
N5: 0 | Q5: 0 | T5: 0 | W5: 0 | Z5: 0 | AC5: 0
N6: 0 | Q6: 0 | T6: 0 | W6: 0 | Z6: 0 | AC6: 0
B7: Di | N7: 0 | Q7: 0 | T7: 0 | W7: 0 | Z7: 0 | AC7: 0 | AG7: =SUM(N7:N9,Q7:Q9,T7:T9,W7:W9,Z7:Z9,AC7:AC9) -> 0
N8: 0 | Q8: 0 | T8: 0 | W8: 0 | Z8: 0 | AC8: 0
N9: 0 | Q9: 0 | T9: 0 | W9: 0 | Z9: 0 | AC9: 0
B10: Mi | N10: 0 | Q10: 0 | T10: 0 | W10: 0 | Z10: 0 | AC10: 0 | AG10: =SUM(N10:N12,Q10:Q12,T10:T12,W10:W12,Z10:Z12,AC10:AC12) -> 0
N11: 0 | Q11: 0 | T11: 0 | W11: 0 | Z11: 0 | AC11: 0
N12: 0 | Q12: 0 | T12: 0 | W12: 0 | Z12: 0 | AC12: 0
B13: Do | N13: 0 | Q13: 0 | T13: 0 | W13: 0 | Z13: 0 | AC13: 0 | AG13: =SUM(N13:N15,Q13:Q15,T13:T15,W13:W15,Z13:Z15,AC13:AC15) -> 0
N14: 0 | Q14: 0 | T14: 0 | W14: 0 | Z14: 0 | AC14: 0
N15: 0 | Q15: 0 | T15: 0 | W15: 0 | Z15: 0 | AC15: 0
B16: Fr | N16: 0 | Q16: 0 | T16: 0 | W16: 0 | Z16: 0 | AC16: 0 | AG16: =SUM(N16:N18,Q16:Q18,T16:T18,W16:W18,Z16:Z18,AC16:AC18) -> 0
N17: 0 | Q17: 0 | T17: 0 | W17: 0 | Z17: 0 | AC17: 0
N18: 0 | Q18: 0 | T18: 0 | W18: 0 | Z18: 0 | AC18: 0
B19: Sa | N19: 0 | Q19: 0 | T19: 0 | W19: 0 | Z19: 0 | AC19: 0 | AG19: =SUM(N19:N21,Q19:Q21,T19:T21,W19:W21,Z19:Z21,AC19:AC21) -> 0
N20: 0 | Q20: 0 | T20: 0 | W20: 0 | Z20: 0 | AC20: 0
N21: 0 | Q21: 0 | T21: 0 | W21: 0 | Z21: 0 | AC21: 0
B22: So | N22: 0 | Q22: 0 | T22: 0 | W22: 0 | Z22: 0 | AC22: 0 | AG22: =SUM(N22:N24,Q22:Q24,T22:T24,W22:W24,Z22:Z24,AC22:AC24) -> 0
N23: 0 | Q23: 0 | T23: 0 | W23: 0 | Z23: 0 | AC23: 0
N24: 0 | Q24: 0 | T24: 0 | W24: 0 | Z24: 0 | AC24: 0
J25: Total | L25: =SUM(L4:L24) -> 0 | N25: =SUM(N4:N24) -> 0 | O25: =SUM(O4:O24) -> 0 | Q25: =SUM(Q4:Q24) -> 0 | R25: =SUM(R4:R24) -> 0 | T25: =SUM(T4:T24) -> 0 | U25: =SUM(U4:U24) -> 0 | W25: =SUM(W4:W24) -> 0 | X25: =SUM(X4:X24) -> 0 | Z25: =SUM(Z4:Z24) -> 0 | AA25: =SUM(AA4:AA24) -> 0 | AC25: =SUM(AC4:AC24) -> 0 | AE25: TOTAL LOAD | AG25: =SUM(AG4:AG24) -> 0
B26: avg | D26: =IF(COUNTA(D4:D24)=0,"",AVERAGE(D4:D24)) ->  | E26: =IF(COUNTA(E4:E24)=0,"",AVERAGE(E4:E24)) ->  | F26: =IF(COUNTA(F4:F24)=0,"",AVERAGE(F4:F24)) ->  | G26: =IF(COUNTA(G4:G24)=0,"",AVERAGE(G4:G24)) ->  | J26: Zone | L26: 1 | M26: 2 | N26: 3 | O26: 1 | P26: 2 | Q26: 3 | R26: 1 | S26: 2 | T26: 3 | U26: 1 | V26: 2 | W26: 3 | X26: 1 | Y26: 2 | Z26: 3 | AA26: 1 | AB26: 2 | AC26: 3 | AE26: Mittelwert | AG26: =AVERAGE(AG4:AG24) -> 0
J27: Einheiten pro Zone (RPE) | L27: =IF(Beanspruchungverteilung!$AT$21="x",COUNTIF(M4:M24,"<3.5"),COUNTIF(M4:M24,"<4.5")) -> 0 | M27: =COUNT(M4:M24)-(L27+N27) -> 0 | N27: =IF(Beanspruchungverteilung!$AT$21="x",COUNTIF(M4:M24,">5.5"),COUNTIF(M4:M24,">6.5")) -> 0 | O27: =IF(Beanspruchungverteilung!$AT$21="x",COUNTIF(P4:P24,"<3.5"),COUNTIF(P4:P24,"<4.5")) -> 0 | P27: =COUNT(P4:P24)-(O27+Q27) -> 0 | Q27: =IF(Beanspruchungverteilung!$AT$21="x",COUNTIF(P4:P24,">5.5"),COUNTIF(P4:P24,">6.5")) -> 0 | R27: =IF(Beanspruchungverteilung!$AT$21="x",COUNTIF(S4:S24,"<3.5"),COUNTIF(S4:S24,"<4.5")) -> 0 | S27: =COUNT(S4:S24)-(R27+T27) -> 0 | T27: =IF(Beanspruchungverteilung!$AT$21="x",COUNTIF(S4:S24,">5.5"),COUNTIF(S4:S24,">6.5")) -> 0 | U27: =IF(Beanspruchungverteilung!$AT$21="x",COUNTIF(V4:V24,"<3.5"),COUNTIF(V4:V24,"<4.5")) -> 0 | V27: =COUNT(V4:V24)-(U27+W27) -> 0 | W27: =IF(Beanspruchungverteilung!$AT$21="x",COUNTIF(V4:V24,">5.5"),COUNTIF(V4:V24,">6.5")) -> 0 | X27: =IF(Beanspruchungverteilung!$AT$21="x",COUNTIF(Y4:Y24,"<3.5"),COUNTIF(Y4:Y24,"<4.5")) -> 0 | Y27: =COUNT(Y4:Y24)-(X27+Z27) -> 0 | Z27: =IF(Beanspruchungverteilung!$AT$21="x",COUNTIF(Y4:Y24,">5.5"),COUNTIF(Y4:Y24,">6.5")) -> 0 | AA27: =IF(Beanspruchungverteilung!$AT$21="x",COUNTIF(AB4:AB24,"<3.5"),COUNTIF(AB4:AB24,"<4.5")) -> 0 | AB27: =COUNT(AB4:AB24)-(AA27+AC27) -> 0 | AC27: =IF(Beanspruchungverteilung!$AT$21="x",COUNTIF(AB4:AB24,">5.5"),COUNTIF(AB4:AB24,">6.5")) -> 0 | AE27: Standardabweichung | AG27: =STDEVP(AG4:AG24) -> 0
B28: Foster's Skala | G28: RPE | J28: Zeit pro Zone (RPE) | L28: =IF(Beanspruchungverteilung!$AT$21="x",SUMIF(M4:M24,"<3.5",L4:L24),SUMIF(M4:M24,"<4.5",L4:L24)) -> 0 | M28: =IF(M27=0,0,SUM((L25)-(L28+N28))) -> 0 | N28: =IF(Beanspruchungverteilung!$AT$21="x",SUMIF(M4:M24,">5.5",L4:L24),SUMIF(M4:M24,">6.5",L4:L24)) -> 0 | O28: =IF(Beanspruchungverteilung!$AT$21="x",SUMIF(P4:P24,"<3.5",O4:O24),SUMIF(P4:P24,"<4.5",O4:O24)) -> 0 | P28: =IF(P27=0,0,SUM((O25)-(O28+Q28))) -> 0 | Q28: =IF(Beanspruchungverteilung!$AT$21="x",SUMIF(P4:P24,">5.5",O4:O24),SUMIF(P4:P24,">6.5",O4:O24)) -> 0 | R28: =IF(Beanspruchungverteilung!$AT$21="x",SUMIF(S4:S24,"<3.5",R4:R24),SUMIF(S4:S24,"<4.5",R4:R24)) -> 0 | S28: =IF(S27=0,0,SUM((R25)-(R28+T28))) -> 0 | T28: =IF(Beanspruchungverteilung!$AT$21="x",SUMIF(S4:S24,">5.5",R4:R24),SUMIF(S4:S24,">6.5",R4:R24)) -> 0 | U28: =IF(Beanspruchungverteilung!$AT$21="x",SUMIF(V4:V24,"<3.5",U4:U24),SUMIF(V4:V24,"<4.5",U4:U24)) -> 0 | V28: =IF(V27=0,0,SUM((U25)-(U28+W28))) -> 0 | W28: =IF(Beanspruchungverteilung!$AT$21="x",SUMIF(V4:V24,">5.5",U4:U24),SUMIF(V4:V24,">6.5",U4:U24)) -> 0 | X28: =IF(Beanspruchungverteilung!$AT$21="x",SUMIF(Y4:Y24,"<3.5",X4:X24),SUMIF(Y4:Y24,"<4.5",X4:X24)) -> 0 | Y28: =IF(Y27=0,0,SUM((X25)-(X28+Z28))) -> 0 | Z28: =IF(Beanspruchungverteilung!$AT$21="x",SUMIF(Y4:Y24,">5.5",X4:X24),SUMIF(Y4:Y24,">6.5",X4:X24)) -> 0 | AA28: =IF(Beanspruchungverteilung!$AT$21="x",SUMIF(AB4:AB24,"<3.5",AA4:AA24),SUMIF(AB4:AB24,"<4.5",AA4:AA24)) -> 0 | AB28: =IF(AB27=0,0,SUM((AA25)-(AA28+AC28))) -> 0 | AC28: =IF(Beanspruchungverteilung!$AT$21="x",SUMIF(AB4:AB24,">5.5",AA4:AA24),SUMIF(AB4:AB24,">6.5",AA4:AA24)) -> 0
B29: Wie in Ruhe | G29: 0
B30: Sehr locker | G30: 1
B31: Locker | G31: 2 | AE31: Trainingstage | AG31: =IF(SUM(AG4:AG24)=0,"",COUNTIF(AG4:AG24,">0")) -> 
G32: 3
B33: Etwas hart | G33: 4 | AE33: Trainingseinheiten | AG33: =IF(AG31="","",SUM(L27:AC27)) -> 
B34: Hart | G34: 5
G35: 6 | AE35: Trainingsstunden | AG35: =IF(AG31="","",SUM(L25,O25,U25,X25,R25,AA25)/60) -> 
B36: Sehr hart | G36: 7
G37: 8 | AE37: Training Load | AG37: =IF(AG31="","",SUM(AG25)) -> 
B38: Extrem hart | G38: 9
B39: Wie mein härtestes Training | G39: 10 | AE39: Monotonie | AG39: =IF(AG31="","",(AVERAGE(AG4:AG24))/AG27) -> 
AE41: Trainingsanstrengung | AG41: =IF(AG31="","",AG37*AG39) -> 
AE43: =AI2 -> Lauf Km | AG43: =IF(AG31="","",SUM(AI4:AI24)) -> 
AE45: =AJ2 -> J | AG45: =IF(AG31="","",SUM(AJ4:AJ24)) -> 
AE47: =AK2 -> Swim Km | AG47: =IF(AG31="","",SUM(AK4:AK24)) -> 
AE49: =AL2 -> Mental Training | AG49: =IF(AG31="","",COUNTA(AL4:AL24)) -> 
AE51: =AM2 -> Regeneration | AG51: =IF(AG31="","",COUNTA(AM4:AM24)) -> 
Y155: =IF(Z155=1,52,Z155-1) -> 11 | Z155: =IF(AA155=1,52,AA155-1) -> 12 | AA155: =IF(AB155=1,52,AB155-1) -> 13 | AB155: =D1 -> 14 | AC155: =IF(AB155=52,1,AB155+1) -> 15 | AD155: =IF(AC155=52,1,AC155+1) -> 16

Sheet 15
C1: Woche | D1: =INT(MOD(INT((F1-2)/7)+0.6,52+5/28))+1 -> 15 | E1: =D1+1000 -> 1015 | F1: ='14'!F1+7 -> 2015-04-06 | G1: - | H1: =F1+6 -> 2015-04-12
B2: Tag | D2: ='45'!D2 -> Gewicht | E2: ='45'!E2 -> Erholt ? | F2: ='45'!F2 -> Schlaf | G2: ='45'!G2 -> Stress | I2: Trainigsbeschreibung | L2: ='45'!L2:N2 -> Dauerlauf | O2: ='45'!O2:Q2 -> Bahn/Intervall | R2: ='45'!R2:T2 -> Sprint/Koord/Tech | U2: ='45'!U2:W2 -> Kraft | X2: ='45'!X2:Z2 -> Alternativ | AA2: ='45'!AA2:AC2 -> Divers | AE2: Bemerkungen | AG2: Load/Tag | AI2: ='45'!AI2:AI3 -> Lauf Km | AJ2: ='45'!AJ2:AJ3 -> J | AK2: ='45'!AK2:AK3 -> Swim Km | AL2: ='45'!AL2:AL3 -> Mental Training | AM2: ='45'!AM2:AM3 -> Regeneration
D3: ='45'!D3 -> kg | E3: ='45'!E3 -> [-3….+3] | F3: ='45'!F3 -> 1-6 | G3: ='45'!G3 -> 0, 1, 2, 3 | L3: Dauer | M3: RPE | N3: Load | O3: Dauer | P3: RPE | Q3: Load | R3: Dauer | S3: RPE | T3: Load | U3: Dauer | V3: RPE | W3: Load | X3: Dauer | Y3: RPE | Z3: Load | AA3: Dauer | AB3: RPE | AC3: Load
B4: Mo | N4: =L4*M4 -> 0 | Q4: =O4*P4 -> 0 | T4: =R4*S4 -> 0 | W4: =U4*V4 -> 0 | Z4: =X4*Y4 -> 0 | AC4: =AA4*AB4 -> 0 | AG4: =SUM(N4:N6,Q4:Q6,T4:T6,W4:W6,Z4:Z6,AC4:AC6) -> 0
N5: 0 | Q5: 0 | T5: 0 | W5: 0 | Z5: 0 | AC5: 0
N6: 0 | Q6: 0 | T6: 0 | W6: 0 | Z6: 0 | AC6: 0
B7: Di | N7: 0 | Q7: 0 | T7: 0 | W7: 0 | Z7: 0 | AC7: 0 | AG7: =SUM(N7:N9,Q7:Q9,T7:T9,W7:W9,Z7:Z9,AC7:AC9) -> 0
N8: 0 | Q8: 0 | T8: 0 | W8: 0 | Z8: 0 | AC8: 0
N9: 0 | Q9: 0 | T9: 0 | W9: 0 | Z9: 0 | AC9: 0
B10: Mi | N10: 0 | Q10: 0 | T10: 0 | W10: 0 | Z10: 0 | AC10: 0 | AG10: =SUM(N10:N12,Q10:Q12,T10:T12,W10:W12,Z10:Z12,AC10:AC12) -> 0
N11: 0 | Q11: 0 | T11: 0 | W11: 0 | Z11: 0 | AC11: 0
N12: 0 | Q12: 0 | T12: 0 | W12: 0 | Z12: 0 | AC12: 0
B13: Do | N13: 0 | Q13: 0 | T13: 0 | W13: 0 | Z13: 0 | AC13: 0 | AG13: =SUM(N13:N15,Q13:Q15,T13:T15,W13:W15,Z13:Z15,AC13:AC15) -> 0
N14: 0 | Q14: 0 | T14: 0 | W14: 0 | Z14: 0 | AC14: 0
N15: 0 | Q15: 0 | T15: 0 | W15: 0 | Z15: 0 | AC15: 0
B16: Fr | N16: 0 | Q16: 0 | T16: 0 | W16: 0 | Z16: 0 | AC16: 0 | AG16: =SUM(N16:N18,Q16:Q18,T16:T18,W16:W18,Z16:Z18,AC16:AC18) -> 0
N17: 0 | Q17: 0 | T17: 0 | W17: 0 | Z17: 0 | AC17: 0
N18: 0 | Q18: 0 | T18: 0 | W18: 0 | Z18: 0 | AC18: 0
B19: Sa | N19: 0 | Q19: 0 | T19: 0 | W19: 0 | Z19: 0 | AC19: 0 | AG19: =SUM(N19:N21,Q19:Q21,T19:T21,W19:W21,Z19:Z21,AC19:AC21) -> 0
N20: 0 | Q20: 0 | T20: 0 | W20: 0 | Z20: 0 | AC20: 0
N21: 0 | Q21: 0 | T21: 0 | W21: 0 | Z21: 0 | AC21: 0
B22: So | N22: 0 | Q22: 0 | T22: 0 | W22: 0 | Z22: 0 | AC22: 0 | AG22: =SUM(N22:N24,Q22:Q24,T22:T24,W22:W24,Z22:Z24,AC22:AC24) -> 0
N23: 0 | Q23: 0 | T23: 0 | W23: 0 | Z23: 0 | AC23: 0
N24: 0 | Q24: 0 | T24: 0 | W24: 0 | Z24: 0 | AC24: 0
J25: Total | L25: =SUM(L4:L24) -> 0 | N25: =SUM(N4:N24) -> 0 | O25: =SUM(O4:O24) -> 0 | Q25: =SUM(Q4:Q24) -> 0 | R25: =SUM(R4:R24) -> 0 | T25: =SUM(T4:T24) -> 0 | U25: =SUM(U4:U24) -> 0 | W25: =SUM(W4:W24) -> 0 | X25: =SUM(X4:X24) -> 0 | Z25: =SUM(Z4:Z24) -> 0 | AA25: =SUM(AA4:AA24) -> 0 | AC25: =SUM(AC4:AC24) -> 0 | AE25: TOTAL LOAD | AG25: =SUM(AG4:AG24) -> 0
B26: avg | D26: =IF(COUNTA(D4:D24)=0,"",AVERAGE(D4:D24)) ->  | E26: =IF(COUNTA(E4:E24)=0,"",AVERAGE(E4:E24)) ->  | F26: =IF(COUNTA(F4:F24)=0,"",AVERAGE(F4:F24)) ->  | G26: =IF(COUNTA(G4:G24)=0,"",AVERAGE(G4:G24)) ->  | J26: Zone | L26: 1 | M26: 2 | N26: 3 | O26: 1 | P26: 2 | Q26: 3 | R26: 1 | S26: 2 | T26: 3 | U26: 1 | V26: 2 | W26: 3 | X26: 1 | Y26: 2 | Z26: 3 | AA26: 1 | AB26: 2 | AC26: 3 | AE26: Mittelwert | AG26: =AVERAGE(AG4:AG24) -> 0
J27: Einheiten pro Zone (RPE) | L27: =IF(Beanspruchungverteilung!$AT$21="x",COUNTIF(M4:M24,"<3.5"),COUNTIF(M4:M24,"<4.5")) -> 0 | M27: =COUNT(M4:M24)-(L27+N27) -> 0 | N27: =IF(Beanspruchungverteilung!$AT$21="x",COUNTIF(M4:M24,">5.5"),COUNTIF(M4:M24,">6.5")) -> 0 | O27: =IF(Beanspruchungverteilung!$AT$21="x",COUNTIF(P4:P24,"<3.5"),COUNTIF(P4:P24,"<4.5")) -> 0 | P27: =COUNT(P4:P24)-(O27+Q27) -> 0 | Q27: =IF(Beanspruchungverteilung!$AT$21="x",COUNTIF(P4:P24,">5.5"),COUNTIF(P4:P24,">6.5")) -> 0 | R27: =IF(Beanspruchungverteilung!$AT$21="x",COUNTIF(S4:S24,"<3.5"),COUNTIF(S4:S24,"<4.5")) -> 0 | S27: =COUNT(S4:S24)-(R27+T27) -> 0 | T27: =IF(Beanspruchungverteilung!$AT$21="x",COUNTIF(S4:S24,">5.5"),COUNTIF(S4:S24,">6.5")) -> 0 | U27: =IF(Beanspruchungverteilung!$AT$21="x",COUNTIF(V4:V24,"<3.5"),COUNTIF(V4:V24,"<4.5")) -> 0 | V27: =COUNT(V4:V24)-(U27+W27) -> 0 | W27: =IF(Beanspruchungverteilung!$AT$21="x",COUNTIF(V4:V24,">5.5"),COUNTIF(V4:V24,">6.5")) -> 0 | X27: =IF(Beanspruchungverteilung!$AT$21="x",COUNTIF(Y4:Y24,"<3.5"),COUNTIF(Y4:Y24,"<4.5")) -> 0 | Y27: =COUNT(Y4:Y24)-(X27+Z27) -> 0 | Z27: =IF(Beanspruchungverteilung!$AT$21="x",COUNTIF(Y4:Y24,">5.5"),COUNTIF(Y4:Y24,">6.5")) -> 0 | AA27: =IF(Beanspruchungverteilung!$AT$21="x",COUNTIF(AB4:AB24,"<3.5"),COUNTIF(AB4:AB24,"<4.5")) -> 0 | AB27: =COUNT(AB4:AB24)-(AA27+AC27) -> 0 | AC27: =IF(Beanspruchungverteilung!$AT$21="x",COUNTIF(AB4:AB24,">5.5"),COUNTIF(AB4:AB24,">6.5")) -> 0 | AE27: Standardabweichung | AG27: =STDEVP(AG4:AG24) -> 0
B28: Foster's Skala | G28: RPE | J28: Zeit pro Zone (RPE) | L28: =IF(Beanspruchungverteilung!$AT$21="x",SUMIF(M4:M24,"<3.5",L4:L24),SUMIF(M4:M24,"<4.5",L4:L24)) -> 0 | M28: =IF(M27=0,0,SUM((L25)-(L28+N28))) -> 0 | N28: =IF(Beanspruchungverteilung!$AT$21="x",SUMIF(M4:M24,">5.5",L4:L24),SUMIF(M4:M24,">6.5",L4:L24)) -> 0 | O28: =IF(Beanspruchungverteilung!$AT$21="x",SUMIF(P4:P24,"<3.5",O4:O24),SUMIF(P4:P24,"<4.5",O4:O24)) -> 0 | P28: =IF(P27=0,0,SUM((O25)-(O28+Q28))) -> 0 | Q28: =IF(Beanspruchungverteilung!$AT$21="x",SUMIF(P4:P24,">5.5",O4:O24),SUMIF(P4:P24,">6.5",O4:O24)) -> 0 | R28: =IF(Beanspruchungverteilung!$AT$21="x",SUMIF(S4:S24,"<3.5",R4:R24),SUMIF(S4:S24,"<4.5",R4:R24)) -> 0 | S28: =IF(S27=0,0,SUM((R25)-(R28+T28))) -> 0 | T28: =IF(Beanspruchungverteilung!$AT$21="x",SUMIF(S4:S24,">5.5",R4:R24),SUMIF(S4:S24,">6.5",R4:R24)) -> 0 | U28: =IF(Beanspruchungverteilung!$AT$21="x",SUMIF(V4:V24,"<3.5",U4:U24),SUMIF(V4:V24,"<4.5",U4:U24)) -> 0 | V28: =IF(V27=0,0,SUM((U25)-(U28+W28))) -> 0 | W28: =IF(Beanspruchungverteilung!$AT$21="x",SUMIF(V4:V24,">5.5",U4:U24),SUMIF(V4:V24,">6.5",U4:U24)) -> 0 | X28: =IF(Beanspruchungverteilung!$AT$21="x",SUMIF(Y4:Y24,"<3.5",X4:X24),SUMIF(Y4:Y24,"<4.5",X4:X24)) -> 0 | Y28: =IF(Y27=0,0,SUM((X25)-(X28+Z28))) -> 0 | Z28: =IF(Beanspruchungverteilung!$AT$21="x",SUMIF(Y4:Y24,">5.5",X4:X24),SUMIF(Y4:Y24,">6.5",X4:X24)) -> 0 | AA28: =IF(Beanspruchungverteilung!$AT$21="x",SUMIF(AB4:AB24,"<3.5",AA4:AA24),SUMIF(AB4:AB24,"<4.5",AA4:AA24)) -> 0 | AB28: =IF(AB27=0,0,SUM((AA25)-(AA28+AC28))) -> 0 | AC28: =IF(Beanspruchungverteilung!$AT$21="x",SUMIF(AB4:AB24,">5.5",AA4:AA24),SUMIF(AB4:AB24,">6.5",AA4:AA24)) -> 0
B29: Wie in Ruhe | G29: 0
B30: Sehr locker | G30: 1
B31: Locker | G31: 2 | AE31: Trainingstage | AG31: =IF(SUM(AG4:AG24)=0,"",COUNTIF(AG4:AG24,">0")) -> 
G32: 3
B33: Etwas hart | G33: 4 | AE33: Trainingseinheiten | AG33: =IF(AG31="","",SUM(L27:AC27)) -> 
B34: Hart | G34: 5
G35: 6 | AE35: Trainingsstunden | AG35: =IF(AG31="","",SUM(L25,O25,U25,X25,R25,AA25)/60) -> 
B36: Sehr hart | G36: 7
G37: 8 | AE37: Training Load | AG37: =IF(AG31="","",SUM(AG25)) -> 
B38: Extrem hart | G38: 9
B39: Wie mein härtestes Training | G39: 10 | AE39: Monotonie | AG39: =IF(AG31="","",(AVERAGE(AG4:AG24))/AG27) -> 
AE41: Trainingsanstrengung | AG41: =IF(AG31="","",AG37*AG39) -> 
AE43: =AI2 -> Lauf Km | AG43: =IF(AG31="","",SUM(AI4:AI24)) -> 
AE45: =AJ2 -> J | AG45: =IF(AG31="","",SUM(AJ4:AJ24)) -> 
AE47: =AK2 -> Swim Km | AG47: =IF(AG31="","",SUM(AK4:AK24)) -> 
AE49: =AL2 -> Mental Training | AG49: =IF(AG31="","",COUNTA(AL4:AL24)) -> 
AE51: =AM2 -> Regeneration | AG51: =IF(AG31="","",COUNTA(AM4:AM24)) -> 
Y155: =IF(Z155=1,52,Z155-1) -> 12 | Z155: =IF(AA155=1,52,AA155-1) -> 13 | AA155: =IF(AB155=1,52,AB155-1) -> 14 | AB155: =D1 -> 15 | AC155: =IF(AB155=52,1,AB155+1) -> 16 | AD155: =IF(AC155=52,1,AC155+1) -> 17

Sheet 16
C1: Woche | D1: =INT(MOD(INT((F1-2)/7)+0.6,52+5/28))+1 -> 16 | E1: =D1+1000 -> 1016 | F1: ='15'!F1+7 -> 2015-04-13 | G1: - | H1: =F1+6 -> 2015-04-19
B2: Tag | D2: ='45'!D2 -> Gewicht | E2: ='45'!E2 -> Erholt ? | F2: ='45'!F2 -> Schlaf | G2: ='45'!G2 -> Stress | I2: Trainigsbeschreibung | L2: ='45'!L2:N2 -> Dauerlauf | O2: ='45'!O2:Q2 -> Bahn/Intervall | R2: ='45'!R2:T2 -> Sprint/Koord/Tech | U2: ='45'!U2:W2 -> Kraft | X2: ='45'!X2:Z2 -> Alternativ | AA2: ='45'!AA2:AC2 -> Divers | AE2: Bemerkungen | AG2: Load/Tag | AI2: ='45'!AI2:AI3 -> Lauf Km | AJ2: ='45'!AJ2:AJ3 -> J | AK2: ='45'!AK2:AK3 -> Swim Km | AL2: ='45'!AL2:AL3 -> Mental Training | AM2: ='45'!AM2:AM3 -> Regeneration
D3: ='45'!D3 -> kg | E3: ='45'!E3 -> [-3….+3] | F3: ='45'!F3 -> 1-6 | G3: ='45'!G3 -> 0, 1, 2, 3 | L3: Dauer | M3: RPE | N3: Load | O3: Dauer | P3: RPE | Q3: Load | R3: Dauer | S3: RPE | T3: Load | U3: Dauer | V3: RPE | W3: Load | X3: Dauer | Y3: RPE | Z3: Load | AA3: Dauer | AB3: RPE | AC3: Load
B4: Mo | N4: =L4*M4 -> 0 | Q4: =O4*P4 -> 0 | T4: =R4*S4 -> 0 | W4: =U4*V4 -> 0 | Z4: =X4*Y4 -> 0 | AC4: =AA4*AB4 -> 0 | AG4: =SUM(N4:N6,Q4:Q6,T4:T6,W4:W6,Z4:Z6,AC4:AC6) -> 0
N5: 0 | Q5: 0 | T5: 0 | W5: 0 | Z5: 0 | AC5: 0
N6: 0 | Q6: 0 | T6: 0 | W6: 0 | Z6: 0 | AC6: 0
B7: Di | N7: 0 | Q7: 0 | T7: 0 | W7: 0 | Z7: 0 | AC7: 0 | AG7: =SUM(N7:N9,Q7:Q9,T7:T9,W7:W9,Z7:Z9,AC7:AC9) -> 0
N8: 0 | Q8: 0 | T8: 0 | W8: 0 | Z8: 0 | AC8: 0
N9: 0 | Q9: 0 | T9: 0 | W9: 0 | Z9: 0 | AC9: 0
B10: Mi | N10: 0 | Q10: 0 | T10: 0 | W10: 0 | Z10: 0 | AC10: 0 | AG10: =SUM(N10:N12,Q10:Q12,T10:T12,W10:W12,Z10:Z12,AC10:AC12) -> 0
N11: 0 | Q11: 0 | T11: 0 | W11: 0 | Z11: 0 | AC11: 0
N12: 0 | Q12: 0 | T12: 0 | W12: 0 | Z12: 0 | AC12: 0
B13: Do | N13: 0 | Q13: 0 | T13: 0 | W13: 0 | Z13: 0 | AC13: 0 | AG13: =SUM(N13:N15,Q13:Q15,T13:T15,W13:W15,Z13:Z15,AC13:AC15) -> 0
N14: 0 | Q14: 0 | T14: 0 | W14: 0 | Z14: 0 | AC14: 0
N15: 0 | Q15: 0 | T15: 0 | W15: 0 | Z15: 0 | AC15: 0
B16: Fr | N16: 0 | Q16: 0 | T16: 0 | W16: 0 | Z16: 0 | AC16: 0 | AG16: =SUM(N16:N18,Q16:Q18,T16:T18,W16:W18,Z16:Z18,AC16:AC18) -> 0
N17: 0 | Q17: 0 | T17: 0 | W17: 0 | Z17: 0 | AC17: 0
N18: 0 | Q18: 0 | T18: 0 | W18: 0 | Z18: 0 | AC18: 0
B19: Sa | N19: 0 | Q19: 0 | T19: 0 | W19: 0 | Z19: 0 | AC19: 0 | AG19: =SUM(N19:N21,Q19:Q21,T19:T21,W19:W21,Z19:Z21,AC19:AC21) -> 0
N20: 0 | Q20: 0 | T20: 0 | W20: 0 | Z20: 0 | AC20: 0
N21: 0 | Q21: 0 | T21: 0 | W21: 0 | Z21: 0 | AC21: 0
B22: So | N22: 0 | Q22: 0 | T22: 0 | W22: 0 | Z22: 0 | AC22: 0 | AG22: =SUM(N22:N24,Q22:Q24,T22:T24,W22:W24,Z22:Z24,AC22:AC24) -> 0
N23: 0 | Q23: 0 | T23: 0 | W23: 0 | Z23: 0 | AC23: 0
N24: 0 | Q24: 0 | T24: 0 | W24: 0 | Z24: 0 | AC24: 0
J25: Total | L25: =SUM(L4:L24) -> 0 | N25: =SUM(N4:N24) -> 0 | O25: =SUM(O4:O24) -> 0 | Q25: =SUM(Q4:Q24) -> 0 | R25: =SUM(R4:R24) -> 0 | T25: =SUM(T4:T24) -> 0 | U25: =SUM(U4:U24) -> 0 | W25: =SUM(W4:W24) -> 0 | X25: =SUM(X4:X24) -> 0 | Z25: =SUM(Z4:Z24) -> 0 | AA25: =SUM(AA4:AA24) -> 0 | AC25: =SUM(AC4:AC24) -> 0 | AE25: TOTAL LOAD | AG25: =SUM(AG4:AG24) -> 0
B26: avg | D26: =IF(COUNTA(D4:D24)=0,"",AVERAGE(D4:D24)) ->  | E26: =IF(COUNTA(E4:E24)=0,"",AVERAGE(E4:E24)) ->  | F26: =IF(COUNTA(F4:F24)=0,"",AVERAGE(F4:F24)) ->  | G26: =IF(COUNTA(G4:G24)=0,"",AVERAGE(G4:G24)) ->  | J26: Zone | L26: 1 | M26: 2 | N26: 3 | O26: 1 | P26: 2 | Q26: 3 | R26: 1 | S26: 2 | T26: 3 | U26: 1 | V26: 2 | W26: 3 | X26: 1 | Y26: 2 | Z26: 3 | AA26: 1 | AB26: 2 | AC26: 3 | AE26: Mittelwert | AG26: =AVERAGE(AG4:AG24) -> 0
J27: Einheiten pro Zone (RPE) | L27: =IF(Beanspruchungverteilung!$AT$21="x",COUNTIF(M4:M24,"<3.5"),COUNTIF(M4:M24,"<4.5")) -> 0 | M27: =COUNT(M4:M24)-(L27+N27) -> 0 | N27: =IF(Beanspruchungverteilung!$AT$21="x",COUNTIF(M4:M24,">5.5"),COUNTIF(M4:M24,">6.5")) -> 0 | O27: =IF(Beanspruchungverteilung!$AT$21="x",COUNTIF(P4:P24,"<3.5"),COUNTIF(P4:P24,"<4.5")) -> 0 | P27: =COUNT(P4:P24)-(O27+Q27) -> 0 | Q27: =IF(Beanspruchungverteilung!$AT$21="x",COUNTIF(P4:P24,">5.5"),COUNTIF(P4:P24,">6.5")) -> 0 | R27: =IF(Beanspruchungverteilung!$AT$21="x",COUNTIF(S4:S24,"<3.5"),COUNTIF(S4:S24,"<4.5")) -> 0 | S27: =COUNT(S4:S24)-(R27+T27) -> 0 | T27: =IF(Beanspruchungverteilung!$AT$21="x",COUNTIF(S4:S24,">5.5"),COUNTIF(S4:S24,">6.5")) -> 0 | U27: =IF(Beanspruchungverteilung!$AT$21="x",COUNTIF(V4:V24,"<3.5"),COUNTIF(V4:V24,"<4.5")) -> 0 | V27: =COUNT(V4:V24)-(U27+W27) -> 0 | W27: =IF(Beanspruchungverteilung!$AT$21="x",COUNTIF(V4:V24,">5.5"),COUNTIF(V4:V24,">6.5")) -> 0 | X27: =IF(Beanspruchungverteilung!$AT$21="x",COUNTIF(Y4:Y24,"<3.5"),COUNTIF(Y4:Y24,"<4.5")) -> 0 | Y27: =COUNT(Y4:Y24)-(X27+Z27) -> 0 | Z27: =IF(Beanspruchungverteilung!$AT$21="x",COUNTIF(Y4:Y24,">5.5"),COUNTIF(Y4:Y24,">6.5")) -> 0 | AA27: =IF(Beanspruchungverteilung!$AT$21="x",COUNTIF(AB4:AB24,"<3.5"),COUNTIF(AB4:AB24,"<4.5")) -> 0 | AB27: =COUNT(AB4:AB24)-(AA27+AC27) -> 0 | AC27: =IF(Beanspruchungverteilung!$AT$21="x",COUNTIF(AB4:AB24,">5.5"),COUNTIF(AB4:AB24,">6.5")) -> 0 | AE27: Standardabweichung | AG27: =STDEVP(AG4:AG24) -> 0
B28: Foster's Skala | G28: RPE | J28: Zeit pro Zone (RPE) | L28: =IF(Beanspruchungverteilung!$AT$21="x",SUMIF(M4:M24,"<3.5",L4:L24),SUMIF(M4:M24,"<4.5",L4:L24)) -> 0 | M28: =IF(M27=0,0,SUM((L25)-(L28+N28))) -> 0 | N28: =IF(Beanspruchungverteilung!$AT$21="x",SUMIF(M4:M24,">5.5",L4:L24),SUMIF(M4:M24,">6.5",L4:L24)) -> 0 | O28: =IF(Beanspruchungverteilung!$AT$21="x",SUMIF(P4:P24,"<3.5",O4:O24),SUMIF(P4:P24,"<4.5",O4:O24)) -> 0 | P28: =IF(P27=0,0,SUM((O25)-(O28+Q28))) -> 0 | Q28: =IF(Beanspruchungverteilung!$AT$21="x",SUMIF(P4:P24,">5.5",O4:O24),SUMIF(P4:P24,">6.5",O4:O24)) -> 0 | R28: =IF(Beanspruchungverteilung!$AT$21="x",SUMIF(S4:S24,"<3.5",R4:R24),SUMIF(S4:S24,"<4.5",R4:R24)) -> 0 | S28: =IF(S27=0,0,SUM((R25)-(R28+T28))) -> 0 | T28: =IF(Beanspruchungverteilung!$AT$21="x",SUMIF(S4:S24,">5.5",R4:R24),SUMIF(S4:S24,">6.5",R4:R24)) -> 0 | U28: =IF(Beanspruchungverteilung!$AT$21="x",SUMIF(V4:V24,"<3.5",U4:U24),SUMIF(V4:V24,"<4.5",U4:U24)) -> 0 | V28: =IF(V27=0,0,SUM((U25)-(U28+W28))) -> 0 | W28: =IF(Beanspruchungverteilung!$AT$21="x",SUMIF(V4:V24,">5.5",U4:U24),SUMIF(V4:V24,">6.5",U4:U24)) -> 0 | X28: =IF(Beanspruchungverteilung!$AT$21="x",SUMIF(Y4:Y24,"<3.5",X4:X24),SUMIF(Y4:Y24,"<4.5",X4:X24)) -> 0 | Y28: =IF(Y27=0,0,SUM((X25)-(X28+Z28))) -> 0 | Z28: =IF(Beanspruchungverteilung!$AT$21="x",SUMIF(Y4:Y24,">5.5",X4:X24),SUMIF(Y4:Y24,">6.5",X4:X24)) -> 0 | AA28: =IF(Beanspruchungverteilung!$AT$21="x",SUMIF(AB4:AB24,"<3.5",AA4:AA24),SUMIF(AB4:AB24,"<4.5",AA4:AA24)) -> 0 | AB28: =IF(AB27=0,0,SUM((AA25)-(AA28+AC28))) -> 0 | AC28: =IF(Beanspruchungverteilung!$AT$21="x",SUMIF(AB4:AB24,">5.5",AA4:AA24),SUMIF(AB4:AB24,">6.5",AA4:AA24)) -> 0
B29: Wie in Ruhe | G29: 0
B30: Sehr locker | G30: 1
B31: Locker | G31: 2 | AE31: Trainingstage | AG31: =IF(SUM(AG4:AG24)=0,"",COUNTIF(AG4:AG24,">0")) -> 
G32: 3
B33: Etwas hart | G33: 4 | AE33: Trainingseinheiten | AG33: =IF(AG31="","",SUM(L27:AC27)) -> 
B34: Hart | G34: 5
G35: 6 | AE35: Trainingsstunden | AG35: =IF(AG31="","",SUM(L25,O25,U25,X25,R25,AA25)/60) -> 
B36: Sehr hart | G36: 7
G37: 8 | AE37: Training Load | AG37: =IF(AG31="","",SUM(AG25)) -> 
B38: Extrem hart | G38: 9
B39: Wie mein härtestes Training | G39: 10 | AE39: Monotonie | AG39: =IF(AG31="","",(AVERAGE(AG4:AG24))/AG27) -> 
AE41: Trainingsanstrengung | AG41: =IF(AG31="","",AG37*AG39) -> 
AE43: =AI2 -> Lauf Km | AG43: =IF(AG31="","",SUM(AI4:AI24)) -> 
AE45: =AJ2 -> J | AG45: =IF(AG31="","",SUM(AJ4:AJ24)) -> 
AE47: =AK2 -> Swim Km | AG47: =IF(AG31="","",SUM(AK4:AK24)) -> 
AE49: =AL2 -> Mental Training | AG49: =IF(AG31="","",COUNTA(AL4:AL24)) -> 
AE51: =AM2 -> Regeneration | AG51: =IF(AG31="","",COUNTA(AM4:AM24)) -> 
Y155: =IF(Z155=1,52,Z155-1) -> 13 | Z155: =IF(AA155=1,52,AA155-1) -> 14 | AA155: =IF(AB155=1,52,AB155-1) -> 15 | AB155: =D1 -> 16 | AC155: =IF(AB155=52,1,AB155+1) -> 17 | AD155: =IF(AC155=52,1,AC155+1) -> 18

Sheet 17
C1: Woche | D1: =INT(MOD(INT((F1-2)/7)+0.6,52+5/28))+1 -> 17 | E1: =D1+1000 -> 1017 | F1: ='16'!F1+7 -> 2015-04-20 | G1: - | H1: =F1+6 -> 2015-04-26
B2: Tag | D2: ='45'!D2 -> Gewicht | E2: ='45'!E2 -> Erholt ? | F2: ='45'!F2 -> Schlaf | G2: ='45'!G2 -> Stress | I2: Trainigsbeschreibung | L2: ='45'!L2:N2 -> Dauerlauf | O2: ='45'!O2:Q2 -> Bahn/Intervall | R2: ='45'!R2:T2 -> Sprint/Koord/Tech | U2: ='45'!U2:W2 -> Kraft | X2: ='45'!X2:Z2 -> Alternativ | AA2: ='45'!AA2:AC2 -> Divers | AE2: Bemerkungen | AG2: Load/Tag | AI2: ='45'!AI2:AI3 -> Lauf Km | AJ2: ='45'!AJ2:AJ3 -> J | AK2: ='45'!AK2:AK3 -> Swim Km | AL2: ='45'!AL2:AL3 -> Mental Training | AM2: ='45'!AM2:AM3 -> Regeneration
D3: ='45'!D3 -> kg | E3: ='45'!E3 -> [-3….+3] | F3: ='45'!F3 -> 1-6 | G3: ='45'!G3 -> 0, 1, 2, 3 | L3: Dauer | M3: RPE | N3: Load | O3: Dauer | P3: RPE | Q3: Load | R3: Dauer | S3: RPE | T3: Load | U3: Dauer | V3: RPE | W3: Load | X3: Dauer | Y3: RPE | Z3: Load | AA3: Dauer | AB3: RPE | AC3: Load
B4: Mo | N4: =L4*M4 -> 0 | Q4: =O4*P4 -> 0 | T4: =R4*S4 -> 0 | W4: =U4*V4 -> 0 | Z4: =X4*Y4 -> 0 | AC4: =AA4*AB4 -> 0 | AG4: =SUM(N4:N6,Q4:Q6,T4:T6,W4:W6,Z4:Z6,AC4:AC6) -> 0
N5: 0 | Q5: 0 | T5: 0 | W5: 0 | Z5: 0 | AC5: 0
N6: 0 | Q6: 0 | T6: 0 | W6: 0 | Z6: 0 | AC6: 0
B7: Di | N7: 0 | Q7: 0 | T7: 0 | W7: 0 | Z7: 0 | AC7: 0 | AG7: =SUM(N7:N9,Q7:Q9,T7:T9,W7:W9,Z7:Z9,AC7:AC9) -> 0
N8: 0 | Q8: 0 | T8: 0 | W8: 0 | Z8: 0 | AC8: 0
N9: 0 | Q9: 0 | T9: 0 | W9: 0 | Z9: 0 | AC9: 0
B10: Mi | N10: 0 | Q10: 0 | T10: 0 | W10: 0 | Z10: 0 | AC10: 0 | AG10: =SUM(N10:N12,Q10:Q12,T10:T12,W10:W12,Z10:Z12,AC10:AC12) -> 0
N11: 0 | Q11: 0 | T11: 0 | W11: 0 | Z11: 0 | AC11: 0
N12: 0 | Q12: 0 | T12: 0 | W12: 0 | Z12: 0 | AC12: 0
B13: Do | N13: 0 | Q13: 0 | T13: 0 | W13: 0 | Z13: 0 | AC13: 0 | AG13: =SUM(N13:N15,Q13:Q15,T13:T15,W13:W15,Z13:Z15,AC13:AC15) -> 0
N14: 0 | Q14: 0 | T14: 0 | W14: 0 | Z14: 0 | AC14: 0
N15: 0 | Q15: 0 | T15: 0 | W15: 0 | Z15: 0 | AC15: 0
B16: Fr | N16: 0 | Q16: 0 | T16: 0 | W16: 0 | Z16: 0 | AC16: 0 | AG16: =SUM(N16:N18,Q16:Q18,T16:T18,W16:W18,Z16:Z18,AC16:AC18) -> 0
N17: 0 | Q17: 0 | T17: 0 | W17: 0 | Z17: 0 | AC17: 0
N18: 0 | Q18: 0 | T18: 0 | W18: 0 | Z18: 0 | AC18: 0
B19: Sa | N19: 0 | Q19: 0 | T19: 0 | W19: 0 | Z19: 0 | AC19: 0 | AG19: =SUM(N19:N21,Q19:Q21,T19:T21,W19:W21,Z19:Z21,AC19:AC21) -> 0
N20: 0 | Q20: 0 | T20: 0 | W20: 0 | Z20: 0 | AC20: 0
N21: 0 | Q21: 0 | T21: 0 | W21: 0 | Z21: 0 | AC21: 0
B22: So | N22: 0 | Q22: 0 | T22: 0 | W22: 0 | Z22: 0 | AC22: 0 | AG22: =SUM(N22:N24,Q22:Q24,T22:T24,W22:W24,Z22:Z24,AC22:AC24) -> 0
N23: 0 | Q23: 0 | T23: 0 | W23: 0 | Z23: 0 | AC23: 0
N24: 0 | Q24: 0 | T24: 0 | W24: 0 | Z24: 0 | AC24: 0
J25: Total | L25: =SUM(L4:L24) -> 0 | N25: =SUM(N4:N24) -> 0 | O25: =SUM(O4:O24) -> 0 | Q25: =SUM(Q4:Q24) -> 0 | R25: =SUM(R4:R24) -> 0 | T25: =SUM(T4:T24) -> 0 | U25: =SUM(U4:U24) -> 0 | W25: =SUM(W4:W24) -> 0 | X25: =SUM(X4:X24) -> 0 | Z25: =SUM(Z4:Z24) -> 0 | AA25: =SUM(AA4:AA24) -> 0 | AC25: =SUM(AC4:AC24) -> 0 | AE25: TOTAL LOAD | AG25: =SUM(AG4:AG24) -> 0
B26: avg | D26: =IF(COUNTA(D4:D24)=0,"",AVERAGE(D4:D24)) ->  | E26: =IF(COUNTA(E4:E24)=0,"",AVERAGE(E4:E24)) ->  | F26: =IF(COUNTA(F4:F24)=0,"",AVERAGE(F4:F24)) ->  | G26: =IF(COUNTA(G4:G24)=0,"",AVERAGE(G4:G24)) ->  | J26: Zone | L26: 1 | M26: 2 | N26: 3 | O26: 1 | P26: 2 | Q26: 3 | R26: 1 | S26: 2 | T26: 3 | U26: 1 | V26: 2 | W26: 3 | X26: 1 | Y26: 2 | Z26: 3 | AA26: 1 | AB26: 2 | AC26: 3 | AE26: Mittelwert | AG26: =AVERAGE(AG4:AG24) -> 0
J27: Einheiten pro Zone (RPE) | L27: =IF(Beanspruchungverteilung!$AT$21="x",COUNTIF(M4:M24,"<3.5"),COUNTIF(M4:M24,"<4.5")) -> 0 | M27: =COUNT(M4:M24)-(L27+N27) -> 0 | N27: =IF(Beanspruchungverteilung!$AT$21="x",COUNTIF(M4:M24,">5.5"),COUNTIF(M4:M24,">6.5")) -> 0 | O27: =IF(Beanspruchungverteilung!$AT$21="x",COUNTIF(P4:P24,"<3.5"),COUNTIF(P4:P24,"<4.5")) -> 0 | P27: =COUNT(P4:P24)-(O27+Q27) -> 0 | Q27: =IF(Beanspruchungverteilung!$AT$21="x",COUNTIF(P4:P24,">5.5"),COUNTIF(P4:P24,">6.5")) -> 0 | R27: =IF(Beanspruchungverteilung!$AT$21="x",COUNTIF(S4:S24,"<3.5"),COUNTIF(S4:S24,"<4.5")) -> 0 | S27: =COUNT(S4:S24)-(R27+T27) -> 0 | T27: =IF(Beanspruchungverteilung!$AT$21="x",COUNTIF(S4:S24,">5.5"),COUNTIF(S4:S24,">6.5")) -> 0 | U27: =IF(Beanspruchungverteilung!$AT$21="x",COUNTIF(V4:V24,"<3.5"),COUNTIF(V4:V24,"<4.5")) -> 0 | V27: =COUNT(V4:V24)-(U27+W27) -> 0 | W27: =IF(Beanspruchungverteilung!$AT$21="x",COUNTIF(V4:V24,">5.5"),COUNTIF(V4:V24,">6.5")) -> 0 | X27: =IF(Beanspruchungverteilung!$AT$21="x",COUNTIF(Y4:Y24,"<3.5"),COUNTIF(Y4:Y24,"<4.5")) -> 0 | Y27: =COUNT(Y4:Y24)-(X27+Z27) -> 0 | Z27: =IF(Beanspruchungverteilung!$AT$21="x",COUNTIF(Y4:Y24,">5.5"),COUNTIF(Y4:Y24,">6.5")) -> 0 | AA27: =IF(Beanspruchungverteilung!$AT$21="x",COUNTIF(AB4:AB24,"<3.5"),COUNTIF(AB4:AB24,"<4.5")) -> 0 | AB27: =COUNT(AB4:AB24)-(AA27+AC27) -> 0 | AC27: =IF(Beanspruchungverteilung!$AT$21="x",COUNTIF(AB4:AB24,">5.5"),COUNTIF(AB4:AB24,">6.5")) -> 0 | AE27: Standardabweichung | AG27: =STDEVP(AG4:AG24) -> 0
B28: Foster's Skala | G28: RPE | J28: Zeit pro Zone (RPE) | L28: =IF(Beanspruchungverteilung!$AT$21="x",SUMIF(M4:M24,"<3.5",L4:L24),SUMIF(M4:M24,"<4.5",L4:L24)) -> 0 | M28: =IF(M27=0,0,SUM((L25)-(L28+N28))) -> 0 | N28: =IF(Beanspruchungverteilung!$AT$21="x",SUMIF(M4:M24,">5.5",L4:L24),SUMIF(M4:M24,">6.5",L4:L24)) -> 0 | O28: =IF(Beanspruchungverteilung!$AT$21="x",SUMIF(P4:P24,"<3.5",O4:O24),SUMIF(P4:P24,"<4.5",O4:O24)) -> 0 | P28: =IF(P27=0,0,SUM((O25)-(O28+Q28))) -> 0 | Q28: =IF(Beanspruchungverteilung!$AT$21="x",SUMIF(P4:P24,">5.5",O4:O24),SUMIF(P4:P24,">6.5",O4:O24)) -> 0 | R28: =IF(Beanspruchungverteilung!$AT$21="x",SUMIF(S4:S24,"<3.5",R4:R24),SUMIF(S4:S24,"<4.5",R4:R24)) -> 0 | S28: =IF(S27=0,0,SUM((R25)-(R28+T28))) -> 0 | T28: =IF(Beanspruchungverteilung!$AT$21="x",SUMIF(S4:S24,">5.5",R4:R24),SUMIF(S4:S24,">6.5",R4:R24)) -> 0 | U28: =IF(Beanspruchungverteilung!$AT$21="x",SUMIF(V4:V24,"<3.5",U4:U24),SUMIF(V4:V24,"<4.5",U4:U24)) -> 0 | V28: =IF(V27=0,0,SUM((U25)-(U28+W28))) -> 0 | W28: =IF(Beanspruchungverteilung!$AT$21="x",SUMIF(V4:V24,">5.5",U4:U24),SUMIF(V4:V24,">6.5",U4:U24)) -> 0 | X28: =IF(Beanspruchungverteilung!$AT$21="x",SUMIF(Y4:Y24,"<3.5",X4:X24),SUMIF(Y4:Y24,"<4.5",X4:X24)) -> 0 | Y28: =IF(Y27=0,0,SUM((X25)-(X28+Z28))) -> 0 | Z28: =IF(Beanspruchungverteilung!$AT$21="x",SUMIF(Y4:Y24,">5.5",X4:X24),SUMIF(Y4:Y24,">6.5",X4:X24)) -> 0 | AA28: =IF(Beanspruchungverteilung!$AT$21="x",SUMIF(AB4:AB24,"<3.5",AA4:AA24),SUMIF(AB4:AB24,"<4.5",AA4:AA24)) -> 0 | AB28: =IF(AB27=0,0,SUM((AA25)-(AA28+AC28))) -> 0 | AC28: =IF(Beanspruchungverteilung!$AT$21="x",SUMIF(AB4:AB24,">5.5",AA4:AA24),SUMIF(AB4:AB24,">6.5",AA4:AA24)) -> 0
B29: Wie in Ruhe | G29: 0
B30: Sehr locker | G30: 1
B31: Locker | G31: 2 | AE31: Trainingstage | AG31: =IF(SUM(AG4:AG24)=0,"",COUNTIF(AG4:AG24,">0")) -> 
G32: 3
B33: Etwas hart | G33: 4 | AE33: Trainingseinheiten | AG33: =IF(AG31="","",SUM(L27:AC27)) -> 
B34: Hart | G34: 5
G35: 6 | AE35: Trainingsstunden | AG35: =IF(AG31="","",SUM(L25,O25,U25,X25,R25,AA25)/60) -> 
B36: Sehr hart | G36: 7
G37: 8 | AE37: Training Load | AG37: =IF(AG31="","",SUM(AG25)) -> 
B38: Extrem hart | G38: 9
B39: Wie mein härtestes Training | G39: 10 | AE39: Monotonie | AG39: =IF(AG31="","",(AVERAGE(AG4:AG24))/AG27) -> 
AE41: Trainingsanstrengung | AG41: =IF(AG31="","",AG37*AG39) -> 
AE43: =AI2 -> Lauf Km | AG43: =IF(AG31="","",SUM(AI4:AI24)) -> 
AE45: =AJ2 -> J | AG45: =IF(AG31="","",SUM(AJ4:AJ24)) -> 
AE47: =AK2 -> Swim Km | AG47: =IF(AG31="","",SUM(AK4:AK24)) -> 
AE49: =AL2 -> Mental Training | AG49: =IF(AG31="","",COUNTA(AL4:AL24)) -> 
AE51: =AM2 -> Regeneration | AG51: =IF(AG31="","",COUNTA(AM4:AM24)) -> 
Y155: =IF(Z155=1,52,Z155-1) -> 14 | Z155: =IF(AA155=1,52,AA155-1) -> 15 | AA155: =IF(AB155=1,52,AB155-1) -> 16 | AB155: =D1 -> 17 | AC155: =IF(AB155=52,1,AB155+1) -> 18 | AD155: =IF(AC155=52,1,AC155+1) -> 19

Sheet 18
C1: Woche | D1: =INT(MOD(INT((F1-2)/7)+0.6,52+5/28))+1 -> 18 | E1: =D1+1000 -> 1018 | F1: ='17'!F1+7 -> 2015-04-27 | G1: - | H1: =F1+6 -> 2015-05-03
B2: Tag | D2: ='45'!D2 -> Gewicht | E2: ='45'!E2 -> Erholt ? | F2: ='45'!F2 -> Schlaf | G2: ='45'!G2 -> Stress | I2: Trainigsbeschreibung | L2: ='45'!L2:N2 -> Dauerlauf | O2: ='45'!O2:Q2 -> Bahn/Intervall | R2: ='45'!R2:T2 -> Sprint/Koord/Tech | U2: ='45'!U2:W2 -> Kraft | X2: ='45'!X2:Z2 -> Alternativ | AA2: ='45'!AA2:AC2 -> Divers | AE2: Bemerkungen | AG2: Load/Tag | AI2: ='45'!AI2:AI3 -> Lauf Km | AJ2: ='45'!AJ2:AJ3 -> J | AK2: ='45'!AK2:AK3 -> Swim Km | AL2: ='45'!AL2:AL3 -> Mental Training | AM2: ='45'!AM2:AM3 -> Regeneration
D3: ='45'!D3 -> kg | E3: ='45'!E3 -> [-3….+3] | F3: ='45'!F3 -> 1-6 | G3: ='45'!G3 -> 0, 1, 2, 3 | L3: Dauer | M3: RPE | N3: Load | O3: Dauer | P3: RPE | Q3: Load | R3: Dauer | S3: RPE | T3: Load | U3: Dauer | V3: RPE | W3: Load | X3: Dauer | Y3: RPE | Z3: Load | AA3: Dauer | AB3: RPE | AC3: Load
B4: Mo | N4: =L4*M4 -> 0 | Q4: =O4*P4 -> 0 | T4: =R4*S4 -> 0 | W4: =U4*V4 -> 0 | Z4: =X4*Y4 -> 0 | AC4: =AA4*AB4 -> 0 | AG4: =SUM(N4:N6,Q4:Q6,T4:T6,W4:W6,Z4:Z6,AC4:AC6) -> 0
N5: 0 | Q5: 0 | T5: 0 | W5: 0 | Z5: 0 | AC5: 0
N6: 0 | Q6: 0 | T6: 0 | W6: 0 | Z6: 0 | AC6: 0
B7: Di | N7: 0 | Q7: 0 | T7: 0 | W7: 0 | Z7: 0 | AC7: 0 | AG7: =SUM(N7:N9,Q7:Q9,T7:T9,W7:W9,Z7:Z9,AC7:AC9) -> 0
N8: 0 | Q8: 0 | T8: 0 | W8: 0 | Z8: 0 | AC8: 0
N9: 0 | Q9: 0 | T9: 0 | W9: 0 | Z9: 0 | AC9: 0
B10: Mi | N10: 0 | Q10: 0 | T10: 0 | W10: 0 | Z10: 0 | AC10: 0 | AG10: =SUM(N10:N12,Q10:Q12,T10:T12,W10:W12,Z10:Z12,AC10:AC12) -> 0
N11: 0 | Q11: 0 | T11: 0 | W11: 0 | Z11: 0 | AC11: 0
N12: 0 | Q12: 0 | T12: 0 | W12: 0 | Z12: 0 | AC12: 0
B13: Do | N13: 0 | Q13: 0 | T13: 0 | W13: 0 | Z13: 0 | AC13: 0 | AG13: =SUM(N13:N15,Q13:Q15,T13:T15,W13:W15,Z13:Z15,AC13:AC15) -> 0
N14: 0 | Q14: 0 | T14: 0 | W14: 0 | Z14: 0 | AC14: 0
N15: 0 | Q15: 0 | T15: 0 | W15: 0 | Z15: 0 | AC15: 0
B16: Fr | N16: 0 | Q16: 0 | T16: 0 | W16: 0 | Z16: 0 | AC16: 0 | AG16: =SUM(N16:N18,Q16:Q18,T16:T18,W16:W18,Z16:Z18,AC16:AC18) -> 0
N17: 0 | Q17: 0 | T17: 0 | W17: 0 | Z17: 0 | AC17: 0
N18: 0 | Q18: 0 | T18: 0 | W18: 0 | Z18: 0 | AC18: 0
B19: Sa | N19: 0 | Q19: 0 | T19: 0 | W19: 0 | Z19: 0 | AC19: 0 | AG19: =SUM(N19:N21,Q19:Q21,T19:T21,W19:W21,Z19:Z21,AC19:AC21) -> 0
N20: 0 | Q20: 0 | T20: 0 | W20: 0 | Z20: 0 | AC20: 0
N21: 0 | Q21: 0 | T21: 0 | W21: 0 | Z21: 0 | AC21: 0
B22: So | N22: 0 | Q22: 0 | T22: 0 | W22: 0 | Z22: 0 | AC22: 0 | AG22: =SUM(N22:N24,Q22:Q24,T22:T24,W22:W24,Z22:Z24,AC22:AC24) -> 0
N23: 0 | Q23: 0 | T23: 0 | W23: 0 | Z23: 0 | AC23: 0
N24: 0 | Q24: 0 | T24: 0 | W24: 0 | Z24: 0 | AC24: 0
J25: Total | L25: =SUM(L4:L24) -> 0 | N25: =SUM(N4:N24) -> 0 | O25: =SUM(O4:O24) -> 0 | Q25: =SUM(Q4:Q24) -> 0 | R25: =SUM(R4:R24) -> 0 | T25: =SUM(T4:T24) -> 0 | U25: =SUM(U4:U24) -> 0 | W25: =SUM(W4:W24) -> 0 | X25: =SUM(X4:X24) -> 0 | Z25: =SUM(Z4:Z24) -> 0 | AA25: =SUM(AA4:AA24) -> 0 | AC25: =SUM(AC4:AC24) -> 0 | AE25: TOTAL LOAD | AG25: =SUM(AG4:AG24) -> 0
B26: avg | D26: =IF(COUNTA(D4:D24)=0,"",AVERAGE(D4:D24)) ->  | E26: =IF(COUNTA(E4:E24)=0,"",AVERAGE(E4:E24)) ->  | F26: =IF(COUNTA(F4:F24)=0,"",AVERAGE(F4:F24)) ->  | G26: =IF(COUNTA(G4:G24)=0,"",AVERAGE(G4:G24)) ->  | J26: Zone | L26: 1 | M26: 2 | N26: 3 | O26: 1 | P26: 2 | Q26: 3 | R26: 1 | S26: 2 | T26: 3 | U26: 1 | V26: 2 | W26: 3 | X26: 1 | Y26: 2 | Z26: 3 | AA26: 1 | AB26: 2 | AC26: 3 | AE26: Mittelwert | AG26: =AVERAGE(AG4:AG24) -> 0
J27: Einheiten pro Zone (RPE) | L27: =IF(Beanspruchungverteilung!$AT$21="x",COUNTIF(M4:M24,"<3.5"),COUNTIF(M4:M24,"<4.5")) -> 0 | M27: =COUNT(M4:M24)-(L27+N27) -> 0 | N27: =IF(Beanspruchungverteilung!$AT$21="x",COUNTIF(M4:M24,">5.5"),COUNTIF(M4:M24,">6.5")) -> 0 | O27: =IF(Beanspruchungverteilung!$AT$21="x",COUNTIF(P4:P24,"<3.5"),COUNTIF(P4:P24,"<4.5")) -> 0 | P27: =COUNT(P4:P24)-(O27+Q27) -> 0 | Q27: =IF(Beanspruchungverteilung!$AT$21="x",COUNTIF(P4:P24,">5.5"),COUNTIF(P4:P24,">6.5")) -> 0 | R27: =IF(Beanspruchungverteilung!$AT$21="x",COUNTIF(S4:S24,"<3.5"),COUNTIF(S4:S24,"<4.5")) -> 0 | S27: =COUNT(S4:S24)-(R27+T27) -> 0 | T27: =IF(Beanspruchungverteilung!$AT$21="x",COUNTIF(S4:S24,">5.5"),COUNTIF(S4:S24,">6.5")) -> 0 | U27: =IF(Beanspruchungverteilung!$AT$21="x",COUNTIF(V4:V24,"<3.5"),COUNTIF(V4:V24,"<4.5")) -> 0 | V27: =COUNT(V4:V24)-(U27+W27) -> 0 | W27: =IF(Beanspruchungverteilung!$AT$21="x",COUNTIF(V4:V24,">5.5"),COUNTIF(V4:V24,">6.5")) -> 0 | X27: =IF(Beanspruchungverteilung!$AT$21="x",COUNTIF(Y4:Y24,"<3.5"),COUNTIF(Y4:Y24,"<4.5")) -> 0 | Y27: =COUNT(Y4:Y24)-(X27+Z27) -> 0 | Z27: =IF(Beanspruchungverteilung!$AT$21="x",COUNTIF(Y4:Y24,">5.5"),COUNTIF(Y4:Y24,">6.5")) -> 0 | AA27: =IF(Beanspruchungverteilung!$AT$21="x",COUNTIF(AB4:AB24,"<3.5"),COUNTIF(AB4:AB24,"<4.5")) -> 0 | AB27: =COUNT(AB4:AB24)-(AA27+AC27) -> 0 | AC27: =IF(Beanspruchungverteilung!$AT$21="x",COUNTIF(AB4:AB24,">5.5"),COUNTIF(AB4:AB24,">6.5")) -> 0 | AE27: Standardabweichung | AG27: =STDEVP(AG4:AG24) -> 0
